Workbook

Sheet Introduction
C4: Joint Monitoring Programme for Water Supply, Sanitation and Hygiene
C6: Estimates on household water, sanitation and hygiene by wealth quintile and sub-national region in
C7: =+Water!B5 -> Cameroon
C9: Updated April 2021
C11: Follow the links below to find the following information:
C13: JMP Estimates
C14: WASH status and trends by wealth quintile (customized quintiles made without water and sanitation assets)
C15: Water
C16: Sanitation
C17: Hygiene
C19: Data inputs
C20: customized wealth quintiles and subnational data:
C21: =IF(INDIRECT(CONCATENATE("Water","!B105"))=0,"",INDIRECT(CONCATENATE("Water","!B105"))) -> MICS00
C22: =IF(INDIRECT(CONCATENATE("Water","!B106"))=0,"",INDIRECT(CONCATENATE("Water","!B106"))) -> DHS04
C23: =IF(INDIRECT(CONCATENATE("Water","!B107"))=0,"",INDIRECT(CONCATENATE("Water","!B107"))) -> MICS06
C24: =IF(INDIRECT(CONCATENATE("Water","!B108"))=0,"",INDIRECT(CONCATENATE("Water","!B108"))) -> DHS11
C25: =IF(INDIRECT(CONCATENATE("Water","!B109"))=0,"",INDIRECT(CONCATENATE("Water","!B109"))) -> MICS14
C26: =IF(INDIRECT(CONCATENATE("Water","!B110"))=0,"",INDIRECT(CONCATENATE("Water","!B110"))) -> DHS19
C27: =IF(INDIRECT(CONCATENATE("Water","!B111"))=0,"",INDIRECT(CONCATENATE("Water","!B111"))) -> 
C28: =IF(INDIRECT(CONCATENATE("Water","!B112"))=0,"",INDIRECT(CONCATENATE("Water","!B112"))) -> 
C29: =IF(INDIRECT(CONCATENATE("Water","!B113"))=0,"",INDIRECT(CONCATENATE("Water","!B113"))) -> 
C30: =IF(INDIRECT(CONCATENATE("Water","!B114"))=0,"",INDIRECT(CONCATENATE("Water","!B114"))) -> 
C31: =IF(INDIRECT(CONCATENATE("Water","!B115"))=0,"",INDIRECT(CONCATENATE("Water","!B115"))) -> 
C32: =IF(INDIRECT(CONCATENATE("Water","!B116"))=0,"",INDIRECT(CONCATENATE("Water","!B116"))) -> 
L55: =+IF(ISNUMBER(M48), "", "Insufficient data to estimate safely managed sanitation services at national level") -> Insufficient data to estimate safely managed sanitation services at national level

Sheet Water
A1: BGD
B4: Summary of trends in use of drinking water by wealth quintile (%)
B5: =IF(ISERROR(INDIRECT(CONCATENATE($B105,"!A2"))),"",INDIRECT(CONCATENATE($B105,"!A2"))) -> Cameroon
B7: =B118 -> National use of drinking water sources, 2000–2020 | J7: =B218 -> Urban use of drinking water sources, 2000–2020 | R7: =B318 -> Rural use of drinking water sources, 2000–2020
B31: =IF(ISERROR(INDIRECT(CONCATENATE($B105,"!A2"))),"",INDIRECT(CONCATENATE($B105,"!A2"))) -> Cameroon | F31: Poorest | J31: Poor | N31: Middle | R31: Rich | V31: Richest
F32: Basic | G32: Limited | H32: Unimproved | I32: Surface water | J32: Basic | K32: Limited | L32: Unimproved | M32: Surface water | N32: Basic | O32: Limited | P32: Unimproved | Q32: Surface water | R32: Basic | S32: Limited | T32: Unimproved | U32: Surface water | V32: Basic | W32: Limited | X32: Unimproved | Y32: Surface water
B33: NATIONAL | D33: Estimate | E33: =C99 -> 2000 | F33: =E99 -> 30.56163678 | G33: =F99 -> 6.783834568 | H33: 39.59351099 | I33: 23.06101767 | J33: =J99 -> 31.35752178 | K33: =K99 -> 6.187258975 | L33: 36.47154889 | M33: 25.98367035 | N33: =O99 -> 48.52492612 | O33: =P99 -> 8.351842131 | P33: 25.19353599 | Q33: 17.92969576 | R33: =T99 -> 67.38748835 | S33: =U99 -> 7.794117042 | T33: 16.14433292 | U33: 8.674061693 | V33: =Y99 -> 87.39810069 | W33: =Z99 -> 4.979993705 | X33: 6.02493869 | Y33: 1.596966918
E34: =C100 -> 2020 | F34: =E100 -> 39.81623474 | G34: 8.838098287 | H34: 34.44994853 | I34: 16.89571844 | J34: =J100 -> 51.66105424 | K34: 10.19341783 | L34: 27.75265761 | M34: 10.39287033 | N34: =O100 -> 68.95468946 | O34: 11.8681001 | P34: 15.40730416 | Q34: 3.76990628 | R34: =T100 -> 88.73927881 | S34: 10.26369052 | T34: 0.9970306736 | U34: 0 | V34: =Y100 -> 94.57196093 | W34: 5.38876436 | X34: 0.03927470785 | Y34: 0
B36: URBAN | D36: Estimate | E36: =C199 -> 2000 | F36: =E199 -> 55.53570019 | G36: =F199 -> 10.04564089 | H36: 25.06188494 | I36: 9.356773979 | J36: =J199 -> 76.66131506 | K36: =K199 -> 8.631960592 | L36: 10.95338077 | M36: 3.753343581 | N36: =O199 -> 80.50944148 | O36: =P199 -> 8.197837414 | P36: 9.157011483 | Q36: 2.135709621 | R36: =T199 -> 87.56160355 | S36: =U199 -> 6.30299891 | T36: 5.076437257 | U36: 1.058960281 | V36: =Y199 -> 93.48317757 | W36: =Z199 -> 3.51747274 | X36: 2.671843797 | Y36: 0.3275058899
E37: =C200 -> 2020 | F37: =E200 -> 73.38567337 | G37: 13.27445443 | H37: 10.05520093 | I37: 3.284671272 | J37: =J200 -> 85.40912425 | K37: 9.616952099 | L37: 4.973923649 | M37: 0 | N37: =O200 -> 89.85474473 | O37: 9.149418685 | P37: 0.8479044749 | Q37: 0.1479321111 | R37: =T200 -> 92.48884395 | S37: 6.657679381 | T37: 0.5554412047 | U37: 0.2980354628 | V37: =Y200 -> 95.9148673 | W37: 3.608969441 | X37: 0.4520655492 | Y37: 0.02409771293
B39: RURAL | D39: Estimate | E39: =C299 -> 2000 | F39: =E299 -> 28.13113366 | G39: =F299 -> 6.580096161 | H39: 44.23594071 | I39: 21.05282948 | J39: =J299 -> 26.91440441 | K39: =K299 -> 5.665505714 | L39: 38.11909107 | M39: 29.3009988 | N39: =O299 -> 31.03141555 | O39: =P299 -> 6.189134391 | P39: 36.38969737 | Q39: 26.38975269 | R39: =T299 -> 40.51192243 | S39: =U299 -> 7.67023721 | T39: 26.78660708 | U39: 25.03123329 | V39: =Y299 -> 47.57944337 | W39: =Z299 -> 8.175968865 | X39: 23.81211012 | Y39: 20.43247765
E40: =C300 -> 2020 | F40: =E300 -> 37.08321209 | G40: 8.674058588 | H40: 35.08161102 | I40: 19.1611183 | J40: =J300 -> 41.49333731 | K40: 8.734383864 | L40: 34.96316935 | M40: 14.80910948 | N40: =O300 -> 45.52658801 | O40: 9.080158496 | P40: 32.83930126 | Q40: 12.55395224 | R40: =T300 -> 50.12207122 | S40: 9.489753945 | T40: 30.27613241 | U40: 10.11204243 | V40: =Y300 -> 65.78235005 | W40: 11.30392472 | X40: 18.53992147 | Y40: 4.37380376
A97: NATIONAL | D97: Poorest | I97: Poor | N97: Middle | S97: Rich | X97: Richest
D98: Improved | E98: Basic | F98: Limited | G98: Unimproved | H98: Surface water | I98: Improved | J98: Basic | K98: Limited | L98: Unimproved | M98: Surface water | N98: Improved | O98: Basic | P98: Limited | Q98: Unimproved | R98: Surface water | S98: Improved | T98: Basic | U98: Limited | V98: Unimproved | W98: Surface water | X98: Improved | Y98: Basic | Z98: Limited | AA98: Unimproved | AB98: Surface water
A99: Forecast period: | C99: 2000 | D99: =IF((D101+H101)>100,D101*100/(D101+H101),D101) -> 37.34547134 | E99: =D99*AVERAGEIF(E105:E116,">0")/100 -> 30.56163678 | F99: =D99*(100-AVERAGEIF(E105:E116,">0"))/100 -> 6.783834568 | G99: =100-(E99+F99+H99) -> 39.59351099 | H99: =IF((D101+H101)>100,H101*100/(D101+H101),H101) -> 23.06101767 | I99: =IF((I101+M101)>100,I101*100/(I101+M101),I101) -> 37.54478076 | J99: =I99*AVERAGEIF(J105:J116,">0")/100 -> 31.35752178 | K99: =I99*(100-AVERAGEIF(J105:J116,">0"))/100 -> 6.187258975 | L99: =100-(J99+K99+M99) -> 36.47154889 | M99: =IF((I101+M101)>100,M101*100/(I101+M101),M101) -> 25.98367035 | N99: =IF((N101+R101)>100,N101*100/(N101+R101),N101) -> 56.87676825 | O99: =N99*AVERAGEIF(O105:O116,">0")/100 -> 48.52492612 | P99: =N99*(100-AVERAGEIF(O105:O116,">0"))/100 -> 8.351842131 | Q99: =100-(O99+P99+R99) -> 25.19353599 | R99: =IF((N101+R101)>100,R101*100/(N101+R101),R101) -> 17.92969576 | S99: =IF((S101+W101)>100,S101*100/(S101+W101),S101) -> 75.18160539 | T99: =S99*AVERAGEIF(T105:T116,">0")/100 -> 67.38748835 | U99: =S99*(100-AVERAGEIF(T105:T116,">0"))/100 -> 7.794117042 | V99: =100-(T99+U99+W99) -> 16.14433292 | W99: =IF((S101+W101)>100,W101*100/(S101+W101),W101) -> 8.674061693 | X99: =IF((X101+AB101)>100,X101*100/(X101+AB101),X101) -> 92.37809439 | Y99: =X99*AVERAGEIF(Y105:Y116,">0")/100 -> 87.39810069 | Z99: =X99*(100-AVERAGEIF(Y105:Y116,">0"))/100 -> 4.979993705 | AA99: =100-(Y99+Z99+AB99) -> 6.02493869 | AB99: =IF((X101+AB101)>100,AB101*100/(X101+AB101),AB101) -> 1.596966918
C100: 2020 | D100: =IF((D102+H102)>100,D102*100/(D102+H102),D102) -> 48.65433303 | E100: =D100*AVERAGEIF(E105:E116,">0")/100 -> 39.81623474 | F100: =D100*(100-AVERAGEIF(E105:E116,">0"))/100 -> 8.838098287 | G100: =100-(E100+F100+H100) -> 34.44994853 | H100: =IF((D102+H102)>100,H102*100/(D102+H102),H102) -> 16.89571844 | I100: =IF((I102+M102)>100,I102*100/(I102+M102),I102) -> 61.85447207 | J100: =I100*AVERAGEIF(J105:J116,">0")/100 -> 51.66105424 | K100: =I100*(100-AVERAGEIF(J105:J116,">0"))/100 -> 10.19341783 | L100: =100-(J100+K100+M100) -> 27.75265761 | M100: =IF((I102+M102)>100,M102*100/(I102+M102),M102) -> 10.39287033 | N100: =IF((N102+R102)>100,N102*100/(N102+R102),N102) -> 80.82278956 | O100: =N100*AVERAGEIF(O105:O116,">0")/100 -> 68.95468946 | P100: =N100*(100-AVERAGEIF(O105:O116,">0"))/100 -> 11.8681001 | Q100: =100-(O100+P100+R100) -> 15.40730416 | R100: =IF((N102+R102)>100,R102*100/(N102+R102),R102) -> 3.76990628 | S100: =IF((S102+W102)>100,S102*100/(S102+W102),S102) -> 99.00296933 | T100: =S100*AVERAGEIF(T105:T116,">0")/100 -> 88.73927881 | U100: =S100*(100-AVERAGEIF(T105:T116,">0"))/100 -> 10.26369052 | V100: =100-(T100+U100+W100) -> 0.9970306736 | W100: =IF((S102+W102)>100,W102*100/(S102+W102),W102) -> 0 | X100: =IF((X102+AB102)>100,X102*100/(X102+AB102),X102) -> 99.96072529 | Y100: =X100*AVERAGEIF(Y105:Y116,">0")/100 -> 94.57196093 | Z100: =X100*(100-AVERAGEIF(Y105:Y116,">0"))/100 -> 5.38876436 | AA100: =100-(Y100+Z100+AB100) -> 0.03927470785 | AB100: =IF((X102+AB102)>100,AB102*100/(X102+AB102),AB102) -> 0
A101: Regression period: | C101: =MinRegYear(C99,C105:C116) -> 2000 | D101: =IF(MAX(C105:C116)-MIN(C105:C116)<5,AVERAGEIF(C105:C116,">0",D105:D116), IF(FORECAST($C101,D$105:D$116,$C$105:$C$116)<0,0, IF(FORECAST($C101,D$105:D$116,$C$105:$C$116)>100,100, FORECAST($C101,D$105:D$116,$C$105:$C$116)))) -> 37.34547134 | H101: =IF(MAX(C105:C116)-MIN(C105:C116)<5,AVERAGEIF(C105:C116,">0",H105:H116), IF(FORECAST($C101,H$105:H$116,$C$105:$C$116)<0,0, IF(FORECAST($C101,H$105:H$116,$C$105:$C$116)>100,100, FORECAST($C101,H$105:H$116,$C$105:$C$116)))) -> 23.06101767 | I101: =IF(MAX(C105:C116)-MIN(C105:C116)<5,AVERAGEIF(C105:C116,">0",I105:I116), IF(FORECAST($C101,I$105:I$116,$C$105:$C$116)<0,0, IF(FORECAST($C101,I$105:I$116,$C$105:$C$116)>100,100, FORECAST($C101,I$105:I$116,$C$105:$C$116)))) -> 37.54478076 | M101: =IF(MAX(C105:C116)-MIN(C105:C116)<5,AVERAGEIF(C105:C116,">0",M105:M116), IF(FORECAST($C101,M$105:M$116,$C$105:$C$116)<0,0, IF(FORECAST($C101,M$105:M$116,$C$105:$C$116)>100,100, FORECAST($C101,M$105:M$116,$C$105:$C$116)))) -> 25.98367035 | N101: =IF(MAX(C105:C116)-MIN(C105:C116)<5,AVERAGEIF(C105:C116,">0",N105:N116), IF(FORECAST($C101,N$105:N$116,$C$105:$C$116)<0,0, IF(FORECAST($C101,N$105:N$116,$C$105:$C$116)>100,100, FORECAST($C101,N$105:N$116,$C$105:$C$116)))) -> 56.87676825 | R101: =IF(MAX(C105:C116)-MIN(C105:C116)<5,AVERAGEIF(C105:C116,">0",R105:R116), IF(FORECAST($C101,R$105:R$116,$C$105:$C$116)<0,0, IF(FORECAST($C101,R$105:R$116,$C$105:$C$116)>100,100, FORECAST($C101,R$105:R$116,$C$105:$C$116)))) -> 17.92969576 | S101: =IF(MAX(C105:C116)-MIN(C105:C116)<5,AVERAGEIF(C105:C116,">0",S105:S116), IF(FORECAST($C101,S$105:S$116,$C$105:$C$116)<0,0, IF(FORECAST($C101,S$105:S$116,$C$105:$C$116)>100,100, FORECAST($C101,S$105:S$116,$C$105:$C$116)))) -> 75.18160539 | W101: =IF(MAX(C105:C116)-MIN(C105:C116)<5,AVERAGEIF(C105:C116,">0",W105:W116), IF(FORECAST($C101,W$105:W$116,$C$105:$C$116)<0,0, IF(FORECAST($C101,W$105:W$116,$C$105:$C$116)>100,100, FORECAST($C101,W$105:W$116,$C$105:$C$116)))) -> 8.674061693 | X101: =IF(MAX(C105:C116)-MIN(C105:C116)<5,AVERAGEIF(C105:C116,">0",X105:X116), IF(FORECAST($C101,X$105:X$116,$C$105:$C$116)<0,0, IF(FORECAST($C101,X$105:X$116,$C$105:$C$116)>100,100, FORECAST($C101,X$105:X$116,$C$105:$C$116)))) -> 92.37809439 | AB101: =IF(MAX(C105:C116)-MIN(C105:C116)<5,AVERAGEIF(C105:C116,">0",AB105:AB116), IF(FORECAST($C101,AB$105:AB$116,$C$105:$C$116)<0,0, IF(FORECAST($C101,AB$105:AB$116,$C$105:$C$116)>100,100, FORECAST($C101,AB$105:AB$116,$C$105:$C$116)))) -> 1.596966918
C102: =MaxRegYear(C100,C105:C116) -> 2020 | D102: =IF(MAX(C105:C116)-MIN(C105:C116)<5,AVERAGEIF(C105:C116,">0",D105:D116), IF(FORECAST($C102,D$105:D$116,$C$105:$C$116)<0,0, IF(FORECAST($C102,D$105:D$116,$C$105:$C$116)>100,100, FORECAST($C102,D$105:D$116,$C$105:$C$116)))) -> 48.65433303 | H102: =IF(MAX(C105:C116)-MIN(C105:C116)<5,AVERAGEIF(C105:C116,">0",H105:H116), IF(FORECAST($C102,H$105:H$116,$C$105:$C$116)<0,0, IF(FORECAST($C102,H$105:H$116,$C$105:$C$116)>100,100, FORECAST($C102,H$105:H$116,$C$105:$C$116)))) -> 16.89571844 | I102: =IF(MAX(C105:C116)-MIN(C105:C116)<5,AVERAGEIF(C105:C116,">0",I105:I116), IF(FORECAST($C102,I$105:I$116,$C$105:$C$116)<0,0, IF(FORECAST($C102,I$105:I$116,$C$105:$C$116)>100,100, FORECAST($C102,I$105:I$116,$C$105:$C$116)))) -> 61.85447207 | M102: =IF(MAX(C105:C116)-MIN(C105:C116)<5,AVERAGEIF(C105:C116,">0",M105:M116), IF(FORECAST($C102,M$105:M$116,$C$105:$C$116)<0,0, IF(FORECAST($C102,M$105:M$116,$C$105:$C$116)>100,100, FORECAST($C102,M$105:M$116,$C$105:$C$116)))) -> 10.39287033 | N102: =IF(MAX(C105:C116)-MIN(C105:C116)<5,AVERAGEIF(C105:C116,">0",N105:N116), IF(FORECAST($C102,N$105:N$116,$C$105:$C$116)<0,0, IF(FORECAST($C102,N$105:N$116,$C$105:$C$116)>100,100, FORECAST($C102,N$105:N$116,$C$105:$C$116)))) -> 80.82278956 | R102: =IF(MAX(C105:C116)-MIN(C105:C116)<5,AVERAGEIF(C105:C116,">0",R105:R116), IF(FORECAST($C102,R$105:R$116,$C$105:$C$116)<0,0, IF(FORECAST($C102,R$105:R$116,$C$105:$C$116)>100,100, FORECAST($C102,R$105:R$116,$C$105:$C$116)))) -> 3.76990628 | S102: =IF(MAX(C105:C116)-MIN(C105:C116)<5,AVERAGEIF(C105:C116,">0",S105:S116), IF(FORECAST($C102,S$105:S$116,$C$105:$C$116)<0,0, IF(FORECAST($C102,S$105:S$116,$C$105:$C$116)>100,100, FORECAST($C102,S$105:S$116,$C$105:$C$116)))) -> 99.00296933 | W102: =IF(MAX(C105:C116)-MIN(C105:C116)<5,AVERAGEIF(C105:C116,">0",W105:W116), IF(FORECAST($C102,W$105:W$116,$C$105:$C$116)<0,0, IF(FORECAST($C102,W$105:W$116,$C$105:$C$116)>100,100, FORECAST($C102,W$105:W$116,$C$105:$C$116)))) -> 0 | X102: =IF(MAX(C105:C116)-MIN(C105:C116)<5,AVERAGEIF(C105:C116,">0",X105:X116), IF(FORECAST($C102,X$105:X$116,$C$105:$C$116)<0,0, IF(FORECAST($C102,X$105:X$116,$C$105:$C$116)>100,100, FORECAST($C102,X$105:X$116,$C$105:$C$116)))) -> 99.96072529 | AB102: =IF(MAX(C105:C116)-MIN(C105:C116)<5,AVERAGEIF(C105:C116,">0",AB105:AB116), IF(FORECAST($C102,AB$105:AB$116,$C$105:$C$116)<0,0, IF(FORECAST($C102,AB$105:AB$116,$C$105:$C$116)>100,100, FORECAST($C102,AB$105:AB$116,$C$105:$C$116)))) -> 0
B104: Survey | C104: Year | D104: Improved | E104: % Improved < = 30min | H104: Surface water | I104: Improved | J104: % Improved < = 30min | M104: Surface water | N104: Improved | O104: % Improved < = 30min | R104: Surface water | S104: Improved | T104: % Improved < = 30min | W104: Surface water | X104: Improved | Y104: % Improved < = 30min | AB104: Surface water
B105: MICS00 | C105: 2000 | D105: =IF(ISERROR(INDIRECT(CONCATENATE($B105,"!C16"))),"",INDIRECT(CONCATENATE($B105,"!C16"))) -> 33.64990358 | E105: =IF(ISERROR(INDIRECT(CONCATENATE($B105,"!C23"))),"",INDIRECT(CONCATENATE($B105,"!C23"))) -> 86.32989047 | H105: =IF(ISERROR(INDIRECT(CONCATENATE($B105,"!C21"))),"",INDIRECT(CONCATENATE($B105,"!C21"))) -> 20.26287676 | I105: =IF(ISERROR(INDIRECT(CONCATENATE($B105,"!D16"))),"",INDIRECT(CONCATENATE($B105,"!D16"))) -> 33.08176869 | J105: =IF(ISERROR(INDIRECT(CONCATENATE($B105,"!D23"))),"",INDIRECT(CONCATENATE($B105,"!D23"))) -> 82.50495282 | M105: =IF(ISERROR(INDIRECT(CONCATENATE($B105,"!D21"))),"",INDIRECT(CONCATENATE($B105,"!D21"))) -> 18.63825166 | N105: =IF(ISERROR(INDIRECT(CONCATENATE($B105,"!E16"))),"",INDIRECT(CONCATENATE($B105,"!E16"))) -> 54.0079643 | O105: =IF(ISERROR(INDIRECT(CONCATENATE($B105,"!E23"))),"",INDIRECT(CONCATENATE($B105,"!E23"))) -> 88.16249661 | R105: =IF(ISERROR(INDIRECT(CONCATENATE($B105,"!E21"))),"",INDIRECT(CONCATENATE($B105,"!E21"))) -> 13.52278491 | S105: =IF(ISERROR(INDIRECT(CONCATENATE($B105,"!F16"))),"",INDIRECT(CONCATENATE($B105,"!F16"))) -> 67.81642491 | T105: =IF(ISERROR(INDIRECT(CONCATENATE($B105,"!F23"))),"",INDIRECT(CONCATENATE($B105,"!F23"))) -> 91.87098572 | W105: =IF(ISERROR(INDIRECT(CONCATENATE($B105,"!F21"))),"",INDIRECT(CONCATENATE($B105,"!F21"))) -> 8.342299897 | X105: =IF(ISERROR(INDIRECT(CONCATENATE($B105,"!G16"))),"",INDIRECT(CONCATENATE($B105,"!G16"))) -> 89.80749583 | Y105: =IF(ISERROR(INDIRECT(CONCATENATE($B105,"!G23"))),"",INDIRECT(CONCATENATE($B105,"!G23"))) -> 96.80422995 | AB105: =IF(ISERROR(INDIRECT(CONCATENATE($B105,"!G221"))),"",INDIRECT(CONCATENATE($B105,"!G21"))) -> 1.008661042
B106: DHS04 | C106: 2004 | D106: 44.49444594 | E106: 86.89909812 | H106: 31.78867102 | I106: 43.3939489 | J106: 88.01560538 | M106: 35.88107283 | N106: 60.8711457 | O106: 88.21069821 | R106: 26.60162328 | S106: 80.98474291 | T106: 90.97183219 | W106: 11.55609585 | X106: 93.92864362 | Y106: 96.18438988 | AB106: 2.862109791
B107: MICS06 | C107: 2006 | D107: 40.28032856 | E107: 70.54583568 | H107: 15.23696345 | I107: 50.74514728 | J107: 79.91871469 | M107: 16.77866285 | N107: 70.26197093 | O107: 81.58334273 | R107: 7.451541979 | S107: 91.37249401 | T107: 88.82955314 | W107: 1.459763594 | X107: 98.56095118 | Y107: 95.29414387 | AB107: 0.2193532119
B108: DHS11 | C108: 2011 | D108: 42.31849166 | E108: 79.89055168 | H108: 18.99050024 | I108: 49.58047727 | J108: 81.42767372 | M108: 17.68585805 | N108: 67.80581604 | O108: 85.52469096 | R108: 8.810531176 | S108: 88.53550978 | T108: 89.42230715 | W108: 2.25283579 | X108: 96.58763556 | Y108: 94.35959093 | AB108: 0.580206305
B109: MICS14 | C109: 2014 | D109: 47.82847439 | E109: 84.89350252 | H109: 16.11707625 | I109: 55.33534111 | J109: 81.92810282 | M109: 15.2648051 | N109: 74.38731056 | O109: 80.99590081 | R109: 8.581060738 | S109: 92.80855845 | T109: 86.24586961 | W109: 1.758010075 | X109: 97.12861522 | Y109: 91.86385944 | AB109: 0.3785702822
B110: DHS19 | C110: 2019 | D110: 46.03511049 | E110: 82.45064439 | H110: 19.3237104 | I110: 58.76816784 | J110: 87.32688256 | M110: 9.558211569 | N110: 78.58065952 | O110: 87.41826432 | R110: 4.379200883 | S110: 93.8895849 | T110: 90.45713287 | W110: 0.6223895281 | X110: 98.72832839 | Y110: 93.14849626 | AB110: 0.09327722915
D111: =IF(ISERROR(INDIRECT(CONCATENATE($B111,"!C16"))),"",INDIRECT(CONCATENATE($B111,"!C16"))) ->  | E111: =IF(ISERROR(INDIRECT(CONCATENATE($B111,"!C23"))),"",INDIRECT(CONCATENATE($B111,"!C23"))) ->  | H111: =IF(ISERROR(INDIRECT(CONCATENATE($B111,"!C21"))),"",INDIRECT(CONCATENATE($B111,"!C21"))) ->  | I111: =IF(ISERROR(INDIRECT(CONCATENATE($B111,"!D16"))),"",INDIRECT(CONCATENATE($B111,"!D16"))) ->  | J111: =IF(ISERROR(INDIRECT(CONCATENATE($B111,"!D23"))),"",INDIRECT(CONCATENATE($B111,"!D23"))) ->  | M111: =IF(ISERROR(INDIRECT(CONCATENATE($B111,"!D21"))),"",INDIRECT(CONCATENATE($B111,"!D21"))) ->  | N111: =IF(ISERROR(INDIRECT(CONCATENATE($B111,"!E16"))),"",INDIRECT(CONCATENATE($B111,"!E16"))) ->  | O111: =IF(ISERROR(INDIRECT(CONCATENATE($B111,"!E23"))),"",INDIRECT(CONCATENATE($B111,"!E23"))) ->  | R111: =IF(ISERROR(INDIRECT(CONCATENATE($B111,"!E21"))),"",INDIRECT(CONCATENATE($B111,"!E21"))) ->  | S111: =IF(ISERROR(INDIRECT(CONCATENATE($B111,"!F16"))),"",INDIRECT(CONCATENATE($B111,"!F16"))) ->  | T111: =IF(ISERROR(INDIRECT(CONCATENATE($B111,"!F23"))),"",INDIRECT(CONCATENATE($B111,"!F23"))) ->  | W111: =IF(ISERROR(INDIRECT(CONCATENATE($B111,"!F21"))),"",INDIRECT(CONCATENATE($B111,"!F21"))) ->  | X111: =IF(ISERROR(INDIRECT(CONCATENATE($B111,"!G16"))),"",INDIRECT(CONCATENATE($B111,"!G16"))) ->  | Y111: =IF(ISERROR(INDIRECT(CONCATENATE($B111,"!G23"))),"",INDIRECT(CONCATENATE($B111,"!G23"))) ->  | AB111: =IF(ISERROR(INDIRECT(CONCATENATE($B111,"!G221"))),"",INDIRECT(CONCATENATE($B111,"!G21"))) -> 
D112: =IF(ISERROR(INDIRECT(CONCATENATE($B112,"!C16"))),"",INDIRECT(CONCATENATE($B112,"!C16"))) ->  | E112: =IF(ISERROR(INDIRECT(CONCATENATE($B112,"!C23"))),"",INDIRECT(CONCATENATE($B112,"!C23"))) ->  | H112: =IF(ISERROR(INDIRECT(CONCATENATE($B112,"!C21"))),"",INDIRECT(CONCATENATE($B112,"!C21"))) ->  | I112: =IF(ISERROR(INDIRECT(CONCATENATE($B112,"!D16"))),"",INDIRECT(CONCATENATE($B112,"!D16"))) ->  | J112: =IF(ISERROR(INDIRECT(CONCATENATE($B112,"!D23"))),"",INDIRECT(CONCATENATE($B112,"!D23"))) ->  | M112: =IF(ISERROR(INDIRECT(CONCATENATE($B112,"!D21"))),"",INDIRECT(CONCATENATE($B112,"!D21"))) ->  | N112: =IF(ISERROR(INDIRECT(CONCATENATE($B112,"!E16"))),"",INDIRECT(CONCATENATE($B112,"!E16"))) ->  | O112: =IF(ISERROR(INDIRECT(CONCATENATE($B112,"!E23"))),"",INDIRECT(CONCATENATE($B112,"!E23"))) ->  | R112: =IF(ISERROR(INDIRECT(CONCATENATE($B112,"!E21"))),"",INDIRECT(CONCATENATE($B112,"!E21"))) ->  | S112: =IF(ISERROR(INDIRECT(CONCATENATE($B112,"!F16"))),"",INDIRECT(CONCATENATE($B112,"!F16"))) ->  | T112: =IF(ISERROR(INDIRECT(CONCATENATE($B112,"!F23"))),"",INDIRECT(CONCATENATE($B112,"!F23"))) ->  | W112: =IF(ISERROR(INDIRECT(CONCATENATE($B112,"!F21"))),"",INDIRECT(CONCATENATE($B112,"!F21"))) ->  | X112: =IF(ISERROR(INDIRECT(CONCATENATE($B112,"!G16"))),"",INDIRECT(CONCATENATE($B112,"!G16"))) ->  | Y112: =IF(ISERROR(INDIRECT(CONCATENATE($B112,"!G23"))),"",INDIRECT(CONCATENATE($B112,"!G23"))) ->  | AB112: =IF(ISERROR(INDIRECT(CONCATENATE($B112,"!G221"))),"",INDIRECT(CONCATENATE($B112,"!G21"))) -> 
B118: =CONCATENATE("National use of drinking water sources, ",C99,"–",C100) -> National use of drinking water sources, 2000–2020 | S118: Data points used for regression
E153: =IF(ISERROR(INDIRECT(CONCATENATE($B153,"!M18"))),"",INDIRECT(CONCATENATE($B153,"!M18"))) ->  | F153: =IF(ISERROR(INDIRECT(CONCATENATE($B153,"!M19"))),"",INDIRECT(CONCATENATE($B153,"!M19"))) ->  | G153: =IF(ISERROR(INDIRECT(CONCATENATE($B153,"!M20"))),"",INDIRECT(CONCATENATE($B153,"!M20"))) ->  | H153: =IF(ISERROR(INDIRECT(CONCATENATE($B153,"!M21"))),"",INDIRECT(CONCATENATE($B153,"!M21"))) ->  | J153: =IF(ISERROR(INDIRECT(CONCATENATE($B153,"!N18"))),"",INDIRECT(CONCATENATE($B153,"!N18"))) ->  | K153: =IF(ISERROR(INDIRECT(CONCATENATE($B153,"!N19"))),"",INDIRECT(CONCATENATE($B153,"!N19"))) ->  | L153: =IF(ISERROR(INDIRECT(CONCATENATE($B153,"!N20"))),"",INDIRECT(CONCATENATE($B153,"!N20"))) ->  | M153: =IF(ISERROR(INDIRECT(CONCATENATE($B153,"!N21"))),"",INDIRECT(CONCATENATE($B153,"!N21"))) ->  | O153: =IF(ISERROR(INDIRECT(CONCATENATE($B153,"!O18"))),"",INDIRECT(CONCATENATE($B153,"!O18"))) ->  | P153: =IF(ISERROR(INDIRECT(CONCATENATE($B153,"!O19"))),"",INDIRECT(CONCATENATE($B153,"!O19"))) ->  | Q153: =IF(ISERROR(INDIRECT(CONCATENATE($B153,"!O20"))),"",INDIRECT(CONCATENATE($B153,"!O20"))) ->  | R153: =IF(ISERROR(INDIRECT(CONCATENATE($B153,"!O21"))),"",INDIRECT(CONCATENATE($B153,"!O21"))) ->  | T153: =IF(ISERROR(INDIRECT(CONCATENATE($B153,"!P18"))),"",INDIRECT(CONCATENATE($B153,"!P18"))) ->  | U153: =IF(ISERROR(INDIRECT(CONCATENATE($B153,"!P19"))),"",INDIRECT(CONCATENATE($B153,"!P19"))) ->  | V153: =IF(ISERROR(INDIRECT(CONCATENATE($B153,"!P20"))),"",INDIRECT(CONCATENATE($B153,"!P20"))) ->  | W153: =IF(ISERROR(INDIRECT(CONCATENATE($B153,"!P21"))),"",INDIRECT(CONCATENATE($B153,"!P21"))) ->  | Y153: =IF(ISERROR(INDIRECT(CONCATENATE($B153,"!Q18"))),"",INDIRECT(CONCATENATE($B153,"!Q18"))) ->  | Z153: =IF(ISERROR(INDIRECT(CONCATENATE($B153,"!Q19"))),"",INDIRECT(CONCATENATE($B153,"!Q19"))) ->  | AA153: =IF(ISERROR(INDIRECT(CONCATENATE($B153,"!Q20"))),"",INDIRECT(CONCATENATE($B153,"!Q20"))) ->  | AB153: =IF(ISERROR(INDIRECT(CONCATENATE($B153,"!Q21"))),"",INDIRECT(CONCATENATE($B153,"!Q1"))) -> 
A197: URBAN | D197: Poorest | I197: Poor | N197: Middle | S197: Rich | X197: Richest
D198: Improved | E198: Basic | F198: Limited | G198: Unimproved | H198: Surface water | I198: Improved | J198: Basic | K198: Limited | L198: Unimproved | M198: Surface water | N198: Improved | O198: Basic | P198: Limited | Q198: Unimproved | R198: Surface water | S198: Improved | T198: Basic | U198: Limited | V198: Unimproved | W198: Surface water | X198: Improved | Y198: Basic | Z198: Limited | AA198: Unimproved | AB198: Surface water
A199: Forecast period: | C199: 2000 | D199: =IF((D201+H201)>100,D201*100/(D201+H201),D201) -> 65.58134108 | E199: =D199*AVERAGEIF(E205:E216,">0")/100 -> 55.53570019 | F199: =D199*(100-AVERAGEIF(E205:E216,">0"))/100 -> 10.04564089 | G199: =100-(E199+F199+H199) -> 25.06188494 | H199: =IF((D201+H201)>100,H201*100/(D201+H201),H201) -> 9.356773979 | I199: =IF((I201+M201)>100,I201*100/(I201+M201),I201) -> 85.29327565 | J199: =I199*AVERAGEIF(J205:J216,">0")/100 -> 76.66131506 | K199: =I199*(100-AVERAGEIF(J205:J216,">0"))/100 -> 8.631960592 | L199: =100-(J199+K199+M199) -> 10.95338077 | M199: =IF((I201+M201)>100,M201*100/(I201+M201),M201) -> 3.753343581 | N199: =IF((N201+R201)>100,N201*100/(N201+R201),N201) -> 88.7072789 | O199: =N199*AVERAGEIF(O205:O216,">0")/100 -> 80.50944148 | P199: =N199*(100-AVERAGEIF(O205:O216,">0"))/100 -> 8.197837414 | Q199: =100-(O199+P199+R199) -> 9.157011483 | R199: =IF((N201+R201)>100,R201*100/(N201+R201),R201) -> 2.135709621 | S199: =IF((S201+W201)>100,S201*100/(S201+W201),S201) -> 93.86460246 | T199: =S199*AVERAGEIF(T205:T216,">0")/100 -> 87.56160355 | U199: =S199*(100-AVERAGEIF(T205:T216,">0"))/100 -> 6.30299891 | V199: =100-(T199+U199+W199) -> 5.076437257 | W199: =IF((S201+W201)>100,W201*100/(S201+W201),W201) -> 1.058960281 | X199: =IF((X201+AB201)>100,X201*100/(X201+AB201),X201) -> 97.00065031 | Y199: =X199*AVERAGEIF(Y205:Y216,">0")/100 -> 93.48317757 | Z199: =X199*(100-AVERAGEIF(Y205:Y216,">0"))/100 -> 3.51747274 | AA199: =100-(Y199+Z199+AB199) -> 2.671843797 | AB199: =IF((X201+AB201)>100,AB201*100/(X201+AB201),AB201) -> 0.3275058899
C200: 2020 | D200: =IF((D202+H202)>100,D202*100/(D202+H202),D202) -> 86.6601278 | E200: =D200*AVERAGEIF(E205:E216,">0")/100 -> 73.38567337 | F200: =D200*(100-AVERAGEIF(E205:E216,">0"))/100 -> 13.27445443 | G200: =100-(E200+F200+H200) -> 10.05520093 | H200: =IF((D202+H202)>100,H202*100/(D202+H202),H202) -> 3.284671272 | I200: =IF((I202+M202)>100,I202*100/(I202+M202),I202) -> 95.02607635 | J200: =I200*AVERAGEIF(J205:J216,">0")/100 -> 85.40912425 | K200: =I200*(100-AVERAGEIF(J205:J216,">0"))/100 -> 9.616952099 | L200: =100-(J200+K200+M200) -> 4.973923649 | M200: =IF((I202+M202)>100,M202*100/(I202+M202),M202) -> 0 | N200: =IF((N202+R202)>100,N202*100/(N202+R202),N202) -> 99.00416341 | O200: =N200*AVERAGEIF(O205:O216,">0")/100 -> 89.85474473 | P200: =N200*(100-AVERAGEIF(O205:O216,">0"))/100 -> 9.149418685 | Q200: =100-(O200+P200+R200) -> 0.8479044749 | R200: =IF((N202+R202)>100,R202*100/(N202+R202),R202) -> 0.1479321111 | S200: =IF((S202+W202)>100,S202*100/(S202+W202),S202) -> 99.14652333 | T200: =S200*AVERAGEIF(T205:T216,">0")/100 -> 92.48884395 | U200: =S200*(100-AVERAGEIF(T205:T216,">0"))/100 -> 6.657679381 | V200: =100-(T200+U200+W200) -> 0.5554412047 | W200: =IF((S202+W202)>100,W202*100/(S202+W202),W202) -> 0.2980354628 | X200: =IF((X202+AB202)>100,X202*100/(X202+AB202),X202) -> 99.52383674 | Y200: =X200*AVERAGEIF(Y205:Y216,">0")/100 -> 95.9148673 | Z200: =X200*(100-AVERAGEIF(Y205:Y216,">0"))/100 -> 3.608969441 | AA200: =100-(Y200+Z200+AB200) -> 0.4520655492 | AB200: =IF((X202+AB202)>100,AB202*100/(X202+AB202),AB202) -> 0.02409771293
A201: Regression period: | C201: =MinRegYear(C199,C205:C216) -> 2000 | D201: =IF(MAX(C205:C216)-MIN(C205:C216)<5,AVERAGEIF(C205:C216,">0",D205:D216), IF(FORECAST($C201,D$205:D$216,$C$205:$C$216)<0,0, IF(FORECAST($C201,D$205:D$216,$C$205:$C$216)>100,100, FORECAST($C201,D$205:D$216,$C$205:$C$216)))) -> 65.58134108 | H201: =IF(MAX(C205:C216)-MIN(C205:C216)<5,AVERAGEIF(C205:C216,">0",H205:H216), IF(FORECAST($C201,H$205:H$216,$C$205:$C$216)<0,0, IF(FORECAST($C201,H$205:H$216,$C$205:$C$216)>100,100, FORECAST($C201,H$205:H$216,$C$205:$C$216)))) -> 9.356773979 | I201: =IF(MAX(C205:C216)-MIN(C205:C216)<5,AVERAGEIF(C205:C216,">0",I205:I216), IF(FORECAST($C201,I$205:I$216,$C$205:$C$216)<0,0, IF(FORECAST($C201,I$205:I$216,$C$205:$C$216)>100,100, FORECAST($C201,I$205:I$216,$C$205:$C$216)))) -> 85.29327565 | M201: =IF(MAX(C205:C216)-MIN(C205:C216)<5,AVERAGEIF(C205:C216,">0",M205:M216), IF(FORECAST($C201,M$205:M$216,$C$205:$C$216)<0,0, IF(FORECAST($C201,M$205:M$216,$C$205:$C$216)>100,100, FORECAST($C201,M$205:M$216,$C$205:$C$216)))) -> 3.753343581 | N201: =IF(MAX(C205:C216)-MIN(C205:C216)<5,AVERAGEIF(C205:C216,">0",N205:N216), IF(FORECAST($C201,N$205:N$216,$C$205:$C$216)<0,0, IF(FORECAST($C201,N$205:N$216,$C$205:$C$216)>100,100, FORECAST($C201,N$205:N$216,$C$205:$C$216)))) -> 88.7072789 | R201: =IF(MAX(C205:C216)-MIN(C205:C216)<5,AVERAGEIF(C205:C216,">0",R205:R216), IF(FORECAST($C201,R$205:R$216,$C$205:$C$216)<0,0, IF(FORECAST($C201,R$205:R$216,$C$205:$C$216)>100,100, FORECAST($C201,R$205:R$216,$C$205:$C$216)))) -> 2.135709621 | S201: =IF(MAX(C205:C216)-MIN(C205:C216)<5,AVERAGEIF(C205:C216,">0",S205:S216), IF(FORECAST($C201,S$205:S$216,$C$205:$C$216)<0,0, IF(FORECAST($C201,S$205:S$216,$C$205:$C$216)>100,100, FORECAST($C201,S$205:S$216,$C$205:$C$216)))) -> 93.86460246 | W201: =IF(MAX(C205:C216)-MIN(C205:C216)<5,AVERAGEIF(C205:C216,">0",W205:W216), IF(FORECAST($C201,W$205:W$216,$C$205:$C$216)<0,0, IF(FORECAST($C201,W$205:W$216,$C$205:$C$216)>100,100, FORECAST($C201,W$205:W$216,$C$205:$C$216)))) -> 1.058960281 | X201: =IF(MAX(C205:C216)-MIN(C205:C216)<5,AVERAGEIF(C205:C216,">0",X205:X216), IF(FORECAST($C201,X$205:X$216,$C$205:$C$216)<0,0, IF(FORECAST($C201,X$205:X$216,$C$205:$C$216)>100,100, FORECAST($C201,X$205:X$216,$C$205:$C$216)))) -> 97.00065031 | AB201: =IF(MAX(C205:C216)-MIN(C205:C216)<5,AVERAGEIF(C205:C216,">0",AB205:AB216), IF(FORECAST($C201,AB$205:AB$216,$C$205:$C$216)<0,0, IF(FORECAST($C201,AB$205:AB$216,$C$205:$C$216)>100,100, FORECAST($C201,AB$205:AB$216,$C$205:$C$216)))) -> 0.3275058899
C202: =MaxRegYear(C200,C205:C216) -> 2020 | D202: =IF(MAX(C205:C216)-MIN(C205:C216)<5,AVERAGEIF(C205:C216,">0",D205:D216), IF(FORECAST($C202,D$205:D$216,$C$205:$C$216)<0,0, IF(FORECAST($C202,D$205:D$216,$C$205:$C$216)>100,100, FORECAST($C202,D$205:D$216,$C$205:$C$216)))) -> 86.6601278 | H202: =IF(MAX(C205:C216)-MIN(C205:C216)<5,AVERAGEIF(C205:C216,">0",H205:H216), IF(FORECAST($C202,H$205:H$216,$C$205:$C$216)<0,0, IF(FORECAST($C202,H$205:H$216,$C$205:$C$216)>100,100, FORECAST($C202,H$205:H$216,$C$205:$C$216)))) -> 3.284671272 | I202: =IF(MAX(C205:C216)-MIN(C205:C216)<5,AVERAGEIF(C205:C216,">0",I205:I216), IF(FORECAST($C202,I$205:I$216,$C$205:$C$216)<0,0, IF(FORECAST($C202,I$205:I$216,$C$205:$C$216)>100,100, FORECAST($C202,I$205:I$216,$C$205:$C$216)))) -> 95.02607635 | M202: =IF(MAX(C205:C216)-MIN(C205:C216)<5,AVERAGEIF(C205:C216,">0",M205:M216), IF(FORECAST($C202,M$205:M$216,$C$205:$C$216)<0,0, IF(FORECAST($C202,M$205:M$216,$C$205:$C$216)>100,100, FORECAST($C202,M$205:M$216,$C$205:$C$216)))) -> 0 | N202: =IF(MAX(C205:C216)-MIN(C205:C216)<5,AVERAGEIF(C205:C216,">0",N205:N216), IF(FORECAST($C202,N$205:N$216,$C$205:$C$216)<0,0, IF(FORECAST($C202,N$205:N$216,$C$205:$C$216)>100,100, FORECAST($C202,N$205:N$216,$C$205:$C$216)))) -> 99.00416341 | R202: =IF(MAX(C205:C216)-MIN(C205:C216)<5,AVERAGEIF(C205:C216,">0",R205:R216), IF(FORECAST($C202,R$205:R$216,$C$205:$C$216)<0,0, IF(FORECAST($C202,R$205:R$216,$C$205:$C$216)>100,100, FORECAST($C202,R$205:R$216,$C$205:$C$216)))) -> 0.1479321111 | S202: =IF(MAX(C205:C216)-MIN(C205:C216)<5,AVERAGEIF(C205:C216,">0",S205:S216), IF(FORECAST($C202,S$205:S$216,$C$205:$C$216)<0,0, IF(FORECAST($C202,S$205:S$216,$C$205:$C$216)>100,100, FORECAST($C202,S$205:S$216,$C$205:$C$216)))) -> 99.14652333 | W202: =IF(MAX(C205:C216)-MIN(C205:C216)<5,AVERAGEIF(C205:C216,">0",W205:W216), IF(FORECAST($C202,W$205:W$216,$C$205:$C$216)<0,0, IF(FORECAST($C202,W$205:W$216,$C$205:$C$216)>100,100, FORECAST($C202,W$205:W$216,$C$205:$C$216)))) -> 0.2980354628 | X202: =IF(MAX(C205:C216)-MIN(C205:C216)<5,AVERAGEIF(C205:C216,">0",X205:X216), IF(FORECAST($C202,X$205:X$216,$C$205:$C$216)<0,0, IF(FORECAST($C202,X$205:X$216,$C$205:$C$216)>100,100, FORECAST($C202,X$205:X$216,$C$205:$C$216)))) -> 99.52383674 | AB202: =IF(MAX(C205:C216)-MIN(C205:C216)<5,AVERAGEIF(C205:C216,">0",AB205:AB216), IF(FORECAST($C202,AB$205:AB$216,$C$205:$C$216)<0,0, IF(FORECAST($C202,AB$205:AB$216,$C$205:$C$216)>100,100, FORECAST($C202,AB$205:AB$216,$C$205:$C$216)))) -> 0.02409771293
B204: Survey | C204: Year | D204: Improved | E204: % Improved < = 30min | H204: Surface water | I204: Improved | J204: % Improved < = 30min | M204: Surface water | N204: Improved | O204: % Improved < = 30min | R204: Surface water | S204: Improved | T204: % Improved < = 30min | W204: Surface water | X204: Improved | Y204: % Improved < = 30min | AB204: Surface water
B205: MICS00 | C205: 2000 | D205: =IF(ISERROR(INDIRECT(CONCATENATE($B205,"!H16"))),"",INDIRECT(CONCATENATE($B205,"!H16"))) -> 67.83685365 | E205: =IF(ISERROR(INDIRECT(CONCATENATE($B205,"!H23"))),"",INDIRECT(CONCATENATE($B205,"!H23"))) -> 89.98884429 | H205: =IF(ISERROR(INDIRECT(CONCATENATE($B205,"!H21"))),"",INDIRECT(CONCATENATE($B205,"!H21"))) -> 2.402390182 | I205: =IF(ISERROR(INDIRECT(CONCATENATE($B205,"!I16"))),"",INDIRECT(CONCATENATE($B205,"!I16"))) -> 87.59711441 | J205: =IF(ISERROR(INDIRECT(CONCATENATE($B205,"!I23"))),"",INDIRECT(CONCATENATE($B205,"!I23"))) -> 94.1279649 | M205: =IF(ISERROR(INDIRECT(CONCATENATE($B205,"!I21"))),"",INDIRECT(CONCATENATE($B205,"!I21"))) -> 0.8201214668 | N205: =IF(ISERROR(INDIRECT(CONCATENATE($B205,"!J16"))),"",INDIRECT(CONCATENATE($B205,"!J16"))) -> 87.10363593 | O205: =IF(ISERROR(INDIRECT(CONCATENATE($B205,"!J23"))),"",INDIRECT(CONCATENATE($B205,"!J23"))) -> 93.90366248 | R205: =IF(ISERROR(INDIRECT(CONCATENATE($B205,"!J21"))),"",INDIRECT(CONCATENATE($B205,"!J21"))) -> 0.5169213431 | S205: =IF(ISERROR(INDIRECT(CONCATENATE($B205,"!K16"))),"",INDIRECT(CONCATENATE($B205,"!K16"))) -> 92.9881609 | T205: =IF(ISERROR(INDIRECT(CONCATENATE($B205,"!K23"))),"",INDIRECT(CONCATENATE($B205,"!K23"))) -> 95.66926264 | W205: =IF(ISERROR(INDIRECT(CONCATENATE($B205,"!K21"))),"",INDIRECT(CONCATENATE($B205,"!K21"))) -> 0 | X205: =IF(ISERROR(INDIRECT(CONCATENATE($B205,"!L16"))),"",INDIRECT(CONCATENATE($B205,"!L16"))) -> 97.21589018 | Y205: =IF(ISERROR(INDIRECT(CONCATENATE($B205,"!L23"))),"",INDIRECT(CONCATENATE($B205,"!L23"))) -> 98.61145123 | AB205: =IF(ISERROR(INDIRECT(CONCATENATE($B205,"!L221"))),"",INDIRECT(CONCATENATE($B205,"!L21"))) -> 0
B206: DHS04 | C206: 2004 | D206: 66.40851695 | E206: 87.46188548 | H206: 20.46853142 | I206: 82.39702012 | J206: 92.57644483 | M206: 9.083286206 | N206: 89.28584861 | O206: 92.13175529 | R206: 5.271818223 | S206: 93.96314798 | T206: 95.60065539 | W206: 2.927395038 | X206: 95.42418315 | Y206: 97.13103148 | AB206: 0.8561780403
B207: MICS06 | C207: 2006 | D207: 72.63335898 | E207: 79.26427276 | H207: 4.126455514 | I207: 90.16314314 | J207: 89.03685746 | M207: 0.4820728204 | N207: 96.14694433 | O207: 89.21859392 | R207: 0.009311094798 | S207: 98.5672824 | T207: 94.31617172 | W207: 0 | X207: 99.8448465 | Y207: 96.98695967 | AB207: 0
B208: DHS11 | C208: 2011 | D208: 73.47282985 | E208: 83.38532126 | H208: 5.352010096 | I208: 90.44102339 | J208: 89.52772221 | M208: 0.6860051531 | N208: 93.23288031 | O208: 89.56934854 | R208: 0.5808784538 | S208: 96.24458274 | T208: 94.5529742 | W208: 0.5748746937 | X208: 98.1825917 | Y208: 94.50936734 | AB208: 0.2896552213
B209: MICS14 | C209: 2014 | D209: 85.96044584 | E209: 78.64590887 | H209: 4.481186292 | I209: 93.13849319 | J209: 84.09191296 | M209: 1.069354447 | N209: 96.96009878 | O209: 87.85322287 | R209: 1.011323876 | S209: 96.49899336 | T209: 88.174498 | W209: 0.7532012867 | X209: 99.0947558 | Y209: 95.59278599 | AB209: 0
B210: DHS19 | C210: 2019 | D210: 84.08876536 | E210: 89.34676398 | H210: 2.915393061 | I210: 94.30142155 | J210: 89.91712026 | M210: 0.1142494219 | N210: 97.31585361 | O210: 91.87472644 | R210: 0.05700545817 | S210: 99.18663375 | T210: 91.3964965 | W210: 0.04379365859 | X210: 99.05423789 | Y210: 95.41098682 | AB210: 0
B218: =CONCATENATE("Urban use of drinking water sources, ",C199,"–",C200) -> Urban use of drinking water sources, 2000–2020 | S218: Data points used for regression
E253: =IF(ISERROR(INDIRECT(CONCATENATE($B253,"!M18"))),"",INDIRECT(CONCATENATE($B253,"!M18"))) ->  | F253: =IF(ISERROR(INDIRECT(CONCATENATE($B253,"!M19"))),"",INDIRECT(CONCATENATE($B253,"!M19"))) ->  | G253: =IF(ISERROR(INDIRECT(CONCATENATE($B253,"!M20"))),"",INDIRECT(CONCATENATE($B253,"!M20"))) ->  | H253: =IF(ISERROR(INDIRECT(CONCATENATE($B253,"!M21"))),"",INDIRECT(CONCATENATE($B253,"!M21"))) ->  | J253: =IF(ISERROR(INDIRECT(CONCATENATE($B253,"!N18"))),"",INDIRECT(CONCATENATE($B253,"!N18"))) ->  | K253: =IF(ISERROR(INDIRECT(CONCATENATE($B253,"!N19"))),"",INDIRECT(CONCATENATE($B253,"!N19"))) ->  | L253: =IF(ISERROR(INDIRECT(CONCATENATE($B253,"!N20"))),"",INDIRECT(CONCATENATE($B253,"!N20"))) ->  | M253: =IF(ISERROR(INDIRECT(CONCATENATE($B253,"!N21"))),"",INDIRECT(CONCATENATE($B253,"!N21"))) ->  | O253: =IF(ISERROR(INDIRECT(CONCATENATE($B253,"!O18"))),"",INDIRECT(CONCATENATE($B253,"!O18"))) ->  | P253: =IF(ISERROR(INDIRECT(CONCATENATE($B253,"!O19"))),"",INDIRECT(CONCATENATE($B253,"!O19"))) ->  | Q253: =IF(ISERROR(INDIRECT(CONCATENATE($B253,"!O20"))),"",INDIRECT(CONCATENATE($B253,"!O20"))) ->  | R253: =IF(ISERROR(INDIRECT(CONCATENATE($B253,"!O21"))),"",INDIRECT(CONCATENATE($B253,"!O21"))) ->  | T253: =IF(ISERROR(INDIRECT(CONCATENATE($B253,"!P18"))),"",INDIRECT(CONCATENATE($B253,"!P18"))) ->  | U253: =IF(ISERROR(INDIRECT(CONCATENATE($B253,"!P19"))),"",INDIRECT(CONCATENATE($B253,"!P19"))) ->  | V253: =IF(ISERROR(INDIRECT(CONCATENATE($B253,"!P20"))),"",INDIRECT(CONCATENATE($B253,"!P20"))) ->  | W253: =IF(ISERROR(INDIRECT(CONCATENATE($B253,"!P21"))),"",INDIRECT(CONCATENATE($B253,"!P21"))) ->  | Y253: =IF(ISERROR(INDIRECT(CONCATENATE($B253,"!Q18"))),"",INDIRECT(CONCATENATE($B253,"!Q18"))) ->  | Z253: =IF(ISERROR(INDIRECT(CONCATENATE($B253,"!Q19"))),"",INDIRECT(CONCATENATE($B253,"!Q19"))) ->  | AA253: =IF(ISERROR(INDIRECT(CONCATENATE($B253,"!Q20"))),"",INDIRECT(CONCATENATE($B253,"!Q20"))) ->  | AB253: =IF(ISERROR(INDIRECT(CONCATENATE($B253,"!Q21"))),"",INDIRECT(CONCATENATE($B253,"!Q1"))) -> 
E254: =IF(ISERROR(INDIRECT(CONCATENATE($B254,"!M18"))),"",INDIRECT(CONCATENATE($B254,"!M18"))) ->  | F254: =IF(ISERROR(INDIRECT(CONCATENATE($B254,"!M19"))),"",INDIRECT(CONCATENATE($B254,"!M19"))) ->  | G254: =IF(ISERROR(INDIRECT(CONCATENATE($B254,"!M20"))),"",INDIRECT(CONCATENATE($B254,"!M20"))) ->  | H254: =IF(ISERROR(INDIRECT(CONCATENATE($B254,"!M21"))),"",INDIRECT(CONCATENATE($B254,"!M21"))) ->  | J254: =IF(ISERROR(INDIRECT(CONCATENATE($B254,"!N18"))),"",INDIRECT(CONCATENATE($B254,"!N18"))) ->  | K254: =IF(ISERROR(INDIRECT(CONCATENATE($B254,"!N19"))),"",INDIRECT(CONCATENATE($B254,"!N19"))) ->  | L254: =IF(ISERROR(INDIRECT(CONCATENATE($B254,"!N20"))),"",INDIRECT(CONCATENATE($B254,"!N20"))) ->  | M254: =IF(ISERROR(INDIRECT(CONCATENATE($B254,"!N21"))),"",INDIRECT(CONCATENATE($B254,"!N21"))) ->  | O254: =IF(ISERROR(INDIRECT(CONCATENATE($B254,"!O18"))),"",INDIRECT(CONCATENATE($B254,"!O18"))) ->  | P254: =IF(ISERROR(INDIRECT(CONCATENATE($B254,"!O19"))),"",INDIRECT(CONCATENATE($B254,"!O19"))) ->  | Q254: =IF(ISERROR(INDIRECT(CONCATENATE($B254,"!O20"))),"",INDIRECT(CONCATENATE($B254,"!O20"))) ->  | R254: =IF(ISERROR(INDIRECT(CONCATENATE($B254,"!O21"))),"",INDIRECT(CONCATENATE($B254,"!O21"))) ->  | T254: =IF(ISERROR(INDIRECT(CONCATENATE($B254,"!P18"))),"",INDIRECT(CONCATENATE($B254,"!P18"))) ->  | U254: =IF(ISERROR(INDIRECT(CONCATENATE($B254,"!P19"))),"",INDIRECT(CONCATENATE($B254,"!P19"))) ->  | V254: =IF(ISERROR(INDIRECT(CONCATENATE($B254,"!P20"))),"",INDIRECT(CONCATENATE($B254,"!P20"))) ->  | W254: =IF(ISERROR(INDIRECT(CONCATENATE($B254,"!P21"))),"",INDIRECT(CONCATENATE($B254,"!P21"))) ->  | Y254: =IF(ISERROR(INDIRECT(CONCATENATE($B254,"!Q18"))),"",INDIRECT(CONCATENATE($B254,"!Q18"))) ->  | Z254: =IF(ISERROR(INDIRECT(CONCATENATE($B254,"!Q19"))),"",INDIRECT(CONCATENATE($B254,"!Q19"))) ->  | AA254: =IF(ISERROR(INDIRECT(CONCATENATE($B254,"!Q20"))),"",INDIRECT(CONCATENATE($B254,"!Q20"))) ->  | AB254: =IF(ISERROR(INDIRECT(CONCATENATE($B254,"!Q21"))),"",INDIRECT(CONCATENATE($B254,"!Q1"))) -> 
E255: =IF(ISERROR(INDIRECT(CONCATENATE($B255,"!M18"))),"",INDIRECT(CONCATENATE($B255,"!M18"))) ->  | F255: =IF(ISERROR(INDIRECT(CONCATENATE($B255,"!M19"))),"",INDIRECT(CONCATENATE($B255,"!M19"))) ->  | G255: =IF(ISERROR(INDIRECT(CONCATENATE($B255,"!M20"))),"",INDIRECT(CONCATENATE($B255,"!M20"))) ->  | H255: =IF(ISERROR(INDIRECT(CONCATENATE($B255,"!M21"))),"",INDIRECT(CONCATENATE($B255,"!M21"))) ->  | J255: =IF(ISERROR(INDIRECT(CONCATENATE($B255,"!N18"))),"",INDIRECT(CONCATENATE($B255,"!N18"))) ->  | K255: =IF(ISERROR(INDIRECT(CONCATENATE($B255,"!N19"))),"",INDIRECT(CONCATENATE($B255,"!N19"))) ->  | L255: =IF(ISERROR(INDIRECT(CONCATENATE($B255,"!N20"))),"",INDIRECT(CONCATENATE($B255,"!N20"))) ->  | M255: =IF(ISERROR(INDIRECT(CONCATENATE($B255,"!N21"))),"",INDIRECT(CONCATENATE($B255,"!N21"))) ->  | O255: =IF(ISERROR(INDIRECT(CONCATENATE($B255,"!O18"))),"",INDIRECT(CONCATENATE($B255,"!O18"))) ->  | P255: =IF(ISERROR(INDIRECT(CONCATENATE($B255,"!O19"))),"",INDIRECT(CONCATENATE($B255,"!O19"))) ->  | Q255: =IF(ISERROR(INDIRECT(CONCATENATE($B255,"!O20"))),"",INDIRECT(CONCATENATE($B255,"!O20"))) ->  | R255: =IF(ISERROR(INDIRECT(CONCATENATE($B255,"!O21"))),"",INDIRECT(CONCATENATE($B255,"!O21"))) ->  | T255: =IF(ISERROR(INDIRECT(CONCATENATE($B255,"!P18"))),"",INDIRECT(CONCATENATE($B255,"!P18"))) ->  | U255: =IF(ISERROR(INDIRECT(CONCATENATE($B255,"!P19"))),"",INDIRECT(CONCATENATE($B255,"!P19"))) ->  | V255: =IF(ISERROR(INDIRECT(CONCATENATE($B255,"!P20"))),"",INDIRECT(CONCATENATE($B255,"!P20"))) ->  | W255: =IF(ISERROR(INDIRECT(CONCATENATE($B255,"!P21"))),"",INDIRECT(CONCATENATE($B255,"!P21"))) ->  | Y255: =IF(ISERROR(INDIRECT(CONCATENATE($B255,"!Q18"))),"",INDIRECT(CONCATENATE($B255,"!Q18"))) ->  | Z255: =IF(ISERROR(INDIRECT(CONCATENATE($B255,"!Q19"))),"",INDIRECT(CONCATENATE($B255,"!Q19"))) ->  | AA255: =IF(ISERROR(INDIRECT(CONCATENATE($B255,"!Q20"))),"",INDIRECT(CONCATENATE($B255,"!Q20"))) ->  | AB255: =IF(ISERROR(INDIRECT(CONCATENATE($B255,"!Q21"))),"",INDIRECT(CONCATENATE($B255,"!Q1"))) -> 
E256: =IF(ISERROR(INDIRECT(CONCATENATE($B256,"!M18"))),"",INDIRECT(CONCATENATE($B256,"!M18"))) ->  | F256: =IF(ISERROR(INDIRECT(CONCATENATE($B256,"!M19"))),"",INDIRECT(CONCATENATE($B256,"!M19"))) ->  | G256: =IF(ISERROR(INDIRECT(CONCATENATE($B256,"!M20"))),"",INDIRECT(CONCATENATE($B256,"!M20"))) ->  | H256: =IF(ISERROR(INDIRECT(CONCATENATE($B256,"!M21"))),"",INDIRECT(CONCATENATE($B256,"!M21"))) ->  | J256: =IF(ISERROR(INDIRECT(CONCATENATE($B256,"!N18"))),"",INDIRECT(CONCATENATE($B256,"!N18"))) ->  | K256: =IF(ISERROR(INDIRECT(CONCATENATE($B256,"!N19"))),"",INDIRECT(CONCATENATE($B256,"!N19"))) ->  | L256: =IF(ISERROR(INDIRECT(CONCATENATE($B256,"!N20"))),"",INDIRECT(CONCATENATE($B256,"!N20"))) ->  | M256: =IF(ISERROR(INDIRECT(CONCATENATE($B256,"!N21"))),"",INDIRECT(CONCATENATE($B256,"!N21"))) ->  | O256: =IF(ISERROR(INDIRECT(CONCATENATE($B256,"!O18"))),"",INDIRECT(CONCATENATE($B256,"!O18"))) ->  | P256: =IF(ISERROR(INDIRECT(CONCATENATE($B256,"!O19"))),"",INDIRECT(CONCATENATE($B256,"!O19"))) ->  | Q256: =IF(ISERROR(INDIRECT(CONCATENATE($B256,"!O20"))),"",INDIRECT(CONCATENATE($B256,"!O20"))) ->  | R256: =IF(ISERROR(INDIRECT(CONCATENATE($B256,"!O21"))),"",INDIRECT(CONCATENATE($B256,"!O21"))) ->  | T256: =IF(ISERROR(INDIRECT(CONCATENATE($B256,"!P18"))),"",INDIRECT(CONCATENATE($B256,"!P18"))) ->  | U256: =IF(ISERROR(INDIRECT(CONCATENATE($B256,"!P19"))),"",INDIRECT(CONCATENATE($B256,"!P19"))) ->  | V256: =IF(ISERROR(INDIRECT(CONCATENATE($B256,"!P20"))),"",INDIRECT(CONCATENATE($B256,"!P20"))) ->  | W256: =IF(ISERROR(INDIRECT(CONCATENATE($B256,"!P21"))),"",INDIRECT(CONCATENATE($B256,"!P21"))) ->  | Y256: =IF(ISERROR(INDIRECT(CONCATENATE($B256,"!Q18"))),"",INDIRECT(CONCATENATE($B256,"!Q18"))) ->  | Z256: =IF(ISERROR(INDIRECT(CONCATENATE($B256,"!Q19"))),"",INDIRECT(CONCATENATE($B256,"!Q19"))) ->  | AA256: =IF(ISERROR(INDIRECT(CONCATENATE($B256,"!Q20"))),"",INDIRECT(CONCATENATE($B256,"!Q20"))) ->  | AB256: =IF(ISERROR(INDIRECT(CONCATENATE($B256,"!Q21"))),"",INDIRECT(CONCATENATE($B256,"!Q1"))) -> 
E257: =IF(ISERROR(INDIRECT(CONCATENATE($B257,"!M18"))),"",INDIRECT(CONCATENATE($B257,"!M18"))) ->  | F257: =IF(ISERROR(INDIRECT(CONCATENATE($B257,"!M19"))),"",INDIRECT(CONCATENATE($B257,"!M19"))) ->  | G257: =IF(ISERROR(INDIRECT(CONCATENATE($B257,"!M20"))),"",INDIRECT(CONCATENATE($B257,"!M20"))) ->  | H257: =IF(ISERROR(INDIRECT(CONCATENATE($B257,"!M21"))),"",INDIRECT(CONCATENATE($B257,"!M21"))) ->  | J257: =IF(ISERROR(INDIRECT(CONCATENATE($B257,"!N18"))),"",INDIRECT(CONCATENATE($B257,"!N18"))) ->  | K257: =IF(ISERROR(INDIRECT(CONCATENATE($B257,"!N19"))),"",INDIRECT(CONCATENATE($B257,"!N19"))) ->  | L257: =IF(ISERROR(INDIRECT(CONCATENATE($B257,"!N20"))),"",INDIRECT(CONCATENATE($B257,"!N20"))) ->  | M257: =IF(ISERROR(INDIRECT(CONCATENATE($B257,"!N21"))),"",INDIRECT(CONCATENATE($B257,"!N21"))) ->  | O257: =IF(ISERROR(INDIRECT(CONCATENATE($B257,"!O18"))),"",INDIRECT(CONCATENATE($B257,"!O18"))) ->  | P257: =IF(ISERROR(INDIRECT(CONCATENATE($B257,"!O19"))),"",INDIRECT(CONCATENATE($B257,"!O19"))) ->  | Q257: =IF(ISERROR(INDIRECT(CONCATENATE($B257,"!O20"))),"",INDIRECT(CONCATENATE($B257,"!O20"))) ->  | R257: =IF(ISERROR(INDIRECT(CONCATENATE($B257,"!O21"))),"",INDIRECT(CONCATENATE($B257,"!O21"))) ->  | T257: =IF(ISERROR(INDIRECT(CONCATENATE($B257,"!P18"))),"",INDIRECT(CONCATENATE($B257,"!P18"))) ->  | U257: =IF(ISERROR(INDIRECT(CONCATENATE($B257,"!P19"))),"",INDIRECT(CONCATENATE($B257,"!P19"))) ->  | V257: =IF(ISERROR(INDIRECT(CONCATENATE($B257,"!P20"))),"",INDIRECT(CONCATENATE($B257,"!P20"))) ->  | W257: =IF(ISERROR(INDIRECT(CONCATENATE($B257,"!P21"))),"",INDIRECT(CONCATENATE($B257,"!P21"))) ->  | Y257: =IF(ISERROR(INDIRECT(CONCATENATE($B257,"!Q18"))),"",INDIRECT(CONCATENATE($B257,"!Q18"))) ->  | Z257: =IF(ISERROR(INDIRECT(CONCATENATE($B257,"!Q19"))),"",INDIRECT(CONCATENATE($B257,"!Q19"))) ->  | AA257: =IF(ISERROR(INDIRECT(CONCATENATE($B257,"!Q20"))),"",INDIRECT(CONCATENATE($B257,"!Q20"))) ->  | AB257: =IF(ISERROR(INDIRECT(CONCATENATE($B257,"!Q21"))),"",INDIRECT(CONCATENATE($B257,"!Q1"))) -> 
A297: RURAL | D297: Poorest | I297: Poor | N297: Middle | S297: Rich | X297: Richest
D298: Improved | E298: Basic | F298: Limited | G298: Unimproved | H298: Surface water | I298: Improved | J298: Basic | K298: Limited | L298: Unimproved | M298: Surface water | N298: Improved | O298: Basic | P298: Limited | Q298: Unimproved | R298: Surface water | S298: Improved | T298: Basic | U298: Limited | V298: Unimproved | W298: Surface water | X298: Improved | Y298: Basic | Z298: Limited | AA298: Unimproved | AB298: Surface water
A299: Forecast period: | C299: 2000 | D299: =IF((D301+H301)>100,D301*100/(D301+H301),D301) -> 34.71122982 | E299: =D299*AVERAGEIF(E305:E316,">0")/100 -> 28.13113366 | F299: =D299*(100-AVERAGEIF(E305:E316,">0"))/100 -> 6.580096161 | G299: =100-(E299+F299+H299) -> 44.23594071 | H299: =IF((D301+H301)>100,H301*100/(D301+H301),H301) -> 21.05282948 | I299: =IF((I301+M301)>100,I301*100/(I301+M301),I301) -> 32.57991013 | J299: =I299*AVERAGEIF(J305:J316,">0")/100 -> 26.91440441 | K299: =I299*(100-AVERAGEIF(J305:J316,">0"))/100 -> 5.665505714 | L299: =100-(J299+K299+M299) -> 38.11909107 | M299: =IF((I301+M301)>100,M301*100/(I301+M301),M301) -> 29.3009988 | N299: =IF((N301+R301)>100,N301*100/(N301+R301),N301) -> 37.22054994 | O299: =N299*AVERAGEIF(O305:O316,">0")/100 -> 31.03141555 | P299: =N299*(100-AVERAGEIF(O305:O316,">0"))/100 -> 6.189134391 | Q299: =100-(O299+P299+R299) -> 36.38969737 | R299: =IF((N301+R301)>100,R301*100/(N301+R301),R301) -> 26.38975269 | S299: =IF((S301+W301)>100,S301*100/(S301+W301),S301) -> 48.18215964 | T299: =S299*AVERAGEIF(T305:T316,">0")/100 -> 40.51192243 | U299: =S299*(100-AVERAGEIF(T305:T316,">0"))/100 -> 7.67023721 | V299: =100-(T299+U299+W299) -> 26.78660708 | W299: =IF((S301+W301)>100,W301*100/(S301+W301),W301) -> 25.03123329 | X299: =IF((X301+AB301)>100,X301*100/(X301+AB301),X301) -> 55.75541223 | Y299: =X299*AVERAGEIF(Y305:Y316,">0")/100 -> 47.57944337 | Z299: =X299*(100-AVERAGEIF(Y305:Y316,">0"))/100 -> 8.175968865 | AA299: =100-(Y299+Z299+AB299) -> 23.81211012 | AB299: =IF((X301+AB301)>100,AB301*100/(X301+AB301),AB301) -> 20.43247765
C300: 2020 | D300: =IF((D302+H302)>100,D302*100/(D302+H302),D302) -> 45.75727068 | E300: =D300*AVERAGEIF(E305:E316,">0")/100 -> 37.08321209 | F300: =D300*(100-AVERAGEIF(E305:E316,">0"))/100 -> 8.674058588 | G300: =100-(E300+F300+H300) -> 35.08161102 | H300: =IF((D302+H302)>100,H302*100/(D302+H302),H302) -> 19.1611183 | I300: =IF((I302+M302)>100,I302*100/(I302+M302),I302) -> 50.22772117 | J300: =I300*AVERAGEIF(J305:J316,">0")/100 -> 41.49333731 | K300: =I300*(100-AVERAGEIF(J305:J316,">0"))/100 -> 8.734383864 | L300: =100-(J300+K300+M300) -> 34.96316935 | M300: =IF((I302+M302)>100,M302*100/(I302+M302),M302) -> 14.80910948 | N300: =IF((N302+R302)>100,N302*100/(N302+R302),N302) -> 54.6067465 | O300: =N300*AVERAGEIF(O305:O316,">0")/100 -> 45.52658801 | P300: =N300*(100-AVERAGEIF(O305:O316,">0"))/100 -> 9.080158496 | Q300: =100-(O300+P300+R300) -> 32.83930126 | R300: =IF((N302+R302)>100,R302*100/(N302+R302),R302) -> 12.55395224 | S300: =IF((S302+W302)>100,S302*100/(S302+W302),S302) -> 59.61182516 | T300: =S300*AVERAGEIF(T305:T316,">0")/100 -> 50.12207122 | U300: =S300*(100-AVERAGEIF(T305:T316,">0"))/100 -> 9.489753945 | V300: =100-(T300+U300+W300) -> 30.27613241 | W300: =IF((S302+W302)>100,W302*100/(S302+W302),W302) -> 10.11204243 | X300: =IF((X302+AB302)>100,X302*100/(X302+AB302),X302) -> 77.08627477 | Y300: =X300*AVERAGEIF(Y305:Y316,">0")/100 -> 65.78235005 | Z300: =X300*(100-AVERAGEIF(Y305:Y316,">0"))/100 -> 11.30392472 | AA300: =100-(Y300+Z300+AB300) -> 18.53992147 | AB300: =IF((X302+AB302)>100,AB302*100/(X302+AB302),AB302) -> 4.37380376
A301: Regression period: | C301: =MinRegYear(C299,C305:C316) -> 2000 | D301: =IF(MAX(C305:C316)-MIN(C305:C316)<5,AVERAGEIF(C305:C316,">0",D305:D316), IF(FORECAST($C301,D$305:D$316,$C$305:$C$316)<0,0, IF(FORECAST($C301,D$305:D$316,$C$305:$C$316)>100,100, FORECAST($C301,D$305:D$316,$C$305:$C$316)))) -> 34.71122982 | H301: =IF(MAX(C305:C316)-MIN(C305:C316)<5,AVERAGEIF(C305:C316,">0",H305:H316), IF(FORECAST($C301,H$305:H$316,$C$305:$C$316)<0,0, IF(FORECAST($C301,H$305:H$316,$C$305:$C$316)>100,100, FORECAST($C301,H$305:H$316,$C$305:$C$316)))) -> 21.05282948 | I301: =IF(MAX(C305:C316)-MIN(C305:C316)<5,AVERAGEIF(C305:C316,">0",I305:I316), IF(FORECAST($C301,I$305:I$316,$C$305:$C$316)<0,0, IF(FORECAST($C301,I$305:I$316,$C$305:$C$316)>100,100, FORECAST($C301,I$305:I$316,$C$305:$C$316)))) -> 32.57991013 | M301: =IF(MAX(C305:C316)-MIN(C305:C316)<5,AVERAGEIF(C305:C316,">0",M305:M316), IF(FORECAST($C301,M$305:M$316,$C$305:$C$316)<0,0, IF(FORECAST($C301,M$305:M$316,$C$305:$C$316)>100,100, FORECAST($C301,M$305:M$316,$C$305:$C$316)))) -> 29.3009988 | N301: =IF(MAX(C305:C316)-MIN(C305:C316)<5,AVERAGEIF(C305:C316,">0",N305:N316), IF(FORECAST($C301,N$305:N$316,$C$305:$C$316)<0,0, IF(FORECAST($C301,N$305:N$316,$C$305:$C$316)>100,100, FORECAST($C301,N$305:N$316,$C$305:$C$316)))) -> 37.22054994 | R301: =IF(MAX(C305:C316)-MIN(C305:C316)<5,AVERAGEIF(C305:C316,">0",R305:R316), IF(FORECAST($C301,R$305:R$316,$C$305:$C$316)<0,0, IF(FORECAST($C301,R$305:R$316,$C$305:$C$316)>100,100, FORECAST($C301,R$305:R$316,$C$305:$C$316)))) -> 26.38975269 | S301: =IF(MAX(C305:C316)-MIN(C305:C316)<5,AVERAGEIF(C305:C316,">0",S305:S316), IF(FORECAST($C301,S$305:S$316,$C$305:$C$316)<0,0, IF(FORECAST($C301,S$305:S$316,$C$305:$C$316)>100,100, FORECAST($C301,S$305:S$316,$C$305:$C$316)))) -> 48.18215964 | W301: =IF(MAX(C305:C316)-MIN(C305:C316)<5,AVERAGEIF(C305:C316,">0",W305:W316), IF(FORECAST($C301,W$305:W$316,$C$305:$C$316)<0,0, IF(FORECAST($C301,W$305:W$316,$C$305:$C$316)>100,100, FORECAST($C301,W$305:W$316,$C$305:$C$316)))) -> 25.03123329 | X301: =IF(MAX(C305:C316)-MIN(C305:C316)<5,AVERAGEIF(C305:C316,">0",X305:X316), IF(FORECAST($C301,X$305:X$316,$C$305:$C$316)<0,0, IF(FORECAST($C301,X$305:X$316,$C$305:$C$316)>100,100, FORECAST($C301,X$305:X$316,$C$305:$C$316)))) -> 55.75541223 | AB301: =IF(MAX(C305:C316)-MIN(C305:C316)<5,AVERAGEIF(C305:C316,">0",AB305:AB316), IF(FORECAST($C301,AB$305:AB$316,$C$305:$C$316)<0,0, IF(FORECAST($C301,AB$305:AB$316,$C$305:$C$316)>100,100, FORECAST($C301,AB$305:AB$316,$C$305:$C$316)))) -> 20.43247765
C302: =MaxRegYear(C300,C305:C316) -> 2020 | D302: =IF(MAX(C305:C316)-MIN(C305:C316)<5,AVERAGEIF(C305:C316,">0",D305:D316), IF(FORECAST($C302,D$305:D$316,$C$305:$C$316)<0,0, IF(FORECAST($C302,D$305:D$316,$C$305:$C$316)>100,100, FORECAST($C302,D$305:D$316,$C$305:$C$316)))) -> 45.75727068 | H302: =IF(MAX(C305:C316)-MIN(C305:C316)<5,AVERAGEIF(C305:C316,">0",H305:H316), IF(FORECAST($C302,H$305:H$316,$C$305:$C$316)<0,0, IF(FORECAST($C302,H$305:H$316,$C$305:$C$316)>100,100, FORECAST($C302,H$305:H$316,$C$305:$C$316)))) -> 19.1611183 | I302: =IF(MAX(C305:C316)-MIN(C305:C316)<5,AVERAGEIF(C305:C316,">0",I305:I316), IF(FORECAST($C302,I$305:I$316,$C$305:$C$316)<0,0, IF(FORECAST($C302,I$305:I$316,$C$305:$C$316)>100,100, FORECAST($C302,I$305:I$316,$C$305:$C$316)))) -> 50.22772117 | M302: =IF(MAX(C305:C316)-MIN(C305:C316)<5,AVERAGEIF(C305:C316,">0",M305:M316), IF(FORECAST($C302,M$305:M$316,$C$305:$C$316)<0,0, IF(FORECAST($C302,M$305:M$316,$C$305:$C$316)>100,100, FORECAST($C302,M$305:M$316,$C$305:$C$316)))) -> 14.80910948 | N302: =IF(MAX(C305:C316)-MIN(C305:C316)<5,AVERAGEIF(C305:C316,">0",N305:N316), IF(FORECAST($C302,N$305:N$316,$C$305:$C$316)<0,0, IF(FORECAST($C302,N$305:N$316,$C$305:$C$316)>100,100, FORECAST($C302,N$305:N$316,$C$305:$C$316)))) -> 54.6067465 | R302: =IF(MAX(C305:C316)-MIN(C305:C316)<5,AVERAGEIF(C305:C316,">0",R305:R316), IF(FORECAST($C302,R$305:R$316,$C$305:$C$316)<0,0, IF(FORECAST($C302,R$305:R$316,$C$305:$C$316)>100,100, FORECAST($C302,R$305:R$316,$C$305:$C$316)))) -> 12.55395224 | S302: =IF(MAX(C305:C316)-MIN(C305:C316)<5,AVERAGEIF(C305:C316,">0",S305:S316), IF(FORECAST($C302,S$305:S$316,$C$305:$C$316)<0,0, IF(FORECAST($C302,S$305:S$316,$C$305:$C$316)>100,100, FORECAST($C302,S$305:S$316,$C$305:$C$316)))) -> 59.61182516 | W302: =IF(MAX(C305:C316)-MIN(C305:C316)<5,AVERAGEIF(C305:C316,">0",W305:W316), IF(FORECAST($C302,W$305:W$316,$C$305:$C$316)<0,0, IF(FORECAST($C302,W$305:W$316,$C$305:$C$316)>100,100, FORECAST($C302,W$305:W$316,$C$305:$C$316)))) -> 10.11204243 | X302: =IF(MAX(C305:C316)-MIN(C305:C316)<5,AVERAGEIF(C305:C316,">0",X305:X316), IF(FORECAST($C302,X$305:X$316,$C$305:$C$316)<0,0, IF(FORECAST($C302,X$305:X$316,$C$305:$C$316)>100,100, FORECAST($C302,X$305:X$316,$C$305:$C$316)))) -> 77.08627477 | AB302: =IF(MAX(C305:C316)-MIN(C305:C316)<5,AVERAGEIF(C305:C316,">0",AB305:AB316), IF(FORECAST($C302,AB$305:AB$316,$C$305:$C$316)<0,0, IF(FORECAST($C302,AB$305:AB$316,$C$305:$C$316)>100,100, FORECAST($C302,AB$305:AB$316,$C$305:$C$316)))) -> 4.37380376
B304: Survey | C304: Year | D304: Improved | E304: % Improved < = 30min | H304: Surface water | I304: Improved | J304: % Improved < = 30min | M304: Surface water | N304: Improved | O304: % Improved < = 30min | R304: Surface water | S304: Improved | T304: % Improved < = 30min | W304: Surface water | X304: Improved | Y304: % Improved < = 30min | AB304: Surface water
B305: MICS00 | C305: 2000 | D305: =IF(ISERROR(INDIRECT(CONCATENATE($B305,"!M16"))),"",INDIRECT(CONCATENATE($B305,"!M16"))) -> 29.88505747 | E305: =IF(ISERROR(INDIRECT(CONCATENATE($B305,"!M23"))),"",INDIRECT(CONCATENATE($B305,"!M23"))) -> 85.41114058 | H305: =IF(ISERROR(INDIRECT(CONCATENATE($B305,"!M21"))),"",INDIRECT(CONCATENATE($B305,"!M21"))) -> 21.64090369 | I305: =IF(ISERROR(INDIRECT(CONCATENATE($B305,"!N16"))),"",INDIRECT(CONCATENATE($B305,"!N16"))) -> 29.44535073 | J305: =IF(ISERROR(INDIRECT(CONCATENATE($B305,"!N23"))),"",INDIRECT(CONCATENATE($B305,"!N23"))) -> 82.68698061 | M305: =IF(ISERROR(INDIRECT(CONCATENATE($B305,"!N21"))),"",INDIRECT(CONCATENATE($B305,"!N21"))) -> 25.20391517 | N305: =IF(ISERROR(INDIRECT(CONCATENATE($B305,"!O16"))),"",INDIRECT(CONCATENATE($B305,"!O16"))) -> 36.52603573 | O305: =IF(ISERROR(INDIRECT(CONCATENATE($B305,"!O23"))),"",INDIRECT(CONCATENATE($B305,"!O23"))) -> 80.64516129 | R305: =IF(ISERROR(INDIRECT(CONCATENATE($B305,"!O21"))),"",INDIRECT(CONCATENATE($B305,"!O21"))) -> 13.9490688 | S305: =IF(ISERROR(INDIRECT(CONCATENATE($B305,"!P16"))),"",INDIRECT(CONCATENATE($B305,"!P16"))) -> 48.63387978 | T305: =IF(ISERROR(INDIRECT(CONCATENATE($B305,"!P23"))),"",INDIRECT(CONCATENATE($B305,"!P23"))) -> 89.96789727 | W305: =IF(ISERROR(INDIRECT(CONCATENATE($B305,"!P21"))),"",INDIRECT(CONCATENATE($B305,"!P21"))) -> 17.79859485 | X305: =IF(ISERROR(INDIRECT(CONCATENATE($B305,"!Q16"))),"",INDIRECT(CONCATENATE($B305,"!Q16"))) -> 52.71782574 | Y305: =IF(ISERROR(INDIRECT(CONCATENATE($B305,"!Q23"))),"",INDIRECT(CONCATENATE($B305,"!Q23"))) -> 90.52312358 | AB305: =IF(ISERROR(INDIRECT(CONCATENATE($B305,"!Q221"))),"",INDIRECT(CONCATENATE($B305,"!Q21"))) -> 14.02877698
B306: DHS04 | C306: 2004 | D306: 42.09631356 | E306: 86.58725819 | H306: 28.41535843 | I306: 39.90292949 | J306: 84.93628558 | M306: 35.21101368 | N306: 37.55661135 | O306: 90.18104127 | R306: 42.45480854 | S306: 47.40577416 | T306: 87.83316384 | W306: 36.70675439 | X306: 57.5325057 | Y306: 84.89761156 | AB306: 32.03965185
B307: MICS06 | C307: 2006 | D307: 38.5243076 | E307: 71.57964473 | H307: 13.44551901 | I307: 37.09029755 | J307: 73.81769986 | M307: 20.63970329 | N307: 47.63221323 | O307: 78.82386315 | R307: 17.58883681 | S307: 54.72385825 | T307: 77.2804988 | W307: 16.03833961 | X307: 69.41805785 | Y307: 82.12462031 | AB307: 9.177193865
B308: DHS11 | C308: 2011 | D308: 40.71409408 | E308: 77.61763531 | H308: 17.16184091 | I308: 41.9181239 | J308: 81.07676953 | M308: 22.89680091 | N308: 45.41735752 | O308: 82.48201176 | R308: 21.17523501 | S308: 52.28133698 | T308: 84.40545067 | W308: 13.60817198 | X308: 67.78277764 | Y308: 86.02524556 | AB308: 10.45722278
B309: MICS14 | C309: 2014 | D309: 44.07312939 | E309: 85.11046102 | H309: 17.13568444 | I309: 48.0915491 | J309: 87.43503804 | M309: 17.00996449 | N309: 50.12944483 | O309: 80.89187217 | R309: 15.74082418 | S309: 59.0594893 | T309: 81.64053721 | W309: 14.98631278 | X309: 70.33965038 | Y309: 83.52067581 | AB309: 7.63548851
B310: DHS19 | C310: 2019 | D310: 42.79878712 | E310: 79.95379054 | H310: 23.4100502 | I310: 46.68029981 | J310: 85.70981675 | M310: 15.71649408 | N310: 53.0043677 | O310: 87.20641664 | R310: 10.07308158 | S310: 57.84871626 | T310: 83.35696763 | W310: 10.7674108 | X310: 74.33498495 | Y310: 84.92477468 | AB310: 5.89811241
B318: =CONCATENATE("Rural use of drinking water sources, ",C299,"–",C300) -> Rural use of drinking water sources, 2000–2020 | S318: Data points used for regression

Sheet Sanitation
B4: Summary of trends in use of sanitation facilities by wealth quintile (%)
B5: =IF(ISERROR(INDIRECT(CONCATENATE($B105,"!A2"))),"",INDIRECT(CONCATENATE($B105,"!A2"))) -> Cameroon
B7: =B118 -> National use of sanitation facilities, 2000–2020 | J7: =B218 -> Urban use of sanitation facilities, 2000–2020 | R7: =B318 -> Rural use of sanitation facilities, 2000–2020
B31: =IF(ISERROR(INDIRECT(CONCATENATE($B105,"!A2"))),"",INDIRECT(CONCATENATE($B105,"!A2"))) -> Cameroon | F31: Poorest | J31: Poor | N31: Middle | R31: Rich | V31: Richest
F32: Basic | G32: Limited | H32: Unimproved | I32: Open defecation | J32: Basic | K32: Limited | L32: Unimproved | M32: Open defecation | N32: Basic | O32: Limited | P32: Unimproved | Q32: Open defecation | R32: Basic | S32: Limited | T32: Unimproved | U32: Open defecation | V32: Basic | W32: Limited | X32: Unimproved | Y32: Open defecation
B33: NATIONAL | D33: Estimate | E33: =C99 -> 2000 | F33: =E99 -> 26.36131168 | G33: =F99 -> 3.343629525 | H33: 50.81437015 | I33: 19.48068864 | J33: =J99 -> 20.92995844 | K33: =K99 -> 7.090612604 | L33: 62.89624861 | M33: 9.083180346 | N33: =O99 -> 32.10530417 | O33: =P99 -> 17.44146018 | P33: 47.37954575 | Q33: 3.0736899 | R33: =T99 -> 53.12720021 | S33: =U99 -> 31.89051973 | T33: 14.04193044 | U33: 0.9403496223 | V33: =Y99 -> 72.79769013 | W33: =Z99 -> 21.43902841 | X33: 5.560223643 | Y33: 0.2030578133
E34: =C100 -> 2020 | F34: =E100 -> 7.641112754 | G34: 0.9691873653 | H34: 64.08117716 | I34: 27.30852272 | J34: =J100 -> 20.24977076 | K34: 6.860179879 | L34: 68.43494322 | M34: 4.455106143 | N34: =O100 -> 38.97166673 | O34: 21.17166589 | P34: 39.09886701 | Q34: 0.7578003719 | R34: =T100 -> 53.82318854 | S34: 32.30829875 | T34: 13.86851271 | U34: 0 | V34: =Y100 -> 75.31253214 | W34: 22.17965314 | X34: 2.507814718 | Y34: 0
B36: URBAN | D36: Estimate | E36: =C199 -> 2000 | F36: =E199 -> 34.1237528 | G36: =F199 -> 17.4687488 | H36: 44.5871098 | I36: 3.8203886 | J36: =J199 -> 52.87193814 | K36: =K199 -> 31.98627672 | L36: 14.75519047 | M36: 0.3865946663 | N36: =O199 -> 54.70773588 | O36: =P199 -> 36.79005994 | P36: 7.966410657 | Q36: 0.5357935298 | R36: =T199 -> 62.46757789 | S36: =U199 -> 32.56489099 | T36: 4.929827252 | U36: 0.03770387395 | V36: =Y199 -> 84.51460692 | W36: =Z199 -> 12.52712234 | X36: 2.924774554 | Y36: 0.03349618775
E37: =C200 -> 2020 | F37: =E200 -> 33.47028137 | G37: 17.13422146 | H37: 45.20511037 | I37: 4.190386808 | J37: =J200 -> 51.2153828 | K37: 30.98409977 | L37: 17.4682514 | M37: 0.3322660324 | N37: =O200 -> 53.82465217 | O37: 36.19620055 | P37: 9.935010917 | Q37: 0.04413636088 | R37: =T200 -> 62.67768334 | S37: 32.67442078 | T37: 4.573360276 | U37: 0.07453560254 | V37: =Y200 -> 86.17031768 | W37: 12.77253899 | X37: 1.047781669 | Y37: 0.009361669125
B39: RURAL | D39: Estimate | E39: =C299 -> 2000 | F39: =E299 -> 21.8185976 | G39: =F299 -> 3.12171175 | H39: 51.96991825 | I39: 23.0897724 | J39: =J299 -> 30.35841002 | K39: =K299 -> 4.058697442 | L39: 49.41805807 | M39: 16.16483447 | N39: =O299 -> 19.80204782 | O39: =P299 -> 5.692219231 | P39: 65.45891539 | Q39: 9.046817553 | R39: =T299 -> 22.67062448 | S39: =U299 -> 9.314595678 | T39: 63.85584308 | U39: 4.158936764 | V39: =Y299 -> 40.65158069 | W39: =Z299 -> 17.75605081 | X39: 39.46861016 | Y39: 2.123758349
E40: =C300 -> 2020 | F40: =E300 -> 5.292005364 | G40: 0.7571575237 | H40: 59.67221968 | I40: 34.27861743 | J40: =J300 -> 10.35237841 | K40: 1.384037298 | L40: 69.22092055 | M40: 19.04266374 | N40: =O300 -> 17.4119877 | O40: 5.005181895 | P40: 72.27048866 | Q40: 5.312341738 | R40: =T300 -> 26.30066935 | S40: 10.80605879 | T40: 60.20380918 | U40: 2.689462678 | V40: =Y300 -> 44.1260035 | W40: 19.27363086 | X40: 36.16349196 | Y40: 0.4368736867
A97: NATIONAL | D97: Poorest | I97: Poor | N97: Middle | S97: Rich | X97: Richest
D98: Improved | E98: Basic | F98: Limited | G98: Unimproved | H98: Open defecation | I98: Improved | J98: Basic | K98: Limited | L98: Unimproved | M98: Open defecation | N98: Improved | O98: Basic | P98: Limited | Q98: Unimproved | R98: Open defecation | S98: Improved | T98: Basic | U98: Limited | V98: Unimproved | W98: Open defecation | X98: Improved | Y98: Basic | Z98: Limited | AA98: Unimproved | AB98: Open defecation
A99: Forecast period: | C99: 2000 | D99: =IF((D101+H101)>100,D101*100/(D101+H101),D101) -> 29.7049412 | E99: =D99*AVERAGEIF(E105:E116,">0")/100 -> 26.36131168 | F99: =D99*(100-AVERAGEIF(E105:E116,">0"))/100 -> 3.343629525 | G99: =100-(E99+F99+H99) -> 50.81437015 | H99: =IF((D101+H101)>100,H101*100/(D101+H101),H101) -> 19.48068864 | I99: =IF((I101+M101)>100,I101*100/(I101+M101),I101) -> 28.02057105 | J99: =I99*AVERAGEIF(J105:J116,">0")/100 -> 20.92995844 | K99: =I99*(100-AVERAGEIF(J105:J116,">0"))/100 -> 7.090612604 | L99: =100-(J99+K99+M99) -> 62.89624861 | M99: =IF((I101+M101)>100,M101*100/(I101+M101),M101) -> 9.083180346 | N99: =IF((N101+R101)>100,N101*100/(N101+R101),N101) -> 49.54676435 | O99: =N99*AVERAGEIF(O105:O116,">0")/100 -> 32.10530417 | P99: =N99*(100-AVERAGEIF(O105:O116,">0"))/100 -> 17.44146018 | Q99: =100-(O99+P99+R99) -> 47.37954575 | R99: =IF((N101+R101)>100,R101*100/(N101+R101),R101) -> 3.0736899 | S99: =IF((S101+W101)>100,S101*100/(S101+W101),S101) -> 85.01771993 | T99: =S99*AVERAGEIF(T105:T116,">0")/100 -> 53.12720021 | U99: =S99*(100-AVERAGEIF(T105:T116,">0"))/100 -> 31.89051973 | V99: =100-(T99+U99+W99) -> 14.04193044 | W99: =IF((S101+W101)>100,W101*100/(S101+W101),W101) -> 0.9403496223 | X99: =IF((X101+AB101)>100,X101*100/(X101+AB101),X101) -> 94.23671854 | Y99: =X99*AVERAGEIF(Y105:Y116,">0")/100 -> 72.79769013 | Z99: =X99*(100-AVERAGEIF(Y105:Y116,">0"))/100 -> 21.43902841 | AA99: =100-(Y99+Z99+AB99) -> 5.560223643 | AB99: =IF((X101+AB101)>100,AB101*100/(X101+AB101),AB101) -> 0.2030578133
C100: 2020 | D100: =IF((D102+H102)>100,D102*100/(D102+H102),D102) -> 8.610300119 | E100: =D100*AVERAGEIF(E105:E116,">0")/100 -> 7.641112754 | F100: =D100*(100-AVERAGEIF(E105:E116,">0"))/100 -> 0.9691873653 | G100: =100-(E100+F100+H100) -> 64.08117716 | H100: =IF((D102+H102)>100,H102*100/(D102+H102),H102) -> 27.30852272 | I100: =IF((I102+M102)>100,I102*100/(I102+M102),I102) -> 27.10995064 | J100: =I100*AVERAGEIF(J105:J116,">0")/100 -> 20.24977076 | K100: =I100*(100-AVERAGEIF(J105:J116,">0"))/100 -> 6.860179879 | L100: =100-(J100+K100+M100) -> 68.43494322 | M100: =IF((I102+M102)>100,M102*100/(I102+M102),M102) -> 4.455106143 | N100: =IF((N102+R102)>100,N102*100/(N102+R102),N102) -> 60.14333262 | O100: =N100*AVERAGEIF(O105:O116,">0")/100 -> 38.97166673 | P100: =N100*(100-AVERAGEIF(O105:O116,">0"))/100 -> 21.17166589 | Q100: =100-(O100+P100+R100) -> 39.09886701 | R100: =IF((N102+R102)>100,R102*100/(N102+R102),R102) -> 0.7578003719 | S100: =IF((S102+W102)>100,S102*100/(S102+W102),S102) -> 86.13148729 | T100: =S100*AVERAGEIF(T105:T116,">0")/100 -> 53.82318854 | U100: =S100*(100-AVERAGEIF(T105:T116,">0"))/100 -> 32.30829875 | V100: =100-(T100+U100+W100) -> 13.86851271 | W100: =IF((S102+W102)>100,W102*100/(S102+W102),W102) -> 0 | X100: =IF((X102+AB102)>100,X102*100/(X102+AB102),X102) -> 97.49218528 | Y100: =X100*AVERAGEIF(Y105:Y116,">0")/100 -> 75.31253214 | Z100: =X100*(100-AVERAGEIF(Y105:Y116,">0"))/100 -> 22.17965314 | AA100: =100-(Y100+Z100+AB100) -> 2.507814718 | AB100: =IF((X102+AB102)>100,AB102*100/(X102+AB102),AB102) -> 0
A101: Regression period: | C101: =MinRegYear(C99,C105:C116) -> 2000 | D101: =IF(MAX(C105:C116)-MIN(C105:C116)<5,AVERAGEIF(C105:C116,">0",D105:D116), IF(FORECAST($C101,D$105:D$116,$C$105:$C$116)<0,0, IF(FORECAST($C101,D$105:D$116,$C$105:$C$116)>100,100, FORECAST($C101,D$105:D$116,$C$105:$C$116)))) -> 29.7049412 | H101: =IF(MAX(C105:C116)-MIN(C105:C116)<5,AVERAGEIF(C105:C116,">0",H105:H116), IF(FORECAST($C101,H$105:H$116,$C$105:$C$116)<0,0, IF(FORECAST($C101,H$105:H$116,$C$105:$C$116)>100,100, FORECAST($C101,H$105:H$116,$C$105:$C$116)))) -> 19.48068864 | I101: =IF(MAX(C105:C116)-MIN(C105:C116)<5,AVERAGEIF(C105:C116,">0",I105:I116), IF(FORECAST($C101,I$105:I$116,$C$105:$C$116)<0,0, IF(FORECAST($C101,I$105:I$116,$C$105:$C$116)>100,100, FORECAST($C101,I$105:I$116,$C$105:$C$116)))) -> 28.02057105 | M101: =IF(MAX(C105:C116)-MIN(C105:C116)<5,AVERAGEIF(C105:C116,">0",M105:M116), IF(FORECAST($C101,M$105:M$116,$C$105:$C$116)<0,0, IF(FORECAST($C101,M$105:M$116,$C$105:$C$116)>100,100, FORECAST($C101,M$105:M$116,$C$105:$C$116)))) -> 9.083180346 | N101: =IF(MAX(C105:C116)-MIN(C105:C116)<5,AVERAGEIF(C105:C116,">0",N105:N116), IF(FORECAST($C101,N$105:N$116,$C$105:$C$116)<0,0, IF(FORECAST($C101,N$105:N$116,$C$105:$C$116)>100,100, FORECAST($C101,N$105:N$116,$C$105:$C$116)))) -> 49.54676435 | R101: =IF(MAX(C105:C116)-MIN(C105:C116)<5,AVERAGEIF(C105:C116,">0",R105:R116), IF(FORECAST($C101,R$105:R$116,$C$105:$C$116)<0,0, IF(FORECAST($C101,R$105:R$116,$C$105:$C$116)>100,100, FORECAST($C101,R$105:R$116,$C$105:$C$116)))) -> 3.0736899 | S101: =IF(MAX(C105:C116)-MIN(C105:C116)<5,AVERAGEIF(C105:C116,">0",S105:S116), IF(FORECAST($C101,S$105:S$116,$C$105:$C$116)<0,0, IF(FORECAST($C101,S$105:S$116,$C$105:$C$116)>100,100, FORECAST($C101,S$105:S$116,$C$105:$C$116)))) -> 85.01771993 | W101: =IF(MAX(C105:C116)-MIN(C105:C116)<5,AVERAGEIF(C105:C116,">0",W105:W116), IF(FORECAST($C101,W$105:W$116,$C$105:$C$116)<0,0, IF(FORECAST($C101,W$105:W$116,$C$105:$C$116)>100,100, FORECAST($C101,W$105:W$116,$C$105:$C$116)))) -> 0.9403496223 | X101: =IF(MAX(C105:C116)-MIN(C105:C116)<5,AVERAGEIF(C105:C116,">0",X105:X116), IF(FORECAST($C101,X$105:X$116,$C$105:$C$116)<0,0, IF(FORECAST($C101,X$105:X$116,$C$105:$C$116)>100,100, FORECAST($C101,X$105:X$116,$C$105:$C$116)))) -> 94.23671854 | AB101: =IF(MAX(C105:C116)-MIN(C105:C116)<5,AVERAGEIF(C105:C116,">0",AB105:AB116), IF(FORECAST($C101,AB$105:AB$116,$C$105:$C$116)<0,0, IF(FORECAST($C101,AB$105:AB$116,$C$105:$C$116)>100,100, FORECAST($C101,AB$105:AB$116,$C$105:$C$116)))) -> 0.2030578133
C102: =MaxRegYear(C100,C105:C116) -> 2020 | D102: =IF(MAX(C105:C116)-MIN(C105:C116)<5,AVERAGEIF(C105:C116,">0",D105:D116), IF(FORECAST($C102,D$105:D$116,$C$105:$C$116)<0,0, IF(FORECAST($C102,D$105:D$116,$C$105:$C$116)>100,100, FORECAST($C102,D$105:D$116,$C$105:$C$116)))) -> 8.610300119 | H102: =IF(MAX(C105:C116)-MIN(C105:C116)<5,AVERAGEIF(C105:C116,">0",H105:H116), IF(FORECAST($C102,H$105:H$116,$C$105:$C$116)<0,0, IF(FORECAST($C102,H$105:H$116,$C$105:$C$116)>100,100, FORECAST($C102,H$105:H$116,$C$105:$C$116)))) -> 27.30852272 | I102: =IF(MAX(C105:C116)-MIN(C105:C116)<5,AVERAGEIF(C105:C116,">0",I105:I116), IF(FORECAST($C102,I$105:I$116,$C$105:$C$116)<0,0, IF(FORECAST($C102,I$105:I$116,$C$105:$C$116)>100,100, FORECAST($C102,I$105:I$116,$C$105:$C$116)))) -> 27.10995064 | M102: =IF(MAX(C105:C116)-MIN(C105:C116)<5,AVERAGEIF(C105:C116,">0",M105:M116), IF(FORECAST($C102,M$105:M$116,$C$105:$C$116)<0,0, IF(FORECAST($C102,M$105:M$116,$C$105:$C$116)>100,100, FORECAST($C102,M$105:M$116,$C$105:$C$116)))) -> 4.455106143 | N102: =IF(MAX(C105:C116)-MIN(C105:C116)<5,AVERAGEIF(C105:C116,">0",N105:N116), IF(FORECAST($C102,N$105:N$116,$C$105:$C$116)<0,0, IF(FORECAST($C102,N$105:N$116,$C$105:$C$116)>100,100, FORECAST($C102,N$105:N$116,$C$105:$C$116)))) -> 60.14333262 | R102: =IF(MAX(C105:C116)-MIN(C105:C116)<5,AVERAGEIF(C105:C116,">0",R105:R116), IF(FORECAST($C102,R$105:R$116,$C$105:$C$116)<0,0, IF(FORECAST($C102,R$105:R$116,$C$105:$C$116)>100,100, FORECAST($C102,R$105:R$116,$C$105:$C$116)))) -> 0.7578003719 | S102: =IF(MAX(C105:C116)-MIN(C105:C116)<5,AVERAGEIF(C105:C116,">0",S105:S116), IF(FORECAST($C102,S$105:S$116,$C$105:$C$116)<0,0, IF(FORECAST($C102,S$105:S$116,$C$105:$C$116)>100,100, FORECAST($C102,S$105:S$116,$C$105:$C$116)))) -> 86.13148729 | W102: =IF(MAX(C105:C116)-MIN(C105:C116)<5,AVERAGEIF(C105:C116,">0",W105:W116), IF(FORECAST($C102,W$105:W$116,$C$105:$C$116)<0,0, IF(FORECAST($C102,W$105:W$116,$C$105:$C$116)>100,100, FORECAST($C102,W$105:W$116,$C$105:$C$116)))) -> 0 | X102: =IF(MAX(C105:C116)-MIN(C105:C116)<5,AVERAGEIF(C105:C116,">0",X105:X116), IF(FORECAST($C102,X$105:X$116,$C$105:$C$116)<0,0, IF(FORECAST($C102,X$105:X$116,$C$105:$C$116)>100,100, FORECAST($C102,X$105:X$116,$C$105:$C$116)))) -> 97.49218528 | AB102: =IF(MAX(C105:C116)-MIN(C105:C116)<5,AVERAGEIF(C105:C116,">0",AB105:AB116), IF(FORECAST($C102,AB$105:AB$116,$C$105:$C$116)<0,0, IF(FORECAST($C102,AB$105:AB$116,$C$105:$C$116)>100,100, FORECAST($C102,AB$105:AB$116,$C$105:$C$116)))) -> 0
B104: Survey | C104: Year | D104: Improved | E104: Not shared | H104: Open defecation | I104: Improved | J104: Not shared | M104: Open defecation | N104: Improved | O104: Not shared | R104: Open defecation | S104: Improved | T104: Not shared | W104: Open defecation | X104: Improved | Y104: Not shared | AB104: Open defecation
B105: MICS00 | C105: 2000 | D105: =IF(ISERROR(INDIRECT(CONCATENATE($B105,"!C122"))),"",INDIRECT(CONCATENATE($B105,"!C122"))) -> 28.70238848 | E105: =IF(ISERROR(INDIRECT(CONCATENATE($B105,"!C129"))),"",INDIRECT(CONCATENATE($B105,"!C129"))) -> N/A | H105: =IF(ISERROR(INDIRECT(CONCATENATE($B105,"!C127"))),"",INDIRECT(CONCATENATE($B105,"!C127"))) -> 13.83490961 | I105: =IF(ISERROR(INDIRECT(CONCATENATE($B105,"!D122"))),"",INDIRECT(CONCATENATE($B105,"!D122"))) -> 29.17986991 | J105: =IF(ISERROR(INDIRECT(CONCATENATE($B105,"!D129"))),"",INDIRECT(CONCATENATE($B105,"!D129"))) -> N/A | M105: =IF(ISERROR(INDIRECT(CONCATENATE($B105,"!D127"))),"",INDIRECT(CONCATENATE($B105,"!D127"))) -> 7.078843934 | N105: =IF(ISERROR(INDIRECT(CONCATENATE($B105,"!E122"))),"",INDIRECT(CONCATENATE($B105,"!E122"))) -> 52.1843892 | O105: =IF(ISERROR(INDIRECT(CONCATENATE($B105,"!E129"))),"",INDIRECT(CONCATENATE($B105,"!E129"))) -> N/A | R105: =IF(ISERROR(INDIRECT(CONCATENATE($B105,"!E127"))),"",INDIRECT(CONCATENATE($B105,"!E127"))) -> 3.363070388 | S105: =IF(ISERROR(INDIRECT(CONCATENATE($B105,"!F122"))),"",INDIRECT(CONCATENATE($B105,"!F122"))) -> 85.45121879 | T105: =IF(ISERROR(INDIRECT(CONCATENATE($B105,"!F129"))),"",INDIRECT(CONCATENATE($B105,"!F129"))) -> N/A | W105: =IF(ISERROR(INDIRECT(CONCATENATE($B105,"!F127"))),"",INDIRECT(CONCATENATE($B105,"!F127"))) -> 1.040805087 | X105: =IF(ISERROR(INDIRECT(CONCATENATE($B105,"!G122"))),"",INDIRECT(CONCATENATE($B105,"!G122"))) -> 93.72577989 | Y105: =IF(ISERROR(INDIRECT(CONCATENATE($B105,"!G129"))),"",INDIRECT(CONCATENATE($B105,"!G129"))) -> N/A | AB105: =IF(ISERROR(INDIRECT(CONCATENATE($B105,"!G2127"))),"",INDIRECT(CONCATENATE($B105,"!G127"))) -> 0.3539054003
B106: DHS04 | C106: 2004 | D106: 26.6206014 | E106: N/A | H106: 19.9622353 | I106: 27.80661639 | J106: N/A | M106: 11.45035674 | N106: 51.43693279 | O106: N/A | R106: 2.542330858 | S106: 84.32701457 | T106: N/A | W106: 0.9595653823 | X106: 94.971095 | Y106: N/A | AB106: 0.02131381239
B107: MICS06 | C107: 2006 | D107: 23.5167663 | E107: 85.40122299 | H107: 29.00974654 | I107: 28.9982587 | J107: 77.74511119 | M107: 6.35753008 | N107: 52.20558248 | O107: 62.83551815 | R107: 1.543736632 | S107: 85.62718448 | T107: 69.04681703 | W107: 0.3688471618 | X107: 95.80157627 | Y107: 76.28565706 | AB107: 0.04609937417
B108: DHS11 | C108: 2011 | D108: 24.48267719 | E108: 92.94150491 | H108: 26.22673608 | I108: 29.55035395 | J108: 76.4864641 | M108: 6.59257998 | N108: 51.50071139 | O108: 66.0367631 | R108: 2.410033357 | S108: 84.76200256 | T108: 60.48724694 | W108: 0.1884550221 | X108: 95.55562163 | Y108: 72.70211918 | AB108: 0.1292705451
B109: MICS14 | C109: 2014 | D109: 4.772400517 | E109: 84.08117353 | H109: 27.09117146 | I109: 16.57202235 | J109: 63.954387 | M109: 6.970681158 | N109: 55.17988432 | O109: 60.91441629 | R109: 1.752817132 | S109: 87.56383171 | T109: 57.84650675 | W109: 0.3010623349 | X109: 97.43246256 | Y109: 77.65730874 | AB109: 0
B110: DHS19 | C110: 2019 | D110: 13.1792824 | E110: 92.55154184 | H110: 21.89448488 | I110: 33.55762987 | J110: 80.59393633 | M110: 3.553289834 | N110: 63.38382027 | O110: 69.40523634 | R110: 0.5772493062 | S110: 85.38223935 | T110: 62.57767445 | W110: 0.1482658195 | X110: 96.7235361 | Y110: 82.35417245 | AB110: 0.02813088926
B118: =CONCATENATE("National use of sanitation facilities, ",C99,"–",C100) -> National use of sanitation facilities, 2000–2020 | S118: Data points used for regression
A197: URBAN | D197: Poorest | I197: Poor | N197: Middle | S197: Rich | X197: Richest
D198: Improved | E198: Basic | F198: Limited | G198: Unimproved | H198: Open defecation | I198: Improved | J198: Basic | K198: Limited | L198: Unimproved | M198: Open defecation | N198: Improved | O198: Basic | P198: Limited | Q198: Unimproved | R198: Open defecation | S198: Improved | T198: Basic | U198: Limited | V198: Unimproved | W198: Open defecation | X198: Improved | Y198: Basic | Z198: Limited | AA198: Unimproved | AB198: Open defecation
A199: Forecast period: | C199: 2000 | D199: =IF((D201+H201)>100,D201*100/(D201+H201),D201) -> 51.5925016 | E199: =D199*AVERAGEIF(E205:E216,">0")/100 -> 34.1237528 | F199: =D199*(100-AVERAGEIF(E205:E216,">0"))/100 -> 17.4687488 | G199: =100-(E199+F199+H199) -> 44.5871098 | H199: =IF((D201+H201)>100,H201*100/(D201+H201),H201) -> 3.8203886 | I199: =IF((I201+M201)>100,I201*100/(I201+M201),I201) -> 84.85821486 | J199: =I199*AVERAGEIF(J205:J216,">0")/100 -> 52.87193814 | K199: =I199*(100-AVERAGEIF(J205:J216,">0"))/100 -> 31.98627672 | L199: =100-(J199+K199+M199) -> 14.75519047 | M199: =IF((I201+M201)>100,M201*100/(I201+M201),M201) -> 0.3865946663 | N199: =IF((N201+R201)>100,N201*100/(N201+R201),N201) -> 91.49779581 | O199: =N199*AVERAGEIF(O205:O216,">0")/100 -> 54.70773588 | P199: =N199*(100-AVERAGEIF(O205:O216,">0"))/100 -> 36.79005994 | Q199: =100-(O199+P199+R199) -> 7.966410657 | R199: =IF((N201+R201)>100,R201*100/(N201+R201),R201) -> 0.5357935298 | S199: =IF((S201+W201)>100,S201*100/(S201+W201),S201) -> 95.03246887 | T199: =S199*AVERAGEIF(T205:T216,">0")/100 -> 62.46757789 | U199: =S199*(100-AVERAGEIF(T205:T216,">0"))/100 -> 32.56489099 | V199: =100-(T199+U199+W199) -> 4.929827252 | W199: =IF((S201+W201)>100,W201*100/(S201+W201),W201) -> 0.03770387395 | X199: =IF((X201+AB201)>100,X201*100/(X201+AB201),X201) -> 97.04172926 | Y199: =X199*AVERAGEIF(Y205:Y216,">0")/100 -> 84.51460692 | Z199: =X199*(100-AVERAGEIF(Y205:Y216,">0"))/100 -> 12.52712234 | AA199: =100-(Y199+Z199+AB199) -> 2.924774554 | AB199: =IF((X201+AB201)>100,AB201*100/(X201+AB201),AB201) -> 0.03349618775
C200: 2020 | D200: =IF((D202+H202)>100,D202*100/(D202+H202),D202) -> 50.60450283 | E200: =D200*AVERAGEIF(E205:E216,">0")/100 -> 33.47028137 | F200: =D200*(100-AVERAGEIF(E205:E216,">0"))/100 -> 17.13422146 | G200: =100-(E200+F200+H200) -> 45.20511037 | H200: =IF((D202+H202)>100,H202*100/(D202+H202),H202) -> 4.190386808 | I200: =IF((I202+M202)>100,I202*100/(I202+M202),I202) -> 82.19948256 | J200: =I200*AVERAGEIF(J205:J216,">0")/100 -> 51.2153828 | K200: =I200*(100-AVERAGEIF(J205:J216,">0"))/100 -> 30.98409977 | L200: =100-(J200+K200+M200) -> 17.4682514 | M200: =IF((I202+M202)>100,M202*100/(I202+M202),M202) -> 0.3322660324 | N200: =IF((N202+R202)>100,N202*100/(N202+R202),N202) -> 90.02085272 | O200: =N200*AVERAGEIF(O205:O216,">0")/100 -> 53.82465217 | P200: =N200*(100-AVERAGEIF(O205:O216,">0"))/100 -> 36.19620055 | Q200: =100-(O200+P200+R200) -> 9.935010917 | R200: =IF((N202+R202)>100,R202*100/(N202+R202),R202) -> 0.04413636088 | S200: =IF((S202+W202)>100,S202*100/(S202+W202),S202) -> 95.35210412 | T200: =S200*AVERAGEIF(T205:T216,">0")/100 -> 62.67768334 | U200: =S200*(100-AVERAGEIF(T205:T216,">0"))/100 -> 32.67442078 | V200: =100-(T200+U200+W200) -> 4.573360276 | W200: =IF((S202+W202)>100,W202*100/(S202+W202),W202) -> 0.07453560254 | X200: =IF((X202+AB202)>100,X202*100/(X202+AB202),X202) -> 98.94285666 | Y200: =X200*AVERAGEIF(Y205:Y216,">0")/100 -> 86.17031768 | Z200: =X200*(100-AVERAGEIF(Y205:Y216,">0"))/100 -> 12.77253899 | AA200: =100-(Y200+Z200+AB200) -> 1.047781669 | AB200: =IF((X202+AB202)>100,AB202*100/(X202+AB202),AB202) -> 0.009361669125
A201: Regression period: | C201: =MinRegYear(C199,C205:C216) -> 2000 | D201: =IF(MAX(C205:C216)-MIN(C205:C216)<5,AVERAGEIF(C205:C216,">0",D205:D216), IF(FORECAST($C201,D$205:D$216,$C$205:$C$216)<0,0, IF(FORECAST($C201,D$205:D$216,$C$205:$C$216)>100,100, FORECAST($C201,D$205:D$216,$C$205:$C$216)))) -> 51.5925016 | H201: =IF(MAX(C205:C216)-MIN(C205:C216)<5,AVERAGEIF(C205:C216,">0",H205:H216), IF(FORECAST($C201,H$205:H$216,$C$205:$C$216)<0,0, IF(FORECAST($C201,H$205:H$216,$C$205:$C$216)>100,100, FORECAST($C201,H$205:H$216,$C$205:$C$216)))) -> 3.8203886 | I201: =IF(MAX(C205:C216)-MIN(C205:C216)<5,AVERAGEIF(C205:C216,">0",I205:I216), IF(FORECAST($C201,I$205:I$216,$C$205:$C$216)<0,0, IF(FORECAST($C201,I$205:I$216,$C$205:$C$216)>100,100, FORECAST($C201,I$205:I$216,$C$205:$C$216)))) -> 84.85821486 | M201: =IF(MAX(C205:C216)-MIN(C205:C216)<5,AVERAGEIF(C205:C216,">0",M205:M216), IF(FORECAST($C201,M$205:M$216,$C$205:$C$216)<0,0, IF(FORECAST($C201,M$205:M$216,$C$205:$C$216)>100,100, FORECAST($C201,M$205:M$216,$C$205:$C$216)))) -> 0.3865946663 | N201: =IF(MAX(C205:C216)-MIN(C205:C216)<5,AVERAGEIF(C205:C216,">0",N205:N216), IF(FORECAST($C201,N$205:N$216,$C$205:$C$216)<0,0, IF(FORECAST($C201,N$205:N$216,$C$205:$C$216)>100,100, FORECAST($C201,N$205:N$216,$C$205:$C$216)))) -> 91.49779581 | R201: =IF(MAX(C205:C216)-MIN(C205:C216)<5,AVERAGEIF(C205:C216,">0",R205:R216), IF(FORECAST($C201,R$205:R$216,$C$205:$C$216)<0,0, IF(FORECAST($C201,R$205:R$216,$C$205:$C$216)>100,100, FORECAST($C201,R$205:R$216,$C$205:$C$216)))) -> 0.5357935298 | S201: =IF(MAX(C205:C216)-MIN(C205:C216)<5,AVERAGEIF(C205:C216,">0",S205:S216), IF(FORECAST($C201,S$205:S$216,$C$205:$C$216)<0,0, IF(FORECAST($C201,S$205:S$216,$C$205:$C$216)>100,100, FORECAST($C201,S$205:S$216,$C$205:$C$216)))) -> 95.03246887 | W201: =IF(MAX(C205:C216)-MIN(C205:C216)<5,AVERAGEIF(C205:C216,">0",W205:W216), IF(FORECAST($C201,W$205:W$216,$C$205:$C$216)<0,0, IF(FORECAST($C201,W$205:W$216,$C$205:$C$216)>100,100, FORECAST($C201,W$205:W$216,$C$205:$C$216)))) -> 0.03770387395 | X201: =IF(MAX(C205:C216)-MIN(C205:C216)<5,AVERAGEIF(C205:C216,">0",X205:X216), IF(FORECAST($C201,X$205:X$216,$C$205:$C$216)<0,0, IF(FORECAST($C201,X$205:X$216,$C$205:$C$216)>100,100, FORECAST($C201,X$205:X$216,$C$205:$C$216)))) -> 97.04172926 | AB201: =IF(MAX(C205:C216)-MIN(C205:C216)<5,AVERAGEIF(C205:C216,">0",AB205:AB216), IF(FORECAST($C201,AB$205:AB$216,$C$205:$C$216)<0,0, IF(FORECAST($C201,AB$205:AB$216,$C$205:$C$216)>100,100, FORECAST($C201,AB$205:AB$216,$C$205:$C$216)))) -> 0.03349618775
C202: =MaxRegYear(C200,C205:C216) -> 2020 | D202: =IF(MAX(C205:C216)-MIN(C205:C216)<5,AVERAGEIF(C205:C216,">0",D205:D216), IF(FORECAST($C202,D$205:D$216,$C$205:$C$216)<0,0, IF(FORECAST($C202,D$205:D$216,$C$205:$C$216)>100,100, FORECAST($C202,D$205:D$216,$C$205:$C$216)))) -> 50.60450283 | H202: =IF(MAX(C205:C216)-MIN(C205:C216)<5,AVERAGEIF(C205:C216,">0",H205:H216), IF(FORECAST($C202,H$205:H$216,$C$205:$C$216)<0,0, IF(FORECAST($C202,H$205:H$216,$C$205:$C$216)>100,100, FORECAST($C202,H$205:H$216,$C$205:$C$216)))) -> 4.190386808 | I202: =IF(MAX(C205:C216)-MIN(C205:C216)<5,AVERAGEIF(C205:C216,">0",I205:I216), IF(FORECAST($C202,I$205:I$216,$C$205:$C$216)<0,0, IF(FORECAST($C202,I$205:I$216,$C$205:$C$216)>100,100, FORECAST($C202,I$205:I$216,$C$205:$C$216)))) -> 82.19948256 | M202: =IF(MAX(C205:C216)-MIN(C205:C216)<5,AVERAGEIF(C205:C216,">0",M205:M216), IF(FORECAST($C202,M$205:M$216,$C$205:$C$216)<0,0, IF(FORECAST($C202,M$205:M$216,$C$205:$C$216)>100,100, FORECAST($C202,M$205:M$216,$C$205:$C$216)))) -> 0.3322660324 | N202: =IF(MAX(C205:C216)-MIN(C205:C216)<5,AVERAGEIF(C205:C216,">0",N205:N216), IF(FORECAST($C202,N$205:N$216,$C$205:$C$216)<0,0, IF(FORECAST($C202,N$205:N$216,$C$205:$C$216)>100,100, FORECAST($C202,N$205:N$216,$C$205:$C$216)))) -> 90.02085272 | R202: =IF(MAX(C205:C216)-MIN(C205:C216)<5,AVERAGEIF(C205:C216,">0",R205:R216), IF(FORECAST($C202,R$205:R$216,$C$205:$C$216)<0,0, IF(FORECAST($C202,R$205:R$216,$C$205:$C$216)>100,100, FORECAST($C202,R$205:R$216,$C$205:$C$216)))) -> 0.04413636088 | S202: =IF(MAX(C205:C216)-MIN(C205:C216)<5,AVERAGEIF(C205:C216,">0",S205:S216), IF(FORECAST($C202,S$205:S$216,$C$205:$C$216)<0,0, IF(FORECAST($C202,S$205:S$216,$C$205:$C$216)>100,100, FORECAST($C202,S$205:S$216,$C$205:$C$216)))) -> 95.35210412 | W202: =IF(MAX(C205:C216)-MIN(C205:C216)<5,AVERAGEIF(C205:C216,">0",W205:W216), IF(FORECAST($C202,W$205:W$216,$C$205:$C$216)<0,0, IF(FORECAST($C202,W$205:W$216,$C$205:$C$216)>100,100, FORECAST($C202,W$205:W$216,$C$205:$C$216)))) -> 0.07453560254 | X202: =IF(MAX(C205:C216)-MIN(C205:C216)<5,AVERAGEIF(C205:C216,">0",X205:X216), IF(FORECAST($C202,X$205:X$216,$C$205:$C$216)<0,0, IF(FORECAST($C202,X$205:X$216,$C$205:$C$216)>100,100, FORECAST($C202,X$205:X$216,$C$205:$C$216)))) -> 98.94285666 | AB202: =IF(MAX(C205:C216)-MIN(C205:C216)<5,AVERAGEIF(C205:C216,">0",AB205:AB216), IF(FORECAST($C202,AB$205:AB$216,$C$205:$C$216)<0,0, IF(FORECAST($C202,AB$205:AB$216,$C$205:$C$216)>100,100, FORECAST($C202,AB$205:AB$216,$C$205:$C$216)))) -> 0.009361669125
B204: Survey | C204: Year | D204: Improved | E204: Not shared | H204: Open defecation | I204: Improved | J204: Not shared | M204: Open defecation | N204: Improved | O204: Not shared | R204: Open defecation | S204: Improved | T204: Not shared | W204: Open defecation | X204: Improved | Y204: Not shared | AB204: Open defecation
B205: MICS00 | C205: 2000 | D205: =IF(ISERROR(INDIRECT(CONCATENATE($B205,"!H122"))),"",INDIRECT(CONCATENATE($B205,"!H122"))) -> 54.39233122 | E205: =IF(ISERROR(INDIRECT(CONCATENATE($B205,"!H129"))),"",INDIRECT(CONCATENATE($B205,"!H129"))) -> N/A | H205: =IF(ISERROR(INDIRECT(CONCATENATE($B205,"!H127"))),"",INDIRECT(CONCATENATE($B205,"!H127"))) -> 0.9200643249 | I205: =IF(ISERROR(INDIRECT(CONCATENATE($B205,"!I122"))),"",INDIRECT(CONCATENATE($B205,"!I122"))) -> 85.03445369 | J205: =IF(ISERROR(INDIRECT(CONCATENATE($B205,"!I129"))),"",INDIRECT(CONCATENATE($B205,"!I129"))) -> N/A | M205: =IF(ISERROR(INDIRECT(CONCATENATE($B205,"!I127"))),"",INDIRECT(CONCATENATE($B205,"!I127"))) -> 0.2050303667 | N205: =IF(ISERROR(INDIRECT(CONCATENATE($B205,"!J122"))),"",INDIRECT(CONCATENATE($B205,"!J122"))) -> 91.51014339 | O205: =IF(ISERROR(INDIRECT(CONCATENATE($B205,"!J129"))),"",INDIRECT(CONCATENATE($B205,"!J129"))) -> N/A | R205: =IF(ISERROR(INDIRECT(CONCATENATE($B205,"!J127"))),"",INDIRECT(CONCATENATE($B205,"!J127"))) -> 0.4135370745 | S205: =IF(ISERROR(INDIRECT(CONCATENATE($B205,"!K122"))),"",INDIRECT(CONCATENATE($B205,"!K122"))) -> 95.23736212 | T205: =IF(ISERROR(INDIRECT(CONCATENATE($B205,"!K129"))),"",INDIRECT(CONCATENATE($B205,"!K129"))) -> N/A | W205: =IF(ISERROR(INDIRECT(CONCATENATE($B205,"!K127"))),"",INDIRECT(CONCATENATE($B205,"!K127"))) -> 0 | X205: =IF(ISERROR(INDIRECT(CONCATENATE($B205,"!L122"))),"",INDIRECT(CONCATENATE($B205,"!L122"))) -> 97.07900015 | Y205: =IF(ISERROR(INDIRECT(CONCATENATE($B205,"!L129"))),"",INDIRECT(CONCATENATE($B205,"!L129"))) -> N/A | AB205: =IF(ISERROR(INDIRECT(CONCATENATE($B205,"!L2127"))),"",INDIRECT(CONCATENATE($B205,"!L127"))) -> 0.05146081634
B206: DHS04 | C206: 2004 | D206: 50.29163162 | E206: N/A | H206: 5.447029124 | I206: 83.24087834 | J206: N/A | M206: 0.8382803998 | N206: 90.34649327 | O206: N/A | R206: 0.8274617243 | S206: 94.58923996 | T206: N/A | W206: 0.0226236902 | X206: 97.04747411 | Y206: N/A | AB206: 0
B207: MICS06 | C207: 2006 | D207: 51.05570265 | E207: 67.63471688 | H207: 4.598055518 | I207: 84.2877147 | J207: 65.73234078 | M207: 0.2209724468 | N207: 91.63427826 | O207: 68.29846142 | R207: 0.1499376548 | S207: 95.13295384 | T207: 65.97055103 | W207: 0.00872498033 | X207: 97.86727222 | Y207: 85.50221671 | AB207: 0
B208: DHS11 | C208: 2011 | D208: 50.07787366 | E208: 71.25369931 | H208: 6.839426824 | I208: 83.01534754 | J208: 61.03108607 | M208: 0.2095459394 | N208: 91.0204708 | O208: 57.34436254 | R208: 0.106727893 | S208: 94.68771688 | T208: 60.98985893 | W208: 0.2943202404 | X208: 97.67844188 | Y208: 83.04840133 | AB208: 0.08435310988
B209: MICS14 | C209: 2014 | D209: 45.75036462 | E209: 60.47479762 | H209: 4.204498824 | I209: 85.60255739 | J209: 58.91740771 | M209: 0.2745647819 | N209: 90.94189675 | O209: 55.29385983 | R209: 0.3597885504 | S209: 96.8200239 | T209: 66.72456364 | W209: 0 | X209: 99.34505052 | Y209: 87.72403909 | AB209: 0
B210: DHS19 | C210: 2019 | D210: 55.31950915 | E210: 65.2004475 | H210: 1.912252147 | I210: 80.7897603 | J210: 63.54400822 | M210: 0.4244867518 | N210: 89.54574606 | O210: 58.22857867 | R210: 0.02983392573 | S210: 94.59053172 | T210: 69.24654287 | W210: 0 | X210: 98.36618065 | Y210: 92.08932015 | AB210: 0
B218: =CONCATENATE("Urban use of sanitation facilities, ",C199,"–",C200) -> Urban use of sanitation facilities, 2000–2020 | S218: Data points used for regression
A297: RURAL | D297: Poorest | I297: Poor | N297: Middle | S297: Rich | X297: Richest
D298: Improved | E298: Basic | F298: Limited | G298: Unimproved | H298: Open defecation | I298: Improved | J298: Basic | K298: Limited | L298: Unimproved | M298: Open defecation | N298: Improved | O298: Basic | P298: Limited | Q298: Unimproved | R298: Open defecation | S298: Improved | T298: Basic | U298: Limited | V298: Unimproved | W298: Open defecation | X298: Improved | Y298: Basic | Z298: Limited | AA298: Unimproved | AB298: Open defecation
A299: Forecast period: | C299: 2000 | D299: =IF((D301+H301)>100,D301*100/(D301+H301),D301) -> 24.94030935 | E299: =D299*AVERAGEIF(E305:E316,">0")/100 -> 21.8185976 | F299: =D299*(100-AVERAGEIF(E305:E316,">0"))/100 -> 3.12171175 | G299: =100-(E299+F299+H299) -> 51.96991825 | H299: =IF((D301+H301)>100,H301*100/(D301+H301),H301) -> 23.0897724 | I299: =IF((I301+M301)>100,I301*100/(I301+M301),I301) -> 34.41710746 | J299: =I299*AVERAGEIF(J305:J316,">0")/100 -> 30.35841002 | K299: =I299*(100-AVERAGEIF(J305:J316,">0"))/100 -> 4.058697442 | L299: =100-(J299+K299+M299) -> 49.41805807 | M299: =IF((I301+M301)>100,M301*100/(I301+M301),M301) -> 16.16483447 | N299: =IF((N301+R301)>100,N301*100/(N301+R301),N301) -> 25.49426706 | O299: =N299*AVERAGEIF(O305:O316,">0")/100 -> 19.80204782 | P299: =N299*(100-AVERAGEIF(O305:O316,">0"))/100 -> 5.692219231 | Q299: =100-(O299+P299+R299) -> 65.45891539 | R299: =IF((N301+R301)>100,R301*100/(N301+R301),R301) -> 9.046817553 | S299: =IF((S301+W301)>100,S301*100/(S301+W301),S301) -> 31.98522016 | T299: =S299*AVERAGEIF(T305:T316,">0")/100 -> 22.67062448 | U299: =S299*(100-AVERAGEIF(T305:T316,">0"))/100 -> 9.314595678 | V299: =100-(T299+U299+W299) -> 63.85584308 | W299: =IF((S301+W301)>100,W301*100/(S301+W301),W301) -> 4.158936764 | X299: =IF((X301+AB301)>100,X301*100/(X301+AB301),X301) -> 58.4076315 | Y299: =X299*AVERAGEIF(Y305:Y316,">0")/100 -> 40.65158069 | Z299: =X299*(100-AVERAGEIF(Y305:Y316,">0"))/100 -> 17.75605081 | AA299: =100-(Y299+Z299+AB299) -> 39.46861016 | AB299: =IF((X301+AB301)>100,AB301*100/(X301+AB301),AB301) -> 2.123758349
C300: 2020 | D300: =IF((D302+H302)>100,D302*100/(D302+H302),D302) -> 6.049162888 | E300: =D300*AVERAGEIF(E305:E316,">0")/100 -> 5.292005364 | F300: =D300*(100-AVERAGEIF(E305:E316,">0"))/100 -> 0.7571575237 | G300: =100-(E300+F300+H300) -> 59.67221968 | H300: =IF((D302+H302)>100,H302*100/(D302+H302),H302) -> 34.27861743 | I300: =IF((I302+M302)>100,I302*100/(I302+M302),I302) -> 11.73641571 | J300: =I300*AVERAGEIF(J305:J316,">0")/100 -> 10.35237841 | K300: =I300*(100-AVERAGEIF(J305:J316,">0"))/100 -> 1.384037298 | L300: =100-(J300+K300+M300) -> 69.22092055 | M300: =IF((I302+M302)>100,M302*100/(I302+M302),M302) -> 19.04266374 | N300: =IF((N302+R302)>100,N302*100/(N302+R302),N302) -> 22.4171696 | O300: =N300*AVERAGEIF(O305:O316,">0")/100 -> 17.4119877 | P300: =N300*(100-AVERAGEIF(O305:O316,">0"))/100 -> 5.005181895 | Q300: =100-(O300+P300+R300) -> 72.27048866 | R300: =IF((N302+R302)>100,R302*100/(N302+R302),R302) -> 5.312341738 | S300: =IF((S302+W302)>100,S302*100/(S302+W302),S302) -> 37.10672814 | T300: =S300*AVERAGEIF(T305:T316,">0")/100 -> 26.30066935 | U300: =S300*(100-AVERAGEIF(T305:T316,">0"))/100 -> 10.80605879 | V300: =100-(T300+U300+W300) -> 60.20380918 | W300: =IF((S302+W302)>100,W302*100/(S302+W302),W302) -> 2.689462678 | X300: =IF((X302+AB302)>100,X302*100/(X302+AB302),X302) -> 63.39963435 | Y300: =X300*AVERAGEIF(Y305:Y316,">0")/100 -> 44.1260035 | Z300: =X300*(100-AVERAGEIF(Y305:Y316,">0"))/100 -> 19.27363086 | AA300: =100-(Y300+Z300+AB300) -> 36.16349196 | AB300: =IF((X302+AB302)>100,AB302*100/(X302+AB302),AB302) -> 0.4368736867
A301: Regression period: | C301: =MinRegYear(C299,C305:C316) -> 2000 | D301: =IF(MAX(C305:C316)-MIN(C305:C316)<5,AVERAGEIF(C305:C316,">0",D305:D316), IF(FORECAST($C301,D$305:D$316,$C$305:$C$316)<0,0, IF(FORECAST($C301,D$305:D$316,$C$305:$C$316)>100,100, FORECAST($C301,D$305:D$316,$C$305:$C$316)))) -> 24.94030935 | H301: =IF(MAX(C305:C316)-MIN(C305:C316)<5,AVERAGEIF(C305:C316,">0",H305:H316), IF(FORECAST($C301,H$305:H$316,$C$305:$C$316)<0,0, IF(FORECAST($C301,H$305:H$316,$C$305:$C$316)>100,100, FORECAST($C301,H$305:H$316,$C$305:$C$316)))) -> 23.0897724 | I301: =IF(MAX(C305:C316)-MIN(C305:C316)<5,AVERAGEIF(C305:C316,">0",I305:I316), IF(FORECAST($C301,I$305:I$316,$C$305:$C$316)<0,0, IF(FORECAST($C301,I$305:I$316,$C$305:$C$316)>100,100, FORECAST($C301,I$305:I$316,$C$305:$C$316)))) -> 34.41710746 | M301: =IF(MAX(C305:C316)-MIN(C305:C316)<5,AVERAGEIF(C305:C316,">0",M305:M316), IF(FORECAST($C301,M$305:M$316,$C$305:$C$316)<0,0, IF(FORECAST($C301,M$305:M$316,$C$305:$C$316)>100,100, FORECAST($C301,M$305:M$316,$C$305:$C$316)))) -> 16.16483447 | N301: =IF(MAX(C305:C316)-MIN(C305:C316)<5,AVERAGEIF(C305:C316,">0",N305:N316), IF(FORECAST($C301,N$305:N$316,$C$305:$C$316)<0,0, IF(FORECAST($C301,N$305:N$316,$C$305:$C$316)>100,100, FORECAST($C301,N$305:N$316,$C$305:$C$316)))) -> 25.49426706 | R301: =IF(MAX(C305:C316)-MIN(C305:C316)<5,AVERAGEIF(C305:C316,">0",R305:R316), IF(FORECAST($C301,R$305:R$316,$C$305:$C$316)<0,0, IF(FORECAST($C301,R$305:R$316,$C$305:$C$316)>100,100, FORECAST($C301,R$305:R$316,$C$305:$C$316)))) -> 9.046817553 | S301: =IF(MAX(C305:C316)-MIN(C305:C316)<5,AVERAGEIF(C305:C316,">0",S305:S316), IF(FORECAST($C301,S$305:S$316,$C$305:$C$316)<0,0, IF(FORECAST($C301,S$305:S$316,$C$305:$C$316)>100,100, FORECAST($C301,S$305:S$316,$C$305:$C$316)))) -> 31.98522016 | W301: =IF(MAX(C305:C316)-MIN(C305:C316)<5,AVERAGEIF(C305:C316,">0",W305:W316), IF(FORECAST($C301,W$305:W$316,$C$305:$C$316)<0,0, IF(FORECAST($C301,W$305:W$316,$C$305:$C$316)>100,100, FORECAST($C301,W$305:W$316,$C$305:$C$316)))) -> 4.158936764 | X301: =IF(MAX(C305:C316)-MIN(C305:C316)<5,AVERAGEIF(C305:C316,">0",X305:X316), IF(FORECAST($C301,X$305:X$316,$C$305:$C$316)<0,0, IF(FORECAST($C301,X$305:X$316,$C$305:$C$316)>100,100, FORECAST($C301,X$305:X$316,$C$305:$C$316)))) -> 58.4076315 | AB301: =IF(MAX(C305:C316)-MIN(C305:C316)<5,AVERAGEIF(C305:C316,">0",AB305:AB316), IF(FORECAST($C301,AB$305:AB$316,$C$305:$C$316)<0,0, IF(FORECAST($C301,AB$305:AB$316,$C$305:$C$316)>100,100, FORECAST($C301,AB$305:AB$316,$C$305:$C$316)))) -> 2.123758349
C302: =MaxRegYear(C300,C305:C316) -> 2020 | D302: =IF(MAX(C305:C316)-MIN(C305:C316)<5,AVERAGEIF(C305:C316,">0",D305:D316), IF(FORECAST($C302,D$305:D$316,$C$305:$C$316)<0,0, IF(FORECAST($C302,D$305:D$316,$C$305:$C$316)>100,100, FORECAST($C302,D$305:D$316,$C$305:$C$316)))) -> 6.049162888 | H302: =IF(MAX(C305:C316)-MIN(C305:C316)<5,AVERAGEIF(C305:C316,">0",H305:H316), IF(FORECAST($C302,H$305:H$316,$C$305:$C$316)<0,0, IF(FORECAST($C302,H$305:H$316,$C$305:$C$316)>100,100, FORECAST($C302,H$305:H$316,$C$305:$C$316)))) -> 34.27861743 | I302: =IF(MAX(C305:C316)-MIN(C305:C316)<5,AVERAGEIF(C305:C316,">0",I305:I316), IF(FORECAST($C302,I$305:I$316,$C$305:$C$316)<0,0, IF(FORECAST($C302,I$305:I$316,$C$305:$C$316)>100,100, FORECAST($C302,I$305:I$316,$C$305:$C$316)))) -> 11.73641571 | M302: =IF(MAX(C305:C316)-MIN(C305:C316)<5,AVERAGEIF(C305:C316,">0",M305:M316), IF(FORECAST($C302,M$305:M$316,$C$305:$C$316)<0,0, IF(FORECAST($C302,M$305:M$316,$C$305:$C$316)>100,100, FORECAST($C302,M$305:M$316,$C$305:$C$316)))) -> 19.04266374 | N302: =IF(MAX(C305:C316)-MIN(C305:C316)<5,AVERAGEIF(C305:C316,">0",N305:N316), IF(FORECAST($C302,N$305:N$316,$C$305:$C$316)<0,0, IF(FORECAST($C302,N$305:N$316,$C$305:$C$316)>100,100, FORECAST($C302,N$305:N$316,$C$305:$C$316)))) -> 22.4171696 | R302: =IF(MAX(C305:C316)-MIN(C305:C316)<5,AVERAGEIF(C305:C316,">0",R305:R316), IF(FORECAST($C302,R$305:R$316,$C$305:$C$316)<0,0, IF(FORECAST($C302,R$305:R$316,$C$305:$C$316)>100,100, FORECAST($C302,R$305:R$316,$C$305:$C$316)))) -> 5.312341738 | S302: =IF(MAX(C305:C316)-MIN(C305:C316)<5,AVERAGEIF(C305:C316,">0",S305:S316), IF(FORECAST($C302,S$305:S$316,$C$305:$C$316)<0,0, IF(FORECAST($C302,S$305:S$316,$C$305:$C$316)>100,100, FORECAST($C302,S$305:S$316,$C$305:$C$316)))) -> 37.10672814 | W302: =IF(MAX(C305:C316)-MIN(C305:C316)<5,AVERAGEIF(C305:C316,">0",W305:W316), IF(FORECAST($C302,W$305:W$316,$C$305:$C$316)<0,0, IF(FORECAST($C302,W$305:W$316,$C$305:$C$316)>100,100, FORECAST($C302,W$305:W$316,$C$305:$C$316)))) -> 2.689462678 | X302: =IF(MAX(C305:C316)-MIN(C305:C316)<5,AVERAGEIF(C305:C316,">0",X305:X316), IF(FORECAST($C302,X$305:X$316,$C$305:$C$316)<0,0, IF(FORECAST($C302,X$305:X$316,$C$305:$C$316)>100,100, FORECAST($C302,X$305:X$316,$C$305:$C$316)))) -> 63.39963435 | AB302: =IF(MAX(C305:C316)-MIN(C305:C316)<5,AVERAGEIF(C305:C316,">0",AB305:AB316), IF(FORECAST($C302,AB$305:AB$316,$C$305:$C$316)<0,0, IF(FORECAST($C302,AB$305:AB$316,$C$305:$C$316)>100,100, FORECAST($C302,AB$305:AB$316,$C$305:$C$316)))) -> 0.4368736867
B304: Survey | C304: Year | D304: Improved | E304: Not shared | H304: Open defecation | I304: Improved | J304: Not shared | M304: Open defecation | N304: Improved | O304: Not shared | R304: Open defecation | S304: Improved | T304: Not shared | W304: Open defecation | X304: Improved | Y304: Not shared | AB304: Open defecation
B305: MICS00 | C305: 2000 | D305: =IF(ISERROR(INDIRECT(CONCATENATE($B305,"!M122"))),"",INDIRECT(CONCATENATE($B305,"!M122"))) -> 24.96631608 | E305: =IF(ISERROR(INDIRECT(CONCATENATE($B305,"!M129"))),"",INDIRECT(CONCATENATE($B305,"!M129"))) -> N/A | H305: =IF(ISERROR(INDIRECT(CONCATENATE($B305,"!M127"))),"",INDIRECT(CONCATENATE($B305,"!M127"))) -> 15.10107015 | I305: =IF(ISERROR(INDIRECT(CONCATENATE($B305,"!N122"))),"",INDIRECT(CONCATENATE($B305,"!N122"))) -> 32.29090223 | J305: =IF(ISERROR(INDIRECT(CONCATENATE($B305,"!N129"))),"",INDIRECT(CONCATENATE($B305,"!N129"))) -> N/A | M305: =IF(ISERROR(INDIRECT(CONCATENATE($B305,"!N127"))),"",INDIRECT(CONCATENATE($B305,"!N127"))) -> 12.15334421 | N305: =IF(ISERROR(INDIRECT(CONCATENATE($B305,"!O122"))),"",INDIRECT(CONCATENATE($B305,"!O122"))) -> 26.31622291 | O305: =IF(ISERROR(INDIRECT(CONCATENATE($B305,"!O129"))),"",INDIRECT(CONCATENATE($B305,"!O129"))) -> N/A | R305: =IF(ISERROR(INDIRECT(CONCATENATE($B305,"!O127"))),"",INDIRECT(CONCATENATE($B305,"!O127"))) -> 6.043329532 | S305: =IF(ISERROR(INDIRECT(CONCATENATE($B305,"!P122"))),"",INDIRECT(CONCATENATE($B305,"!P122"))) -> 35.02651686 | T305: =IF(ISERROR(INDIRECT(CONCATENATE($B305,"!P129"))),"",INDIRECT(CONCATENATE($B305,"!P129"))) -> N/A | W305: =IF(ISERROR(INDIRECT(CONCATENATE($B305,"!P127"))),"",INDIRECT(CONCATENATE($B305,"!P127"))) -> 3.512880562 | X305: =IF(ISERROR(INDIRECT(CONCATENATE($B305,"!Q122"))),"",INDIRECT(CONCATENATE($B305,"!Q122"))) -> 62.47945053 | Y305: =IF(ISERROR(INDIRECT(CONCATENATE($B305,"!Q129"))),"",INDIRECT(CONCATENATE($B305,"!Q129"))) -> N/A | AB305: =IF(ISERROR(INDIRECT(CONCATENATE($B305,"!Q2127"))),"",INDIRECT(CONCATENATE($B305,"!Q127"))) -> 1.798561151
B306: DHS04 | C306: 2004 | D306: 21.88795869 | E306: N/A | H306: 25.08705153 | I306: 30.39026192 | J306: N/A | M306: 18.09839687 | N306: 24.27620689 | O306: N/A | R306: 13.64806427 | S306: 32.95284295 | T306: N/A | W306: 3.566804255 | X306: 57.53127742 | Y306: N/A | AB306: 2.242111226
B307: MICS06 | C307: 2006 | D307: 18.18433666 | E307: 90.08728925 | H307: 37.4417763 | I307: 29.90477707 | J307: 79.98254641 | M307: 19.18562183 | N307: 25.90569137 | O307: 82.54985323 | R307: 6.100747818 | S307: 31.82109029 | T307: 72.33553825 | W307: 4.947640933 | X307: 58.1551163 | Y307: 62.65554837 | AB307: 1.263552471
B308: DHS11 | C308: 2011 | D308: 20.15263629 | E308: 92.75634483 | H308: 30.68407989 | I308: 29.81684279 | J308: 91.53442123 | M308: 19.51175652 | N308: 26.33646711 | O308: 75.44246964 | R308: 6.630387177 | S308: 33.55241598 | T308: 72.10429948 | W308: 2.304853925 | X308: 57.6370564 | Y308: 69.33920337 | AB308: 1.785715727
B309: MICS14 | C309: 2014 | D309: 3.3065481 | E309: 72.38388126 | H309: 31.10788271 | I309: 6.534858839 | J309: 85.39111128 | M309: 20.91706251 | N309: 14.49958356 | O309: 69.36417147 | R309: 7.128353387 | S309: 30.60431229 | T309: 58.21409912 | W309: 4.956606264 | X309: 62.22956952 | Y309: 66.80441353 | AB309: 0.7886739507
B310: DHS19 | C310: 2019 | D310: 10.13796483 | E310: 94.70555555 | H310: 29.3266554 | I310: 16.32713418 | J310: 95.92122323 | M310: 14.89296392 | N310: 27.32326736 | O310: 83.33371349 | R310: 4.646938436 | S310: 41.78221413 | T310: 80.85981566 | W310: 1.697254611 | X310: 65.89172652 | Y310: 79.59993875 | AB310: 0.3093469813
B318: =CONCATENATE("Rural use of sanitation facilities, ",C299,"–",C300) -> Rural use of sanitation facilities, 2000–2020 | S318: Data points used for regression

Sheet Hygiene
B4: Access to hygiene facilities by wealth quintile (%)
B5: =IF(ISERROR(INDIRECT(CONCATENATE($E$32,"!A2"))),"",INDIRECT(CONCATENATE($E$32,"!A2"))) -> 
B7: =CONCATENATE("National ",IF(ISERROR(INDIRECT(CONCATENATE($E$32,"!A2"))),"",INDIRECT(CONCATENATE($E$32,"!A210")))) -> National | K7: =CONCATENATE("Urban ",IF(ISERROR(INDIRECT(CONCATENATE($E$32,"!A2"))),"",INDIRECT(CONCATENATE($E$32,"!A210")))) -> Urban | S7: =CONCATENATE("Rural ",IF(ISERROR(INDIRECT(CONCATENATE($E$32,"!A2"))),"",INDIRECT(CONCATENATE($E$32,"!A210")))) -> Rural
E32: =INDEX(B88:B100,A88) -> 0 | G32: =IF(ISERROR(INDIRECT(CONCATENATE($E$32,"!A2"))),"",INDIRECT(CONCATENATE($E$32,"!A2"))) ->  | K32: Poorest | N32: Poor | Q32: Middle | T32: Rich | W32: Richest
K33: Basic | L33: Limited | M33: No facility | N33: Basic | O33: Limited | P33: No facility | Q33: Basic | R33: Limited | S33: No facility | T33: Basic | U33: Limited | V33: No facility | W33: Basic | X33: Limited | Y33: No facility
B34: >>> Select Survey : | G34: NATIONAL | J34: =IF(ISERROR(INDIRECT(CONCATENATE(#REF!,"!A2"))),"",INDIRECT(CONCATENATE(#REF!,"!A210"))) ->  | K34: =IF(ISERROR(INDIRECT(CONCATENATE($E$32,"!C222"))),"",INDIRECT(CONCATENATE($E$32,"!C222"))) ->  | L34: =IF(ISERROR(INDIRECT(CONCATENATE($E$32,"!C223"))),"",INDIRECT(CONCATENATE($E$32,"!C223"))) ->  | M34: =IF(ISERROR(INDIRECT(CONCATENATE($E$32,"!C224"))),"",INDIRECT(CONCATENATE($E$32,"!C224"))) ->  | N34: =IF(ISERROR(INDIRECT(CONCATENATE($E$32,"!D222"))),"",INDIRECT(CONCATENATE($E$32,"!D222"))) ->  | O34: =IF(ISERROR(INDIRECT(CONCATENATE($E$32,"!D223"))),"",INDIRECT(CONCATENATE($E$32,"!D223"))) ->  | P34: =IF(ISERROR(INDIRECT(CONCATENATE($E$32,"!D224"))),"",INDIRECT(CONCATENATE($E$32,"!D224"))) ->  | Q34: =IF(ISERROR(INDIRECT(CONCATENATE($E$32,"!E222"))),"",INDIRECT(CONCATENATE($E$32,"!E222"))) ->  | R34: =IF(ISERROR(INDIRECT(CONCATENATE($E$32,"!E223"))),"",INDIRECT(CONCATENATE($E$32,"!E223"))) ->  | S34: =IF(ISERROR(INDIRECT(CONCATENATE($E$32,"!E224"))),"",INDIRECT(CONCATENATE($E$32,"!E224"))) ->  | T34: =IF(ISERROR(INDIRECT(CONCATENATE($E$32,"!F222"))),"",INDIRECT(CONCATENATE($E$32,"!F222"))) ->  | U34: =IF(ISERROR(INDIRECT(CONCATENATE($E$32,"!F223"))),"",INDIRECT(CONCATENATE($E$32,"!F223"))) ->  | V34: =IF(ISERROR(INDIRECT(CONCATENATE($E$32,"!F224"))),"",INDIRECT(CONCATENATE($E$32,"!F224"))) ->  | W34: =IF(ISERROR(INDIRECT(CONCATENATE($E$32,"!G222"))),"",INDIRECT(CONCATENATE($E$32,"!G222"))) ->  | X34: =IF(ISERROR(INDIRECT(CONCATENATE($E$32,"!G223"))),"",INDIRECT(CONCATENATE($E$32,"!G223"))) ->  | Y34: =IF(ISERROR(INDIRECT(CONCATENATE($E$32,"!G224"))),"",INDIRECT(CONCATENATE($E$32,"!G224"))) -> 
G37: URBAN | J37: =IF(ISERROR(INDIRECT(CONCATENATE(#REF!,"!A2"))),"",INDIRECT(CONCATENATE(#REF!,"!A210"))) ->  | K37: =IF(ISERROR(INDIRECT(CONCATENATE($E$32,"!H222"))),"",INDIRECT(CONCATENATE($E$32,"!H222"))) ->  | L37: =IF(ISERROR(INDIRECT(CONCATENATE($E$32,"!H223"))),"",INDIRECT(CONCATENATE($E$32,"!H223"))) ->  | M37: =IF(ISERROR(INDIRECT(CONCATENATE($E$32,"!H224"))),"",INDIRECT(CONCATENATE($E$32,"!H224"))) ->  | N37: =IF(ISERROR(INDIRECT(CONCATENATE($E$32,"!I222"))),"",INDIRECT(CONCATENATE($E$32,"!I222"))) ->  | O37: =IF(ISERROR(INDIRECT(CONCATENATE($E$32,"!I223"))),"",INDIRECT(CONCATENATE($E$32,"!I223"))) ->  | P37: =IF(ISERROR(INDIRECT(CONCATENATE($E$32,"!I224"))),"",INDIRECT(CONCATENATE($E$32,"!I224"))) ->  | Q37: =IF(ISERROR(INDIRECT(CONCATENATE($E$32,"!J222"))),"",INDIRECT(CONCATENATE($E$32,"!J222"))) ->  | R37: =IF(ISERROR(INDIRECT(CONCATENATE($E$32,"!J223"))),"",INDIRECT(CONCATENATE($E$32,"!J223"))) ->  | S37: =IF(ISERROR(INDIRECT(CONCATENATE($E$32,"!J224"))),"",INDIRECT(CONCATENATE($E$32,"!J224"))) ->  | T37: =IF(ISERROR(INDIRECT(CONCATENATE($E$32,"!K222"))),"",INDIRECT(CONCATENATE($E$32,"!K222"))) ->  | U37: =IF(ISERROR(INDIRECT(CONCATENATE($E$32,"!K223"))),"",INDIRECT(CONCATENATE($E$32,"!K223"))) ->  | V37: =IF(ISERROR(INDIRECT(CONCATENATE($E$32,"!K224"))),"",INDIRECT(CONCATENATE($E$32,"!K224"))) ->  | W37: =IF(ISERROR(INDIRECT(CONCATENATE($E$32,"!L222"))),"",INDIRECT(CONCATENATE($E$32,"!L222"))) ->  | X37: =IF(ISERROR(INDIRECT(CONCATENATE($E$32,"!L223"))),"",INDIRECT(CONCATENATE($E$32,"!L223"))) ->  | Y37: =IF(ISERROR(INDIRECT(CONCATENATE($E$32,"!L224"))),"",INDIRECT(CONCATENATE($E$32,"!L224"))) -> 
G40: RURAL | J40: =IF(ISERROR(INDIRECT(CONCATENATE(#REF!,"!A2"))),"",INDIRECT(CONCATENATE(#REF!,"!A210"))) ->  | K40: =IF(ISERROR(INDIRECT(CONCATENATE($E$32,"!M222"))),"",INDIRECT(CONCATENATE($E$32,"!M222"))) ->  | L40: =IF(ISERROR(INDIRECT(CONCATENATE($E$32,"!M223"))),"",INDIRECT(CONCATENATE($E$32,"!M223"))) ->  | M40: =IF(ISERROR(INDIRECT(CONCATENATE($E$32,"!M224"))),"",INDIRECT(CONCATENATE($E$32,"!M224"))) ->  | N40: =IF(ISERROR(INDIRECT(CONCATENATE($E$32,"!N222"))),"",INDIRECT(CONCATENATE($E$32,"!N222"))) ->  | O40: =IF(ISERROR(INDIRECT(CONCATENATE($E$32,"!N223"))),"",INDIRECT(CONCATENATE($E$32,"!N223"))) ->  | P40: =IF(ISERROR(INDIRECT(CONCATENATE($E$32,"!N224"))),"",INDIRECT(CONCATENATE($E$32,"!N224"))) ->  | Q40: =IF(ISERROR(INDIRECT(CONCATENATE($E$32,"!O222"))),"",INDIRECT(CONCATENATE($E$32,"!O222"))) ->  | R40: =IF(ISERROR(INDIRECT(CONCATENATE($E$32,"!O223"))),"",INDIRECT(CONCATENATE($E$32,"!O223"))) ->  | S40: =IF(ISERROR(INDIRECT(CONCATENATE($E$32,"!O224"))),"",INDIRECT(CONCATENATE($E$32,"!O224"))) ->  | T40: =IF(ISERROR(INDIRECT(CONCATENATE($E$32,"!P222"))),"",INDIRECT(CONCATENATE($E$32,"!P222"))) ->  | U40: =IF(ISERROR(INDIRECT(CONCATENATE($E$32,"!P223"))),"",INDIRECT(CONCATENATE($E$32,"!P223"))) ->  | V40: =IF(ISERROR(INDIRECT(CONCATENATE($E$32,"!P224"))),"",INDIRECT(CONCATENATE($E$32,"!P224"))) ->  | W40: =IF(ISERROR(INDIRECT(CONCATENATE($E$32,"!Q222"))),"",INDIRECT(CONCATENATE($E$32,"!Q222"))) ->  | X40: =IF(ISERROR(INDIRECT(CONCATENATE($E$32,"!Q223"))),"",INDIRECT(CONCATENATE($E$32,"!Q223"))) ->  | Y40: =IF(ISERROR(INDIRECT(CONCATENATE($E$32,"!Q224"))),"",INDIRECT(CONCATENATE($E$32,"!Q224"))) -> 
A88: 2 | B88: Template

Sheet MICS00
A2: =A1026 -> Cameroon
A3: =A1034 -> 2000
A4: Use of drinking water sources
A5: by wealth quintile and sub-national region
A6: Notes:
A7: WHO/UNICEF JMP customised wealth index excludes water,
A8: sanitation and hygiene assets.
A9: Survey used for analysis: | B9: =A1025 -> MICS00
A10: =B1028 -> 
A11: =B1027 -> 
A14: Use of drinking water sources | C14: NATIONAL wealth index quintile | H14: URBAN wealth index quintile | M14: RURAL wealth index quintile | R14: SUB-REGIONS: | BA14: Raw numbers of respondents: | BB14: Use of drinking water sources | BC14: NATIONAL wealth index quintile | BH14: URBAN wealth index quintile | BM14: RURAL wealth index quintile | BR14: SUB-REGIONS:
A15: Weighted percentage (used in graphs) | C15: Poorest | D15: Poor | E15: Middle | F15: Rich | G15: Richest | H15: Poorest | I15: Poor | J15: Middle | K15: Rich | L15: Richest | M15: Poorest | N15: Poor | O15: Middle | P15: Rich | Q15: Richest | R15: adamaoua | S15: centre sans yde | T15: douala | U15: est | V15: extreme nord | W15: littoral sans dla | X15: nord | Y15: nord ouest | Z15: ouest | AA15: sud | AB15: sud ouest | AC15: yaounde | BA15: Water data, raw numbers (weighted) | BC15: Poorest | BD15: Poor | BE15: Middle | BF15: Rich | BG15: Richest | BH15: Poorest | BI15: Poor | BJ15: Middle | BK15: Rich | BL15: Richest | BM15: Poorest | BN15: Poor | BO15: Middle | BP15: Rich | BQ15: Richest | BR15: adamaoua | BS15: centre sans yde | BT15: douala | BU15: est | BV15: extreme nord | BW15: littoral sans dla | BX15: nord | BY15: nord ouest | BZ15: ouest | CA15: sud | CB15: sud ouest | CC15: yaounde
A16: Water | B16: Improved | C16: 33.64990358 | D16: 33.08176869 | E16: 54.0079643 | F16: 67.81642491 | G16: 89.80749583 | H16: 67.83685365 | I16: 87.59711441 | J16: 87.10363593 | K16: 92.9881609 | L16: 97.21589018 | M16: 29.88505747 | N16: 29.44535073 | O16: 36.52603573 | P16: 48.63387978 | Q16: 52.71782574 | R16: 61.42646759 | S16: 41.88114183 | T16: 93.66174056 | U16: 30.23064775 | V16: 65.68366772 | W16: 69.72837351 | X16: 30.34401435 | Y16: 43.61051896 | Z16: 43.92946407 | AA16: 53.56863481 | AB16: 69.51813041 | AC16: 98.43551797 | BA16: Water | BB16: Improved | BC16: N/A | BD16: N/A | BE16: N/A | BF16: N/A | BG16: N/A | BH16: N/A | BI16: N/A | BJ16: N/A | BK16: N/A | BL16: N/A | BM16: N/A | BN16: N/A | BO16: N/A | BP16: N/A | BQ16: N/A | BR16: N/A | BS16: N/A | BT16: N/A | BU16: N/A | BV16: N/A | BW16: N/A | BX16: N/A | BY16: N/A | BZ16: N/A | CA16: N/A | CB16: N/A | CC16: N/A
B17: Not Improved | C17: 66.35009642 | D17: 66.91823131 | E17: 45.9920357 | F17: 32.18357509 | G17: 10.19250417 | H17: 32.16314635 | I17: 12.40288559 | J17: 12.89636407 | K17: 7.011839103 | L17: 2.78410982 | M17: 70.11494253 | N17: 70.55464927 | O17: 63.47396427 | P17: 51.36612022 | Q17: 47.28217426 | R17: 38.57353241 | S17: 58.11885817 | T17: 6.338259442 | U17: 69.76935225 | V17: 34.31633228 | W17: 30.27162649 | X17: 69.65598565 | Y17: 56.38948104 | Z17: 56.07053593 | AA17: 46.43136519 | AB17: 30.48186959 | AC17: 1.56448203 | BB17: Not Improved | BC17: N/A | BD17: N/A | BE17: N/A | BF17: N/A | BG17: N/A | BH17: N/A | BI17: N/A | BJ17: N/A | BK17: N/A | BL17: N/A | BM17: N/A | BN17: N/A | BO17: N/A | BP17: N/A | BQ17: N/A | BR17: N/A | BS17: N/A | BT17: N/A | BU17: N/A | BV17: N/A | BW17: N/A | BX17: N/A | BY17: N/A | BZ17: N/A | CA17: N/A | CB17: N/A | CC17: N/A
A18: Water ladder | B18: Basic | C18: =C16*C23/100 -> 29.04992491 | D18: =D16*D23/100 -> 27.29409765 | E18: =E16*E23/100 -> 47.6147697 | F18: 62.30361805 | G18: 86.93745477 | H18: 61.0456006 | I18: 82.4533811 | J18: 81.7935043 | K18: 88.96108787 | L18: 95.86600013 | M18: 25.52516845 | N18: 24.34747145 | O18: 29.45648043 | P18: 43.754879 | Q18: 47.72182254 | R18: 59.30133014 | S18: 34.58804195 | T18: 87.75041051 | U18: 24.36365142 | V18: 58.24299591 | W18: 64.49576798 | X18: 28.3939506 | Y18: 42.64820563 | Z18: 37.98411727 | AA18: 42.81786776 | AB18: 66.71435649 | AC18: 96.10993658 | BA18: Water ladder | BB18: Basic | BC18: N/A | BD18: N/A | BE18: N/A | BF18: N/A | BG18: N/A | BH18: N/A | BI18: N/A | BJ18: N/A | BK18: N/A | BL18: N/A | BM18: N/A | BN18: N/A | BO18: N/A | BP18: N/A | BQ18: N/A | BR18: N/A | BS18: N/A | BT18: N/A | BU18: N/A | BV18: N/A | BW18: N/A | BX18: N/A | BY18: N/A | BZ18: N/A | CA18: N/A | CB18: N/A | CC18: N/A
B19: Limited | C19: =C16*C22/100 -> 4.599978675 | D19: =D16*D22/100 -> 5.78767104 | E19: =E16*E22/100 -> 6.393194605 | F19: 5.512806863 | G19: 2.870041056 | H19: 6.791253049 | I19: 5.143733304 | J19: 5.310131637 | K19: 4.027073024 | L19: 1.349890046 | M19: 4.359889021 | N19: 5.097879282 | O19: 7.069555302 | P19: 4.879000781 | Q19: 4.996003197 | R19: 2.125137447 | S19: 7.293099882 | T19: 5.911330049 | U19: 5.866996325 | V19: 7.440671801 | W19: 5.232605525 | X19: 1.950063756 | Y19: 0.9623133293 | Z19: 5.945346799 | AA19: 10.75076706 | AB19: 2.803773912 | AC19: 2.325581395 | BB19: Limited | BC19: N/A | BD19: N/A | BE19: N/A | BF19: N/A | BG19: N/A | BH19: N/A | BI19: N/A | BJ19: N/A | BK19: N/A | BL19: N/A | BM19: N/A | BN19: N/A | BO19: N/A | BP19: N/A | BQ19: N/A | BR19: N/A | BS19: N/A | BT19: N/A | BU19: N/A | BV19: N/A | BW19: N/A | BX19: N/A | BY19: N/A | BZ19: N/A | CA19: N/A | CB19: N/A | CC19: N/A
B20: Unimproved | C20: =100-C18-C19-C21 -> 46.08721966 | D20: =100-D18-D19-D21 -> 48.27997966 | E20: =100-E18-E19-E21 -> 32.46925079 | F20: 23.84127519 | G20: 9.183843133 | H20: 29.76075617 | I20: 11.58276413 | J20: 12.37944272 | K20: 7.011839103 | L20: 2.78410982 | M20: 48.47403884 | N20: 45.35073409 | O20: 49.52489548 | P20: 33.56752537 | Q20: 33.25339728 | R20: 14.25251497 | S20: 51.80984271 | T20: 6.338259442 | U20: 67.82322199 | V20: 21.68111702 | W20: 27.4922754 | X20: 67.3203444 | Y20: 6.86603591 | Z20: 34.89234207 | AA20: 34.06335439 | AB20: 20.56497949 | AC20: 1.56448203 | BB20: Unimproved | BC20: N/A | BD20: N/A | BE20: N/A | BF20: N/A | BG20: N/A | BH20: N/A | BI20: N/A | BJ20: N/A | BK20: N/A | BL20: N/A | BM20: N/A | BN20: N/A | BO20: N/A | BP20: N/A | BQ20: N/A | BR20: N/A | BS20: N/A | BT20: N/A | BU20: N/A | BV20: N/A | BW20: N/A | BX20: N/A | BY20: N/A | BZ20: N/A | CA20: N/A | CB20: N/A | CC20: N/A
B21: Surface water | C21: 20.26287676 | D21: 18.63825166 | E21: 13.52278491 | F21: 8.342299897 | G21: 1.008661042 | H21: 2.402390182 | I21: 0.8201214668 | J21: 0.5169213431 | K21: 0 | L21: 0 | M21: 21.64090369 | N21: 25.20391517 | O21: 13.9490688 | P21: 17.79859485 | Q21: 14.02877698 | R21: 24.32101745 | S21: 6.309015458 | T21: 0 | U21: 1.946130263 | V21: 12.63521527 | W21: 2.779351095 | X21: 2.335641241 | Y21: 49.52344513 | Z21: 21.17819386 | AA21: 12.36801079 | AB21: 9.916890108 | AC21: 0 | BB21: Surface water | BC21: N/A | BD21: N/A | BE21: N/A | BF21: N/A | BG21: N/A | BH21: N/A | BI21: N/A | BJ21: N/A | BK21: N/A | BL21: N/A | BM21: N/A | BN21: N/A | BO21: N/A | BP21: N/A | BQ21: N/A | BR21: N/A | BS21: N/A | BT21: N/A | BU21: N/A | BV21: N/A | BW21: N/A | BX21: N/A | BY21: N/A | BZ21: N/A | CA21: N/A | CB21: N/A | CC21: N/A
A22: Improved water point at more than 30 minutes | B22: Yes | C22: 13.67010953 | D22: 17.49504718 | E22: 11.83750339 | F22: 8.129014276 | G22: 3.195770052 | H22: 10.01115571 | I22: 5.872035099 | J22: 6.096337518 | K22: 4.33073736 | L22: 1.388548768 | M22: 14.58885942 | N22: 17.31301939 | O22: 19.35483871 | P22: 10.03210273 | Q22: 9.476876422 | R22: 3.459644565 | S22: 17.41380383 | T22: 6.311360449 | U22: 19.40744497 | V22: 11.32803946 | W22: 7.504270158 | X22: 6.426518696 | Y22: 2.206608296 | Z22: 13.53384778 | AA22: 20.06914512 | AB22: 4.033154942 | AC22: 2.362542955 | BA22: Improved water point at more than 30 minutes | BB22: Yes | BC22: N/A | BD22: N/A | BE22: N/A | BF22: N/A | BG22: N/A | BH22: N/A | BI22: N/A | BJ22: N/A | BK22: N/A | BL22: N/A | BM22: N/A | BN22: N/A | BO22: N/A | BP22: N/A | BQ22: N/A | BR22: N/A | BS22: N/A | BT22: N/A | BU22: N/A | BV22: N/A | BW22: N/A | BX22: N/A | BY22: N/A | BZ22: N/A | CA22: N/A | CB22: N/A | CC22: N/A
B23: No | C23: 86.32989047 | D23: 82.50495282 | E23: 88.16249661 | F23: 91.87098572 | G23: 96.80422995 | H23: 89.98884429 | I23: 94.1279649 | J23: 93.90366248 | K23: 95.66926264 | L23: 98.61145123 | M23: 85.41114058 | N23: 82.68698061 | O23: 80.64516129 | P23: 89.96789727 | Q23: 90.52312358 | R23: 96.54035544 | S23: 82.58619617 | T23: 93.68863955 | U23: 80.59255503 | V23: 88.67196054 | W23: 92.49572984 | X23: 93.5734813 | Y23: 97.7933917 | Z23: 86.46615222 | AA23: 79.93085488 | AB23: 95.96684506 | AC23: 97.63745704 | BB23: No | BC23: N/A | BD23: N/A | BE23: N/A | BF23: N/A | BG23: N/A | BH23: N/A | BI23: N/A | BJ23: N/A | BK23: N/A | BL23: N/A | BM23: N/A | BN23: N/A | BO23: N/A | BP23: N/A | BQ23: N/A | BR23: N/A | BS23: N/A | BT23: N/A | BU23: N/A | BV23: N/A | BW23: N/A | BX23: N/A | BY23: N/A | BZ23: N/A | CA23: N/A | CB23: N/A | CC23: N/A
A24: Manually calculated ratios | B24: Improved wells
B25: Improved springs
B26: Other
C27: NATIONAL wealth index quintile | H27: URBAN wealth index quintile | M27: RURAL wealth index quintile | R27: SUB-REGIONS: | BA27: Raw numbers of respondents: | BB27: Use of drinking water sources | BC27: NATIONAL wealth index quintile | BH27: URBAN wealth index quintile | BM27: RURAL wealth index quintile | BR27: SUB-REGIONS:
A28: Percentage based on weighted population | C28: Poorest | D28: Poor | E28: Middle | F28: Rich | G28: Richest | H28: Poorest | I28: Poor | J28: Middle | K28: Rich | L28: Richest | M28: Poorest | N28: Poor | O28: Middle | P28: Rich | Q28: Richest | R28: adamaoua | S28: centre sans yde | T28: douala | U28: est | V28: extreme nord | W28: littoral sans dla | X28: nord | Y28: nord ouest | Z28: ouest | AA28: sud | AB28: sud ouest | AC28: yaounde | BA28: Water data, raw numbers (weighted) | BC28: Poorest | BD28: Poor | BE28: Middle | BF28: Rich | BG28: Richest | BH28: Poorest | BI28: Poor | BJ28: Middle | BK28: Rich | BL28: Richest | BM28: Poorest | BN28: Poor | BO28: Middle | BP28: Rich | BQ28: Richest | BR28: adamaoua | BS28: centre sans yde | BT28: douala | BU28: est | BV28: extreme nord | BW28: littoral sans dla | BX28: nord | BY28: nord ouest | BZ28: ouest | CA28: sud | CB28: sud ouest | CC28: yaounde
A29: Piped water | B29: Yes | C29: 10.46841426 | D29: 8.419308447 | E29: 18.79434175 | F29: 43.10542138 | G29: 73.45796062 | H29: 41.0728542 | I29: 68.9607727 | J29: 66.22855667 | K29: 79.58704673 | L29: 90.58127041 | M29: 7.5307174 | N29: 7.626427406 | O29: 4.713036868 | P29: 13.38797814 | Q29: 20.34372502 | R29: 29.77713026 | S29: 9.038512152 | T29: 82.20032841 | U29: 6.622037245 | V29: 14.84544756 | W29: 60.91620403 | X29: 11.21028923 | Y29: 36.6305252 | Z29: 30.77603032 | AA29: 0 | AB29: 49.72300539 | AC29: 90.27484144 | BA29: Piped water | BB29: Yes | BC29: N/A | BD29: N/A | BE29: N/A | BF29: N/A | BG29: N/A | BH29: N/A | BI29: N/A | BJ29: N/A | BK29: N/A | BL29: N/A | BM29: N/A | BN29: N/A | BO29: N/A | BP29: N/A | BQ29: N/A | BR29: N/A | BS29: N/A | BT29: N/A | BU29: N/A | BV29: N/A | BW29: N/A | BX29: N/A | BY29: N/A | BZ29: N/A | CA29: N/A | CB29: N/A | CC29: N/A
B30: No | C30: 89.53158574 | D30: 91.58069155 | E30: 81.20565825 | F30: 56.89457862 | G30: 26.54203938 | H30: 58.9271458 | I30: 31.0392273 | J30: 33.77144333 | K30: 20.41295327 | L30: 9.418729594 | M30: 92.4692826 | N30: 92.37357259 | O30: 95.28696313 | P30: 86.61202186 | Q30: 79.65627498 | R30: 70.22286974 | S30: 90.96148785 | T30: 17.79967159 | U30: 93.37796276 | V30: 85.15455244 | W30: 39.08379597 | X30: 88.78971077 | Y30: 63.3694748 | Z30: 69.22396968 | AA30: 100 | AB30: 50.27699461 | AC30: 9.725158562 | BB30: No | BC30: N/A | BD30: N/A | BE30: N/A | BF30: N/A | BG30: N/A | BH30: N/A | BI30: N/A | BJ30: N/A | BK30: N/A | BL30: N/A | BM30: N/A | BN30: N/A | BO30: N/A | BP30: N/A | BQ30: N/A | BR30: N/A | BS30: N/A | BT30: N/A | BU30: N/A | BV30: N/A | BW30: N/A | BX30: N/A | BY30: N/A | BZ30: N/A | CA30: N/A | CB30: N/A | CC30: N/A
A31: Piped water on premises | B31: Yes | C31: 0.1403026339 | D31: 0.5372041938 | E31: 1.348971625 | F31: 7.189040582 | G31: 38.93830464 | H31: 3.77602948 | I31: 12.5311203 | J31: 16.25470591 | K31: 43.41264785 | L31: 56.4047767 | M31: 0 | N31: 0.08156606852 | O31: 0.4180919802 | P31: 0.3512880562 | Q31: 3.117505995 | R31: 13.6897335 | S31: 5.739654477 | T31: 30.64039409 | U31: 4.865567692 | V31: 2.488176019 | W31: 15.10401775 | X31: 3.000960403 | Y31: 9.461981342 | Z31: 10.99613195 | AA31: 0 | AB31: 7.120524696 | AC31: 37.6744186 | BA31: Piped water on premises | BB31: Yes | BC31: N/A | BD31: N/A | BE31: N/A | BF31: N/A | BG31: N/A | BH31: N/A | BI31: N/A | BJ31: N/A | BK31: N/A | BL31: N/A | BM31: N/A | BN31: N/A | BO31: N/A | BP31: N/A | BQ31: N/A | BR31: N/A | BS31: N/A | BT31: N/A | BU31: N/A | BV31: N/A | BW31: N/A | BX31: N/A | BY31: N/A | BZ31: N/A | CA31: N/A | CB31: N/A | CC31: N/A
B32: No | C32: 99.85969737 | D32: 99.46279581 | E32: 98.65102837 | F32: 92.81095942 | G32: 61.06169536 | H32: 96.22397052 | I32: 87.4688797 | J32: 83.74529409 | K32: 56.58735215 | L32: 43.5952233 | M32: 100 | N32: 99.91843393 | O32: 99.58190802 | P32: 99.64871194 | Q32: 96.882494 | R32: 86.3102665 | S32: 94.26034552 | T32: 69.35960591 | U32: 95.13443231 | V32: 97.51182398 | W32: 84.89598225 | X32: 96.9990396 | Y32: 90.53801866 | Z32: 89.00386805 | AA32: 100 | AB32: 92.8794753 | AC32: 62.3255814 | BB32: No | BC32: N/A | BD32: N/A | BE32: N/A | BF32: N/A | BG32: N/A | BH32: N/A | BI32: N/A | BJ32: N/A | BK32: N/A | BL32: N/A | BM32: N/A | BN32: N/A | BO32: N/A | BP32: N/A | BQ32: N/A | BR32: N/A | BS32: N/A | BT32: N/A | BU32: N/A | BV32: N/A | BW32: N/A | BX32: N/A | BY32: N/A | BZ32: N/A | CA32: N/A | CB32: N/A | CC32: N/A
A33: Piped water into dwelling | B33: Yes | C33: N/A | D33: N/A | E33: N/A | F33: N/A | G33: N/A | H33: N/A | I33: N/A | J33: N/A | K33: N/A | L33: N/A | M33: N/A | N33: N/A | O33: N/A | P33: N/A | Q33: N/A | R33: N/A | S33: N/A | T33: N/A | U33: N/A | V33: N/A | W33: N/A | X33: N/A | Y33: N/A | Z33: N/A | AA33: N/A | AB33: N/A | AC33: N/A | BA33: Piped water into dwelling | BB33: Yes | BC33: N/A | BD33: N/A | BE33: N/A | BF33: N/A | BG33: N/A | BH33: N/A | BI33: N/A | BJ33: N/A | BK33: N/A | BL33: N/A | BM33: N/A | BN33: N/A | BO33: N/A | BP33: N/A | BQ33: N/A | BR33: N/A | BS33: N/A | BT33: N/A | BU33: N/A | BV33: N/A | BW33: N/A | BX33: N/A | BY33: N/A | BZ33: N/A | CA33: N/A | CB33: N/A | CC33: N/A
B34: No | C34: N/A | D34: N/A | E34: N/A | F34: N/A | G34: N/A | H34: N/A | I34: N/A | J34: N/A | K34: N/A | L34: N/A | M34: N/A | N34: N/A | O34: N/A | P34: N/A | Q34: N/A | R34: N/A | S34: N/A | T34: N/A | U34: N/A | V34: N/A | W34: N/A | X34: N/A | Y34: N/A | Z34: N/A | AA34: N/A | AB34: N/A | AC34: N/A | BB34: No | BC34: N/A | BD34: N/A | BE34: N/A | BF34: N/A | BG34: N/A | BH34: N/A | BI34: N/A | BJ34: N/A | BK34: N/A | BL34: N/A | BM34: N/A | BN34: N/A | BO34: N/A | BP34: N/A | BQ34: N/A | BR34: N/A | BS34: N/A | BT34: N/A | BU34: N/A | BV34: N/A | BW34: N/A | BX34: N/A | BY34: N/A | BZ34: N/A | CA34: N/A | CB34: N/A | CC34: N/A
A35: Water source on premises | B35: Yes | C35: 4.768564886 | D35: 6.22978846 | E35: 8.265125721 | F35: 14.94003056 | G35: 43.22352992 | H35: 13.0789021 | I35: 18.57951612 | J35: 23.54329685 | K35: 48.20304561 | L35: 56.69422102 | M35: 3.408640507 | N35: 5.913539967 | O35: 5.625237552 | P35: 6.518345043 | Q35: 12.62989608 | R35: 31.39548109 | S35: 8.805712043 | T35: 30.77175698 | U35: 7.470824725 | V35: 16.67927782 | W35: 15.98170757 | X35: 22.50072014 | Y35: 9.81145297 | Z35: 11.49237623 | AA35: 5.44824144 | AB35: 9.634022189 | AC35: 37.7167019 | BA35: Water source on premises | BB35: Yes | BC35: N/A | BD35: N/A | BE35: N/A | BF35: N/A | BG35: N/A | BH35: N/A | BI35: N/A | BJ35: N/A | BK35: N/A | BL35: N/A | BM35: N/A | BN35: N/A | BO35: N/A | BP35: N/A | BQ35: N/A | BR35: N/A | BS35: N/A | BT35: N/A | BU35: N/A | BV35: N/A | BW35: N/A | BX35: N/A | BY35: N/A | BZ35: N/A | CA35: N/A | CB35: N/A | CC35: N/A
B36: No | C36: 95.23143511 | D36: 93.77021154 | E36: 91.73487428 | F36: 85.05996944 | G36: 56.77647008 | H36: 86.9210979 | I36: 81.42048388 | J36: 76.45670315 | K36: 51.79695439 | L36: 43.30577898 | M36: 96.59135949 | N36: 94.08646003 | O36: 94.37476245 | P36: 93.48165496 | Q36: 87.37010392 | R36: 68.60451891 | S36: 91.19428796 | T36: 69.22824302 | U36: 92.52917527 | V36: 83.32072218 | W36: 84.01829243 | X36: 77.49927986 | Y36: 90.18854703 | Z36: 88.50762377 | AA36: 94.55175856 | AB36: 90.36597781 | AC36: 62.2832981 | BB36: No | BC36: N/A | BD36: N/A | BE36: N/A | BF36: N/A | BG36: N/A | BH36: N/A | BI36: N/A | BJ36: N/A | BK36: N/A | BL36: N/A | BM36: N/A | BN36: N/A | BO36: N/A | BP36: N/A | BQ36: N/A | BR36: N/A | BS36: N/A | BT36: N/A | BU36: N/A | BV36: N/A | BW36: N/A | BX36: N/A | BY36: N/A | BZ36: N/A | CA36: N/A | CB36: N/A | CC36: N/A
A37: Improved Water source on premises | B37: Yes | C37: 3.617566299 | D37: 9.044492896 | E37: 10.08692498 | F37: 16.79129329 | G37: 47.34879547 | H37: 14.7589702 | I37: 19.27919168 | J37: 25.54542443 | K37: 49.68898569 | L37: 58.28479344 | M37: 2.25464191 | N37: 7.479224377 | O37: 5.723204995 | P37: 7.46388443 | Q37: 16.30022745 | R37: 49.00784063 | S37: 19.00345593 | T37: 32.85413745 | U37: 21.69512284 | V37: 16.04187279 | W37: 22.91994889 | X37: 22.47726348 | Y37: 22.49790465 | Z37: 26.16097525 | AA37: 8.814503606 | AB37: 13.79254905 | AC37: 38.27319588 | BA37: Improved water source on premises | BB37: Yes | BC37: N/A | BD37: N/A | BE37: N/A | BF37: N/A | BG37: N/A | BH37: N/A | BI37: N/A | BJ37: N/A | BK37: N/A | BL37: N/A | BM37: N/A | BN37: N/A | BO37: N/A | BP37: N/A | BQ37: N/A | BR37: N/A | BS37: N/A | BT37: N/A | BU37: N/A | BV37: N/A | BW37: N/A | BX37: N/A | BY37: N/A | BZ37: N/A | CA37: N/A | CB37: N/A | CC37: N/A
B38: No | C38: 96.3824337 | D38: 90.9555071 | E38: 89.91307502 | F38: 83.20870671 | G38: 52.65120453 | H38: 85.2410298 | I38: 80.72080832 | J38: 74.45457557 | K38: 50.31101431 | L38: 41.71520656 | M38: 97.74535809 | N38: 92.52077562 | O38: 94.27679501 | P38: 92.53611557 | Q38: 83.69977255 | R38: 50.99215937 | S38: 80.99654407 | T38: 67.14586255 | U38: 78.30487716 | V38: 83.95812721 | W38: 77.08005111 | X38: 77.52273652 | Y38: 77.50209535 | Z38: 73.83902475 | AA38: 91.18549639 | AB38: 86.20745095 | AC38: 61.72680412 | BB38: No | BC38: N/A | BD38: N/A | BE38: N/A | BF38: N/A | BG38: N/A | BH38: N/A | BI38: N/A | BJ38: N/A | BK38: N/A | BL38: N/A | BM38: N/A | BN38: N/A | BO38: N/A | BP38: N/A | BQ38: N/A | BR38: N/A | BS38: N/A | BT38: N/A | BU38: N/A | BV38: N/A | BW38: N/A | BX38: N/A | BY38: N/A | BZ38: N/A | CA38: N/A | CB38: N/A | CC38: N/A
A39: Piped water on premises available when needed | B39: Yes | C39: N/A | D39: N/A | E39: N/A | F39: N/A | G39: N/A | H39: N/A | I39: N/A | J39: N/A | K39: N/A | L39: N/A | M39: N/A | N39: N/A | O39: N/A | P39: N/A | Q39: N/A | R39: N/A | S39: N/A | T39: N/A | U39: N/A | V39: N/A | W39: N/A | X39: N/A | Y39: N/A | Z39: N/A | AA39: N/A | AB39: N/A | AC39: N/A | BA39: Piped water on premises available when needed | BB39: Yes | BC39: N/A | BD39: N/A | BE39: N/A | BF39: N/A | BG39: N/A | BH39: N/A | BI39: N/A | BJ39: N/A | BK39: N/A | BL39: N/A | BM39: N/A | BN39: N/A | BO39: N/A | BP39: N/A | BQ39: N/A | BR39: N/A | BS39: N/A | BT39: N/A | BU39: N/A | BV39: N/A | BW39: N/A | BX39: N/A | BY39: N/A | BZ39: N/A | CA39: N/A | CB39: N/A | CC39: N/A
B40: No | C40: N/A | D40: N/A | E40: N/A | F40: N/A | G40: N/A | H40: N/A | I40: N/A | J40: N/A | K40: N/A | L40: N/A | M40: N/A | N40: N/A | O40: N/A | P40: N/A | Q40: N/A | R40: N/A | S40: N/A | T40: N/A | U40: N/A | V40: N/A | W40: N/A | X40: N/A | Y40: N/A | Z40: N/A | AA40: N/A | AB40: N/A | AC40: N/A | BB40: No | BC40: N/A | BD40: N/A | BE40: N/A | BF40: N/A | BG40: N/A | BH40: N/A | BI40: N/A | BJ40: N/A | BK40: N/A | BL40: N/A | BM40: N/A | BN40: N/A | BO40: N/A | BP40: N/A | BQ40: N/A | BR40: N/A | BS40: N/A | BT40: N/A | BU40: N/A | BV40: N/A | BW40: N/A | BX40: N/A | BY40: N/A | BZ40: N/A | CA40: N/A | CB40: N/A | CC40: N/A
A41: Water point at more than 30 minutes | B41: Yes | C41: 15.33366798 | D41: 16.27649885 | E41: 15.221255 | F41: 9.67095276 | G41: 4.413329759 | H41: 10.80330344 | I41: 8.148142588 | J41: 7.681256691 | K41: 4.58418749 | L41: 1.607011959 | M41: 16.01268331 | N41: 14.27406199 | O41: 19.4222729 | P41: 15.18345043 | Q41: 10.51159073 | R41: 5.194780426 | S41: 19.36285551 | T41: 7.881773399 | U41: 22.74756147 | V41: 11.78009889 | W41: 11.57648748 | X41: 6.060985069 | Y41: 4.558095576 | Z41: 21.5488104 | AA41: 19.10473726 | AB41: 5.180171542 | AC41: 2.621564482 | BA41: Water point at more than 30 minutes | BB41: Yes | BC41: N/A | BD41: N/A | BE41: N/A | BF41: N/A | BG41: N/A | BH41: N/A | BI41: N/A | BJ41: N/A | BK41: N/A | BL41: N/A | BM41: N/A | BN41: N/A | BO41: N/A | BP41: N/A | BQ41: N/A | BR41: N/A | BS41: N/A | BT41: N/A | BU41: N/A | BV41: N/A | BW41: N/A | BX41: N/A | BY41: N/A | BZ41: N/A | CA41: N/A | CB41: N/A | CC41: N/A
B42: No | C42: 84.66633202 | D42: 83.72350115 | E42: 84.778745 | F42: 90.32904724 | G42: 95.58667024 | H42: 89.19669656 | I42: 91.85185741 | J42: 92.31874331 | K42: 95.41581251 | L42: 98.39298804 | M42: 83.98731669 | N42: 85.72593801 | O42: 80.5777271 | P42: 84.81654957 | Q42: 89.48840927 | R42: 94.80521957 | S42: 80.63714449 | T42: 92.1182266 | U42: 77.25243853 | V42: 88.21990111 | W42: 88.42351252 | X42: 93.93901493 | Y42: 95.44190442 | Z42: 78.4511896 | AA42: 80.89526274 | AB42: 94.81982846 | AC42: 97.37843552 | BB42: No | BC42: N/A | BD42: N/A | BE42: N/A | BF42: N/A | BG42: N/A | BH42: N/A | BI42: N/A | BJ42: N/A | BK42: N/A | BL42: N/A | BM42: N/A | BN42: N/A | BO42: N/A | BP42: N/A | BQ42: N/A | BR42: N/A | BS42: N/A | BT42: N/A | BU42: N/A | BV42: N/A | BW42: N/A | BX42: N/A | BY42: N/A | BZ42: N/A | CA42: N/A | CB42: N/A | CC42: N/A
A43: Water source available when needed | B43: Yes | C43: N/A | D43: N/A | E43: N/A | F43: N/A | G43: N/A | H43: N/A | I43: N/A | J43: N/A | K43: N/A | L43: N/A | M43: N/A | N43: N/A | O43: N/A | P43: N/A | Q43: N/A | R43: N/A | S43: N/A | T43: N/A | U43: N/A | V43: N/A | W43: N/A | X43: N/A | Y43: N/A | Z43: N/A | AA43: N/A | AB43: N/A | AC43: N/A | BA43: Water source available when needed | BB43: Yes | BC43: N/A | BD43: N/A | BE43: N/A | BF43: N/A | BG43: N/A | BH43: N/A | BI43: N/A | BJ43: N/A | BK43: N/A | BL43: N/A | BM43: N/A | BN43: N/A | BO43: N/A | BP43: N/A | BQ43: N/A | BR43: N/A | BS43: N/A | BT43: N/A | BU43: N/A | BV43: N/A | BW43: N/A | BX43: N/A | BY43: N/A | BZ43: N/A | CA43: N/A | CB43: N/A | CC43: N/A
B44: No | C44: N/A | D44: N/A | E44: N/A | F44: N/A | G44: N/A | H44: N/A | I44: N/A | J44: N/A | K44: N/A | L44: N/A | M44: N/A | N44: N/A | O44: N/A | P44: N/A | Q44: N/A | R44: N/A | S44: N/A | T44: N/A | U44: N/A | V44: N/A | W44: N/A | X44: N/A | Y44: N/A | Z44: N/A | AA44: N/A | AB44: N/A | AC44: N/A | BB44: No | BC44: N/A | BD44: N/A | BE44: N/A | BF44: N/A | BG44: N/A | BH44: N/A | BI44: N/A | BJ44: N/A | BK44: N/A | BL44: N/A | BM44: N/A | BN44: N/A | BO44: N/A | BP44: N/A | BQ44: N/A | BR44: N/A | BS44: N/A | BT44: N/A | BU44: N/A | BV44: N/A | BW44: N/A | BX44: N/A | BY44: N/A | BZ44: N/A | CA44: N/A | CB44: N/A | CC44: N/A
A45: Improved water source available when needed | B45: Yes | C45: N/A | D45: N/A | E45: N/A | F45: N/A | G45: N/A | H45: N/A | I45: N/A | J45: N/A | K45: N/A | L45: N/A | M45: N/A | N45: N/A | O45: N/A | P45: N/A | Q45: N/A | R45: N/A | S45: N/A | T45: N/A | U45: N/A | V45: N/A | W45: N/A | X45: N/A | Y45: N/A | Z45: N/A | AA45: N/A | AB45: N/A | AC45: N/A | BA45: Improved water source available when needed | BB45: Yes | BC45: N/A | BD45: N/A | BE45: N/A | BF45: N/A | BG45: N/A | BH45: N/A | BI45: N/A | BJ45: N/A | BK45: N/A | BL45: N/A | BM45: N/A | BN45: N/A | BO45: N/A | BP45: N/A | BQ45: N/A | BR45: N/A | BS45: N/A | BT45: N/A | BU45: N/A | BV45: N/A | BW45: N/A | BX45: N/A | BY45: N/A | BZ45: N/A | CA45: N/A | CB45: N/A | CC45: N/A
B46: No | C46: N/A | D46: N/A | E46: N/A | F46: N/A | G46: N/A | H46: N/A | I46: N/A | J46: N/A | K46: N/A | L46: N/A | M46: N/A | N46: N/A | O46: N/A | P46: N/A | Q46: N/A | R46: N/A | S46: N/A | T46: N/A | U46: N/A | V46: N/A | W46: N/A | X46: N/A | Y46: N/A | Z46: N/A | AA46: N/A | AB46: N/A | AC46: N/A | BB46: No | BC46: N/A | BD46: N/A | BE46: N/A | BF46: N/A | BG46: N/A | BH46: N/A | BI46: N/A | BJ46: N/A | BK46: N/A | BL46: N/A | BM46: N/A | BN46: N/A | BO46: N/A | BP46: N/A | BQ46: N/A | BR46: N/A | BS46: N/A | BT46: N/A | BU46: N/A | BV46: N/A | BW46: N/A | BX46: N/A | BY46: N/A | BZ46: N/A | CA46: N/A | CB46: N/A | CC46: N/A
A47: Microbiological quality at point of collection | B47: Not contaminated (No E. coli in 100 mL) | C47: N/A | D47: N/A | E47: N/A | F47: N/A | G47: N/A | H47: N/A | I47: N/A | J47: N/A | K47: N/A | L47: N/A | M47: N/A | N47: N/A | O47: N/A | P47: N/A | Q47: N/A | R47: N/A | S47: N/A | T47: N/A | U47: N/A | V47: N/A | W47: N/A | X47: N/A | Y47: N/A | Z47: N/A | AA47: N/A | AB47: N/A | AC47: N/A | BA47: Microbiological quality at point of collection | BB47: Not contaminated (No E. coli in 100 mL) | BC47: N/A | BD47: N/A | BE47: N/A | BF47: N/A | BG47: N/A | BH47: N/A | BI47: N/A | BJ47: N/A | BK47: N/A | BL47: N/A | BM47: N/A | BN47: N/A | BO47: N/A | BP47: N/A | BQ47: N/A | BR47: N/A | BS47: N/A | BT47: N/A | BU47: N/A | BV47: N/A | BW47: N/A | BX47: N/A | BY47: N/A | BZ47: N/A | CA47: N/A | CB47: N/A | CC47: N/A
B48: Contaminated (E. coli detected in 100 mL) | C48: N/A | D48: N/A | E48: N/A | F48: N/A | G48: N/A | H48: N/A | I48: N/A | J48: N/A | K48: N/A | L48: N/A | M48: N/A | N48: N/A | O48: N/A | P48: N/A | Q48: N/A | R48: N/A | S48: N/A | T48: N/A | U48: N/A | V48: N/A | W48: N/A | X48: N/A | Y48: N/A | Z48: N/A | AA48: N/A | AB48: N/A | AC48: N/A | BB48: Contaminated (E. coli detected in 100 mL) | BC48: N/A | BD48: N/A | BE48: N/A | BF48: N/A | BG48: N/A | BH48: N/A | BI48: N/A | BJ48: N/A | BK48: N/A | BL48: N/A | BM48: N/A | BN48: N/A | BO48: N/A | BP48: N/A | BQ48: N/A | BR48: N/A | BS48: N/A | BT48: N/A | BU48: N/A | BV48: N/A | BW48: N/A | BX48: N/A | BY48: N/A | BZ48: N/A | CA48: N/A | CB48: N/A | CC48: N/A
B49: Highly contaminated (>100 CFU/100 mL) | C49: N/A | D49: N/A | E49: N/A | F49: N/A | G49: N/A | H49: N/A | I49: N/A | J49: N/A | K49: N/A | L49: N/A | M49: N/A | N49: N/A | O49: N/A | P49: N/A | Q49: N/A | R49: N/A | S49: N/A | T49: N/A | U49: N/A | V49: N/A | W49: N/A | X49: N/A | Y49: N/A | Z49: N/A | AA49: N/A | AB49: N/A | AC49: N/A | BB49: Highly contaminated (>100 CFU/100 mL) | BC49: N/A | BD49: N/A | BE49: N/A | BF49: N/A | BG49: N/A | BH49: N/A | BI49: N/A | BJ49: N/A | BK49: N/A | BL49: N/A | BM49: N/A | BN49: N/A | BO49: N/A | BP49: N/A | BQ49: N/A | BR49: N/A | BS49: N/A | BT49: N/A | BU49: N/A | BV49: N/A | BW49: N/A | BX49: N/A | BY49: N/A | BZ49: N/A | CA49: N/A | CB49: N/A | CC49: N/A
A50: Microbiological quality of improved water sources at point of collection | B50: Not contaminated (No E. coli in 100 mL) | C50: N/A | D50: N/A | E50: N/A | F50: N/A | G50: N/A | H50: N/A | I50: N/A | J50: N/A | K50: N/A | L50: N/A | M50: N/A | N50: N/A | O50: N/A | P50: N/A | Q50: N/A | R50: N/A | S50: N/A | T50: N/A | U50: N/A | V50: N/A | W50: N/A | X50: N/A | Y50: N/A | Z50: N/A | AA50: N/A | AB50: N/A | AC50: N/A | BA50: Microbiological quality of improved water sources at point of collection | BB50: Not contaminated (No E. coli in 100 mL) | BC50: N/A | BD50: N/A | BE50: N/A | BF50: N/A | BG50: N/A | BH50: N/A | BI50: N/A | BJ50: N/A | BK50: N/A | BL50: N/A | BM50: N/A | BN50: N/A | BO50: N/A | BP50: N/A | BQ50: N/A | BR50: N/A | BS50: N/A | BT50: N/A | BU50: N/A | BV50: N/A | BW50: N/A | BX50: N/A | BY50: N/A | BZ50: N/A | CA50: N/A | CB50: N/A | CC50: N/A
B51: Contaminated (E. coli detected in 100 mL) | C51: N/A | D51: N/A | E51: N/A | F51: N/A | G51: N/A | H51: N/A | I51: N/A | J51: N/A | K51: N/A | L51: N/A | M51: N/A | N51: N/A | O51: N/A | P51: N/A | Q51: N/A | R51: N/A | S51: N/A | T51: N/A | U51: N/A | V51: N/A | W51: N/A | X51: N/A | Y51: N/A | Z51: N/A | AA51: N/A | AB51: N/A | AC51: N/A | BB51: Contaminated (E. coli detected in 100 mL) | BC51: N/A | BD51: N/A | BE51: N/A | BF51: N/A | BG51: N/A | BH51: N/A | BI51: N/A | BJ51: N/A | BK51: N/A | BL51: N/A | BM51: N/A | BN51: N/A | BO51: N/A | BP51: N/A | BQ51: N/A | BR51: N/A | BS51: N/A | BT51: N/A | BU51: N/A | BV51: N/A | BW51: N/A | BX51: N/A | BY51: N/A | BZ51: N/A | CA51: N/A | CB51: N/A | CC51: N/A
B52: Highly contaminated (>100 CFU/100 mL) | C52: N/A | D52: N/A | E52: N/A | F52: N/A | G52: N/A | H52: N/A | I52: N/A | J52: N/A | K52: N/A | L52: N/A | M52: N/A | N52: N/A | O52: N/A | P52: N/A | Q52: N/A | R52: N/A | S52: N/A | T52: N/A | U52: N/A | V52: N/A | W52: N/A | X52: N/A | Y52: N/A | Z52: N/A | AA52: N/A | AB52: N/A | AC52: N/A | BB52: Highly contaminated (>100 CFU/100 mL) | BC52: N/A | BD52: N/A | BE52: N/A | BF52: N/A | BG52: N/A | BH52: N/A | BI52: N/A | BJ52: N/A | BK52: N/A | BL52: N/A | BM52: N/A | BN52: N/A | BO52: N/A | BP52: N/A | BQ52: N/A | BR52: N/A | BS52: N/A | BT52: N/A | BU52: N/A | BV52: N/A | BW52: N/A | BX52: N/A | BY52: N/A | BZ52: N/A | CA52: N/A | CB52: N/A | CC52: N/A
A53: Microbiological quality of piped on premises at point of collection | B53: Not contaminated (No E. coli in 100 mL) | C53: N/A | D53: N/A | E53: N/A | F53: N/A | G53: N/A | H53: N/A | I53: N/A | J53: N/A | K53: N/A | L53: N/A | M53: N/A | N53: N/A | O53: N/A | P53: N/A | Q53: N/A | R53: N/A | S53: N/A | T53: N/A | U53: N/A | V53: N/A | W53: N/A | X53: N/A | Y53: N/A | Z53: N/A | AA53: N/A | AB53: N/A | AC53: N/A | BA53: Microbiological quality of piped on premises at point of collection | BB53: Not contaminated (No E. coli in 100 mL) | BC53: N/A | BD53: N/A | BE53: N/A | BF53: N/A | BG53: N/A | BH53: N/A | BI53: N/A | BJ53: N/A | BK53: N/A | BL53: N/A | BM53: N/A | BN53: N/A | BO53: N/A | BP53: N/A | BQ53: N/A | BR53: N/A | BS53: N/A | BT53: N/A | BU53: N/A | BV53: N/A | BW53: N/A | BX53: N/A | BY53: N/A | BZ53: N/A | CA53: N/A | CB53: N/A | CC53: N/A
B54: Contaminated (E. coli detected in 100 mL) | C54: N/A | D54: N/A | E54: N/A | F54: N/A | G54: N/A | H54: N/A | I54: N/A | J54: N/A | K54: N/A | L54: N/A | M54: N/A | N54: N/A | O54: N/A | P54: N/A | Q54: N/A | R54: N/A | S54: N/A | T54: N/A | U54: N/A | V54: N/A | W54: N/A | X54: N/A | Y54: N/A | Z54: N/A | AA54: N/A | AB54: N/A | AC54: N/A | BB54: Contaminated (E. coli detected in 100 mL) | BC54: N/A | BD54: N/A | BE54: N/A | BF54: N/A | BG54: N/A | BH54: N/A | BI54: N/A | BJ54: N/A | BK54: N/A | BL54: N/A | BM54: N/A | BN54: N/A | BO54: N/A | BP54: N/A | BQ54: N/A | BR54: N/A | BS54: N/A | BT54: N/A | BU54: N/A | BV54: N/A | BW54: N/A | BX54: N/A | BY54: N/A | BZ54: N/A | CA54: N/A | CB54: N/A | CC54: N/A
B55: Highly contaminated (>100 CFU/100 mL) | C55: N/A | D55: N/A | E55: N/A | F55: N/A | G55: N/A | H55: N/A | I55: N/A | J55: N/A | K55: N/A | L55: N/A | M55: N/A | N55: N/A | O55: N/A | P55: N/A | Q55: N/A | R55: N/A | S55: N/A | T55: N/A | U55: N/A | V55: N/A | W55: N/A | X55: N/A | Y55: N/A | Z55: N/A | AA55: N/A | AB55: N/A | AC55: N/A | BB55: Highly contaminated (>100 CFU/100 mL) | BC55: N/A | BD55: N/A | BE55: N/A | BF55: N/A | BG55: N/A | BH55: N/A | BI55: N/A | BJ55: N/A | BK55: N/A | BL55: N/A | BM55: N/A | BN55: N/A | BO55: N/A | BP55: N/A | BQ55: N/A | BR55: N/A | BS55: N/A | BT55: N/A | BU55: N/A | BV55: N/A | BW55: N/A | BX55: N/A | BY55: N/A | BZ55: N/A | CA55: N/A | CB55: N/A | CC55: N/A
C56: NATIONAL wealth index quintile | H56: URBAN wealth index quintile | M56: RURAL wealth index quintile | R56: SUB-REGIONS: | BA56: Raw numbers of respondents: | BB56: Use of drinking water sources | BC56: NATIONAL wealth index quintile | BH56: URBAN wealth index quintile | BM56: RURAL wealth index quintile | BR56: SUB-REGIONS:
A57: Percentage based on weighted population | C57: Poorest | D57: Poor | E57: Middle | F57: Rich | G57: Richest | H57: Poorest | I57: Poor | J57: Middle | K57: Rich | L57: Richest | M57: Poorest | N57: Poor | O57: Middle | P57: Rich | Q57: Richest | R57: adamaoua | S57: centre sans yde | T57: douala | U57: est | V57: extreme nord | W57: littoral sans dla | X57: nord | Y57: nord ouest | Z57: ouest | AA57: sud | AB57: sud ouest | AC57: yaounde | BA57: Water data, raw numbers (weighted) | BC57: Poorest | BD57: Poor | BE57: Middle | BF57: Rich | BG57: Richest | BH57: Poorest | BI57: Poor | BJ57: Middle | BK57: Rich | BL57: Richest | BM57: Poorest | BN57: Poor | BO57: Middle | BP57: Rich | BQ57: Richest | BR57: adamaoua | BS57: centre sans yde | BT57: douala | BU57: est | BV57: extreme nord | BW57: littoral sans dla | BX57: nord | BY57: nord ouest | BZ57: ouest | CA57: sud | CB57: sud ouest | CC57: yaounde
A58: source principale eau | B58: robinet dans logement | C58: 0 | D58: 0.1610992122 | E58: 0.4119494247 | F58: 2.034256438 | G58: 27.29321291 | H58: 1.526983352 | I58: 2.709451321 | J58: 8.656694119 | K58: 25.27092014 | L58: 45.95664861 | M58: 0 | N58: 0 | O58: 0 | P58: 0 | Q58: 1.478816946 | R58: 8.038564593 | S58: 2.808489385 | T58: 24.99178982 | U58: 3.118953649 | V58: 0.4248105399 | W58: 8.802341469 | X58: 2.583105157 | Y58: 4.169948301 | Z58: 4.702472218 | AA58: 0 | AB58: 3.550688813 | AC58: 29.93657505
B59: robinet dans cour/parcelle | C59: 0.1403026339 | D59: 0.3761049816 | E59: 0.9370222006 | F59: 5.154784143 | G59: 11.64509173 | H59: 2.249046127 | I59: 9.821668977 | J59: 7.598011795 | K59: 18.14172771 | L59: 10.44812809 | M59: 0 | N59: 0.08156606852 | O59: 0.4180919802 | P59: 0.3512880562 | Q59: 1.638689049 | R59: 5.651168912 | S59: 2.931165092 | T59: 5.648604269 | U59: 1.746614043 | V59: 2.063365479 | W59: 6.301676279 | X59: 0.417855246 | Y59: 5.292033041 | Z59: 6.293659732 | AA59: 0 | AB59: 3.569835883 | AC59: 7.737843552
B60: borne publique | C60: 9.06538792 | D60: 6.826009418 | E60: 15.58835638 | F60: 30.86322657 | G60: 29.3171862 | H60: 26.6081222 | I60: 47.05707706 | J60: 41.02769216 | K60: 30.66350098 | L60: 28.07616701 | M60: 7.5307174 | N60: 7.544861338 | O60: 4.294944888 | P60: 12.64637002 | Q60: 16.94644285 | R60: 12.622031 | S60: 1.717293867 | T60: 44.03940887 | U60: 1.382195114 | V60: 8.9790163 | W60: 35.60947231 | X60: 7.487578855 | Y60: 26.26148292 | Z60: 17.33823011 | AA60: 0 | AB60: 42.6024807 | AC60: 39.32346723
B61: puits a pompe | C61: 8.45150752 | D61: 9.561447197 | E61: 14.04265361 | F61: 5.282985959 | G61: 1.796091614 | H61: 4.523378183 | I61: 3.049373083 | J61: 3.114039371 | K61: 0.6146406767 | L61: 1.542731481 | M61: 8.997225525 | N61: 9.053833605 | O61: 13.22690992 | P61: 14.83216237 | Q61: 6.594724221 | R61: 3.541895745 | S61: 11.30541696 | T61: 0.7881773399 | U61: 3.251883784 | V61: 25.63490532 | W61: 0 | X61: 7.59846375 | Y61: 0 | Z61: 1.020715703 | AA61: 18.11271114 | AB61: 0.281244479 | AC61: 3.467230444
B62: puits proteges | C62: 10.52989189 | D62: 8.649069479 | E62: 13.18835651 | F62: 10.46064752 | G62: 7.968022519 | H62: 11.18747782 | I62: 7.624067777 | J62: 5.091217762 | K62: 6.44734538 | L62: 1.054309146 | M62: 10.0673801 | N62: 8.727569331 | O62: 12.01064234 | P62: 12.02185792 | Q62: 18.14548361 | R62: 22.40400896 | S62: 15.23974496 | T62: 4.334975369 | U62: 3.456208528 | V62: 22.1795947 | W62: 1.609098002 | X62: 8.195273947 | Y62: 2.213320315 | Z62: 2.379463263 | AA62: 17.95766355 | AB62: 12.97878705 | AC62: 1.353065539
B63: source protegee | C63: 3.639989633 | D63: 5.986545838 | E63: 6.492363012 | F63: 6.675767847 | G63: 4.336718289 | H63: 5.19414533 | I63: 5.310456563 | J63: 6.247303179 | K63: 5.167372965 | L63: 2.642364864 | M63: 3.289734443 | N63: 3.83360522 | O63: 6.575446598 | P63: 7.923497268 | Q63: 6.714628297 | R63: 1.416758298 | S63: 5.907683389 | T63: 5.123152709 | U63: 15.40342044 | V63: 0.1775012883 | W63: 6.802965048 | X63: 0 | Y63: 4.766673437 | Z63: 8.540348811 | AA63: 17.49826013 | AB63: 6.078093937 | AC63: 2.494714588
B64: eau de pluie | C64: 0 | D64: 0 | E64: 0.2101855824 | F64: 0.3106453032 | G64: 0.2027136352 | H64: 0.4600321624 | I64: 0 | J64: 0 | K64: 0.5123517051 | L64: 0 | M64: 0 | N64: 0 | O64: 0 | P64: 0.07806401249 | Q64: 0.5195843325 | R64: 4.286674316 | S64: 0 | T64: 0 | U64: 0.4158604865 | V64: 0 | W64: 0 | X64: 0 | Y64: 0 | Z64: 0.08816696807 | AA64: 0 | AB64: 0.04569995441 | AC64: 0
B65: eau minerale | C65: 0 | D65: 0 | E65: 0 | F65: 0.2329839774 | G65: 0.02209066543 | H65: 0 | I65: 0 | J65: 0 | K65: 0 | L65: 0.06428047836 | M65: 0 | N65: 0 | O65: 0 | P65: 0 | Q65: 0.3597122302 | R65: 0 | S65: 0 | T65: 0.06568144499 | U65: 0 | V65: 0 | W65: 0 | X65: 0 | Y65: 0 | Z65: 0 | AA65: 0 | AB65: 0.4112995897 | AC65: 0
B66: puits non protege | C66: 28.24831286 | D66: 23.12129882 | E66: 14.42674478 | F66: 11.33384933 | G66: 2.900836521 | H66: 12.59931742 | I66: 4.619114147 | J66: 4.102903047 | K66: 3.170108162 | L66: 0.1928414351 | M66: 30.00396354 | N66: 26.18270799 | O66: 23.29912581 | P66: 14.01249024 | Q66: 15.74740208 | R66: 11.41899837 | S66: 18.68286708 | T66: 1.773399015 | U66: 25.23334937 | V66: 20.08360542 | W66: 7.906724925 | X66: 62.65762554 | Y66: 0 | Z66: 4.504879549 | AA66: 13.15976534 | AB66: 5.940994074 | AC66: 0.1268498943
B67: source non protegee | C67: 17.27465521 | D67: 24.84455299 | E67: 17.0101161 | F67: 11.95539632 | G67: 4.856401592 | H67: 16.26056504 | I67: 6.809877206 | J67: 7.178310558 | K67: 3.169745423 | L67: 1.241378339 | M67: 17.9548157 | N67: 18.76019576 | O67: 25.65564424 | P67: 18.61826698 | Q67: 16.18705036 | R67: 1.652884681 | S67: 33.12697563 | T67: 2.49589491 | U67: 41.98170691 | V67: 1.183341922 | W67: 19.58555047 | X67: 3.333179443 | Y67: 6.749545367 | Z67: 29.63804329 | AA67: 14.36569932 | AB67: 14.12128591 | AC67: 0.9725158562
B68: mare/fleuve ou ruisseau | C68: 20.26287676 | D68: 18.63825166 | E68: 13.52278491 | F68: 8.342299897 | G68: 1.008661042 | H68: 2.402390182 | I68: 0.8201214668 | J68: 0.5169213431 | K68: 0 | L68: 0 | M68: 21.64090369 | N68: 25.20391517 | O68: 13.9490688 | P68: 17.79859485 | Q68: 14.02877698 | R68: 24.32101745 | S68: 6.309015458 | T68: 0 | U68: 1.946130263 | V68: 12.63521527 | W68: 2.779351095 | X68: 2.335641241 | Y68: 49.52344513 | Z68: 21.17819386 | AA68: 12.36801079 | AB68: 9.916890108 | AC68: 0
B69: camion citerne, vendeur eau | C69: 0.5601002816 | D69: 0.4653977241 | E69: 1.280063837 | F69: 1.747972931 | G69: 2.023898486 | H69: 5.398965955 | I69: 2.652444283 | J69: 6.422518954 | K69: 0.6594034373 | L69: 1.330933805 | M69: 0 | N69: 0.2039151713 | O69: 0 | P69: 0.3903200625 | Q69: 0.03996802558 | R69: 0 | S69: 0.3897843714 | T69: 1.149425287 | U69: 1.081237265 | V69: 2.846218844 | W69: 0.4001064304 | X69: 3.339987428 | Y69: 0 | Z69: 1.124739001 | AA69: 0 | AB69: 0 | AC69: 0.8456659619
B70: autre | C70: 0.4360125893 | D70: 0.3141278369 | E70: 0.9292838616 | F70: 0.5299183699 | G70: 1.271970362 | H70: 0.9008737002 | I70: 0.153772775 | J70: 0.9368055674 | K70: 0.6719855181 | L70: 0.9963474146 | M70: 0.5152596116 | N70: 0.2039151713 | O70: 0.4180919802 | P70: 0.9367681499 | Q70: 1.318944844 | R70: 1.180631915 | S70: 0 | T70: 1.543513957 | U70: 0.6081657073 | V70: 0.2662519325 | W70: 0 | X70: 1.329539419 | Y70: 0.1164905429 | Z70: 0.7494192286 | AA70: 6.537889727 | AB70: 0.3198996809 | AC70: 0.4651162791
B71: robinet voisin | C71: 1.262723706 | D71: 1.056094836 | E71: 1.857013738 | F71: 5.053154225 | G71: 5.202469783 | H71: 10.68870252 | I71: 9.372575341 | J71: 8.946158592 | K71: 5.510897905 | L71: 6.100326698 | M71: 0 | N71: 0 | O71: 0 | P71: 0.3903200625 | Q71: 0.2797761791 | R71: 3.465365761 | S71: 1.581563809 | T71: 7.520525452 | U71: 0.3742744379 | V71: 3.378255246 | W71: 10.20271398 | X71: 0.7217499704 | Y71: 0.9070609384 | Z71: 2.441668267 | AA71: 0 | AB71: 0 | AC71: 13.2769556
B72: n d | C72: 0.1282389969 | D72: 0 | E72: 0.1031060373 | F72: 0.02211116899 | G72: 0.154634658 | H72: 0 | I72: 0 | J72: 0.1614235528 | K72: 0 | L72: 0.353542631 | M72: 0 | N72: 0.2039151713 | O72: 0.1520334474 | P72: 0 | Q72: 0 | R72: 0 | S72: 0 | T72: 0.5254515599 | U72: 0 | V72: 0.1479177403 | W72: 0 | X72: 0 | Y72: 0 | Z72: 0 | AA72: 0 | AB72: 0.1827998177 | AC72: 0
A108: =A1026 -> Cameroon
A109: =A1034 -> 2000
A110: Use of sanitation facilities
A111: by wealth quintile and sub-national region
A112: Notes:
A113: WHO/UNICEF JMP customised wealth index excludes water,
A114: sanitation and hygiene assets.
A115: Survey used for analysis: | B115: =A1025 -> MICS00
A116: =B1030 -> Ratio of Improved latrines based on: | B116: DHS11
A117: =B1029 -> Ratio of Shared improved based on: | B117: MICS06
A120: Use of sanitation facilities | C120: NATIONAL wealth index quintile | H120: URBAN wealth index quintile | M120: RURAL wealth index quintile | R120: SUB-REGIONS: | BA120: Raw numbers of respondents: | BB120: Use of sanitation facilities | BC120: NATIONAL wealth index quintile | BH120: URBAN wealth index quintile | BM120: RURAL wealth index quintile | BR120: SUB-REGIONS:
A121: Weighted percentage (used in graphs) | C121: Poorest | D121: Poor | E121: Middle | F121: Rich | G121: Richest | H121: Poorest | I121: Poor | J121: Middle | K121: Rich | L121: Richest | M121: Poorest | N121: Poor | O121: Middle | P121: Rich | Q121: Richest | R121: adamaoua | S121: centre sans yde | T121: douala | U121: est | V121: extreme nord | W121: littoral sans dla | X121: nord | Y121: nord ouest | Z121: ouest | AA121: sud | AB121: sud ouest | AC121: yaounde | BA121: Sanitation data, raw numbers (weighted) | BC121: Poorest | BD121: Poor | BE121: Middle | BF121: Rich | BG121: Richest | BH121: Poorest | BI121: Poor | BJ121: Middle | BK121: Rich | BL121: Richest | BM121: Poorest | BN121: Poor | BO121: Middle | BP121: Rich | BQ121: Richest | BR121: adamaoua | BS121: centre sans yde | BT121: douala | BU121: est | BV121: extreme nord | BW121: littoral sans dla | BX121: nord | BY121: nord ouest | BZ121: ouest | CA121: sud | CB121: sud ouest | CC121: yaounde
A122: Sanitation | B122: Improved | C122: =C153+C154+C155+(C156+C157)*'DHS11'!C130/100 -> 28.70238848 | D122: =D153+D154+D155+(D156+D157)*'DHS11'!D130/100 -> 29.17986991 | E122: =E153+E154+E155+(E156+E157)*'DHS11'!E130/100 -> 52.1843892 | F122: =F153+F154+F155+(F156+F157)*'DHS11'!F130/100 -> 85.45121879 | G122: =G153+G154+G155+(G156+G157)*'DHS11'!G130/100 -> 93.72577989 | H122: =H153+H154+H155+(H156+H157)*'DHS11'!H130/100 -> 54.39233122 | I122: =I153+I154+I155+(I156+I157)*'DHS11'!I130/100 -> 85.03445369 | J122: =J153+J154+J155+(J156+J157)*'DHS11'!J130/100 -> 91.51014339 | K122: =K153+K154+K155+(K156+K157)*'DHS11'!K130/100 -> 95.23736212 | L122: =L153+L154+L155+(L156+L157)*'DHS11'!L130/100 -> 97.07900015 | M122: =M153+M154+M155+(M156+M157)*'DHS11'!M130/100 -> 24.96631608 | N122: =N153+N154+N155+(N156+N157)*'DHS11'!N130/100 -> 32.29090223 | O122: =O153+O154+O155+(O156+O157)*'DHS11'!O130/100 -> 26.31622291 | P122: =P153+P154+P155+(P156+P157)*'DHS11'!P130/100 -> 35.02651686 | Q122: =Q153+Q154+Q155+(Q156+Q157)*'DHS11'!Q130/100 -> 62.47945053 | R122: =R153+R154+R155+(R156+R157)*'DHS11'!R130/100 -> 79.46653758 | S122: =S153+S154+S155+(S156+S157)*'DHS11'!S130/100 -> 49.78246312 | T122: =T153+T154+T155+(T156+T157)*'DHS11'!T130/100 -> 96.40443785 | U122: =U153+U154+U155+(U156+U157)*'DHS11'!U130/100 -> 34.21604401 | V122: =V153+V154+V155+(V156+V157)*'DHS11'!V130/100 -> 43.84904429 | W122: =W153+W154+W155+(W156+W157)*'DHS11'!W130/100 -> 70.96829908 | X122: =X153+X154+X155+(X156+X157)*'DHS11'!X130/100 -> 44.10601363 | Y122: =Y153+Y154+Y155+(Y156+Y157)*'DHS11'!Y130/100 -> 54.54227527 | Z122: =Z153+Z154+Z155+(Z156+Z157)*'DHS11'!Z130/100 -> 57.84860768 | AA122: =AA153+AA154+AA155+(AA156+AA157)*'DHS11'!AA130/100 -> 38.96860893 | AB122: =AB153+AB154+AB155+(AB156+AB157)*'DHS11'!AB130/100 -> 54.69795127 | AC122: =AC153+AC154+AC155+(AC156+AC157)*'DHS11'!AC130/100 -> 91.79754192 | BA122: Sanitation | BB122: Improved | BC122: N/A | BD122: N/A | BE122: N/A | BF122: N/A | BG122: N/A | BH122: N/A | BI122: N/A | BJ122: N/A | BK122: N/A | BL122: N/A | BM122: N/A | BN122: N/A | BO122: N/A | BP122: N/A | BQ122: N/A | BR122: N/A | BS122: N/A | BT122: N/A | BU122: N/A | BV122: N/A | BW122: N/A | BX122: N/A | BY122: N/A | BZ122: N/A | CA122: N/A | CB122: N/A | CC122: N/A
B123: Not Improved | C123: =100-C122 -> 71.29761152 | D123: =100-D122 -> 70.82013009 | E123: 47.8156108 | F123: 14.54878121 | G123: 6.274220105 | H123: 45.60766878 | I123: 14.96554631 | J123: 8.489856607 | K123: 4.762637878 | L123: 2.920999847 | M123: 75.03368392 | N123: 67.70909777 | O123: 73.68377709 | P123: 64.97348314 | Q123: 37.52054947 | R123: 20.53346242 | S123: 50.21753688 | T123: 3.595562149 | U123: 65.78395599 | V123: 56.15095571 | W123: 29.03170092 | X123: 55.89398637 | Y123: 45.45772473 | Z123: 42.15139232 | AA123: 61.03139107 | AB123: 45.30204873 | AC123: 8.202458084 | BB123: Not Improved | BC123: N/A | BD123: N/A | BE123: N/A | BF123: N/A | BG123: N/A | BH123: N/A | BI123: N/A | BJ123: N/A | BK123: N/A | BL123: N/A | BM123: N/A | BN123: N/A | BO123: N/A | BP123: N/A | BQ123: N/A | BR123: N/A | BS123: N/A | BT123: N/A | BU123: N/A | BV123: N/A | BW123: N/A | BX123: N/A | BY123: N/A | BZ123: N/A | CA123: N/A | CB123: N/A | CC123: N/A
A124: Sanitation ladder | B124: Basic | C124: =C122*MICS06!C129/100 -> 24.51219079 | D124: =D122*MICS06!D129/100 -> 22.68592231 | E124: =E122*MICS06!E129/100 -> 32.79033135 | F124: =F122*MICS06!F129/100 -> 59.00134669 | G124: =G122*MICS06!G129/100 -> 71.49932703 | H124: =H122*MICS06!H129/100 -> 36.78809922 | I124: =I122*MICS06!I129/100 -> 55.89513688 | J124: =J122*MICS06!J129/100 -> 62.50001998 | K124: =K122*MICS06!K129/100 -> 62.82861258 | L124: =L122*MICS06!L129/100 -> 83.00469709 | M124: =M122*MICS06!M129/100 -> 22.49147738 | N124: =N122*MICS06!N129/100 -> 25.82708586 | O124: =O122*MICS06!O129/100 -> 21.72400339 | P124: =P122*MICS06!P129/100 -> 25.3366195 | Q124: =Q122*MICS06!Q129/100 -> 39.14684234 | R124: =R122*MICS06!R129/100 -> 77.02269001 | S124: =S122*MICS06!S129/100 -> 38.17920714 | T124: =T122*MICS06!T129/100 -> 71.95362566 | U124: =U122*MICS06!U129/100 -> 24.6705002 | V124: =V122*MICS06!V129/100 -> 37.51323251 | W124: =W122*MICS06!W129/100 -> 53.79117694 | X124: =X122*MICS06!X129/100 -> 39.62028775 | Y124: =Y122*MICS06!Y129/100 -> 31.25424001 | Z124: =Z122*MICS06!Z129/100 -> 48.81122798 | AA124: =AA122*MICS06!AA129/100 -> 23.56047331 | AB124: =AB122*MICS06!AB129/100 -> 27.71767587 | AC124: =AC122*MICS06!AC129/100 -> 63.05797213 | BA124: Sanitation ladder | BB124: Basic | BC124: N/A | BD124: N/A | BE124: N/A | BF124: N/A | BG124: N/A | BH124: N/A | BI124: N/A | BJ124: N/A | BK124: N/A | BL124: N/A | BM124: N/A | BN124: N/A | BO124: N/A | BP124: N/A | BQ124: N/A | BR124: N/A | BS124: N/A | BT124: N/A | BU124: N/A | BV124: N/A | BW124: N/A | BX124: N/A | BY124: N/A | BZ124: N/A | CA124: N/A | CB124: N/A | CC124: N/A
B125: Limited | C125: =C122*MICS06!C128/100 -> 4.19019769 | D125: =D122*MICS06!D128/100 -> 6.493947603 | E125: =E122*MICS06!E128/100 -> 19.39405786 | F125: =F122*MICS06!F128/100 -> 26.4498721 | G125: =G122*MICS06!G128/100 -> 22.22645287 | H125: =H122*MICS06!H128/100 -> 17.604232 | I125: =I122*MICS06!I128/100 -> 29.13931681 | J125: =J122*MICS06!J128/100 -> 29.01012341 | K125: =K122*MICS06!K128/100 -> 32.40874955 | L125: =L122*MICS06!L128/100 -> 14.07430306 | M125: =M122*MICS06!M128/100 -> 2.474838697 | N125: =N122*MICS06!N128/100 -> 6.463816369 | O125: =O122*MICS06!O128/100 -> 4.592219521 | P125: =P122*MICS06!P128/100 -> 9.689897359 | Q125: =Q122*MICS06!Q128/100 -> 23.33260818 | R125: =R122*MICS06!R128/100 -> 2.443847569 | S125: =S122*MICS06!S128/100 -> 11.60325597 | T125: =T122*MICS06!T128/100 -> 24.45081219 | U125: =U122*MICS06!U128/100 -> 9.545543814 | V125: =V122*MICS06!V128/100 -> 6.335811781 | W125: =W122*MICS06!W128/100 -> 17.17712214 | X125: =X122*MICS06!X128/100 -> 4.48572588 | Y125: =Y122*MICS06!Y128/100 -> 23.28803526 | Z125: =Z122*MICS06!Z128/100 -> 9.037379695 | AA125: =AA122*MICS06!AA128/100 -> 15.40813562 | AB125: =AB122*MICS06!AB128/100 -> 26.9802754 | AC125: =AC122*MICS06!AC128/100 -> 28.73956979 | BB125: Limited | BC125: N/A | BD125: N/A | BE125: N/A | BF125: N/A | BG125: N/A | BH125: N/A | BI125: N/A | BJ125: N/A | BK125: N/A | BL125: N/A | BM125: N/A | BN125: N/A | BO125: N/A | BP125: N/A | BQ125: N/A | BR125: N/A | BS125: N/A | BT125: N/A | BU125: N/A | BV125: N/A | BW125: N/A | BX125: N/A | BY125: N/A | BZ125: N/A | CA125: N/A | CB125: N/A | CC125: N/A
B126: Unimproved | C126: =100-C124-C125-C127 -> 57.46270191 | D126: =100-D124-D125-D127 -> 63.74128615 | E126: 44.45254041 | F126: 13.50797612 | G126: 5.920314705 | H126: 44.68760446 | I126: 14.76051594 | J126: 8.076319533 | K126: 4.762637878 | L126: 2.86953903 | M126: 59.93261377 | N126: 55.55575356 | O126: 67.64044756 | P126: 61.46060258 | Q126: 35.72198832 | R126: 16.99156667 | S126: 47.42293943 | T126: 3.595562149 | U126: 54.88841481 | V126: 38.07388773 | W126: 28.88541928 | X126: 54.14285935 | Y126: 45.28298892 | Z126: 41.64573899 | AA126: 59.21531059 | AB126: 42.28585174 | AC126: 8.202458084 | BB126: Unimproved | BC126: N/A | BD126: N/A | BE126: N/A | BF126: N/A | BG126: N/A | BH126: N/A | BI126: N/A | BJ126: N/A | BK126: N/A | BL126: N/A | BM126: N/A | BN126: N/A | BO126: N/A | BP126: N/A | BQ126: N/A | BR126: N/A | BS126: N/A | BT126: N/A | BU126: N/A | BV126: N/A | BW126: N/A | BX126: N/A | BY126: N/A | BZ126: N/A | CA126: N/A | CB126: N/A | CC126: N/A
B127: Open defecation | C127: =C159 -> 13.83490961 | D127: =D159 -> 7.078843934 | E127: 3.363070388 | F127: 1.040805087 | G127: 0.3539054003 | H127: 0.9200643249 | I127: 0.2050303667 | J127: 0.4135370745 | K127: 0 | L127: 0.05146081634 | M127: 15.10107015 | N127: 12.15334421 | O127: 6.043329532 | P127: 3.512880562 | Q127: 1.798561151 | R127: 3.541895745 | S127: 2.794597451 | T127: 0 | U127: 10.89554117 | V127: 18.07706799 | W127: 0.1462816366 | X127: 1.751127023 | Y127: 0.1747358143 | Z127: 0.5056533257 | AA127: 1.81608048 | AB127: 3.016196991 | AC127: 0 | BB127: Open defecation | BC127: N/A | BD127: N/A | BE127: N/A | BF127: N/A | BG127: N/A | BH127: N/A | BI127: N/A | BJ127: N/A | BK127: N/A | BL127: N/A | BM127: N/A | BN127: N/A | BO127: N/A | BP127: N/A | BQ127: N/A | BR127: N/A | BS127: N/A | BT127: N/A | BU127: N/A | BV127: N/A | BW127: N/A | BX127: N/A | BY127: N/A | BZ127: N/A | CA127: N/A | CB127: N/A | CC127: N/A
A128: Shared among Improved Sanitation | B128: Yes | C128: N/A | D128: N/A | E128: N/A | F128: N/A | G128: N/A | H128: N/A | I128: N/A | J128: N/A | K128: N/A | L128: N/A | M128: N/A | N128: N/A | O128: N/A | P128: N/A | Q128: N/A | R128: N/A | S128: N/A | T128: N/A | U128: N/A | V128: N/A | W128: N/A | X128: N/A | Y128: N/A | Z128: N/A | AA128: N/A | AB128: N/A | AC128: N/A | BA128: Shared among improved sanitation facilities | BB128: Yes | BC128: N/A | BD128: N/A | BE128: N/A | BF128: N/A | BG128: N/A | BH128: N/A | BI128: N/A | BJ128: N/A | BK128: N/A | BL128: N/A | BM128: N/A | BN128: N/A | BO128: N/A | BP128: N/A | BQ128: N/A | BR128: N/A | BS128: N/A | BT128: N/A | BU128: N/A | BV128: N/A | BW128: N/A | BX128: N/A | BY128: N/A | BZ128: N/A | CA128: N/A | CB128: N/A | CC128: N/A
B129: No | C129: N/A | D129: N/A | E129: N/A | F129: N/A | G129: N/A | H129: N/A | I129: N/A | J129: N/A | K129: N/A | L129: N/A | M129: N/A | N129: N/A | O129: N/A | P129: N/A | Q129: N/A | R129: N/A | S129: N/A | T129: N/A | U129: N/A | V129: N/A | W129: N/A | X129: N/A | Y129: N/A | Z129: N/A | AA129: N/A | AB129: N/A | AC129: N/A | BB129: No | BC129: N/A | BD129: N/A | BE129: N/A | BF129: N/A | BG129: N/A | BH129: N/A | BI129: N/A | BJ129: N/A | BK129: N/A | BL129: N/A | BM129: N/A | BN129: N/A | BO129: N/A | BP129: N/A | BQ129: N/A | BR129: N/A | BS129: N/A | BT129: N/A | BU129: N/A | BV129: N/A | BW129: N/A | BX129: N/A | BY129: N/A | BZ129: N/A | CA129: N/A | CB129: N/A | CC129: N/A
A130: Manually calculated ratios | B130: Improved latrines
B131: Other
B132: Other
C133: NATIONAL wealth index quintile | H133: URBAN wealth index quintile | M133: RURAL wealth index quintile | R133: SUB-REGIONS: | BA133: Raw numbers of respondents: | BB133: Use of sanitation facilities | BC133: NATIONAL wealth index quintile | BH133: URBAN wealth index quintile | BM133: RURAL wealth index quintile | BR133: SUB-REGIONS:
A134: Percentage based on weighted population | C134: Poorest | D134: Poor | E134: Middle | F134: Rich | G134: Richest | H134: Poorest | I134: Poor | J134: Middle | K134: Rich | L134: Richest | M134: Poorest | N134: Poor | O134: Middle | P134: Rich | Q134: Richest | R134: adamaoua | S134: centre sans yde | T134: douala | U134: est | V134: extreme nord | W134: littoral sans dla | X134: nord | Y134: nord ouest | Z134: ouest | AA134: sud | AB134: sud ouest | AC134: yaounde | BA134: Sanitation data, raw numbers (weighted) | BC134: Poorest | BD134: Poor | BE134: Middle | BF134: Rich | BG134: Richest | BH134: Poorest | BI134: Poor | BJ134: Middle | BK134: Rich | BL134: Richest | BM134: Poorest | BN134: Poor | BO134: Middle | BP134: Rich | BQ134: Richest | BR134: adamaoua | BS134: centre sans yde | BT134: douala | BU134: est | BV134: extreme nord | BW134: littoral sans dla | BX134: nord | BY134: nord ouest | BZ134: ouest | CA134: sud | CB134: sud ouest | CC134: yaounde
A135: Sanitation type | B135: Sewer connection | C135: N/A | D135: N/A | E135: N/A | F135: N/A | G135: N/A | H135: N/A | I135: N/A | J135: N/A | K135: N/A | L135: N/A | M135: N/A | N135: N/A | O135: N/A | P135: N/A | Q135: N/A | R135: N/A | S135: N/A | T135: N/A | U135: N/A | V135: N/A | W135: N/A | X135: N/A | Y135: N/A | Z135: N/A | AA135: N/A | AB135: N/A | AC135: N/A | BA135: Sanitation type | BB135: Sewer connection | BC135: N/A | BD135: N/A | BE135: N/A | BF135: N/A | BG135: N/A | BH135: N/A | BI135: N/A | BJ135: N/A | BK135: N/A | BL135: N/A | BM135: N/A | BN135: N/A | BO135: N/A | BP135: N/A | BQ135: N/A | BR135: N/A | BS135: N/A | BT135: N/A | BU135: N/A | BV135: N/A | BW135: N/A | BX135: N/A | BY135: N/A | BZ135: N/A | CA135: N/A | CB135: N/A | CC135: N/A
B136: Septic tank connection | C136: N/A | D136: N/A | E136: N/A | F136: N/A | G136: N/A | H136: N/A | I136: N/A | J136: N/A | K136: N/A | L136: N/A | M136: N/A | N136: N/A | O136: N/A | P136: N/A | Q136: N/A | R136: N/A | S136: N/A | T136: N/A | U136: N/A | V136: N/A | W136: N/A | X136: N/A | Y136: N/A | Z136: N/A | AA136: N/A | AB136: N/A | AC136: N/A | BB136: Septic tank connection | BC136: N/A | BD136: N/A | BE136: N/A | BF136: N/A | BG136: N/A | BH136: N/A | BI136: N/A | BJ136: N/A | BK136: N/A | BL136: N/A | BM136: N/A | BN136: N/A | BO136: N/A | BP136: N/A | BQ136: N/A | BR136: N/A | BS136: N/A | BT136: N/A | BU136: N/A | BV136: N/A | BW136: N/A | BX136: N/A | BY136: N/A | BZ136: N/A | CA136: N/A | CB136: N/A | CC136: N/A
B137: Improved latrines | C137: N/A | D137: N/A | E137: N/A | F137: N/A | G137: N/A | H137: N/A | I137: N/A | J137: N/A | K137: N/A | L137: N/A | M137: N/A | N137: N/A | O137: N/A | P137: N/A | Q137: N/A | R137: N/A | S137: N/A | T137: N/A | U137: N/A | V137: N/A | W137: N/A | X137: N/A | Y137: N/A | Z137: N/A | AA137: N/A | AB137: N/A | AC137: N/A | BB137: Improved latrines | BC137: N/A | BD137: N/A | BE137: N/A | BF137: N/A | BG137: N/A | BH137: N/A | BI137: N/A | BJ137: N/A | BK137: N/A | BL137: N/A | BM137: N/A | BN137: N/A | BO137: N/A | BP137: N/A | BQ137: N/A | BR137: N/A | BS137: N/A | BT137: N/A | BU137: N/A | BV137: N/A | BW137: N/A | BX137: N/A | BY137: N/A | BZ137: N/A | CA137: N/A | CB137: N/A | CC137: N/A
B138: Unimproved facilities | C138: N/A | D138: N/A | E138: N/A | F138: N/A | G138: N/A | H138: N/A | I138: N/A | J138: N/A | K138: N/A | L138: N/A | M138: N/A | N138: N/A | O138: N/A | P138: N/A | Q138: N/A | R138: N/A | S138: N/A | T138: N/A | U138: N/A | V138: N/A | W138: N/A | X138: N/A | Y138: N/A | Z138: N/A | AA138: N/A | AB138: N/A | AC138: N/A | BB138: Unimproved facilities | BC138: N/A | BD138: N/A | BE138: N/A | BF138: N/A | BG138: N/A | BH138: N/A | BI138: N/A | BJ138: N/A | BK138: N/A | BL138: N/A | BM138: N/A | BN138: N/A | BO138: N/A | BP138: N/A | BQ138: N/A | BR138: N/A | BS138: N/A | BT138: N/A | BU138: N/A | BV138: N/A | BW138: N/A | BX138: N/A | BY138: N/A | BZ138: N/A | CA138: N/A | CB138: N/A | CC138: N/A
B139: Open defecation | C139: N/A | D139: N/A | E139: N/A | F139: N/A | G139: N/A | H139: N/A | I139: N/A | J139: N/A | K139: N/A | L139: N/A | M139: N/A | N139: N/A | O139: N/A | P139: N/A | Q139: N/A | R139: N/A | S139: N/A | T139: N/A | U139: N/A | V139: N/A | W139: N/A | X139: N/A | Y139: N/A | Z139: N/A | AA139: N/A | AB139: N/A | AC139: N/A | BB139: Open defecation | BC139: N/A | BD139: N/A | BE139: N/A | BF139: N/A | BG139: N/A | BH139: N/A | BI139: N/A | BJ139: N/A | BK139: N/A | BL139: N/A | BM139: N/A | BN139: N/A | BO139: N/A | BP139: N/A | BQ139: N/A | BR139: N/A | BS139: N/A | BT139: N/A | BU139: N/A | BV139: N/A | BW139: N/A | BX139: N/A | BY139: N/A | BZ139: N/A | CA139: N/A | CB139: N/A | CC139: N/A
A140: Septic tank emptying practices | B140: Not emptied/treated and disposed in situ | C140: N/A | D140: N/A | E140: N/A | F140: N/A | G140: N/A | H140: N/A | I140: N/A | J140: N/A | K140: N/A | L140: N/A | M140: N/A | N140: N/A | O140: N/A | P140: N/A | Q140: N/A | R140: N/A | S140: N/A | T140: N/A | U140: N/A | V140: N/A | W140: N/A | X140: N/A | Y140: N/A | Z140: N/A | AA140: N/A | AB140: N/A | AC140: N/A | BA140: Septic tank emptying practices | BB140: Not emptied/treated and disposed in situ | BC140: N/A | BD140: N/A | BE140: N/A | BF140: N/A | BG140: N/A | BH140: N/A | BI140: N/A | BJ140: N/A | BK140: N/A | BL140: N/A | BM140: N/A | BN140: N/A | BO140: N/A | BP140: N/A | BQ140: N/A | BR140: N/A | BS140: N/A | BT140: N/A | BU140: N/A | BV140: N/A | BW140: N/A | BX140: N/A | BY140: N/A | BZ140: N/A | CA140: N/A | CB140: N/A | CC140: N/A
B141: Emptied and buried on site | C141: N/A | D141: N/A | E141: N/A | F141: N/A | G141: N/A | H141: N/A | I141: N/A | J141: N/A | K141: N/A | L141: N/A | M141: N/A | N141: N/A | O141: N/A | P141: N/A | Q141: N/A | R141: N/A | S141: N/A | T141: N/A | U141: N/A | V141: N/A | W141: N/A | X141: N/A | Y141: N/A | Z141: N/A | AA141: N/A | AB141: N/A | AC141: N/A | BB141: Emptied and buried on site | BC141: N/A | BD141: N/A | BE141: N/A | BF141: N/A | BG141: N/A | BH141: N/A | BI141: N/A | BJ141: N/A | BK141: N/A | BL141: N/A | BM141: N/A | BN141: N/A | BO141: N/A | BP141: N/A | BQ141: N/A | BR141: N/A | BS141: N/A | BT141: N/A | BU141: N/A | BV141: N/A | BW141: N/A | BX141: N/A | BY141: N/A | BZ141: N/A | CA141: N/A | CB141: N/A | CC141: N/A
B142: Emptied and discharged locally | C142: N/A | D142: N/A | E142: N/A | F142: N/A | G142: N/A | H142: N/A | I142: N/A | J142: N/A | K142: N/A | L142: N/A | M142: N/A | N142: N/A | O142: N/A | P142: N/A | Q142: N/A | R142: N/A | S142: N/A | T142: N/A | U142: N/A | V142: N/A | W142: N/A | X142: N/A | Y142: N/A | Z142: N/A | AA142: N/A | AB142: N/A | AC142: N/A | BB142: Emptied and discharged locally | BC142: N/A | BD142: N/A | BE142: N/A | BF142: N/A | BG142: N/A | BH142: N/A | BI142: N/A | BJ142: N/A | BK142: N/A | BL142: N/A | BM142: N/A | BN142: N/A | BO142: N/A | BP142: N/A | BQ142: N/A | BR142: N/A | BS142: N/A | BT142: N/A | BU142: N/A | BV142: N/A | BW142: N/A | BX142: N/A | BY142: N/A | BZ142: N/A | CA142: N/A | CB142: N/A | CC142: N/A
B143: Emptied and removed offsite | C143: N/A | D143: N/A | E143: N/A | F143: N/A | G143: N/A | H143: N/A | I143: N/A | J143: N/A | K143: N/A | L143: N/A | M143: N/A | N143: N/A | O143: N/A | P143: N/A | Q143: N/A | R143: N/A | S143: N/A | T143: N/A | U143: N/A | V143: N/A | W143: N/A | X143: N/A | Y143: N/A | Z143: N/A | AA143: N/A | AB143: N/A | AC143: N/A | BB143: Emptied and removed offsite | BC143: N/A | BD143: N/A | BE143: N/A | BF143: N/A | BG143: N/A | BH143: N/A | BI143: N/A | BJ143: N/A | BK143: N/A | BL143: N/A | BM143: N/A | BN143: N/A | BO143: N/A | BP143: N/A | BQ143: N/A | BR143: N/A | BS143: N/A | BT143: N/A | BU143: N/A | BV143: N/A | BW143: N/A | BX143: N/A | BY143: N/A | BZ143: N/A | CA143: N/A | CB143: N/A | CC143: N/A
A144: Latrine emptying practices | B144: Not emptied/treated and disposed in situ | C144: N/A | D144: N/A | E144: N/A | F144: N/A | G144: N/A | H144: N/A | I144: N/A | J144: N/A | K144: N/A | L144: N/A | M144: N/A | N144: N/A | O144: N/A | P144: N/A | Q144: N/A | R144: N/A | S144: N/A | T144: N/A | U144: N/A | V144: N/A | W144: N/A | X144: N/A | Y144: N/A | Z144: N/A | AA144: N/A | AB144: N/A | AC144: N/A | BA144: Latrine emptying practices | BB144: Not emptied/treated and disposed in situ | BC144: N/A | BD144: N/A | BE144: N/A | BF144: N/A | BG144: N/A | BH144: N/A | BI144: N/A | BJ144: N/A | BK144: N/A | BL144: N/A | BM144: N/A | BN144: N/A | BO144: N/A | BP144: N/A | BQ144: N/A | BR144: N/A | BS144: N/A | BT144: N/A | BU144: N/A | BV144: N/A | BW144: N/A | BX144: N/A | BY144: N/A | BZ144: N/A | CA144: N/A | CB144: N/A | CC144: N/A
B145: Emptied and buried on site | C145: N/A | D145: N/A | E145: N/A | F145: N/A | G145: N/A | H145: N/A | I145: N/A | J145: N/A | K145: N/A | L145: N/A | M145: N/A | N145: N/A | O145: N/A | P145: N/A | Q145: N/A | R145: N/A | S145: N/A | T145: N/A | U145: N/A | V145: N/A | W145: N/A | X145: N/A | Y145: N/A | Z145: N/A | AA145: N/A | AB145: N/A | AC145: N/A | BB145: Emptied and buried on site | BC145: N/A | BD145: N/A | BE145: N/A | BF145: N/A | BG145: N/A | BH145: N/A | BI145: N/A | BJ145: N/A | BK145: N/A | BL145: N/A | BM145: N/A | BN145: N/A | BO145: N/A | BP145: N/A | BQ145: N/A | BR145: N/A | BS145: N/A | BT145: N/A | BU145: N/A | BV145: N/A | BW145: N/A | BX145: N/A | BY145: N/A | BZ145: N/A | CA145: N/A | CB145: N/A | CC145: N/A
B146: Emptied and discharged locally | C146: N/A | D146: N/A | E146: N/A | F146: N/A | G146: N/A | H146: N/A | I146: N/A | J146: N/A | K146: N/A | L146: N/A | M146: N/A | N146: N/A | O146: N/A | P146: N/A | Q146: N/A | R146: N/A | S146: N/A | T146: N/A | U146: N/A | V146: N/A | W146: N/A | X146: N/A | Y146: N/A | Z146: N/A | AA146: N/A | AB146: N/A | AC146: N/A | BB146: Emptied and discharged locally | BC146: N/A | BD146: N/A | BE146: N/A | BF146: N/A | BG146: N/A | BH146: N/A | BI146: N/A | BJ146: N/A | BK146: N/A | BL146: N/A | BM146: N/A | BN146: N/A | BO146: N/A | BP146: N/A | BQ146: N/A | BR146: N/A | BS146: N/A | BT146: N/A | BU146: N/A | BV146: N/A | BW146: N/A | BX146: N/A | BY146: N/A | BZ146: N/A | CA146: N/A | CB146: N/A | CC146: N/A
B147: Emptied and removed offsite | C147: N/A | D147: N/A | E147: N/A | F147: N/A | G147: N/A | H147: N/A | I147: N/A | J147: N/A | K147: N/A | L147: N/A | M147: N/A | N147: N/A | O147: N/A | P147: N/A | Q147: N/A | R147: N/A | S147: N/A | T147: N/A | U147: N/A | V147: N/A | W147: N/A | X147: N/A | Y147: N/A | Z147: N/A | AA147: N/A | AB147: N/A | AC147: N/A | BB147: Emptied and removed offsite | BC147: N/A | BD147: N/A | BE147: N/A | BF147: N/A | BG147: N/A | BH147: N/A | BI147: N/A | BJ147: N/A | BK147: N/A | BL147: N/A | BM147: N/A | BN147: N/A | BO147: N/A | BP147: N/A | BQ147: N/A | BR147: N/A | BS147: N/A | BT147: N/A | BU147: N/A | BV147: N/A | BW147: N/A | BX147: N/A | BY147: N/A | BZ147: N/A | CA147: N/A | CB147: N/A | CC147: N/A
A148: Shared among improved sanitation facilities | B148: Yes | C148: N/A | D148: N/A | E148: N/A | F148: N/A | G148: N/A | H148: N/A | I148: N/A | J148: N/A | K148: N/A | L148: N/A | M148: N/A | N148: N/A | O148: N/A | P148: N/A | Q148: N/A | R148: N/A | S148: N/A | T148: N/A | U148: N/A | V148: N/A | W148: N/A | X148: N/A | Y148: N/A | Z148: N/A | AA148: N/A | AB148: N/A | AC148: N/A | BA148: Shared among improved sanitation facilities | BB148: Yes | BC148: N/A | BD148: N/A | BE148: N/A | BF148: N/A | BG148: N/A | BH148: N/A | BI148: N/A | BJ148: N/A | BK148: N/A | BL148: N/A | BM148: N/A | BN148: N/A | BO148: N/A | BP148: N/A | BQ148: N/A | BR148: N/A | BS148: N/A | BT148: N/A | BU148: N/A | BV148: N/A | BW148: N/A | BX148: N/A | BY148: N/A | BZ148: N/A | CA148: N/A | CB148: N/A | CC148: N/A
B149: No | C149: N/A | D149: N/A | E149: N/A | F149: N/A | G149: N/A | H149: N/A | I149: N/A | J149: N/A | K149: N/A | L149: N/A | M149: N/A | N149: N/A | O149: N/A | P149: N/A | Q149: N/A | R149: N/A | S149: N/A | T149: N/A | U149: N/A | V149: N/A | W149: N/A | X149: N/A | Y149: N/A | Z149: N/A | AA149: N/A | AB149: N/A | AC149: N/A | BB149: No | BC149: N/A | BD149: N/A | BE149: N/A | BF149: N/A | BG149: N/A | BH149: N/A | BI149: N/A | BJ149: N/A | BK149: N/A | BL149: N/A | BM149: N/A | BN149: N/A | BO149: N/A | BP149: N/A | BQ149: N/A | BR149: N/A | BS149: N/A | BT149: N/A | BU149: N/A | BV149: N/A | BW149: N/A | BX149: N/A | BY149: N/A | BZ149: N/A | CA149: N/A | CB149: N/A | CC149: N/A
B150: DK/missing | C150: N/A | D150: N/A | E150: N/A | F150: N/A | G150: N/A | H150: N/A | I150: N/A | J150: N/A | K150: N/A | L150: N/A | M150: N/A | N150: N/A | O150: N/A | P150: N/A | Q150: N/A | R150: N/A | S150: N/A | T150: N/A | U150: N/A | V150: N/A | W150: N/A | X150: N/A | Y150: N/A | Z150: N/A | AA150: N/A | AB150: N/A | AC150: N/A | BB150: DK/missing | BC150: N/A | BD150: N/A | BE150: N/A | BF150: N/A | BG150: N/A | BH150: N/A | BI150: N/A | BJ150: N/A | BK150: N/A | BL150: N/A | BM150: N/A | BN150: N/A | BO150: N/A | BP150: N/A | BQ150: N/A | BR150: N/A | BS150: N/A | BT150: N/A | BU150: N/A | BV150: N/A | BW150: N/A | BX150: N/A | BY150: N/A | BZ150: N/A | CA150: N/A | CB150: N/A | CC150: N/A
A151: Shared among all sanitation facilities | B151: Yes | C151: N/A | D151: N/A | E151: N/A | F151: N/A | G151: N/A | H151: N/A | I151: N/A | J151: N/A | K151: N/A | L151: N/A | M151: N/A | N151: N/A | O151: N/A | P151: N/A | Q151: N/A | R151: N/A | S151: N/A | T151: N/A | U151: N/A | V151: N/A | W151: N/A | X151: N/A | Y151: N/A | Z151: N/A | AA151: N/A | AB151: N/A | AC151: N/A | BA151: Shared among all sanitation facilities | BB151: Yes | BC151: N/A | BD151: N/A | BE151: N/A | BF151: N/A | BG151: N/A | BH151: N/A | BI151: N/A | BJ151: N/A | BK151: N/A | BL151: N/A | BM151: N/A | BN151: N/A | BO151: N/A | BP151: N/A | BQ151: N/A | BR151: N/A | BS151: N/A | BT151: N/A | BU151: N/A | BV151: N/A | BW151: N/A | BX151: N/A | BY151: N/A | BZ151: N/A | CA151: N/A | CB151: N/A | CC151: N/A
B152: No | C152: N/A | D152: N/A | E152: N/A | F152: N/A | G152: N/A | H152: N/A | I152: N/A | J152: N/A | K152: N/A | L152: N/A | M152: N/A | N152: N/A | O152: N/A | P152: N/A | Q152: N/A | R152: N/A | S152: N/A | T152: N/A | U152: N/A | V152: N/A | W152: N/A | X152: N/A | Y152: N/A | Z152: N/A | AA152: N/A | AB152: N/A | AC152: N/A | BB152: No | BC152: N/A | BD152: N/A | BE152: N/A | BF152: N/A | BG152: N/A | BH152: N/A | BI152: N/A | BJ152: N/A | BK152: N/A | BL152: N/A | BM152: N/A | BN152: N/A | BO152: N/A | BP152: N/A | BQ152: N/A | BR152: N/A | BS152: N/A | BT152: N/A | BU152: N/A | BV152: N/A | BW152: N/A | BX152: N/A | BY152: N/A | BZ152: N/A | CA152: N/A | CB152: N/A | CC152: N/A
A153: type de toilette | B153: chasse eau avec egouts ou fosse | C153: 0.2308301944 | D153: 0 | E153: 0.2928970088 | F153: 1.390572338 | G153: 25.79494949 | H153: 0.8493971296 | I153: 1.959650275 | J153: 7.04825678 | K153: 21.39035474 | L153: 44.94565985 | M153: 0.3567181926 | N153: 0 | O153: 0 | P153: 0 | Q153: 1.958433253 | R153: 6.260617365 | S153: 1.663738319 | T153: 30.34482759 | U153: 2.037716384 | V153: 0.4685426658 | W153: 7.5332175 | X153: 1.709407825 | Y153: 4.262035619 | Z153: 3.355398899 | AA153: 1.271256336 | AB153: 3.642088722 | AC153: 24.10147992 | BA153: type de toilette | BB153: chasse eau avec egouts ou fosse | BC153: 11.46685016 | BD153: 0 | BE153: 14.47746289 | BF153: 68.44026279 | BG153: 1270.736984 | BH153: 14.47746289 | BI153: 33.30793691 | BJ153: 118.7912935 | BK153: 363.7283553 | BL153: 760.9190326 | BM153: 11.46685016 | BN153: 0 | BO153: 0 | BP153: 0 | BQ153: 62.43062866 | BR153: 33.78113794 | BS153: 50.06236064 | BT153: 502.7727857 | BU153: 42.68973291 | BV153: 20.17904055 | BW153: 65.61336696 | BX153: 39.20485675 | BY153: 93.23050344 | BZ153: 96.97725236 | CA153: 8.918661237 | CB153: 101.5398184 | CC153: 310.1520431
B154: latrines e‚vacuation | C154: 0.03507565849 | D154: 0 | E154: 0.4269212362 | F154: 0.5796134059 | G154: 4.910197041 | H154: 0.2937737299 | I154: 0.435417356 | J154: 2.513141183 | K154: 5.846012262 | L154: 6.635348447 | M154: 0 | N154: 0 | O154: 0 | P154: 0.5464480874 | Q154: 0.2797761791 | R154: 0 | S154: 0.8396514657 | T154: 2.922824302 | U154: 0.8317209731 | V154: 0 | W154: 0.3000798228 | X154: 0 | Y154: 0.6372449254 | Z154: 1.477058581 | AA154: 0 | AB154: 2.490918984 | AC154: 5.708245243 | BB154: latrines e‚vacuation | BC154: 1.742438078 | BD154: 0 | BE154: 21.10208082 | BF154: 28.52702641 | BG154: 241.8911105 | BH154: 5.007196426 | BI154: 7.400735736 | BJ154: 42.35647213 | BK154: 99.4074409 | BL154: 112.3348269 | BM154: 0 | BN154: 0 | BO154: 0 | BP154: 17.83732247 | BQ154: 8.918661237 | BR154: 0 | BS154: 25.26535213 | BT154: 48.42724884 | BU154: 17.42438078 | BV154: 0 | BW154: 2.613657117 | BX154: 0 | BY154: 13.93950462 | BZ154: 42.68973291 | CA154: 0 | CB154: 69.44571662 | CC154: 73.45706284
B155: latrines ameliorees a ventilation | C155: 0.4656140557 | D155: 0.1942088413 | E155: 2.694633049 | F155: 10.45368623 | G155: 5.672817317 | H155: 2.325627683 | I155: 7.124805243 | J155: 4.859060625 | K155: 5.667868067 | L155: 2.573040817 | M155: 0.4756242568 | N155: 0.08156606852 | O155: 0.07601672368 | P155: 3.239656518 | Q155: 14.14868106 | R155: 0 | S155: 0.4277753066 | T155: 0 | U155: 0 | V155: 0 | W155: 3.100824836 | X155: 0 | Y155: 24.75171109 | Z155: 0.5776156724 | AA155: 2.49441901 | AB155: 12.24939578 | AC155: 0.2114164905 | BB155: latrines ameliorees a ventilation | BC155: 23.1301049 | BD155: 9.452473044 | BE155: 133.1916981 | BF155: 514.5025637 | BG155: 279.4600847 | BH155: 39.63892424 | BI155: 121.0994464 | BJ155: 81.89458966 | BK155: 96.37822068 | BL155: 43.56095195 | BM155: 15.28913355 | BN155: 2.548188925 | BO155: 2.548188925 | BP155: 105.7498404 | BQ155: 451.0294397 | BR155: 0 | BS155: 12.87188101 | BT155: 0 | BU155: 0 | BV155: 0 | BW155: 27.00779021 | BX155: 0 | BY155: 541.4348195 | BZ155: 16.6941644 | CA155: 17.49991524 | CB155: 341.5077221 | CC155: 2.720631957
B156: latrines traditionelles | C156: 61.77420583 | D156: 61.68374984 | E156: 72.23258464 | F156: 70.43938716 | G156: 55.83163629 | H156: 80.29018893 | I156: 78.1871392 | J156: 77.07810668 | K156: 62.74888017 | L156: 40.16940171 | M156: 59.4530321 | N156: 59.50244698 | O156: 63.70201444 | P156: 69.08665105 | Q156: 61.31095124 | R156: 90.19748689 | S156: 45.64409058 | T156: 52.70935961 | U156: 28.5321118 | V156: 80.98912066 | W156: 79.41128983 | X156: 92.59037155 | Y156: 67.20376371 | Z156: 70.37781304 | AA156: 41.7188877 | AB156: 55.15714103 | AC156: 69.13319239 | BB156: latrines traditionelles | BC156: 3068.730086 | BD156: 3002.252517 | BE156: 3570.349072 | BF156: 3466.838823 | BG156: 2750.434737 | BH156: 1368.49795 | BI156: 1328.937276 | BJ156: 1299.074123 | BK156: 1067.001798 | BL156: 680.0581499 | BM156: 1911.141694 | BN156: 1858.903821 | BO156: 2135.382319 | BP156: 2255.147198 | BQ156: 1954.460905 | BR156: 486.6890227 | BS156: 1373.443707 | BT156: 873.3228582 | BU156: 597.7417866 | BV156: 3488.01266 | BW156: 691.6622413 | BX156: 2123.537871 | BY156: 1470.058274 | BZ156: 2034.049346 | CA156: 292.6841866 | CB156: 1537.756631 | CC156: 889.64665
B157: trou ouvert | C157: 22.42827028 | D157: 30.54582831 | E157: 20.39703396 | F157: 16.07382461 | G157: 6.259856719 | H157: 15.32094821 | I157: 12.08795756 | J157: 8.023328234 | K157: 3.988238565 | L157: 5.496527405 | M157: 23.14704717 | N157: 27.44698206 | O157: 29.64652223 | P157: 22.87275566 | Q157: 18.94484412 | R157: 0 | S157: 48.63014688 | T157: 13.85878489 | U157: 56.66902797 | V157: 0.4652686865 | W157: 9.508306377 | X157: 3.949093604 | Y157: 1.339641243 | Z157: 23.17745868 | AA157: 50.70166794 | AB157: 20.43781556 | AC157: 0.8033826638 | BB157: trou ouvert | BC157: 1114.15933 | BD157: 1486.717169 | BE157: 1008.195008 | BF157: 791.1107897 | BG157: 308.3794155 | BH157: 261.1363417 | BI157: 205.4575415 | BJ157: 135.2251441 | BK157: 67.81726956 | BL157: 93.05486512 | BM157: 744.071166 | BN157: 857.4655732 | BO157: 993.7936807 | BP157: 746.619355 | BQ157: 603.9207752 | BR157: 0 | BS157: 1463.294992 | BT157: 229.6213372 | BU157: 1187.204307 | BV157: 20.0380379 | BW157: 82.81614006 | BX157: 90.57151067 | BY157: 29.30417264 | BZ157: 669.8715494 | CA157: 355.704029 | CB157: 569.7972343 | CC157: 10.33840144
B158: autres | C158: 1.23109437 | D158: 0.4973690752 | E158: 0.5928597142 | F158: 0.02211116899 | G158: 1.176637744 | H158: 0 | I158: 0 | J158: 0.06456942111 | K158: 0.3586461936 | L158: 0.1285609567 | M158: 1.466508125 | N158: 0.8156606852 | O158: 0.5321170658 | P158: 0.7416081187 | Q158: 1.558752998 | R158: 0 | S158: 0 | T158: 0.1642036125 | U158: 1.033881702 | V158: 0 | W158: 0 | X158: 0 | Y158: 1.630867601 | Z158: 0.5290018084 | AA158: 1.997688528 | AB158: 3.006442925 | AC158: 0.0422832981 | BB158: autres | BC158: 61.15653419 | BD158: 24.20779479 | BE158: 29.30417264 | BF158: 1.088252783 | BG158: 57.96472287 | BH158: 0 | BI158: 0 | BJ158: 1.088252783 | BK158: 6.098533273 | BL158: 2.176505566 | BM158: 47.14149511 | BN158: 25.48188925 | BO158: 17.83732247 | BP158: 24.20779479 | BQ158: 49.68968403 | BR158: 0 | BS158: 0 | BT158: 2.720631957 | BU158: 21.65960586 | BV158: 0 | BW158: 0 | BX158: 0 | BY158: 35.67464495 | BZ158: 15.28913355 | CA158: 14.01503909 | CB158: 83.81829548 | CC158: 0.5441263914
B159: pas de toilettes/brousse | C159: 13.83490961 | D159: 7.078843934 | E159: 3.363070388 | F159: 1.040805087 | G159: 0.3539054003 | H159: 0.9200643249 | I159: 0.2050303667 | J159: 0.4135370745 | K159: 0 | L159: 0.05146081634 | M159: 15.10107015 | N159: 12.15334421 | O159: 6.043329532 | P159: 3.512880562 | Q159: 1.798561151 | R159: 3.541895745 | S159: 2.794597451 | T159: 0 | U159: 10.89554117 | V159: 18.07706799 | W159: 0.1462816366 | X159: 1.751127023 | Y159: 0.1747358143 | Z159: 0.5056533257 | AA159: 1.81608048 | AB159: 3.016196991 | AC159: 0 | BB159: pas de toilettes/brousse | BC159: 687.270727 | BD159: 344.5393167 | BE159: 166.2315601 | BF159: 51.22565126 | BG159: 17.43444705 | BH159: 15.6819427 | BI159: 3.484876156 | BJ159: 6.969752312 | BK159: 0 | BL159: 0.871219039 | BM159: 485.4299902 | BN159: 379.6801498 | BO159: 202.5810195 | BP159: 114.6685016 | BQ159: 57.33425081 | BR159: 19.11141694 | BS159: 84.09023452 | BT159: 0 | BU159: 228.2593133 | BV159: 778.5371847 | BW159: 1.274094462 | BX159: 40.16167653 | BY159: 3.822283387 | BZ159: 14.61431909 | CA159: 12.74094462 | CB159: 84.09023452 | CC159: 0
BB160: Total | BC160: 4967.65607 | BD160: 4867.16927 | BE160: 4942.851054 | BF160: 4921.73337 | BG160: 4926.301501 | BH160: 1704.439818 | BI160: 1699.687813 | BJ160: 1685.399627 | BK160: 1700.431618 | BL160: 1692.975551 | BM160: 3214.540329 | BN160: 3124.079622 | BO160: 3352.142531 | BP160: 3264.230013 | BQ160: 3187.784345 | BR160: 539.5815775 | BS160: 3009.028527 | BT160: 1656.864862 | BU160: 2094.979127 | BV160: 4306.766923 | BW160: 870.9872901 | BX160: 2293.475915 | BY160: 2187.464202 | BZ160: 2890.185497 | CA160: 701.5627757 | CB160: 2787.955653 | CC160: 1286.858916
A208: =A1026 -> Cameroon
A209: =A1034 -> 2000
A210: Access to hygiene facilities
A211: by wealth quintile and sub-national region
A212: Notes:
A213: WHO/UNICEF JMP customised wealth index excludes water,
A214: sanitation and hygiene assets.
A215: Survey used for analysis: | B215: =A1025 -> MICS00
A220: Access to handwashing | C220: NATIONAL wealth index quintile | H220: URBAN wealth index quintile | M220: RURAL wealth index quintile | R220: SUB-REGIONS: | BA220: Raw numbers of respondents: | BB220: Access to handwashing | BC220: NATIONAL wealth index quintile | BH220: URBAN wealth index quintile | BM220: RURAL wealth index quintile | BR220: SUB-REGIONS:
A221: Weighted percentage (used in graphs) | C221: Poorest | D221: Poor | E221: Middle | F221: Rich | G221: Richest | H221: Poorest | I221: Poor | J221: Middle | K221: Rich | L221: Richest | M221: Poorest | N221: Poor | O221: Middle | P221: Rich | Q221: Richest | R221: adamaoua | S221: centre sans yde | T221: douala | U221: est | V221: extreme nord | W221: littoral sans dla | X221: nord | Y221: nord ouest | Z221: ouest | AA221: sud | AB221: sud ouest | AC221: yaounde | BA221: Hygiene data, raw numbers (weighted) | BC221: Poorest | BD221: Poor | BE221: Middle | BF221: Rich | BG221: Richest | BH221: Poorest | BI221: Poor | BJ221: Middle | BK221: Rich | BL221: Richest | BM221: Poorest | BN221: Poor | BO221: Middle | BP221: Rich | BQ221: Richest | BR221: adamaoua | BS221: centre sans yde | BT221: douala | BU221: est | BV221: extreme nord | BW221: littoral sans dla | BX221: nord | BY221: nord ouest | BZ221: ouest | CA221: sud | CB221: sud ouest | CC221: yaounde
A222: Hygiene ladder | B222: Basic | C222: N/A | D222: N/A | E222: N/A | F222: N/A | G222: N/A | H222: N/A | I222: N/A | J222: N/A | K222: N/A | L222: N/A | M222: N/A | N222: N/A | O222: N/A | P222: N/A | Q222: N/A | R222: N/A | S222: N/A | T222: N/A | U222: N/A | V222: N/A | W222: N/A | X222: N/A | Y222: N/A | Z222: N/A | AA222: N/A | AB222: N/A | AC222: N/A | BA222: Hygiene ladder | BB222: Basic | BC222: N/A | BD222: N/A | BE222: N/A | BF222: N/A | BG222: N/A | BH222: N/A | BI222: N/A | BJ222: N/A | BK222: N/A | BL222: N/A | BM222: N/A | BN222: N/A | BO222: N/A | BP222: N/A | BQ222: N/A | BR222: N/A | BS222: N/A | BT222: N/A | BU222: N/A | BV222: N/A | BW222: N/A | BX222: N/A | BY222: N/A | BZ222: N/A | CA222: N/A | CB222: N/A | CC222: N/A
B223: Limited | C223: N/A | D223: N/A | E223: N/A | F223: N/A | G223: N/A | H223: N/A | I223: N/A | J223: N/A | K223: N/A | L223: N/A | M223: N/A | N223: N/A | O223: N/A | P223: N/A | Q223: N/A | R223: N/A | S223: N/A | T223: N/A | U223: N/A | V223: N/A | W223: N/A | X223: N/A | Y223: N/A | Z223: N/A | AA223: N/A | AB223: N/A | AC223: N/A | BB223: Limited | BC223: N/A | BD223: N/A | BE223: N/A | BF223: N/A | BG223: N/A | BH223: N/A | BI223: N/A | BJ223: N/A | BK223: N/A | BL223: N/A | BM223: N/A | BN223: N/A | BO223: N/A | BP223: N/A | BQ223: N/A | BR223: N/A | BS223: N/A | BT223: N/A | BU223: N/A | BV223: N/A | BW223: N/A | BX223: N/A | BY223: N/A | BZ223: N/A | CA223: N/A | CB223: N/A | CC223: N/A
B224: No facility | C224: N/A | D224: N/A | E224: N/A | F224: N/A | G224: N/A | H224: N/A | I224: N/A | J224: N/A | K224: N/A | L224: N/A | M224: N/A | N224: N/A | O224: N/A | P224: N/A | Q224: N/A | R224: N/A | S224: N/A | T224: N/A | U224: N/A | V224: N/A | W224: N/A | X224: N/A | Y224: N/A | Z224: N/A | AA224: N/A | AB224: N/A | AC224: N/A | BB224: No facility | BC224: N/A | BD224: N/A | BE224: N/A | BF224: N/A | BG224: N/A | BH224: N/A | BI224: N/A | BJ224: N/A | BK224: N/A | BL224: N/A | BM224: N/A | BN224: N/A | BO224: N/A | BP224: N/A | BQ224: N/A | BR224: N/A | BS224: N/A | BT224: N/A | BU224: N/A | BV224: N/A | BW224: N/A | BX224: N/A | BY224: N/A | BZ224: N/A | CA224: N/A | CB224: N/A | CC224: N/A
BA225: Observed handwashing place | BB225: Fixed | BC225: N/A | BD225: N/A | BE225: N/A | BF225: N/A | BG225: N/A | BH225: N/A | BI225: N/A | BJ225: N/A | BK225: N/A | BL225: N/A | BM225: N/A | BN225: N/A | BO225: N/A | BP225: N/A | BQ225: N/A | BR225: N/A | BS225: N/A | BT225: N/A | BU225: N/A | BV225: N/A | BW225: N/A | BX225: N/A | BY225: N/A | BZ225: N/A | CA225: N/A | CB225: N/A | CC225: N/A
BB226: Mobile | BC226: N/A | BD226: N/A | BE226: N/A | BF226: N/A | BG226: N/A | BH226: N/A | BI226: N/A | BJ226: N/A | BK226: N/A | BL226: N/A | BM226: N/A | BN226: N/A | BO226: N/A | BP226: N/A | BQ226: N/A | BR226: N/A | BS226: N/A | BT226: N/A | BU226: N/A | BV226: N/A | BW226: N/A | BX226: N/A | BY226: N/A | BZ226: N/A | CA226: N/A | CB226: N/A | CC226: N/A
BA227: Water / Soap | BB227: Water and soap | BC227: N/A | BD227: N/A | BE227: N/A | BF227: N/A | BG227: N/A | BH227: N/A | BI227: N/A | BJ227: N/A | BK227: N/A | BL227: N/A | BM227: N/A | BN227: N/A | BO227: N/A | BP227: N/A | BQ227: N/A | BR227: N/A | BS227: N/A | BT227: N/A | BU227: N/A | BV227: N/A | BW227: N/A | BX227: N/A | BY227: N/A | BZ227: N/A | CA227: N/A | CB227: N/A | CC227: N/A
BB228: Water only | BC228: N/A | BD228: N/A | BE228: N/A | BF228: N/A | BG228: N/A | BH228: N/A | BI228: N/A | BJ228: N/A | BK228: N/A | BL228: N/A | BM228: N/A | BN228: N/A | BO228: N/A | BP228: N/A | BQ228: N/A | BR228: N/A | BS228: N/A | BT228: N/A | BU228: N/A | BV228: N/A | BW228: N/A | BX228: N/A | BY228: N/A | BZ228: N/A | CA228: N/A | CB228: N/A | CC228: N/A
BB229: Soap only | BC229: N/A | BD229: N/A | BE229: N/A | BF229: N/A | BG229: N/A | BH229: N/A | BI229: N/A | BJ229: N/A | BK229: N/A | BL229: N/A | BM229: N/A | BN229: N/A | BO229: N/A | BP229: N/A | BQ229: N/A | BR229: N/A | BS229: N/A | BT229: N/A | BU229: N/A | BV229: N/A | BW229: N/A | BX229: N/A | BY229: N/A | BZ229: N/A | CA229: N/A | CB229: N/A | CC229: N/A
BB230: Neither | BC230: N/A | BD230: N/A | BE230: N/A | BF230: N/A | BG230: N/A | BH230: N/A | BI230: N/A | BJ230: N/A | BK230: N/A | BL230: N/A | BM230: N/A | BN230: N/A | BO230: N/A | BP230: N/A | BQ230: N/A | BR230: N/A | BS230: N/A | BT230: N/A | BU230: N/A | BV230: N/A | BW230: N/A | BX230: N/A | BY230: N/A | BZ230: N/A | CA230: N/A | CB230: N/A | CC230: N/A
BA259: Raw numbers of respondents: | BB259: Menstrual health and hygiene | BC259: NATIONAL wealth index quintile | BH259: URBAN wealth index quintile | BM259: RURAL wealth index quintile | BR259: SUB-REGIONS:
BA260: MHH data, raw numbers (weighted) | BC260: Poorest | BD260: Poor | BE260: Middle | BF260: Rich | BG260: Richest | BH260: Poorest | BI260: Poor | BJ260: Middle | BK260: Rich | BL260: Richest | BM260: Poorest | BN260: Poor | BO260: Middle | BP260: Rich | BQ260: Richest | BR260: adamaoua | BS260: centre sans yde | BT260: douala | BU260: est | BV260: extreme nord | BW260: littoral sans dla | BX260: nord | BY260: nord ouest | BZ260: ouest | CA260: sud | CB260: sud ouest | CC260: yaounde
BA261: Private place to wash and change | BB261: Yes | BC261: N/A | BD261: N/A | BE261: N/A | BF261: N/A | BG261: N/A | BH261: N/A | BI261: N/A | BJ261: N/A | BK261: N/A | BL261: N/A | BM261: N/A | BN261: N/A | BO261: N/A | BP261: N/A | BQ261: N/A | BR261: N/A | BS261: N/A | BT261: N/A | BU261: N/A | BV261: N/A | BW261: N/A | BX261: N/A | BY261: N/A | BZ261: N/A | CA261: N/A | CB261: N/A | CC261: N/A
BB262: No | BC262: N/A | BD262: N/A | BE262: N/A | BF262: N/A | BG262: N/A | BH262: N/A | BI262: N/A | BJ262: N/A | BK262: N/A | BL262: N/A | BM262: N/A | BN262: N/A | BO262: N/A | BP262: N/A | BQ262: N/A | BR262: N/A | BS262: N/A | BT262: N/A | BU262: N/A | BV262: N/A | BW262: N/A | BX262: N/A | BY262: N/A | BZ262: N/A | CA262: N/A | CB262: N/A | CC262: N/A
BB263: DK/not sure/missing | BC263: N/A | BD263: N/A | BE263: N/A | BF263: N/A | BG263: N/A | BH263: N/A | BI263: N/A | BJ263: N/A | BK263: N/A | BL263: N/A | BM263: N/A | BN263: N/A | BO263: N/A | BP263: N/A | BQ263: N/A | BR263: N/A | BS263: N/A | BT263: N/A | BU263: N/A | BV263: N/A | BW263: N/A | BX263: N/A | BY263: N/A | BZ263: N/A | CA263: N/A | CB263: N/A | CC263: N/A
BA264: Use of menstrual materials | BB264: Materials reusable | BC264: N/A | BD264: N/A | BE264: N/A | BF264: N/A | BG264: N/A | BH264: N/A | BI264: N/A | BJ264: N/A | BK264: N/A | BL264: N/A | BM264: N/A | BN264: N/A | BO264: N/A | BP264: N/A | BQ264: N/A | BR264: N/A | BS264: N/A | BT264: N/A | BU264: N/A | BV264: N/A | BW264: N/A | BX264: N/A | BY264: N/A | BZ264: N/A | CA264: N/A | CB264: N/A | CC264: N/A
BB265: Materials not reusable | BC265: N/A | BD265: N/A | BE265: N/A | BF265: N/A | BG265: N/A | BH265: N/A | BI265: N/A | BJ265: N/A | BK265: N/A | BL265: N/A | BM265: N/A | BN265: N/A | BO265: N/A | BP265: N/A | BQ265: N/A | BR265: N/A | BS265: N/A | BT265: N/A | BU265: N/A | BV265: N/A | BW265: N/A | BX265: N/A | BY265: N/A | BZ265: N/A | CA265: N/A | CB265: N/A | CC265: N/A
BB266: No materials used | BC266: N/A | BD266: N/A | BE266: N/A | BF266: N/A | BG266: N/A | BH266: N/A | BI266: N/A | BJ266: N/A | BK266: N/A | BL266: N/A | BM266: N/A | BN266: N/A | BO266: N/A | BP266: N/A | BQ266: N/A | BR266: N/A | BS266: N/A | BT266: N/A | BU266: N/A | BV266: N/A | BW266: N/A | BX266: N/A | BY266: N/A | BZ266: N/A | CA266: N/A | CB266: N/A | CC266: N/A
BB267: DK/not sure/missing | BC267: N/A | BD267: N/A | BE267: N/A | BF267: N/A | BG267: N/A | BH267: N/A | BI267: N/A | BJ267: N/A | BK267: N/A | BL267: N/A | BM267: N/A | BN267: N/A | BO267: N/A | BP267: N/A | BQ267: N/A | BR267: N/A | BS267: N/A | BT267: N/A | BU267: N/A | BV267: N/A | BW267: N/A | BX267: N/A | BY267: N/A | BZ267: N/A | CA267: N/A | CB267: N/A | CC267: N/A
BA268: Use of menstrual materials with private place to wash and change | BB268: Materials reusable | BC268: N/A | BD268: N/A | BE268: N/A | BF268: N/A | BG268: N/A | BH268: N/A | BI268: N/A | BJ268: N/A | BK268: N/A | BL268: N/A | BM268: N/A | BN268: N/A | BO268: N/A | BP268: N/A | BQ268: N/A | BR268: N/A | BS268: N/A | BT268: N/A | BU268: N/A | BV268: N/A | BW268: N/A | BX268: N/A | BY268: N/A | BZ268: N/A | CA268: N/A | CB268: N/A | CC268: N/A
BB269: Materials not reusable | BC269: N/A | BD269: N/A | BE269: N/A | BF269: N/A | BG269: N/A | BH269: N/A | BI269: N/A | BJ269: N/A | BK269: N/A | BL269: N/A | BM269: N/A | BN269: N/A | BO269: N/A | BP269: N/A | BQ269: N/A | BR269: N/A | BS269: N/A | BT269: N/A | BU269: N/A | BV269: N/A | BW269: N/A | BX269: N/A | BY269: N/A | BZ269: N/A | CA269: N/A | CB269: N/A | CC269: N/A
BB270: No materials used | BC270: N/A | BD270: N/A | BE270: N/A | BF270: N/A | BG270: N/A | BH270: N/A | BI270: N/A | BJ270: N/A | BK270: N/A | BL270: N/A | BM270: N/A | BN270: N/A | BO270: N/A | BP270: N/A | BQ270: N/A | BR270: N/A | BS270: N/A | BT270: N/A | BU270: N/A | BV270: N/A | BW270: N/A | BX270: N/A | BY270: N/A | BZ270: N/A | CA270: N/A | CB270: N/A | CC270: N/A
BA271: Awareness of menstruation before menarche | BB271: Yes | BC271: N/A | BD271: N/A | BE271: N/A | BF271: N/A | BG271: N/A | BH271: N/A | BI271: N/A | BJ271: N/A | BK271: N/A | BL271: N/A | BM271: N/A | BN271: N/A | BO271: N/A | BP271: N/A | BQ271: N/A | BR271: N/A | BS271: N/A | BT271: N/A | BU271: N/A | BV271: N/A | BW271: N/A | BX271: N/A | BY271: N/A | BZ271: N/A | CA271: N/A | CB271: N/A | CC271: N/A
BB272: No | BC272: N/A | BD272: N/A | BE272: N/A | BF272: N/A | BG272: N/A | BH272: N/A | BI272: N/A | BJ272: N/A | BK272: N/A | BL272: N/A | BM272: N/A | BN272: N/A | BO272: N/A | BP272: N/A | BQ272: N/A | BR272: N/A | BS272: N/A | BT272: N/A | BU272: N/A | BV272: N/A | BW272: N/A | BX272: N/A | BY272: N/A | BZ272: N/A | CA272: N/A | CB272: N/A | CC272: N/A
BB273: DK/not sure/missing | BC273: N/A | BD273: N/A | BE273: N/A | BF273: N/A | BG273: N/A | BH273: N/A | BI273: N/A | BJ273: N/A | BK273: N/A | BL273: N/A | BM273: N/A | BN273: N/A | BO273: N/A | BP273: N/A | BQ273: N/A | BR273: N/A | BS273: N/A | BT273: N/A | BU273: N/A | BV273: N/A | BW273: N/A | BX273: N/A | BY273: N/A | BZ273: N/A | CA273: N/A | CB273: N/A | CC273: N/A
BA274: Participation in (all) activities during menstruation | BB274: Yes | BC274: N/A | BD274: N/A | BE274: N/A | BF274: N/A | BG274: N/A | BH274: N/A | BI274: N/A | BJ274: N/A | BK274: N/A | BL274: N/A | BM274: N/A | BN274: N/A | BO274: N/A | BP274: N/A | BQ274: N/A | BR274: N/A | BS274: N/A | BT274: N/A | BU274: N/A | BV274: N/A | BW274: N/A | BX274: N/A | BY274: N/A | BZ274: N/A | CA274: N/A | CB274: N/A | CC274: N/A
BB275: No | BC275: N/A | BD275: N/A | BE275: N/A | BF275: N/A | BG275: N/A | BH275: N/A | BI275: N/A | BJ275: N/A | BK275: N/A | BL275: N/A | BM275: N/A | BN275: N/A | BO275: N/A | BP275: N/A | BQ275: N/A | BR275: N/A | BS275: N/A | BT275: N/A | BU275: N/A | BV275: N/A | BW275: N/A | BX275: N/A | BY275: N/A | BZ275: N/A | CA275: N/A | CB275: N/A | CC275: N/A
BB276: DK/not sure/missing/no such activity | BC276: N/A | BD276: N/A | BE276: N/A | BF276: N/A | BG276: N/A | BH276: N/A | BI276: N/A | BJ276: N/A | BK276: N/A | BL276: N/A | BM276: N/A | BN276: N/A | BO276: N/A | BP276: N/A | BQ276: N/A | BR276: N/A | BS276: N/A | BT276: N/A | BU276: N/A | BV276: N/A | BW276: N/A | BX276: N/A | BY276: N/A | BZ276: N/A | CA276: N/A | CB276: N/A | CC276: N/A
BA277: Participation in specific activities during menstruation | BB277: Did not go to school (amongst those usually attending school) | BC277: N/A | BD277: N/A | BE277: N/A | BF277: N/A | BG277: N/A | BH277: N/A | BI277: N/A | BJ277: N/A | BK277: N/A | BL277: N/A | BM277: N/A | BN277: N/A | BO277: N/A | BP277: N/A | BQ277: N/A | BR277: N/A | BS277: N/A | BT277: N/A | BU277: N/A | BV277: N/A | BW277: N/A | BX277: N/A | BY277: N/A | BZ277: N/A | CA277: N/A | CB277: N/A | CC277: N/A
BB278: Did not go to work (amongst those who usually work) | BC278: N/A | BD278: N/A | BE278: N/A | BF278: N/A | BG278: N/A | BH278: N/A | BI278: N/A | BJ278: N/A | BK278: N/A | BL278: N/A | BM278: N/A | BN278: N/A | BO278: N/A | BP278: N/A | BQ278: N/A | BR278: N/A | BS278: N/A | BT278: N/A | BU278: N/A | BV278: N/A | BW278: N/A | BX278: N/A | BY278: N/A | BZ278: N/A | CA278: N/A | CB278: N/A | CC278: N/A
BB279: Did not participate in social activities | BC279: N/A | BD279: N/A | BE279: N/A | BF279: N/A | BG279: N/A | BH279: N/A | BI279: N/A | BJ279: N/A | BK279: N/A | BL279: N/A | BM279: N/A | BN279: N/A | BO279: N/A | BP279: N/A | BQ279: N/A | BR279: N/A | BS279: N/A | BT279: N/A | BU279: N/A | BV279: N/A | BW279: N/A | BX279: N/A | BY279: N/A | BZ279: N/A | CA279: N/A | CB279: N/A | CC279: N/A
BB280: Did not cook food | BC280: N/A | BD280: N/A | BE280: N/A | BF280: N/A | BG280: N/A | BH280: N/A | BI280: N/A | BJ280: N/A | BK280: N/A | BL280: N/A | BM280: N/A | BN280: N/A | BO280: N/A | BP280: N/A | BQ280: N/A | BR280: N/A | BS280: N/A | BT280: N/A | BU280: N/A | BV280: N/A | BW280: N/A | BX280: N/A | BY280: N/A | BZ280: N/A | CA280: N/A | CB280: N/A | CC280: N/A
BB281: Did not eat with others | BC281: N/A | BD281: N/A | BE281: N/A | BF281: N/A | BG281: N/A | BH281: N/A | BI281: N/A | BJ281: N/A | BK281: N/A | BL281: N/A | BM281: N/A | BN281: N/A | BO281: N/A | BP281: N/A | BQ281: N/A | BR281: N/A | BS281: N/A | BT281: N/A | BU281: N/A | BV281: N/A | BW281: N/A | BX281: N/A | BY281: N/A | BZ281: N/A | CA281: N/A | CB281: N/A | CC281: N/A
BB282: Did not bathe in regular place | BC282: N/A | BD282: N/A | BE282: N/A | BF282: N/A | BG282: N/A | BH282: N/A | BI282: N/A | BJ282: N/A | BK282: N/A | BL282: N/A | BM282: N/A | BN282: N/A | BO282: N/A | BP282: N/A | BQ282: N/A | BR282: N/A | BS282: N/A | BT282: N/A | BU282: N/A | BV282: N/A | BW282: N/A | BX282: N/A | BY282: N/A | BZ282: N/A | CA282: N/A | CB282: N/A | CC282: N/A
BB283: Did not participate in other activities | BC283: N/A | BD283: N/A | BE283: N/A | BF283: N/A | BG283: N/A | BH283: N/A | BI283: N/A | BJ283: N/A | BK283: N/A | BL283: N/A | BM283: N/A | BN283: N/A | BO283: N/A | BP283: N/A | BQ283: N/A | BR283: N/A | BS283: N/A | BT283: N/A | BU283: N/A | BV283: N/A | BW283: N/A | BX283: N/A | BY283: N/A | BZ283: N/A | CA283: N/A | CB283: N/A | CC283: N/A
BB284: DK/not sure/missing/no such activity | BC284: N/A | BD284: N/A | BE284: N/A | BF284: N/A | BG284: N/A | BH284: N/A | BI284: N/A | BJ284: N/A | BK284: N/A | BL284: N/A | BM284: N/A | BN284: N/A | BO284: N/A | BP284: N/A | BQ284: N/A | BR284: N/A | BS284: N/A | BT284: N/A | BU284: N/A | BV284: N/A | BW284: N/A | BX284: N/A | BY284: N/A | BZ284: N/A | CA284: N/A | CB284: N/A | CC284: N/A
BA339: Raw numbers of respondents: | BB339: Basic water, sanitation and hygiene | BC339: NATIONAL wealth index quintile | BH339: URBAN wealth index quintile | BM339: RURAL wealth index quintile | BR339: SUB-REGIONS:
BA340: WatSan data, raw numbers (weighted) | BC340: Poorest | BD340: Poor | BE340: Middle | BF340: Rich | BG340: Richest | BH340: Poorest | BI340: Poor | BJ340: Middle | BK340: Rich | BL340: Richest | BM340: Poorest | BN340: Poor | BO340: Middle | BP340: Rich | BQ340: Richest | BR340: adamaoua | BS340: centre sans yde | BT340: douala | BU340: est | BV340: extreme nord | BW340: littoral sans dla | BX340: nord | BY340: nord ouest | BZ340: ouest | CA340: sud | CB340: sud ouest | CC340: yaounde
BA341: Use of Basic Water Sanitation and Hygiene | BB341: Yes | BC341: N/A | BD341: N/A | BE341: N/A | BF341: N/A | BG341: N/A | BH341: N/A | BI341: N/A | BJ341: N/A | BK341: N/A | BL341: N/A | BM341: N/A | BN341: N/A | BO341: N/A | BP341: N/A | BQ341: N/A | BR341: N/A | BS341: N/A | BT341: N/A | BU341: N/A | BV341: N/A | BW341: N/A | BX341: N/A | BY341: N/A | BZ341: N/A | CA341: N/A | CB341: N/A | CC341: N/A
BB342: No | BC342: N/A | BD342: N/A | BE342: N/A | BF342: N/A | BG342: N/A | BH342: N/A | BI342: N/A | BJ342: N/A | BK342: N/A | BL342: N/A | BM342: N/A | BN342: N/A | BO342: N/A | BP342: N/A | BQ342: N/A | BR342: N/A | BS342: N/A | BT342: N/A | BU342: N/A | BV342: N/A | BW342: N/A | BX342: N/A | BY342: N/A | BZ342: N/A | CA342: N/A | CB342: N/A | CC342: N/A
BA343: Use of Basic Water and Sanitation | BB343: Yes | BC343: N/A | BD343: N/A | BE343: N/A | BF343: N/A | BG343: N/A | BH343: N/A | BI343: N/A | BJ343: N/A | BK343: N/A | BL343: N/A | BM343: N/A | BN343: N/A | BO343: N/A | BP343: N/A | BQ343: N/A | BR343: N/A | BS343: N/A | BT343: N/A | BU343: N/A | BV343: N/A | BW343: N/A | BX343: N/A | BY343: N/A | BZ343: N/A | CA343: N/A | CB343: N/A | CC343: N/A
BB344: No | BC344: N/A | BD344: N/A | BE344: N/A | BF344: N/A | BG344: N/A | BH344: N/A | BI344: N/A | BJ344: N/A | BK344: N/A | BL344: N/A | BM344: N/A | BN344: N/A | BO344: N/A | BP344: N/A | BQ344: N/A | BR344: N/A | BS344: N/A | BT344: N/A | BU344: N/A | BV344: N/A | BW344: N/A | BX344: N/A | BY344: N/A | BZ344: N/A | CA344: N/A | CB344: N/A | CC344: N/A
BA345: Use of Basic Water and Hygiene | BB345: Yes | BC345: N/A | BD345: N/A | BE345: N/A | BF345: N/A | BG345: N/A | BH345: N/A | BI345: N/A | BJ345: N/A | BK345: N/A | BL345: N/A | BM345: N/A | BN345: N/A | BO345: N/A | BP345: N/A | BQ345: N/A | BR345: N/A | BS345: N/A | BT345: N/A | BU345: N/A | BV345: N/A | BW345: N/A | BX345: N/A | BY345: N/A | BZ345: N/A | CA345: N/A | CB345: N/A | CC345: N/A
BB346: No | BC346: N/A | BD346: N/A | BE346: N/A | BF346: N/A | BG346: N/A | BH346: N/A | BI346: N/A | BJ346: N/A | BK346: N/A | BL346: N/A | BM346: N/A | BN346: N/A | BO346: N/A | BP346: N/A | BQ346: N/A | BR346: N/A | BS346: N/A | BT346: N/A | BU346: N/A | BV346: N/A | BW346: N/A | BX346: N/A | BY346: N/A | BZ346: N/A | CA346: N/A | CB346: N/A | CC346: N/A
BA347: Use of Basic Sanitation and Hygiene | BB347: Yes | BC347: N/A | BD347: N/A | BE347: N/A | BF347: N/A | BG347: N/A | BH347: N/A | BI347: N/A | BJ347: N/A | BK347: N/A | BL347: N/A | BM347: N/A | BN347: N/A | BO347: N/A | BP347: N/A | BQ347: N/A | BR347: N/A | BS347: N/A | BT347: N/A | BU347: N/A | BV347: N/A | BW347: N/A | BX347: N/A | BY347: N/A | BZ347: N/A | CA347: N/A | CB347: N/A | CC347: N/A
BB348: No | BC348: N/A | BD348: N/A | BE348: N/A | BF348: N/A | BG348: N/A | BH348: N/A | BI348: N/A | BJ348: N/A | BK348: N/A | BL348: N/A | BM348: N/A | BN348: N/A | BO348: N/A | BP348: N/A | BQ348: N/A | BR348: N/A | BS348: N/A | BT348: N/A | BU348: N/A | BV348: N/A | BW348: N/A | BX348: N/A | BY348: N/A | BZ348: N/A | CA348: N/A | CB348: N/A | CC348: N/A
BA349: Use of Basic Water | BB349: Yes | BC349: N/A | BD349: N/A | BE349: N/A | BF349: N/A | BG349: N/A | BH349: N/A | BI349: N/A | BJ349: N/A | BK349: N/A | BL349: N/A | BM349: N/A | BN349: N/A | BO349: N/A | BP349: N/A | BQ349: N/A | BR349: N/A | BS349: N/A | BT349: N/A | BU349: N/A | BV349: N/A | BW349: N/A | BX349: N/A | BY349: N/A | BZ349: N/A | CA349: N/A | CB349: N/A | CC349: N/A
BB350: No | BC350: N/A | BD350: N/A | BE350: N/A | BF350: N/A | BG350: N/A | BH350: N/A | BI350: N/A | BJ350: N/A | BK350: N/A | BL350: N/A | BM350: N/A | BN350: N/A | BO350: N/A | BP350: N/A | BQ350: N/A | BR350: N/A | BS350: N/A | BT350: N/A | BU350: N/A | BV350: N/A | BW350: N/A | BX350: N/A | BY350: N/A | BZ350: N/A | CA350: N/A | CB350: N/A | CC350: N/A
BA351: Use of Basic Sanitation | BB351: Yes | BC351: N/A | BD351: N/A | BE351: N/A | BF351: N/A | BG351: N/A | BH351: N/A | BI351: N/A | BJ351: N/A | BK351: N/A | BL351: N/A | BM351: N/A | BN351: N/A | BO351: N/A | BP351: N/A | BQ351: N/A | BR351: N/A | BS351: N/A | BT351: N/A | BU351: N/A | BV351: N/A | BW351: N/A | BX351: N/A | BY351: N/A | BZ351: N/A | CA351: N/A | CB351: N/A | CC351: N/A
BB352: No | BC352: N/A | BD352: N/A | BE352: N/A | BF352: N/A | BG352: N/A | BH352: N/A | BI352: N/A | BJ352: N/A | BK352: N/A | BL352: N/A | BM352: N/A | BN352: N/A | BO352: N/A | BP352: N/A | BQ352: N/A | BR352: N/A | BS352: N/A | BT352: N/A | BU352: N/A | BV352: N/A | BW352: N/A | BX352: N/A | BY352: N/A | BZ352: N/A | CA352: N/A | CB352: N/A | CC352: N/A
BA353: Access to Basic Hygiene | BB353: Yes | BC353: N/A | BD353: N/A | BE353: N/A | BF353: N/A | BG353: N/A | BH353: N/A | BI353: N/A | BJ353: N/A | BK353: N/A | BL353: N/A | BM353: N/A | BN353: N/A | BO353: N/A | BP353: N/A | BQ353: N/A | BR353: N/A | BS353: N/A | BT353: N/A | BU353: N/A | BV353: N/A | BW353: N/A | BX353: N/A | BY353: N/A | BZ353: N/A | CA353: N/A | CB353: N/A | CC353: N/A
BB354: No | BC354: N/A | BD354: N/A | BE354: N/A | BF354: N/A | BG354: N/A | BH354: N/A | BI354: N/A | BJ354: N/A | BK354: N/A | BL354: N/A | BM354: N/A | BN354: N/A | BO354: N/A | BP354: N/A | BQ354: N/A | BR354: N/A | BS354: N/A | BT354: N/A | BU354: N/A | BV354: N/A | BW354: N/A | BX354: N/A | BY354: N/A | BZ354: N/A | CA354: N/A | CB354: N/A | CC354: N/A
C399: INITIAL (national) Wealth Index | H399: URBAN Wealth Index | M399: RURAL Wealth Index
C400: Component Matrix | H400: Component Matrix | M400: Component Matrix
E401: Component | J401: Component | O401: Component
B402: Note: The INITIAL (national) Wealth Index is based on the first component of the Principal Component Analysis (PCA) which has been obtained at national level. The final national-level (NATIONAL) Wealth Index is based on the URBAN and RURAL specific wealth indexes. Regression procedures are used to establish the relationships between the two sets of scores (urban and rural) and the initial (national) wealth factors. This allows best use of the available information for each area and a better precision of the FINAL (NATIONAL) Wealth Index. For dependency reasons, all WASH variables (contained in the generic MICS and DHS scripts) have been excluded from the sets of asset variables used in the PCAs. The PCA can extracts as many components as there are asset variables in the input. Only the first of the components is used to represent the Wealth Index. The scores represent the weights of the asset variables on the Wealth Index (correlations between the variables and the component). The communalities are the proportion of each variable's variance that can be explained by the component. Proportion of explained variance is the part of the model's total variance that is explained by the component. For more information on the procedure used: The DHS Wealth Index, DHS Comparative Reports No. 6, Shea Oscar Rutstein, Kiersten Johnson, ORC Macro International Inc., 2004. The DHS Wealth Index: Approaches for Rural and Urban Areas, Shea O. Rutstein, ORC Macro International Inc., 2008. MICS Methodological Paper No. 4, Review of options for reporting water, sanitation and hygiene coverage by wealth quintile, UNICEF, 2016. | E402: 1 | J402: 1 | O402: 1
C403: Has earth/sand floor | E403: -0.7904546229 | H403: Household member owns: car/truck | J403: 0.703502058 | M403: Has earth/sand floor | O403: -0.8085814007
C404: Household member owns: bicycle | E404: 0.7620139159 | H404: Household fuel type: charcoal | J404: -0.6870111287 | M404: Has cement floor | O404: 0.7700580966
C405: Household fuel type: charcoal | E405: -0.7368784343 | H405: Household fuel type: LPG | J405: 0.6844353857 | M405: Household fuel type: charcoal | O405: -0.6435041303
C406: Household member owns: car/truck | E406: 0.7281995024 | H406: Household member owns: refrigerator | J406: 0.6602212455 | M406: Household member owns: bicycle | O406: 0.6149365957
C407: Has cement floor | E407: 0.6750843567 | H407: Household member owns: bicycle | J407: 0.6475203503 | M407: Household member owns: car/truck | O407: 0.5403877425
C408: Household fuel type: LPG | E408: 0.6701036069 | H408: Has earth/sand floor | J408: -0.6429626384 | M408: Household fuel type: kerosene | O408: 0.4627762703
C409: Household member owns: refrigerator | E409: 0.6675711997 | H409: Household member owns: motorcycle/scooter | J409: 0.6044632553 | M409: Household fuel type: LPG | O409: 0.4598672089
C410: Household member owns: motorcycle/scooter | E410: 0.5586881877 | H410: Has cement floor | J410: 0.3985144658 | M410: Household member owns: refrigerator | O410: 0.4512223627
C411: Has ceramic tile floor | E411: 0.319094208 | H411: Has ceramic tile floor | J411: 0.3054658559 | M411: Household member owns: motorcycle/scooter | O411: 0.4245954049
C412: Household fuel type: kerosene | E412: 0.2745156585 | H412: Household fuel type: kerosene | J412: 0.1029779388 | M412: Has ceramic tile floor | O412: 0.2773308143
C413: Household fuel type: electricity | E413: 0.04263026123 | H413: Has wood floor | J413: -0.04627549596 | M413: Persons per sleeping rooms | O413: -0.04631469384
C414: Persons per sleeping rooms | E414: -0.03127936624 | H414: Household fuel type: electricity | J414: 0.0387110577 | M414: Household fuel type: animal dung | O414: 0.03587672808
C415: Has wood floor | E415: -0.02583235263 | H415: Persons per sleeping rooms | J415: 0.002469463836 | M415: Has wood floor | O415: 0.01869343773
C416: Household fuel type: animal dung | E416: -0.001568607523 | H416: Household fuel type: animal dung | J416: 0.002102205367
M419: Communalities
... 92 more rows

Sheet DHS04
A2: =A1026 -> Cameroon
A3: =A1034 -> 2004
A4: Use of drinking water sources
A5: by wealth quintile and sub-national region
A6: Notes:
A7: WHO/UNICEF JMP customised wealth index excludes water,
A8: sanitation and hygiene assets.
A9: Survey used for analysis: | B9: =A1025 -> DHS04
A10: =B1028 -> 
A11: =B1027 -> 
A14: Use of drinking water sources | C14: NATIONAL wealth index quintile | H14: URBAN wealth index quintile | M14: RURAL wealth index quintile | R14: SUB-REGIONS: | BA14: Raw numbers of respondents: | BB14: Use of drinking water sources | BC14: NATIONAL wealth index quintile | BH14: URBAN wealth index quintile | BM14: RURAL wealth index quintile | BR14: SUB-REGIONS:
A15: Weighted percentage (used in graphs) | C15: Poorest | D15: Poor | E15: Middle | F15: Rich | G15: Richest | H15: Poorest | I15: Poor | J15: Middle | K15: Rich | L15: Richest | M15: Poorest | N15: Poor | O15: Middle | P15: Rich | Q15: Richest | R15: Adamaoua | S15: Centre | T15: Douala | U15: Est | V15: Extreme Nord | W15: Littoral | X15: Nord | Y15: Nord Ouest | Z15: Ouest | AA15: Sud | AB15: Sud Ouest | AC15: Yaounde | BA15: Water data, raw numbers (weighted) | BC15: Poorest | BD15: Poor | BE15: Middle | BF15: Rich | BG15: Richest | BH15: Poorest | BI15: Poor | BJ15: Middle | BK15: Rich | BL15: Richest | BM15: Poorest | BN15: Poor | BO15: Middle | BP15: Rich | BQ15: Richest | BR15: Adamaoua | BS15: Centre | BT15: Douala | BU15: Est | BV15: Extreme Nord | BW15: Littoral | BX15: Nord | BY15: Nord Ouest | BZ15: Ouest | CA15: Sud | CB15: Sud Ouest | CC15: Yaounde
A16: Water | B16: Improved | C16: 44.49444594 | D16: 43.3939489 | E16: 60.8711457 | F16: 80.98474291 | G16: 93.92864362 | H16: 66.40851695 | I16: 82.39702012 | J16: 89.28584861 | K16: 93.96314798 | L16: 95.42418315 | M16: 42.09631356 | N16: 39.90292949 | O16: 37.55661135 | P16: 47.40577416 | Q16: 57.5325057 | R16: 53.83520616 | S16: 71.15232647 | T16: 88.7030303 | U16: 53.60079398 | V16: 58.2184787 | W16: 69.35307368 | X16: 38.76346078 | Y16: 56.39130392 | Z16: 56.56533663 | AA16: 65.34649096 | AB16: 75.56842851 | AC16: 98.1646699 | BA16: Water | BB16: Improved | BC16: N/A | BD16: N/A | BE16: N/A | BF16: N/A | BG16: N/A | BH16: N/A | BI16: N/A | BJ16: N/A | BK16: N/A | BL16: N/A | BM16: N/A | BN16: N/A | BO16: N/A | BP16: N/A | BQ16: N/A | BR16: N/A | BS16: N/A | BT16: N/A | BU16: N/A | BV16: N/A | BW16: N/A | BX16: N/A | BY16: N/A | BZ16: N/A | CA16: N/A | CB16: N/A | CC16: N/A
B17: Not Improved | C17: 55.50555406 | D17: 56.6060511 | E17: 39.1288543 | F17: 19.01525709 | G17: 6.071356377 | H17: 33.59148305 | I17: 17.60297988 | J17: 10.71415139 | K17: 6.03685202 | L17: 4.575816845 | M17: 57.90368644 | N17: 60.09707051 | O17: 62.44338865 | P17: 52.59422584 | Q17: 42.4674943 | R17: 46.16479384 | S17: 28.84767353 | T17: 11.2969697 | U17: 46.39920602 | V17: 41.7815213 | W17: 30.64692632 | X17: 61.23653922 | Y17: 43.60869608 | Z17: 43.43466337 | AA17: 34.65350904 | AB17: 24.43157149 | AC17: 1.835330105 | BB17: Not Improved | BC17: N/A | BD17: N/A | BE17: N/A | BF17: N/A | BG17: N/A | BH17: N/A | BI17: N/A | BJ17: N/A | BK17: N/A | BL17: N/A | BM17: N/A | BN17: N/A | BO17: N/A | BP17: N/A | BQ17: N/A | BR17: N/A | BS17: N/A | BT17: N/A | BU17: N/A | BV17: N/A | BW17: N/A | BX17: N/A | BY17: N/A | BZ17: N/A | CA17: N/A | CB17: N/A | CC17: N/A
A18: Water ladder | B18: Basic | C18: =C16*C23/100 -> 38.66527224 | D18: =D16*D23/100 -> 38.19344683 | E18: =E16*E23/100 -> 53.69486263 | F18: 73.67330442 | G18: 90.34469279 | H18: 58.08214105 | I18: 76.28023187 | J18: 82.26061955 | K18: 89.8293853 | L18: 92.68649338 | M18: 36.45004371 | N18: 33.89206614 | O18: 33.86894318 | P18: 41.63799129 | Q18: 48.84372321 | R18: 49.97470702 | S18: 58.48478779 | T18: 80.27831208 | U18: 44.5881403 | V18: 53.31974146 | W18: 65.70228777 | X18: 32.10220115 | Y18: 53.33830287 | Z18: 51.40656044 | AA18: 60.38327477 | AB18: 69.69430729 | AC18: 96.42950027 | BA18: Water ladder | BB18: Basic | BC18: N/A | BD18: N/A | BE18: N/A | BF18: N/A | BG18: N/A | BH18: N/A | BI18: N/A | BJ18: N/A | BK18: N/A | BL18: N/A | BM18: N/A | BN18: N/A | BO18: N/A | BP18: N/A | BQ18: N/A | BR18: N/A | BS18: N/A | BT18: N/A | BU18: N/A | BV18: N/A | BW18: N/A | BX18: N/A | BY18: N/A | BZ18: N/A | CA18: N/A | CB18: N/A | CC18: N/A
B19: Limited | C19: =C16*C22/100 -> 5.829173705 | D19: =D16*D22/100 -> 5.200502076 | E19: =E16*E22/100 -> 7.176283073 | F19: 7.311438489 | G19: 3.583950834 | H19: 8.326375904 | I19: 6.116788247 | J19: 7.025229062 | K19: 4.133762683 | L19: 2.737689777 | M19: 5.646269848 | N19: 6.010863341 | O19: 3.687668169 | P19: 5.767782874 | Q19: 8.688782492 | R19: 3.860499135 | S19: 12.66753868 | T19: 8.424718223 | U19: 9.012653682 | V19: 4.898737246 | W19: 3.650785911 | X19: 6.661259632 | Y19: 3.053001054 | Z19: 5.158776182 | AA19: 4.963216192 | AB19: 5.874121211 | AC19: 1.735169626 | BB19: Limited | BC19: N/A | BD19: N/A | BE19: N/A | BF19: N/A | BG19: N/A | BH19: N/A | BI19: N/A | BJ19: N/A | BK19: N/A | BL19: N/A | BM19: N/A | BN19: N/A | BO19: N/A | BP19: N/A | BQ19: N/A | BR19: N/A | BS19: N/A | BT19: N/A | BU19: N/A | BV19: N/A | BW19: N/A | BX19: N/A | BY19: N/A | BZ19: N/A | CA19: N/A | CB19: N/A | CC19: N/A
B20: Unimproved | C20: =100-C18-C19-C21 -> 23.71688303 | D20: =100-D18-D19-D21 -> 20.72497827 | E20: =100-E18-E19-E21 -> 12.52723101 | F20: 7.459161238 | G20: 3.209246586 | H20: 13.12295163 | I20: 8.519693679 | J20: 5.442333163 | K20: 3.109456982 | L20: 3.719638805 | M20: 29.48832801 | N20: 24.88605683 | O20: 19.98858011 | P20: 15.88747145 | Q20: 10.42784246 | R20: 22.63476135 | S20: 10.61206886 | T20: 8.035835601 | U20: 10.30060599 | V20: 31.74589652 | W20: 4.317023746 | X20: 37.85113903 | Y20: 1.147543411 | Z20: 2.570258852 | AA20: 7.13510876 | AB20: 2.020079866 | AC20: 0.7891448532 | BB20: Unimproved | BC20: N/A | BD20: N/A | BE20: N/A | BF20: N/A | BG20: N/A | BH20: N/A | BI20: N/A | BJ20: N/A | BK20: N/A | BL20: N/A | BM20: N/A | BN20: N/A | BO20: N/A | BP20: N/A | BQ20: N/A | BR20: N/A | BS20: N/A | BT20: N/A | BU20: N/A | BV20: N/A | BW20: N/A | BX20: N/A | BY20: N/A | BZ20: N/A | CA20: N/A | CB20: N/A | CC20: N/A
B21: Surface water | C21: 31.78867102 | D21: 35.88107283 | E21: 26.60162328 | F21: 11.55609585 | G21: 2.862109791 | H21: 20.46853142 | I21: 9.083286206 | J21: 5.271818223 | K21: 2.927395038 | L21: 0.8561780403 | M21: 28.41535843 | N21: 35.21101368 | O21: 42.45480854 | P21: 36.70675439 | Q21: 32.03965185 | R21: 23.5300325 | S21: 18.23560467 | T21: 3.261134096 | U21: 36.09860002 | V21: 10.03562478 | W21: 26.32990257 | X21: 23.38540019 | Y21: 42.46115266 | Z21: 40.86440452 | AA21: 27.51840028 | AB21: 22.41149163 | AC21: 1.046185251 | BB21: Surface water | BC21: N/A | BD21: N/A | BE21: N/A | BF21: N/A | BG21: N/A | BH21: N/A | BI21: N/A | BJ21: N/A | BK21: N/A | BL21: N/A | BM21: N/A | BN21: N/A | BO21: N/A | BP21: N/A | BQ21: N/A | BR21: N/A | BS21: N/A | BT21: N/A | BU21: N/A | BV21: N/A | BW21: N/A | BX21: N/A | BY21: N/A | BZ21: N/A | CA21: N/A | CB21: N/A | CC21: N/A
A22: Improved water point at more than 30 minutes | B22: Yes | C22: 13.10090188 | D22: 11.98439462 | E22: 11.78930179 | F22: 9.028167808 | G22: 3.815610122 | H22: 12.53811452 | I22: 7.42355517 | J22: 7.868244712 | K22: 4.399344607 | L22: 2.868968522 | M22: 13.41274181 | N22: 15.06371442 | O22: 9.818958731 | P22: 12.16683616 | Q22: 15.10238844 | R22: 7.17095635 | S22: 17.80340757 | T22: 9.497666758 | U22: 16.81440332 | V22: 8.414402703 | W22: 5.264057838 | X22: 17.18437802 | Y22: 5.413957191 | Z22: 9.120030906 | AA22: 7.595229858 | AB22: 7.773247807 | AC22: 1.767611126 | BA22: Improved water point at more than 30 minutes | BB22: Yes | BC22: N/A | BD22: N/A | BE22: N/A | BF22: N/A | BG22: N/A | BH22: N/A | BI22: N/A | BJ22: N/A | BK22: N/A | BL22: N/A | BM22: N/A | BN22: N/A | BO22: N/A | BP22: N/A | BQ22: N/A | BR22: N/A | BS22: N/A | BT22: N/A | BU22: N/A | BV22: N/A | BW22: N/A | BX22: N/A | BY22: N/A | BZ22: N/A | CA22: N/A | CB22: N/A | CC22: N/A
B23: No | C23: 86.89909812 | D23: 88.01560538 | E23: 88.21069821 | F23: 90.97183219 | G23: 96.18438988 | H23: 87.46188548 | I23: 92.57644483 | J23: 92.13175529 | K23: 95.60065539 | L23: 97.13103148 | M23: 86.58725819 | N23: 84.93628558 | O23: 90.18104127 | P23: 87.83316384 | Q23: 84.89761156 | R23: 92.82904365 | S23: 82.19659243 | T23: 90.50233324 | U23: 83.18559668 | V23: 91.5855973 | W23: 94.73594216 | X23: 82.81562198 | Y23: 94.58604281 | Z23: 90.87996909 | AA23: 92.40477014 | AB23: 92.22675219 | AC23: 98.23238887 | BB23: No | BC23: N/A | BD23: N/A | BE23: N/A | BF23: N/A | BG23: N/A | BH23: N/A | BI23: N/A | BJ23: N/A | BK23: N/A | BL23: N/A | BM23: N/A | BN23: N/A | BO23: N/A | BP23: N/A | BQ23: N/A | BR23: N/A | BS23: N/A | BT23: N/A | BU23: N/A | BV23: N/A | BW23: N/A | BX23: N/A | BY23: N/A | BZ23: N/A | CA23: N/A | CB23: N/A | CC23: N/A
A24: Manually calculated ratios | B24: Improved wells
B25: Improved springs
B26: Other
C27: NATIONAL wealth index quintile | H27: URBAN wealth index quintile | M27: RURAL wealth index quintile | R27: SUB-REGIONS: | BA27: Raw numbers of respondents: | BB27: Use of drinking water sources | BC27: NATIONAL wealth index quintile | BH27: URBAN wealth index quintile | BM27: RURAL wealth index quintile | BR27: SUB-REGIONS:
A28: Percentage based on weighted population | C28: Poorest | D28: Poor | E28: Middle | F28: Rich | G28: Richest | H28: Poorest | I28: Poor | J28: Middle | K28: Rich | L28: Richest | M28: Poorest | N28: Poor | O28: Middle | P28: Rich | Q28: Richest | R28: Adamaoua | S28: Centre | T28: Douala | U28: Est | V28: Extreme Nord | W28: Littoral | X28: Nord | Y28: Nord Ouest | Z28: Ouest | AA28: Sud | AB28: Sud Ouest | AC28: Yaounde | BA28: Water data, raw numbers (weighted) | BC28: Poorest | BD28: Poor | BE28: Middle | BF28: Rich | BG28: Richest | BH28: Poorest | BI28: Poor | BJ28: Middle | BK28: Rich | BL28: Richest | BM28: Poorest | BN28: Poor | BO28: Middle | BP28: Rich | BQ28: Richest | BR28: Adamaoua | BS28: Centre | BT28: Douala | BU28: Est | BV28: Extreme Nord | BW28: Littoral | BX28: Nord | BY28: Nord Ouest | BZ28: Ouest | CA28: Sud | CB28: Sud Ouest | CC28: Yaounde
A29: Piped water | B29: Yes | C29: 11.74780823 | D29: 12.69809442 | E29: 30.87021471 | F29: 60.54507161 | G29: 80.33923802 | H29: 37.41254513 | I29: 61.81085049 | J29: 73.06528839 | K29: 80.12978751 | L29: 86.168959 | M29: 7.230933071 | N29: 7.749138735 | O29: 7.655843613 | P29: 16.47311585 | Q29: 20.43640169 | R29: 30.31771993 | S29: 22.89500231 | T29: 74.01212121 | U29: 17.20243744 | V29: 10.67289241 | W29: 58.19186425 | X29: 13.69926789 | Y29: 49.88270494 | Z29: 36.95247022 | AA29: 27.75614896 | AB29: 66.35500956 | AC29: 90.59393321 | BA29: Piped water | BB29: Yes | BC29: N/A | BD29: N/A | BE29: N/A | BF29: N/A | BG29: N/A | BH29: N/A | BI29: N/A | BJ29: N/A | BK29: N/A | BL29: N/A | BM29: N/A | BN29: N/A | BO29: N/A | BP29: N/A | BQ29: N/A | BR29: N/A | BS29: N/A | BT29: N/A | BU29: N/A | BV29: N/A | BW29: N/A | BX29: N/A | BY29: N/A | BZ29: N/A | CA29: N/A | CB29: N/A | CC29: N/A
B30: No | C30: 88.25219177 | D30: 87.30190558 | E30: 69.12978529 | F30: 39.45492839 | G30: 19.66076198 | H30: 62.58745487 | I30: 38.18914951 | J30: 26.93471161 | K30: 19.87021249 | L30: 13.831041 | M30: 92.76906693 | N30: 92.25086127 | O30: 92.34415639 | P30: 83.52688415 | Q30: 79.56359831 | R30: 69.68228007 | S30: 77.10499769 | T30: 25.98787879 | U30: 82.79756256 | V30: 89.32710759 | W30: 41.80813575 | X30: 86.30073211 | Y30: 50.11729506 | Z30: 63.04752978 | AA30: 72.24385104 | AB30: 33.64499044 | AC30: 9.406066786 | BB30: No | BC30: N/A | BD30: N/A | BE30: N/A | BF30: N/A | BG30: N/A | BH30: N/A | BI30: N/A | BJ30: N/A | BK30: N/A | BL30: N/A | BM30: N/A | BN30: N/A | BO30: N/A | BP30: N/A | BQ30: N/A | BR30: N/A | BS30: N/A | BT30: N/A | BU30: N/A | BV30: N/A | BW30: N/A | BX30: N/A | BY30: N/A | BZ30: N/A | CA30: N/A | CB30: N/A | CC30: N/A
A31: Piped water on premises | B31: Yes | C31: 0.7947931879 | D31: 1.735053667 | E31: 5.165015567 | F31: 15.03390513 | G31: 42.48780696 | H31: 4.587265615 | I31: 10.77304801 | J31: 18.46538079 | K31: 31.31196099 | L31: 56.3183053 | M31: 0 | N31: 0.751957207 | O31: 0.9692358143 | P31: 3.462904234 | Q31: 6.089130207 | R31: 7.766544055 | S31: 5.118092675 | T31: 29.64848485 | U31: 5.882981821 | V31: 7.33927216 | W31: 16.14329219 | X31: 2.578308391 | Y31: 11.6245144 | Z31: 12.62111204 | AA31: 8.725791675 | AB31: 19.81029545 | AC31: 32.22023961 | BA31: Piped water on premises | BB31: Yes | BC31: N/A | BD31: N/A | BE31: N/A | BF31: N/A | BG31: N/A | BH31: N/A | BI31: N/A | BJ31: N/A | BK31: N/A | BL31: N/A | BM31: N/A | BN31: N/A | BO31: N/A | BP31: N/A | BQ31: N/A | BR31: N/A | BS31: N/A | BT31: N/A | BU31: N/A | BV31: N/A | BW31: N/A | BX31: N/A | BY31: N/A | BZ31: N/A | CA31: N/A | CB31: N/A | CC31: N/A
B32: No | C32: 99.20520681 | D32: 98.26494633 | E32: 94.83498443 | F32: 84.96609487 | G32: 57.51219304 | H32: 95.41273439 | I32: 89.22695199 | J32: 81.53461921 | K32: 68.68803901 | L32: 43.6816947 | M32: 100 | N32: 99.24804279 | O32: 99.03076419 | P32: 96.53709577 | Q32: 93.91086979 | R32: 92.23345595 | S32: 94.88190732 | T32: 70.35151515 | U32: 94.11701818 | V32: 92.66072784 | W32: 83.85670781 | X32: 97.42169161 | Y32: 88.3754856 | Z32: 87.37888796 | AA32: 91.27420832 | AB32: 80.18970455 | AC32: 67.77976039 | BB32: No | BC32: N/A | BD32: N/A | BE32: N/A | BF32: N/A | BG32: N/A | BH32: N/A | BI32: N/A | BJ32: N/A | BK32: N/A | BL32: N/A | BM32: N/A | BN32: N/A | BO32: N/A | BP32: N/A | BQ32: N/A | BR32: N/A | BS32: N/A | BT32: N/A | BU32: N/A | BV32: N/A | BW32: N/A | BX32: N/A | BY32: N/A | BZ32: N/A | CA32: N/A | CB32: N/A | CC32: N/A
A33: Piped water into dwelling | B33: Yes | C33: N/A | D33: N/A | E33: N/A | F33: N/A | G33: N/A | H33: N/A | I33: N/A | J33: N/A | K33: N/A | L33: N/A | M33: N/A | N33: N/A | O33: N/A | P33: N/A | Q33: N/A | R33: N/A | S33: N/A | T33: N/A | U33: N/A | V33: N/A | W33: N/A | X33: N/A | Y33: N/A | Z33: N/A | AA33: N/A | AB33: N/A | AC33: N/A | BA33: Piped water into dwelling | BB33: Yes | BC33: N/A | BD33: N/A | BE33: N/A | BF33: N/A | BG33: N/A | BH33: N/A | BI33: N/A | BJ33: N/A | BK33: N/A | BL33: N/A | BM33: N/A | BN33: N/A | BO33: N/A | BP33: N/A | BQ33: N/A | BR33: N/A | BS33: N/A | BT33: N/A | BU33: N/A | BV33: N/A | BW33: N/A | BX33: N/A | BY33: N/A | BZ33: N/A | CA33: N/A | CB33: N/A | CC33: N/A
B34: No | C34: N/A | D34: N/A | E34: N/A | F34: N/A | G34: N/A | H34: N/A | I34: N/A | J34: N/A | K34: N/A | L34: N/A | M34: N/A | N34: N/A | O34: N/A | P34: N/A | Q34: N/A | R34: N/A | S34: N/A | T34: N/A | U34: N/A | V34: N/A | W34: N/A | X34: N/A | Y34: N/A | Z34: N/A | AA34: N/A | AB34: N/A | AC34: N/A | BB34: No | BC34: N/A | BD34: N/A | BE34: N/A | BF34: N/A | BG34: N/A | BH34: N/A | BI34: N/A | BJ34: N/A | BK34: N/A | BL34: N/A | BM34: N/A | BN34: N/A | BO34: N/A | BP34: N/A | BQ34: N/A | BR34: N/A | BS34: N/A | BT34: N/A | BU34: N/A | BV34: N/A | BW34: N/A | BX34: N/A | BY34: N/A | BZ34: N/A | CA34: N/A | CB34: N/A | CC34: N/A
A35: Water source on premises | B35: Yes | C35: 4.154502922 | D35: 5.780538248 | E35: 13.9461852 | F35: 22.93023622 | G35: 46.75959911 | H35: 11.49607428 | I35: 20.74043503 | J35: 25.91818017 | K35: 36.01723781 | L35: 59.63001033 | M35: 3.17394664 | N35: 4.794142257 | O35: 3.730995885 | P35: 9.456819434 | Q35: 14.53245373 | R35: 31.43688201 | S35: 7.127597976 | T35: 32.14545455 | U35: 12.44098366 | V35: 12.71166751 | W35: 18.82677609 | X35: 19.86018792 | Y35: 14.07840274 | Z35: 15.42433055 | AA35: 11.33027438 | AB35: 26.48564845 | AC35: 33.5202651 | BA35: Water source on premises | BB35: Yes | BC35: N/A | BD35: N/A | BE35: N/A | BF35: N/A | BG35: N/A | BH35: N/A | BI35: N/A | BJ35: N/A | BK35: N/A | BL35: N/A | BM35: N/A | BN35: N/A | BO35: N/A | BP35: N/A | BQ35: N/A | BR35: N/A | BS35: N/A | BT35: N/A | BU35: N/A | BV35: N/A | BW35: N/A | BX35: N/A | BY35: N/A | BZ35: N/A | CA35: N/A | CB35: N/A | CC35: N/A
B36: No | C36: 95.84549708 | D36: 94.21946175 | E36: 86.0538148 | F36: 77.06976378 | G36: 53.24040089 | H36: 88.50392572 | I36: 79.25956497 | J36: 74.08181983 | K36: 63.98276219 | L36: 40.36998967 | M36: 96.82605336 | N36: 95.20585774 | O36: 96.26900411 | P36: 90.54318057 | Q36: 85.46754627 | R36: 68.56311799 | S36: 92.87240202 | T36: 67.85454545 | U36: 87.55901634 | V36: 87.28833249 | W36: 81.17322391 | X36: 80.13981208 | Y36: 85.92159726 | Z36: 84.57566945 | AA36: 88.66972562 | AB36: 73.51435155 | AC36: 66.4797349 | BB36: No | BC36: N/A | BD36: N/A | BE36: N/A | BF36: N/A | BG36: N/A | BH36: N/A | BI36: N/A | BJ36: N/A | BK36: N/A | BL36: N/A | BM36: N/A | BN36: N/A | BO36: N/A | BP36: N/A | BQ36: N/A | BR36: N/A | BS36: N/A | BT36: N/A | BU36: N/A | BV36: N/A | BW36: N/A | BX36: N/A | BY36: N/A | BZ36: N/A | CA36: N/A | CB36: N/A | CC36: N/A
A37: Improved Water source on premises | B37: Yes | C37: 4.384192167 | D37: 8.81824401 | E37: 17.05498497 | F37: 24.91264965 | G37: 49.08714899 | H37: 12.64967177 | I37: 20.57254652 | J37: 26.79135946 | K37: 37.66532019 | L37: 61.64200636 | M37: 1.662335499 | N37: 6.114399861 | O37: 6.519653684 | P37: 14.10617371 | Q37: 19.95553078 | R37: 33.09956552 | S37: 9.425937786 | T37: 35.58349276 | U37: 20.43904479 | V37: 16.76594243 | W37: 25.11909907 | X37: 33.74610166 | Y37: 24.82319661 | Z37: 25.77191364 | AA37: 16.44783124 | AB37: 32.59804114 | AC37: 33.91326928 | BA37: Improved water source on premises | BB37: Yes | BC37: N/A | BD37: N/A | BE37: N/A | BF37: N/A | BG37: N/A | BH37: N/A | BI37: N/A | BJ37: N/A | BK37: N/A | BL37: N/A | BM37: N/A | BN37: N/A | BO37: N/A | BP37: N/A | BQ37: N/A | BR37: N/A | BS37: N/A | BT37: N/A | BU37: N/A | BV37: N/A | BW37: N/A | BX37: N/A | BY37: N/A | BZ37: N/A | CA37: N/A | CB37: N/A | CC37: N/A
B38: No | C38: 95.61580783 | D38: 91.18175599 | E38: 82.94501503 | F38: 75.08735035 | G38: 50.91285101 | H38: 87.35032823 | I38: 79.42745348 | J38: 73.20864054 | K38: 62.33467981 | L38: 38.35799364 | M38: 98.3376645 | N38: 93.88560014 | O38: 93.48034632 | P38: 85.89382629 | Q38: 80.04446922 | R38: 66.90043448 | S38: 90.57406221 | T38: 64.41650724 | U38: 79.56095521 | V38: 83.23405757 | W38: 74.88090093 | X38: 66.25389834 | Y38: 75.17680339 | Z38: 74.22808636 | AA38: 83.55216876 | AB38: 67.40195886 | AC38: 66.08673072 | BB38: No | BC38: N/A | BD38: N/A | BE38: N/A | BF38: N/A | BG38: N/A | BH38: N/A | BI38: N/A | BJ38: N/A | BK38: N/A | BL38: N/A | BM38: N/A | BN38: N/A | BO38: N/A | BP38: N/A | BQ38: N/A | BR38: N/A | BS38: N/A | BT38: N/A | BU38: N/A | BV38: N/A | BW38: N/A | BX38: N/A | BY38: N/A | BZ38: N/A | CA38: N/A | CB38: N/A | CC38: N/A
A39: Piped water on premises available when needed | B39: Yes | C39: N/A | D39: N/A | E39: N/A | F39: N/A | G39: N/A | H39: N/A | I39: N/A | J39: N/A | K39: N/A | L39: N/A | M39: N/A | N39: N/A | O39: N/A | P39: N/A | Q39: N/A | R39: N/A | S39: N/A | T39: N/A | U39: N/A | V39: N/A | W39: N/A | X39: N/A | Y39: N/A | Z39: N/A | AA39: N/A | AB39: N/A | AC39: N/A | BA39: Piped water on premises available when needed | BB39: Yes | BC39: N/A | BD39: N/A | BE39: N/A | BF39: N/A | BG39: N/A | BH39: N/A | BI39: N/A | BJ39: N/A | BK39: N/A | BL39: N/A | BM39: N/A | BN39: N/A | BO39: N/A | BP39: N/A | BQ39: N/A | BR39: N/A | BS39: N/A | BT39: N/A | BU39: N/A | BV39: N/A | BW39: N/A | BX39: N/A | BY39: N/A | BZ39: N/A | CA39: N/A | CB39: N/A | CC39: N/A
B40: No | C40: N/A | D40: N/A | E40: N/A | F40: N/A | G40: N/A | H40: N/A | I40: N/A | J40: N/A | K40: N/A | L40: N/A | M40: N/A | N40: N/A | O40: N/A | P40: N/A | Q40: N/A | R40: N/A | S40: N/A | T40: N/A | U40: N/A | V40: N/A | W40: N/A | X40: N/A | Y40: N/A | Z40: N/A | AA40: N/A | AB40: N/A | AC40: N/A | BB40: No | BC40: N/A | BD40: N/A | BE40: N/A | BF40: N/A | BG40: N/A | BH40: N/A | BI40: N/A | BJ40: N/A | BK40: N/A | BL40: N/A | BM40: N/A | BN40: N/A | BO40: N/A | BP40: N/A | BQ40: N/A | BR40: N/A | BS40: N/A | BT40: N/A | BU40: N/A | BV40: N/A | BW40: N/A | BX40: N/A | BY40: N/A | BZ40: N/A | CA40: N/A | CB40: N/A | CC40: N/A
A41: Water point at more than 30 minutes | B41: Yes | C41: 15.76218337 | D41: 15.30256839 | E41: 14.10698973 | F41: 11.1898001 | G41: 5.031967367 | H41: 12.1060077 | I41: 8.603258925 | J41: 8.942635073 | K41: 5.235123432 | L41: 4.043945732 | M41: 16.79774336 | N41: 15.71040405 | O41: 16.13862269 | P41: 15.61761524 | Q41: 18.88639584 | R41: 5.437406941 | S41: 18.65857941 | T41: 12.58826394 | U41: 20.95967346 | V41: 9.507067017 | W41: 10.2210749 | X41: 23.06802677 | Y41: 8.359054018 | Z41: 14.62088608 | AA41: 11.73188324 | AB41: 10.01675613 | AC41: 1.992846193 | BA41: Water point at more than 30 minutes | BB41: Yes | BC41: N/A | BD41: N/A | BE41: N/A | BF41: N/A | BG41: N/A | BH41: N/A | BI41: N/A | BJ41: N/A | BK41: N/A | BL41: N/A | BM41: N/A | BN41: N/A | BO41: N/A | BP41: N/A | BQ41: N/A | BR41: N/A | BS41: N/A | BT41: N/A | BU41: N/A | BV41: N/A | BW41: N/A | BX41: N/A | BY41: N/A | BZ41: N/A | CA41: N/A | CB41: N/A | CC41: N/A
B42: No | C42: 84.23781663 | D42: 84.69743161 | E42: 85.89301027 | F42: 88.8101999 | G42: 94.96803263 | H42: 87.8939923 | I42: 91.39674108 | J42: 91.05736493 | K42: 94.76487657 | L42: 95.95605427 | M42: 83.20225664 | N42: 84.28959595 | O42: 83.86137731 | P42: 84.38238476 | Q42: 81.11360416 | R42: 94.56259306 | S42: 81.34142059 | T42: 87.41173606 | U42: 79.04032654 | V42: 90.49293298 | W42: 89.7789251 | X42: 76.93197323 | Y42: 91.64094598 | Z42: 85.37911392 | AA42: 88.26811676 | AB42: 89.98324387 | AC42: 98.00715381 | BB42: No | BC42: N/A | BD42: N/A | BE42: N/A | BF42: N/A | BG42: N/A | BH42: N/A | BI42: N/A | BJ42: N/A | BK42: N/A | BL42: N/A | BM42: N/A | BN42: N/A | BO42: N/A | BP42: N/A | BQ42: N/A | BR42: N/A | BS42: N/A | BT42: N/A | BU42: N/A | BV42: N/A | BW42: N/A | BX42: N/A | BY42: N/A | BZ42: N/A | CA42: N/A | CB42: N/A | CC42: N/A
A43: Water source available when needed | B43: Yes | C43: N/A | D43: N/A | E43: N/A | F43: N/A | G43: N/A | H43: N/A | I43: N/A | J43: N/A | K43: N/A | L43: N/A | M43: N/A | N43: N/A | O43: N/A | P43: N/A | Q43: N/A | R43: N/A | S43: N/A | T43: N/A | U43: N/A | V43: N/A | W43: N/A | X43: N/A | Y43: N/A | Z43: N/A | AA43: N/A | AB43: N/A | AC43: N/A | BA43: Water source available when needed | BB43: Yes | BC43: N/A | BD43: N/A | BE43: N/A | BF43: N/A | BG43: N/A | BH43: N/A | BI43: N/A | BJ43: N/A | BK43: N/A | BL43: N/A | BM43: N/A | BN43: N/A | BO43: N/A | BP43: N/A | BQ43: N/A | BR43: N/A | BS43: N/A | BT43: N/A | BU43: N/A | BV43: N/A | BW43: N/A | BX43: N/A | BY43: N/A | BZ43: N/A | CA43: N/A | CB43: N/A | CC43: N/A
B44: No | C44: N/A | D44: N/A | E44: N/A | F44: N/A | G44: N/A | H44: N/A | I44: N/A | J44: N/A | K44: N/A | L44: N/A | M44: N/A | N44: N/A | O44: N/A | P44: N/A | Q44: N/A | R44: N/A | S44: N/A | T44: N/A | U44: N/A | V44: N/A | W44: N/A | X44: N/A | Y44: N/A | Z44: N/A | AA44: N/A | AB44: N/A | AC44: N/A | BB44: No | BC44: N/A | BD44: N/A | BE44: N/A | BF44: N/A | BG44: N/A | BH44: N/A | BI44: N/A | BJ44: N/A | BK44: N/A | BL44: N/A | BM44: N/A | BN44: N/A | BO44: N/A | BP44: N/A | BQ44: N/A | BR44: N/A | BS44: N/A | BT44: N/A | BU44: N/A | BV44: N/A | BW44: N/A | BX44: N/A | BY44: N/A | BZ44: N/A | CA44: N/A | CB44: N/A | CC44: N/A
A45: Improved water source available when needed | B45: Yes | C45: N/A | D45: N/A | E45: N/A | F45: N/A | G45: N/A | H45: N/A | I45: N/A | J45: N/A | K45: N/A | L45: N/A | M45: N/A | N45: N/A | O45: N/A | P45: N/A | Q45: N/A | R45: N/A | S45: N/A | T45: N/A | U45: N/A | V45: N/A | W45: N/A | X45: N/A | Y45: N/A | Z45: N/A | AA45: N/A | AB45: N/A | AC45: N/A | BA45: Improved water source available when needed | BB45: Yes | BC45: N/A | BD45: N/A | BE45: N/A | BF45: N/A | BG45: N/A | BH45: N/A | BI45: N/A | BJ45: N/A | BK45: N/A | BL45: N/A | BM45: N/A | BN45: N/A | BO45: N/A | BP45: N/A | BQ45: N/A | BR45: N/A | BS45: N/A | BT45: N/A | BU45: N/A | BV45: N/A | BW45: N/A | BX45: N/A | BY45: N/A | BZ45: N/A | CA45: N/A | CB45: N/A | CC45: N/A
B46: No | C46: N/A | D46: N/A | E46: N/A | F46: N/A | G46: N/A | H46: N/A | I46: N/A | J46: N/A | K46: N/A | L46: N/A | M46: N/A | N46: N/A | O46: N/A | P46: N/A | Q46: N/A | R46: N/A | S46: N/A | T46: N/A | U46: N/A | V46: N/A | W46: N/A | X46: N/A | Y46: N/A | Z46: N/A | AA46: N/A | AB46: N/A | AC46: N/A | BB46: No | BC46: N/A | BD46: N/A | BE46: N/A | BF46: N/A | BG46: N/A | BH46: N/A | BI46: N/A | BJ46: N/A | BK46: N/A | BL46: N/A | BM46: N/A | BN46: N/A | BO46: N/A | BP46: N/A | BQ46: N/A | BR46: N/A | BS46: N/A | BT46: N/A | BU46: N/A | BV46: N/A | BW46: N/A | BX46: N/A | BY46: N/A | BZ46: N/A | CA46: N/A | CB46: N/A | CC46: N/A
A47: Microbiological quality at point of collection | B47: Not contaminated (No E. coli in 100 mL) | C47: N/A | D47: N/A | E47: N/A | F47: N/A | G47: N/A | H47: N/A | I47: N/A | J47: N/A | K47: N/A | L47: N/A | M47: N/A | N47: N/A | O47: N/A | P47: N/A | Q47: N/A | R47: N/A | S47: N/A | T47: N/A | U47: N/A | V47: N/A | W47: N/A | X47: N/A | Y47: N/A | Z47: N/A | AA47: N/A | AB47: N/A | AC47: N/A | BA47: Microbiological quality at point of collection | BB47: Not contaminated (No E. coli in 100 mL) | BC47: N/A | BD47: N/A | BE47: N/A | BF47: N/A | BG47: N/A | BH47: N/A | BI47: N/A | BJ47: N/A | BK47: N/A | BL47: N/A | BM47: N/A | BN47: N/A | BO47: N/A | BP47: N/A | BQ47: N/A | BR47: N/A | BS47: N/A | BT47: N/A | BU47: N/A | BV47: N/A | BW47: N/A | BX47: N/A | BY47: N/A | BZ47: N/A | CA47: N/A | CB47: N/A | CC47: N/A
B48: Contaminated (E. coli detected in 100 mL) | C48: N/A | D48: N/A | E48: N/A | F48: N/A | G48: N/A | H48: N/A | I48: N/A | J48: N/A | K48: N/A | L48: N/A | M48: N/A | N48: N/A | O48: N/A | P48: N/A | Q48: N/A | R48: N/A | S48: N/A | T48: N/A | U48: N/A | V48: N/A | W48: N/A | X48: N/A | Y48: N/A | Z48: N/A | AA48: N/A | AB48: N/A | AC48: N/A | BB48: Contaminated (E. coli detected in 100 mL) | BC48: N/A | BD48: N/A | BE48: N/A | BF48: N/A | BG48: N/A | BH48: N/A | BI48: N/A | BJ48: N/A | BK48: N/A | BL48: N/A | BM48: N/A | BN48: N/A | BO48: N/A | BP48: N/A | BQ48: N/A | BR48: N/A | BS48: N/A | BT48: N/A | BU48: N/A | BV48: N/A | BW48: N/A | BX48: N/A | BY48: N/A | BZ48: N/A | CA48: N/A | CB48: N/A | CC48: N/A
B49: Highly contaminated (>100 CFU/100 mL) | C49: N/A | D49: N/A | E49: N/A | F49: N/A | G49: N/A | H49: N/A | I49: N/A | J49: N/A | K49: N/A | L49: N/A | M49: N/A | N49: N/A | O49: N/A | P49: N/A | Q49: N/A | R49: N/A | S49: N/A | T49: N/A | U49: N/A | V49: N/A | W49: N/A | X49: N/A | Y49: N/A | Z49: N/A | AA49: N/A | AB49: N/A | AC49: N/A | BB49: Highly contaminated (>100 CFU/100 mL) | BC49: N/A | BD49: N/A | BE49: N/A | BF49: N/A | BG49: N/A | BH49: N/A | BI49: N/A | BJ49: N/A | BK49: N/A | BL49: N/A | BM49: N/A | BN49: N/A | BO49: N/A | BP49: N/A | BQ49: N/A | BR49: N/A | BS49: N/A | BT49: N/A | BU49: N/A | BV49: N/A | BW49: N/A | BX49: N/A | BY49: N/A | BZ49: N/A | CA49: N/A | CB49: N/A | CC49: N/A
A50: Microbiological quality of improved water sources at point of collection | B50: Not contaminated (No E. coli in 100 mL) | C50: N/A | D50: N/A | E50: N/A | F50: N/A | G50: N/A | H50: N/A | I50: N/A | J50: N/A | K50: N/A | L50: N/A | M50: N/A | N50: N/A | O50: N/A | P50: N/A | Q50: N/A | R50: N/A | S50: N/A | T50: N/A | U50: N/A | V50: N/A | W50: N/A | X50: N/A | Y50: N/A | Z50: N/A | AA50: N/A | AB50: N/A | AC50: N/A | BA50: Microbiological quality of improved water sources at point of collection | BB50: Not contaminated (No E. coli in 100 mL) | BC50: N/A | BD50: N/A | BE50: N/A | BF50: N/A | BG50: N/A | BH50: N/A | BI50: N/A | BJ50: N/A | BK50: N/A | BL50: N/A | BM50: N/A | BN50: N/A | BO50: N/A | BP50: N/A | BQ50: N/A | BR50: N/A | BS50: N/A | BT50: N/A | BU50: N/A | BV50: N/A | BW50: N/A | BX50: N/A | BY50: N/A | BZ50: N/A | CA50: N/A | CB50: N/A | CC50: N/A
B51: Contaminated (E. coli detected in 100 mL) | C51: N/A | D51: N/A | E51: N/A | F51: N/A | G51: N/A | H51: N/A | I51: N/A | J51: N/A | K51: N/A | L51: N/A | M51: N/A | N51: N/A | O51: N/A | P51: N/A | Q51: N/A | R51: N/A | S51: N/A | T51: N/A | U51: N/A | V51: N/A | W51: N/A | X51: N/A | Y51: N/A | Z51: N/A | AA51: N/A | AB51: N/A | AC51: N/A | BB51: Contaminated (E. coli detected in 100 mL) | BC51: N/A | BD51: N/A | BE51: N/A | BF51: N/A | BG51: N/A | BH51: N/A | BI51: N/A | BJ51: N/A | BK51: N/A | BL51: N/A | BM51: N/A | BN51: N/A | BO51: N/A | BP51: N/A | BQ51: N/A | BR51: N/A | BS51: N/A | BT51: N/A | BU51: N/A | BV51: N/A | BW51: N/A | BX51: N/A | BY51: N/A | BZ51: N/A | CA51: N/A | CB51: N/A | CC51: N/A
B52: Highly contaminated (>100 CFU/100 mL) | C52: N/A | D52: N/A | E52: N/A | F52: N/A | G52: N/A | H52: N/A | I52: N/A | J52: N/A | K52: N/A | L52: N/A | M52: N/A | N52: N/A | O52: N/A | P52: N/A | Q52: N/A | R52: N/A | S52: N/A | T52: N/A | U52: N/A | V52: N/A | W52: N/A | X52: N/A | Y52: N/A | Z52: N/A | AA52: N/A | AB52: N/A | AC52: N/A | BB52: Highly contaminated (>100 CFU/100 mL) | BC52: N/A | BD52: N/A | BE52: N/A | BF52: N/A | BG52: N/A | BH52: N/A | BI52: N/A | BJ52: N/A | BK52: N/A | BL52: N/A | BM52: N/A | BN52: N/A | BO52: N/A | BP52: N/A | BQ52: N/A | BR52: N/A | BS52: N/A | BT52: N/A | BU52: N/A | BV52: N/A | BW52: N/A | BX52: N/A | BY52: N/A | BZ52: N/A | CA52: N/A | CB52: N/A | CC52: N/A
A53: Microbiological quality of piped on premises at point of collection | B53: Not contaminated (No E. coli in 100 mL) | C53: N/A | D53: N/A | E53: N/A | F53: N/A | G53: N/A | H53: N/A | I53: N/A | J53: N/A | K53: N/A | L53: N/A | M53: N/A | N53: N/A | O53: N/A | P53: N/A | Q53: N/A | R53: N/A | S53: N/A | T53: N/A | U53: N/A | V53: N/A | W53: N/A | X53: N/A | Y53: N/A | Z53: N/A | AA53: N/A | AB53: N/A | AC53: N/A | BA53: Microbiological quality of piped on premises at point of collection | BB53: Not contaminated (No E. coli in 100 mL) | BC53: N/A | BD53: N/A | BE53: N/A | BF53: N/A | BG53: N/A | BH53: N/A | BI53: N/A | BJ53: N/A | BK53: N/A | BL53: N/A | BM53: N/A | BN53: N/A | BO53: N/A | BP53: N/A | BQ53: N/A | BR53: N/A | BS53: N/A | BT53: N/A | BU53: N/A | BV53: N/A | BW53: N/A | BX53: N/A | BY53: N/A | BZ53: N/A | CA53: N/A | CB53: N/A | CC53: N/A
B54: Contaminated (E. coli detected in 100 mL) | C54: N/A | D54: N/A | E54: N/A | F54: N/A | G54: N/A | H54: N/A | I54: N/A | J54: N/A | K54: N/A | L54: N/A | M54: N/A | N54: N/A | O54: N/A | P54: N/A | Q54: N/A | R54: N/A | S54: N/A | T54: N/A | U54: N/A | V54: N/A | W54: N/A | X54: N/A | Y54: N/A | Z54: N/A | AA54: N/A | AB54: N/A | AC54: N/A | BB54: Contaminated (E. coli detected in 100 mL) | BC54: N/A | BD54: N/A | BE54: N/A | BF54: N/A | BG54: N/A | BH54: N/A | BI54: N/A | BJ54: N/A | BK54: N/A | BL54: N/A | BM54: N/A | BN54: N/A | BO54: N/A | BP54: N/A | BQ54: N/A | BR54: N/A | BS54: N/A | BT54: N/A | BU54: N/A | BV54: N/A | BW54: N/A | BX54: N/A | BY54: N/A | BZ54: N/A | CA54: N/A | CB54: N/A | CC54: N/A
B55: Highly contaminated (>100 CFU/100 mL) | C55: N/A | D55: N/A | E55: N/A | F55: N/A | G55: N/A | H55: N/A | I55: N/A | J55: N/A | K55: N/A | L55: N/A | M55: N/A | N55: N/A | O55: N/A | P55: N/A | Q55: N/A | R55: N/A | S55: N/A | T55: N/A | U55: N/A | V55: N/A | W55: N/A | X55: N/A | Y55: N/A | Z55: N/A | AA55: N/A | AB55: N/A | AC55: N/A | BB55: Highly contaminated (>100 CFU/100 mL) | BC55: N/A | BD55: N/A | BE55: N/A | BF55: N/A | BG55: N/A | BH55: N/A | BI55: N/A | BJ55: N/A | BK55: N/A | BL55: N/A | BM55: N/A | BN55: N/A | BO55: N/A | BP55: N/A | BQ55: N/A | BR55: N/A | BS55: N/A | BT55: N/A | BU55: N/A | BV55: N/A | BW55: N/A | BX55: N/A | BY55: N/A | BZ55: N/A | CA55: N/A | CB55: N/A | CC55: N/A
C56: NATIONAL wealth index quintile | H56: URBAN wealth index quintile | M56: RURAL wealth index quintile | R56: SUB-REGIONS: | BA56: Raw numbers of respondents: | BB56: Use of drinking water sources | BC56: NATIONAL wealth index quintile | BH56: URBAN wealth index quintile | BM56: RURAL wealth index quintile | BR56: SUB-REGIONS:
A57: Percentage based on weighted population | C57: Poorest | D57: Poor | E57: Middle | F57: Rich | G57: Richest | H57: Poorest | I57: Poor | J57: Middle | K57: Rich | L57: Richest | M57: Poorest | N57: Poor | O57: Middle | P57: Rich | Q57: Richest | R57: Adamaoua | S57: Centre | T57: Douala | U57: Est | V57: Extreme Nord | W57: Littoral | X57: Nord | Y57: Nord Ouest | Z57: Ouest | AA57: Sud | AB57: Sud Ouest | AC57: Yaounde | BA57: Water data, raw numbers (weighted) | BC57: Poorest | BD57: Poor | BE57: Middle | BF57: Rich | BG57: Richest | BH57: Poorest | BI57: Poor | BJ57: Middle | BK57: Rich | BL57: Richest | BM57: Poorest | BN57: Poor | BO57: Middle | BP57: Rich | BQ57: Richest | BR57: Adamaoua | BS57: Centre | BT57: Douala | BU57: Est | BV57: Extreme Nord | BW57: Littoral | BX57: Nord | BY57: Nord Ouest | BZ57: Ouest | CA57: Sud | CB57: Sud Ouest | CC57: Yaounde
A58: Source of drinking water | B58: In the house | C58: 0.2143520025 | D58: 0.9655952912 | E58: 2.406358975 | F58: 8.292803134 | G58: 31.94822531 | H58: 2.613601493 | I58: 6.155183 | J58: 10.76956744 | K58: 19.35560493 | L58: 46.368567 | M58: 0 | N58: 0.1536403625 | O58: 0.2820307467 | P58: 0.7178640059 | Q58: 3.054978126 | R58: 5.982906828 | S58: 1.112076525 | T58: 24.07272727 | U58: 4.140417681 | V58: 5.794172256 | W58: 12.10463176 | X58: 1.711134834 | Y58: 5.774204369 | Z58: 8.357352322 | AA58: 4.001421413 | AB58: 10.3105334 | AC58: 22.86515422
B59: In the courtyard | C59: 0.5818172595 | D59: 0.7702851766 | E59: 2.775115634 | F59: 6.741101994 | G59: 10.53958165 | H59: 1.991635444 | I59: 4.644647604 | J59: 7.69581335 | K59: 11.95635606 | L59: 9.949738303 | M59: 0 | N59: 0.5983168445 | O59: 0.6877459088 | P59: 2.745040228 | Q59: 3.057883126 | R59: 1.783637227 | S59: 4.020245427 | T59: 5.575757576 | U59: 1.74256414 | V59: 1.560791788 | W59: 4.052362342 | X59: 0.8687299926 | Y59: 5.887758226 | Z59: 4.263759719 | AA59: 4.724370262 | AB59: 9.499762054 | AC59: 9.355085394
B60: Of a neighbor | C60: 0.9397401299 | D60: 0.8249242435 | E60: 3.763254171 | F60: 10.85927493 | G60: 11.52799873 | H60: 4.995603529 | I60: 12.05651708 | J60: 12.83239729 | K60: 14.15928445 | L60: 9.756555741 | M60: 0.09082664062 | N60: 0.3541012465 | O60: 0.2524336779 | P60: 0.938515915 | Q60: 1.410431108 | R60: 1.749543118 | S60: 2.15961349 | T60: 18.83636364 | U60: 2.979428411 | V60: 0.8338476678 | W60: 4.419911342 | X60: 0.7107790849 | Y60: 2.364368989 | Z60: 5.58946135 | AA60: 3.632498436 | AB60: 9.88875188 | AC60: 16.41600816
B61: Along the road | C61: 10.03223853 | D61: 10.14334069 | E61: 22.02385817 | F61: 34.65189155 | G61: 26.32343234 | H61: 27.9582741 | I61: 39.10816914 | J61: 41.7675103 | K61: 34.65854207 | L61: 20.09409796 | M61: 7.14010643 | N61: 6.643080281 | O61: 6.4379053 | P61: 12.0716957 | Q61: 12.99275571 | R61: 20.80163275 | S61: 15.66671935 | T61: 25.52727273 | U61: 8.34002721 | V61: 2.506900098 | W61: 37.6643502 | X61: 10.41689375 | Y61: 36.01706973 | Z61: 18.74189683 | AA61: 15.39785885 | AB61: 36.65596222 | AC61: 41.95768544
B62: Well with pump | C62: 18.7954073 | D62: 18.17815871 | E62: 14.46212199 | F62: 6.70529803 | G62: 4.100773798 | H62: 16.66928763 | I62: 6.624102851 | J62: 4.461853981 | K62: 2.457535244 | L62: 2.577136762 | M62: 20.66032461 | N62: 16.98850716 | O62: 18.57012314 | P62: 14.9301394 | Q62: 19.94720362 | R62: 11.39469379 | S62: 29.47731302 | T62: 3.466666667 | U62: 8.131846442 | V62: 30.40969652 | W62: 1.909728358 | X62: 16.26158304 | Y62: 1.729273819 | Z62: 6.26629615 | AA62: 13.58543361 | AB62: 0.9904230101 | AC62: 0.7647208769
B63: Non protected well | C63: 23.45953788 | D63: 20.74913105 | E63: 11.853259 | F63: 5.110534985 | G63: 0.5226790779 | H63: 12.10776072 | I63: 6.440264548 | J63: 2.349333905 | K63: 1.111506284 | L63: 0.1162703569 | M63: 29.48832801 | N63: 24.92097634 | O63: 20.00641785 | P63: 15.92392511 | Q63: 9.915165489 | R63: 22.44410295 | S63: 9.348426667 | T63: 0.3151515152 | U63: 10.28303115 | V63: 31.47168015 | W63: 3.464237472 | X63: 35.50321158 | Y63: 0.8803872215 | Z63: 2.852577054 | AA63: 6.930898778 | AB63: 2.061828008 | AC63: 0.4333418302
B64: Protected without pump | C64: 9.869684381 | D64: 8.056891975 | E64: 8.033029319 | F64: 5.348077562 | G64: 2.548818821 | H64: 6.393548659 | I64: 6.36332262 | J64: 3.29546778 | K64: 3.291424691 | L64: 1.38278692 | M64: 11.41502444 | N64: 11.37066553 | O64: 6.662603302 | P64: 8.316052749 | Q64: 8.695835148 | R64: 8.158059257 | S64: 8.560696059 | T64: 1.624242424 | U64: 8.070494123 | V64: 16.99967925 | W64: 2.071344148 | X64: 8.334807947 | Y64: 1.085410715 | Z64: 3.820066998 | AA64: 4.802360465 | AB64: 4.823384662 | AC64: 1.55493245
B65: River/stream not protected | C65: 31.8414768 | D65: 35.79909761 | E65: 26.67492196 | F65: 11.52332122 | G65: 2.855292676 | H65: 20.54020282 | I65: 9.092167294 | J65: 5.250819201 | K65: 2.927395038 | L65: 0.8519940235 | M65: 28.41535843 | N65: 35.16674624 | O65: 42.34338157 | P65: 36.66045963 | Q65: 32.15153658 | R65: 23.49438977 | S65: 18.26437403 | T65: 3.248484848 | U65: 36.05296238 | V65: 10.05708166 | W65: 26.34666356 | X65: 23.39951714 | Y65: 42.54664513 | Z65: 40.58208632 | AA65: 27.51185924 | AB65: 22.36974349 | AC65: 1.045118532
B66: Protected source | C66: 4.138242294 | D66: 4.312673176 | E66: 7.558260033 | F66: 8.335613622 | G66: 6.939812981 | H66: 6.005120334 | I66: 7.649922894 | J66: 8.359242001 | K66: 8.084400539 | L66: 5.295300469 | M66: 2.790031439 | N66: 3.794618063 | O66: 4.366465196 | P66: 7.651696105 | Q66: 8.588422203 | R66: 3.813255573 | S66: 10.2492225 | T66: 9.6 | U66: 20.19601598 | V66: 0.237866351 | W66: 7.168391004 | X66: 0.4829322899 | Y66: 3.714881801 | Z66: 9.211192351 | AA66: 19.17877821 | AB66: 3.399611277 | AC66: 5.251083355
B67: Rainwater | C67: 0 | D67: 0.1627580298 | E67: 0.04312180256 | F67: 0.05068208411 | G67: 0 | H67: 0.04161140406 | I67: 0 | J67: 0.1039964658 | K67: 0 | L67: 0 | M67: 0 | N67: 0 | O67: 0.31826096 | P67: 0.03477006109 | Q67: 0.009216943592 | R67: 0.1514776114 | S67: 0.1042571742 | T67: 0 | U67: 0 | V67: 0 | W67: 0.02121920397 | X67: 0 | Y67: 0 | Z67: 0.315310902 | AA67: 0.02376971312 | AB67: 0 | AC67: 0
B68: Other | C68: 0.1275034264 | D68: 0.03714404169 | E68: 0.4066989401 | F68: 2.38140089 | G68: 2.693384624 | H68: 0.6833538617 | I68: 1.865702967 | J68: 3.11399828 | K68: 1.997950698 | L68: 3.607552465 | M68: 0 | N68: 0.009347935599 | O68: 0.07263235113 | P68: 0.009841099021 | Q68: 0.1765719435 | R68: 0.2263011232 | S68: 1.037055754 | T68: 7.733333333 | U68: 0.06321248368 | V68: 0.1282842566 | W68: 0.7771606064 | X68: 2.310410341 | Y68: 0 | Z68: 0 | AA68: 0.2107510275 | AB68: 0 | AC68: 0.3568697425
A108: =A1026 -> Cameroon
A109: =A1034 -> 2004
A110: Use of sanitation facilities
A111: by wealth quintile and sub-national region
A112: Notes:
A113: WHO/UNICEF JMP customised wealth index excludes water,
A114: sanitation and hygiene assets.
A115: Survey used for analysis: | B115: =A1025 -> DHS04
A116: =B1030 -> Ratio of Improved latrines based on: | B116: DHS11
A117: =B1029 -> Ratio of Shared improved based on: | B117: MICS06
A120: Use of sanitation facilities | C120: NATIONAL wealth index quintile | H120: URBAN wealth index quintile | M120: RURAL wealth index quintile | R120: SUB-REGIONS: | BA120: Raw numbers of respondents: | BB120: Use of sanitation facilities | BC120: NATIONAL wealth index quintile | BH120: URBAN wealth index quintile | BM120: RURAL wealth index quintile | BR120: SUB-REGIONS:
A121: Weighted percentage (used in graphs) | C121: Poorest | D121: Poor | E121: Middle | F121: Rich | G121: Richest | H121: Poorest | I121: Poor | J121: Middle | K121: Rich | L121: Richest | M121: Poorest | N121: Poor | O121: Middle | P121: Rich | Q121: Richest | R121: Adamaoua | S121: Centre | T121: Douala | U121: Est | V121: Extreme Nord | W121: Littoral | X121: Nord | Y121: Nord Ouest | Z121: Ouest | AA121: Sud | AB121: Sud Ouest | AC121: Yaounde | BA121: Sanitation data, raw numbers (weighted) | BC121: Poorest | BD121: Poor | BE121: Middle | BF121: Rich | BG121: Richest | BH121: Poorest | BI121: Poor | BJ121: Middle | BK121: Rich | BL121: Richest | BM121: Poorest | BN121: Poor | BO121: Middle | BP121: Rich | BQ121: Richest | BR121: Adamaoua | BS121: Centre | BT121: Douala | BU121: Est | BV121: Extreme Nord | BW121: Littoral | BX121: Nord | BY121: Nord Ouest | BZ121: Ouest | CA121: Sud | CB121: Sud Ouest | CC121: Yaounde
A122: Sanitation | B122: Improved | C122: =C153+(C154+C155)*'DHS11'!C130/100 -> 26.6206014 | D122: =D153+(D154+D155)*'DHS11'!D130/100 -> 27.80661639 | E122: =E153+(E154+E155)*'DHS11'!E130/100 -> 51.43693279 | F122: =F153+(F154+F155)*'DHS11'!F130/100 -> 84.32701457 | G122: =G153+(G154+G155)*'DHS11'!G130/100 -> 94.971095 | H122: =H153+(H154+H155)*'DHS11'!H130/100 -> 50.29163162 | I122: =I153+(I154+I155)*'DHS11'!I130/100 -> 83.24087834 | J122: =J153+(J154+J155)*'DHS11'!J130/100 -> 90.34649327 | K122: =K153+(K154+K155)*'DHS11'!K130/100 -> 94.58923996 | L122: =L153+(L154+L155)*'DHS11'!L130/100 -> 97.04747411 | M122: =M153+(M154+M155)*'DHS11'!M130/100 -> 21.88795869 | N122: =N153+(N154+N155)*'DHS11'!N130/100 -> 30.39026192 | O122: =O153+(O154+O155)*'DHS11'!O130/100 -> 24.27620689 | P122: =P153+(P154+P155)*'DHS11'!P130/100 -> 32.95284295 | Q122: =Q153+(Q154+Q155)*'DHS11'!Q130/100 -> 57.53127742 | R122: =R153+(R154+R155)*'DHS11'!R130/100 -> 82.31410551 | S122: =S153+(S154+S155)*'DHS11'!S130/100 -> 50.25829457 | T122: =T153+(T154+T155)*'DHS11'!T130/100 -> 95.45115962 | U122: =U153+(U154+U155)*'DHS11'!U130/100 -> 37.65113225 | V122: =V153+(V154+V155)*'DHS11'!V130/100 -> 43.6748409 | W122: =W153+(W154+W155)*'DHS11'!W130/100 -> 68.46571909 | X122: =X153+(X154+X155)*'DHS11'!X130/100 -> 35.07683259 | Y122: =Y153+(Y154+Y155)*'DHS11'!Y130/100 -> 38.86827886 | Z122: =Z153+(Z154+Z155)*'DHS11'!Z130/100 -> 57.26098488 | AA122: =AA153+(AA154+AA155)*'DHS11'!AA130/100 -> 41.22119801 | AB122: =AB153+(AB154+AB155)*'DHS11'!AB130/100 -> 51.78433799 | AC122: =AC153+(AC154+AC155)*'DHS11'!AC130/100 -> 90.63162573 | BA122: Sanitation | BB122: Improved | BC122: N/A | BD122: N/A | BE122: N/A | BF122: N/A | BG122: N/A | BH122: N/A | BI122: N/A | BJ122: N/A | BK122: N/A | BL122: N/A | BM122: N/A | BN122: N/A | BO122: N/A | BP122: N/A | BQ122: N/A | BR122: N/A | BS122: N/A | BT122: N/A | BU122: N/A | BV122: N/A | BW122: N/A | BX122: N/A | BY122: N/A | BZ122: N/A | CA122: N/A | CB122: N/A | CC122: N/A
B123: Not Improved | C123: =100-C122 -> 73.3793986 | D123: =100-D122 -> 72.19338361 | E123: 48.56306721 | F123: 15.67298543 | G123: 5.028905004 | H123: 49.70836838 | I123: 16.75912166 | J123: 9.653506731 | K123: 5.410760044 | L123: 2.952525892 | M123: 78.11204131 | N123: 69.60973808 | O123: 75.72379311 | P123: 67.04715705 | Q123: 42.46872258 | R123: 17.68589449 | S123: 49.74170543 | T123: 4.54884038 | U123: 62.34886775 | V123: 56.3251591 | W123: 31.53428091 | X123: 64.92316741 | Y123: 61.13172114 | Z123: 42.73901512 | AA123: 58.77880199 | AB123: 48.21566201 | AC123: 9.368374265 | BB123: Not Improved | BC123: N/A | BD123: N/A | BE123: N/A | BF123: N/A | BG123: N/A | BH123: N/A | BI123: N/A | BJ123: N/A | BK123: N/A | BL123: N/A | BM123: N/A | BN123: N/A | BO123: N/A | BP123: N/A | BQ123: N/A | BR123: N/A | BS123: N/A | BT123: N/A | BU123: N/A | BV123: N/A | BW123: N/A | BX123: N/A | BY123: N/A | BZ123: N/A | CA123: N/A | CB123: N/A | CC123: N/A
A124: Sanitation ladder | B124: Basic | C124: =C122*MICS06!C129/100 -> 22.73431916 | D124: =D122*MICS06!D129/100 -> 21.61828483 | E124: =E122*MICS06!E129/100 -> 32.32066323 | F124: =F122*MICS06!F129/100 -> 58.22511945 | G124: =G122*MICS06!G129/100 -> 72.44932384 | H124: =H122*MICS06!H129/100 -> 34.01460266 | I124: =I122*MICS06!I129/100 -> 54.71617782 | J124: =J122*MICS06!J129/100 -> 61.70526485 | K124: =K122*MICS06!K129/100 -> 62.40104281 | L124: =L122*MICS06!L129/100 -> 82.97774162 | M124: =M122*MICS06!M129/100 -> 19.71826866 | N124: =N122*MICS06!N129/100 -> 24.30690535 | O124: =O122*MICS06!O129/100 -> 20.03997315 | P124: =P122*MICS06!P129/100 -> 23.83661631 | Q124: =Q122*MICS06!Q129/100 -> 36.04653735 | R124: =R122*MICS06!R129/100 -> 79.78268621 | S124: =S122*MICS06!S129/100 -> 38.54413219 | T124: =T122*MICS06!T129/100 -> 71.24212496 | U124: =U122*MICS06!U129/100 -> 27.14727236 | V124: =V122*MICS06!V129/100 -> 37.36420002 | W124: =W122*MICS06!W129/100 -> 51.89431983 | X124: =X122*MICS06!X129/100 -> 31.50940396 | Y124: =Y122*MICS06!Y129/100 -> 22.27260433 | Z124: =Z122*MICS06!Z129/100 -> 48.31540637 | AA124: =AA122*MICS06!AA129/100 -> 24.9223917 | AB124: =AB122*MICS06!AB129/100 -> 26.24122956 | AC124: =AC122*MICS06!AC129/100 -> 62.25707584 | BA124: Sanitation ladder | BB124: Basic | BC124: N/A | BD124: N/A | BE124: N/A | BF124: N/A | BG124: N/A | BH124: N/A | BI124: N/A | BJ124: N/A | BK124: N/A | BL124: N/A | BM124: N/A | BN124: N/A | BO124: N/A | BP124: N/A | BQ124: N/A | BR124: N/A | BS124: N/A | BT124: N/A | BU124: N/A | BV124: N/A | BW124: N/A | BX124: N/A | BY124: N/A | BZ124: N/A | CA124: N/A | CB124: N/A | CC124: N/A
B125: Limited | C125: =C122*MICS06!C128/100 -> 3.886282236 | D125: =D122*MICS06!D128/100 -> 6.188331559 | E125: =E122*MICS06!E128/100 -> 19.11626955 | F125: =F122*MICS06!F128/100 -> 26.10189511 | G125: =G122*MICS06!G128/100 -> 22.52177116 | H125: =H122*MICS06!H128/100 -> 16.27702896 | I125: =I122*MICS06!I128/100 -> 28.52470052 | J125: =J122*MICS06!J128/100 -> 28.64122842 | K125: =K122*MICS06!K128/100 -> 32.18819715 | L125: =L122*MICS06!L128/100 -> 14.06973248 | M125: =M122*MICS06!M128/100 -> 2.169690033 | N125: =N122*MICS06!N128/100 -> 6.083356578 | O125: =O122*MICS06!O128/100 -> 4.236233731 | P125: =P122*MICS06!P128/100 -> 9.116226634 | Q125: =Q122*MICS06!Q128/100 -> 21.48474007 | R125: =R122*MICS06!R128/100 -> 2.531419296 | S125: =S122*MICS06!S128/100 -> 11.71416238 | T125: =T122*MICS06!T128/100 -> 24.20903466 | U125: =U122*MICS06!U128/100 -> 10.5038599 | V125: =V122*MICS06!V128/100 -> 6.310640882 | W125: =W122*MICS06!W128/100 -> 16.57139927 | X125: =X122*MICS06!X128/100 -> 3.567428629 | Y125: =Y122*MICS06!Y128/100 -> 16.59567453 | Z125: =Z122*MICS06!Z128/100 -> 8.945578518 | AA125: =AA122*MICS06!AA128/100 -> 16.29880632 | AB125: =AB122*MICS06!AB128/100 -> 25.54310843 | AC125: =AC122*MICS06!AC128/100 -> 28.37454989 | BB125: Limited | BC125: N/A | BD125: N/A | BE125: N/A | BF125: N/A | BG125: N/A | BH125: N/A | BI125: N/A | BJ125: N/A | BK125: N/A | BL125: N/A | BM125: N/A | BN125: N/A | BO125: N/A | BP125: N/A | BQ125: N/A | BR125: N/A | BS125: N/A | BT125: N/A | BU125: N/A | BV125: N/A | BW125: N/A | BX125: N/A | BY125: N/A | BZ125: N/A | CA125: N/A | CB125: N/A | CC125: N/A
B126: Unimproved | C126: =100-C124-C125-C127 -> 53.41716331 | D126: =100-D124-D125-D127 -> 60.74302686 | E126: 46.02073636 | F126: 14.71342005 | G126: 5.007591191 | H126: 44.26133926 | I126: 15.92084126 | J126: 8.826045006 | K126: 5.388136354 | L126: 2.952525892 | M126: 53.02498978 | N126: 51.51134121 | O126: 62.07572885 | P126: 63.4803528 | Q126: 40.22661135 | R126: 17.68589449 | S126: 48.64316011 | T126: 3.74884038 | U126: 56.54822841 | V126: 37.24615787 | W126: 29.70917264 | X126: 42.67711729 | Y126: 59.63550694 | Z126: 40.65360898 | AA126: 56.42592867 | AB126: 42.84922961 | AC126: 8.858560347 | BB126: Unimproved | BC126: N/A | BD126: N/A | BE126: N/A | BF126: N/A | BG126: N/A | BH126: N/A | BI126: N/A | BJ126: N/A | BK126: N/A | BL126: N/A | BM126: N/A | BN126: N/A | BO126: N/A | BP126: N/A | BQ126: N/A | BR126: N/A | BS126: N/A | BT126: N/A | BU126: N/A | BV126: N/A | BW126: N/A | BX126: N/A | BY126: N/A | BZ126: N/A | CA126: N/A | CB126: N/A | CC126: N/A
B127: Open defecation | C127: =C156 -> 19.9622353 | D127: =D156 -> 11.45035674 | E127: 2.542330858 | F127: 0.9595653823 | G127: 0.02131381239 | H127: 5.447029124 | I127: 0.8382803998 | J127: 0.8274617243 | K127: 0.0226236902 | L127: 0 | M127: 25.08705153 | N127: 18.09839687 | O127: 13.64806427 | P127: 3.566804255 | Q127: 2.242111226 | R127: 0 | S127: 1.09854532 | T127: 0.8 | U127: 5.800639333 | V127: 19.07900123 | W127: 1.825108268 | X127: 22.24605012 | Y127: 1.496214202 | Z127: 2.085406139 | AA127: 2.352873317 | AB127: 5.366432393 | AC127: 0.5098139179 | BB127: Open defecation | BC127: N/A | BD127: N/A | BE127: N/A | BF127: N/A | BG127: N/A | BH127: N/A | BI127: N/A | BJ127: N/A | BK127: N/A | BL127: N/A | BM127: N/A | BN127: N/A | BO127: N/A | BP127: N/A | BQ127: N/A | BR127: N/A | BS127: N/A | BT127: N/A | BU127: N/A | BV127: N/A | BW127: N/A | BX127: N/A | BY127: N/A | BZ127: N/A | CA127: N/A | CB127: N/A | CC127: N/A
A128: Shared among Improved Sanitation | B128: Yes | C128: N/a | D128: N/a | E128: N/a | F128: N/a | G128: N/a | H128: N/a | I128: N/a | J128: N/a | K128: N/a | L128: N/a | M128: N/a | N128: N/a | O128: N/a | P128: N/a | Q128: N/a | R128: N/a | S128: N/a | T128: N/a | U128: N/a | V128: N/a | W128: N/a | X128: N/a | Y128: N/a | Z128: N/a | AA128: N/a | AB128: N/a | AC128: N/a | BA128: Shared among improved sanitation facilities | BB128: Yes | BC128: N/A | BD128: N/A | BE128: N/A | BF128: N/A | BG128: N/A | BH128: N/A | BI128: N/A | BJ128: N/A | BK128: N/A | BL128: N/A | BM128: N/A | BN128: N/A | BO128: N/A | BP128: N/A | BQ128: N/A | BR128: N/A | BS128: N/A | BT128: N/A | BU128: N/A | BV128: N/A | BW128: N/A | BX128: N/A | BY128: N/A | BZ128: N/A | CA128: N/A | CB128: N/A | CC128: N/A
B129: No | C129: N/A | D129: N/A | E129: N/A | F129: N/A | G129: N/A | H129: N/A | I129: N/A | J129: N/A | K129: N/A | L129: N/A | M129: N/A | N129: N/A | O129: N/A | P129: N/A | Q129: N/A | R129: N/A | S129: N/A | T129: N/A | U129: N/A | V129: N/A | W129: N/A | X129: N/A | Y129: N/A | Z129: N/A | AA129: N/A | AB129: N/A | AC129: N/A | BB129: No | BC129: N/A | BD129: N/A | BE129: N/A | BF129: N/A | BG129: N/A | BH129: N/A | BI129: N/A | BJ129: N/A | BK129: N/A | BL129: N/A | BM129: N/A | BN129: N/A | BO129: N/A | BP129: N/A | BQ129: N/A | BR129: N/A | BS129: N/A | BT129: N/A | BU129: N/A | BV129: N/A | BW129: N/A | BX129: N/A | BY129: N/A | BZ129: N/A | CA129: N/A | CB129: N/A | CC129: N/A
A130: Manually calculated ratios | B130: Improved latrines
B131: Other
B132: Other
C133: NATIONAL wealth index quintile | H133: URBAN wealth index quintile | M133: RURAL wealth index quintile | R133: SUB-REGIONS: | BA133: Raw numbers of respondents: | BB133: Use of sanitation facilities | BC133: NATIONAL wealth index quintile | BH133: URBAN wealth index quintile | BM133: RURAL wealth index quintile | BR133: SUB-REGIONS:
A134: Percentage based on weighted population | C134: Poorest | D134: Poor | E134: Middle | F134: Rich | G134: Richest | H134: Poorest | I134: Poor | J134: Middle | K134: Rich | L134: Richest | M134: Poorest | N134: Poor | O134: Middle | P134: Rich | Q134: Richest | R134: Adamaoua | S134: Centre | T134: Douala | U134: Est | V134: Extreme Nord | W134: Littoral | X134: Nord | Y134: Nord Ouest | Z134: Ouest | AA134: Sud | AB134: Sud Ouest | AC134: Yaounde | BA134: Sanitation data, raw numbers (weighted) | BC134: Poorest | BD134: Poor | BE134: Middle | BF134: Rich | BG134: Richest | BH134: Poorest | BI134: Poor | BJ134: Middle | BK134: Rich | BL134: Richest | BM134: Poorest | BN134: Poor | BO134: Middle | BP134: Rich | BQ134: Richest | BR134: Adamaoua | BS134: Centre | BT134: Douala | BU134: Est | BV134: Extreme Nord | BW134: Littoral | BX134: Nord | BY134: Nord Ouest | BZ134: Ouest | CA134: Sud | CB134: Sud Ouest | CC134: Yaounde
A135: Sanitation type | B135: Sewer connection | C135: N/A | D135: N/A | E135: N/A | F135: N/A | G135: N/A | H135: N/A | I135: N/A | J135: N/A | K135: N/A | L135: N/A | M135: N/A | N135: N/A | O135: N/A | P135: N/A | Q135: N/A | R135: N/A | S135: N/A | T135: N/A | U135: N/A | V135: N/A | W135: N/A | X135: N/A | Y135: N/A | Z135: N/A | AA135: N/A | AB135: N/A | AC135: N/A | BA135: Sanitation type | BB135: Sewer connection | BC135: N/A | BD135: N/A | BE135: N/A | BF135: N/A | BG135: N/A | BH135: N/A | BI135: N/A | BJ135: N/A | BK135: N/A | BL135: N/A | BM135: N/A | BN135: N/A | BO135: N/A | BP135: N/A | BQ135: N/A | BR135: N/A | BS135: N/A | BT135: N/A | BU135: N/A | BV135: N/A | BW135: N/A | BX135: N/A | BY135: N/A | BZ135: N/A | CA135: N/A | CB135: N/A | CC135: N/A
B136: Septic tank connection | C136: N/A | D136: N/A | E136: N/A | F136: N/A | G136: N/A | H136: N/A | I136: N/A | J136: N/A | K136: N/A | L136: N/A | M136: N/A | N136: N/A | O136: N/A | P136: N/A | Q136: N/A | R136: N/A | S136: N/A | T136: N/A | U136: N/A | V136: N/A | W136: N/A | X136: N/A | Y136: N/A | Z136: N/A | AA136: N/A | AB136: N/A | AC136: N/A | BB136: Septic tank connection | BC136: N/A | BD136: N/A | BE136: N/A | BF136: N/A | BG136: N/A | BH136: N/A | BI136: N/A | BJ136: N/A | BK136: N/A | BL136: N/A | BM136: N/A | BN136: N/A | BO136: N/A | BP136: N/A | BQ136: N/A | BR136: N/A | BS136: N/A | BT136: N/A | BU136: N/A | BV136: N/A | BW136: N/A | BX136: N/A | BY136: N/A | BZ136: N/A | CA136: N/A | CB136: N/A | CC136: N/A
B137: Improved latrines | C137: N/A | D137: N/A | E137: N/A | F137: N/A | G137: N/A | H137: N/A | I137: N/A | J137: N/A | K137: N/A | L137: N/A | M137: N/A | N137: N/A | O137: N/A | P137: N/A | Q137: N/A | R137: N/A | S137: N/A | T137: N/A | U137: N/A | V137: N/A | W137: N/A | X137: N/A | Y137: N/A | Z137: N/A | AA137: N/A | AB137: N/A | AC137: N/A | BB137: Improved latrines | BC137: N/A | BD137: N/A | BE137: N/A | BF137: N/A | BG137: N/A | BH137: N/A | BI137: N/A | BJ137: N/A | BK137: N/A | BL137: N/A | BM137: N/A | BN137: N/A | BO137: N/A | BP137: N/A | BQ137: N/A | BR137: N/A | BS137: N/A | BT137: N/A | BU137: N/A | BV137: N/A | BW137: N/A | BX137: N/A | BY137: N/A | BZ137: N/A | CA137: N/A | CB137: N/A | CC137: N/A
B138: Unimproved facilities | C138: N/A | D138: N/A | E138: N/A | F138: N/A | G138: N/A | H138: N/A | I138: N/A | J138: N/A | K138: N/A | L138: N/A | M138: N/A | N138: N/A | O138: N/A | P138: N/A | Q138: N/A | R138: N/A | S138: N/A | T138: N/A | U138: N/A | V138: N/A | W138: N/A | X138: N/A | Y138: N/A | Z138: N/A | AA138: N/A | AB138: N/A | AC138: N/A | BB138: Unimproved facilities | BC138: N/A | BD138: N/A | BE138: N/A | BF138: N/A | BG138: N/A | BH138: N/A | BI138: N/A | BJ138: N/A | BK138: N/A | BL138: N/A | BM138: N/A | BN138: N/A | BO138: N/A | BP138: N/A | BQ138: N/A | BR138: N/A | BS138: N/A | BT138: N/A | BU138: N/A | BV138: N/A | BW138: N/A | BX138: N/A | BY138: N/A | BZ138: N/A | CA138: N/A | CB138: N/A | CC138: N/A
B139: Open defecation | C139: 19.9496532 | D139: 11.4176376 | E139: 2.535913625 | F139: 0.9595653823 | G139: 0.02131381239 | H139: 5.416469118 | I139: 0.8382803998 | J139: 0.8274617243 | K139: 0.0226236902 | L139: 0 | M139: 25.08705153 | N139: 18.0789155 | O139: 13.64511681 | P139: 3.566804255 | Q139: 2.230899946 | R139: 0 | S139: 1.09854532 | T139: 0.8 | U139: 5.800639333 | V139: 19.07900123 | W139: 1.821238818 | X139: 22.23262906 | Y139: 1.483641003 | Z139: 2.085406139 | AA139: 2.352873317 | AB139: 5.356435799 | AC139: 0.5098139179 | BB139: Open defecation | BC139: N/A | BD139: N/A | BE139: N/A | BF139: N/A | BG139: N/A | BH139: N/A | BI139: N/A | BJ139: N/A | BK139: N/A | BL139: N/A | BM139: N/A | BN139: N/A | BO139: N/A | BP139: N/A | BQ139: N/A | BR139: N/A | BS139: N/A | BT139: N/A | BU139: N/A | BV139: N/A | BW139: N/A | BX139: N/A | BY139: N/A | BZ139: N/A | CA139: N/A | CB139: N/A | CC139: N/A
A140: Septic tank emptying practices | B140: Not emptied/treated and disposed in situ | C140: N/A | D140: N/A | E140: N/A | F140: N/A | G140: N/A | H140: N/A | I140: N/A | J140: N/A | K140: N/A | L140: N/A | M140: N/A | N140: N/A | O140: N/A | P140: N/A | Q140: N/A | R140: N/A | S140: N/A | T140: N/A | U140: N/A | V140: N/A | W140: N/A | X140: N/A | Y140: N/A | Z140: N/A | AA140: N/A | AB140: N/A | AC140: N/A | BA140: Septic tank emptying practices | BB140: Not emptied/treated and disposed in situ | BC140: N/A | BD140: N/A | BE140: N/A | BF140: N/A | BG140: N/A | BH140: N/A | BI140: N/A | BJ140: N/A | BK140: N/A | BL140: N/A | BM140: N/A | BN140: N/A | BO140: N/A | BP140: N/A | BQ140: N/A | BR140: N/A | BS140: N/A | BT140: N/A | BU140: N/A | BV140: N/A | BW140: N/A | BX140: N/A | BY140: N/A | BZ140: N/A | CA140: N/A | CB140: N/A | CC140: N/A
B141: Emptied and buried on site | C141: N/A | D141: N/A | E141: N/A | F141: N/A | G141: N/A | H141: N/A | I141: N/A | J141: N/A | K141: N/A | L141: N/A | M141: N/A | N141: N/A | O141: N/A | P141: N/A | Q141: N/A | R141: N/A | S141: N/A | T141: N/A | U141: N/A | V141: N/A | W141: N/A | X141: N/A | Y141: N/A | Z141: N/A | AA141: N/A | AB141: N/A | AC141: N/A | BB141: Emptied and buried on site | BC141: N/A | BD141: N/A | BE141: N/A | BF141: N/A | BG141: N/A | BH141: N/A | BI141: N/A | BJ141: N/A | BK141: N/A | BL141: N/A | BM141: N/A | BN141: N/A | BO141: N/A | BP141: N/A | BQ141: N/A | BR141: N/A | BS141: N/A | BT141: N/A | BU141: N/A | BV141: N/A | BW141: N/A | BX141: N/A | BY141: N/A | BZ141: N/A | CA141: N/A | CB141: N/A | CC141: N/A
B142: Emptied and discharged locally | C142: N/A | D142: N/A | E142: N/A | F142: N/A | G142: N/A | H142: N/A | I142: N/A | J142: N/A | K142: N/A | L142: N/A | M142: N/A | N142: N/A | O142: N/A | P142: N/A | Q142: N/A | R142: N/A | S142: N/A | T142: N/A | U142: N/A | V142: N/A | W142: N/A | X142: N/A | Y142: N/A | Z142: N/A | AA142: N/A | AB142: N/A | AC142: N/A | BB142: Emptied and discharged locally | BC142: N/A | BD142: N/A | BE142: N/A | BF142: N/A | BG142: N/A | BH142: N/A | BI142: N/A | BJ142: N/A | BK142: N/A | BL142: N/A | BM142: N/A | BN142: N/A | BO142: N/A | BP142: N/A | BQ142: N/A | BR142: N/A | BS142: N/A | BT142: N/A | BU142: N/A | BV142: N/A | BW142: N/A | BX142: N/A | BY142: N/A | BZ142: N/A | CA142: N/A | CB142: N/A | CC142: N/A
B143: Emptied and removed offsite | C143: N/A | D143: N/A | E143: N/A | F143: N/A | G143: N/A | H143: N/A | I143: N/A | J143: N/A | K143: N/A | L143: N/A | M143: N/A | N143: N/A | O143: N/A | P143: N/A | Q143: N/A | R143: N/A | S143: N/A | T143: N/A | U143: N/A | V143: N/A | W143: N/A | X143: N/A | Y143: N/A | Z143: N/A | AA143: N/A | AB143: N/A | AC143: N/A | BB143: Emptied and removed offsite | BC143: N/A | BD143: N/A | BE143: N/A | BF143: N/A | BG143: N/A | BH143: N/A | BI143: N/A | BJ143: N/A | BK143: N/A | BL143: N/A | BM143: N/A | BN143: N/A | BO143: N/A | BP143: N/A | BQ143: N/A | BR143: N/A | BS143: N/A | BT143: N/A | BU143: N/A | BV143: N/A | BW143: N/A | BX143: N/A | BY143: N/A | BZ143: N/A | CA143: N/A | CB143: N/A | CC143: N/A
A144: Latrine emptying practices | B144: Not emptied/treated and disposed in situ | C144: N/A | D144: N/A | E144: N/A | F144: N/A | G144: N/A | H144: N/A | I144: N/A | J144: N/A | K144: N/A | L144: N/A | M144: N/A | N144: N/A | O144: N/A | P144: N/A | Q144: N/A | R144: N/A | S144: N/A | T144: N/A | U144: N/A | V144: N/A | W144: N/A | X144: N/A | Y144: N/A | Z144: N/A | AA144: N/A | AB144: N/A | AC144: N/A | BA144: Latrine emptying practices | BB144: Not emptied/treated and disposed in situ | BC144: N/A | BD144: N/A | BE144: N/A | BF144: N/A | BG144: N/A | BH144: N/A | BI144: N/A | BJ144: N/A | BK144: N/A | BL144: N/A | BM144: N/A | BN144: N/A | BO144: N/A | BP144: N/A | BQ144: N/A | BR144: N/A | BS144: N/A | BT144: N/A | BU144: N/A | BV144: N/A | BW144: N/A | BX144: N/A | BY144: N/A | BZ144: N/A | CA144: N/A | CB144: N/A | CC144: N/A
B145: Emptied and buried on site | C145: N/A | D145: N/A | E145: N/A | F145: N/A | G145: N/A | H145: N/A | I145: N/A | J145: N/A | K145: N/A | L145: N/A | M145: N/A | N145: N/A | O145: N/A | P145: N/A | Q145: N/A | R145: N/A | S145: N/A | T145: N/A | U145: N/A | V145: N/A | W145: N/A | X145: N/A | Y145: N/A | Z145: N/A | AA145: N/A | AB145: N/A | AC145: N/A | BB145: Emptied and buried on site | BC145: N/A | BD145: N/A | BE145: N/A | BF145: N/A | BG145: N/A | BH145: N/A | BI145: N/A | BJ145: N/A | BK145: N/A | BL145: N/A | BM145: N/A | BN145: N/A | BO145: N/A | BP145: N/A | BQ145: N/A | BR145: N/A | BS145: N/A | BT145: N/A | BU145: N/A | BV145: N/A | BW145: N/A | BX145: N/A | BY145: N/A | BZ145: N/A | CA145: N/A | CB145: N/A | CC145: N/A
B146: Emptied and discharged locally | C146: N/A | D146: N/A | E146: N/A | F146: N/A | G146: N/A | H146: N/A | I146: N/A | J146: N/A | K146: N/A | L146: N/A | M146: N/A | N146: N/A | O146: N/A | P146: N/A | Q146: N/A | R146: N/A | S146: N/A | T146: N/A | U146: N/A | V146: N/A | W146: N/A | X146: N/A | Y146: N/A | Z146: N/A | AA146: N/A | AB146: N/A | AC146: N/A | BB146: Emptied and discharged locally | BC146: N/A | BD146: N/A | BE146: N/A | BF146: N/A | BG146: N/A | BH146: N/A | BI146: N/A | BJ146: N/A | BK146: N/A | BL146: N/A | BM146: N/A | BN146: N/A | BO146: N/A | BP146: N/A | BQ146: N/A | BR146: N/A | BS146: N/A | BT146: N/A | BU146: N/A | BV146: N/A | BW146: N/A | BX146: N/A | BY146: N/A | BZ146: N/A | CA146: N/A | CB146: N/A | CC146: N/A
B147: Emptied and removed offsite | C147: N/A | D147: N/A | E147: N/A | F147: N/A | G147: N/A | H147: N/A | I147: N/A | J147: N/A | K147: N/A | L147: N/A | M147: N/A | N147: N/A | O147: N/A | P147: N/A | Q147: N/A | R147: N/A | S147: N/A | T147: N/A | U147: N/A | V147: N/A | W147: N/A | X147: N/A | Y147: N/A | Z147: N/A | AA147: N/A | AB147: N/A | AC147: N/A | BB147: Emptied and removed offsite | BC147: N/A | BD147: N/A | BE147: N/A | BF147: N/A | BG147: N/A | BH147: N/A | BI147: N/A | BJ147: N/A | BK147: N/A | BL147: N/A | BM147: N/A | BN147: N/A | BO147: N/A | BP147: N/A | BQ147: N/A | BR147: N/A | BS147: N/A | BT147: N/A | BU147: N/A | BV147: N/A | BW147: N/A | BX147: N/A | BY147: N/A | BZ147: N/A | CA147: N/A | CB147: N/A | CC147: N/A
A148: Shared among improved sanitation facilities | B148: Yes | C148: N/A | D148: N/A | E148: N/A | F148: N/A | G148: N/A | H148: N/A | I148: N/A | J148: N/A | K148: N/A | L148: N/A | M148: N/A | N148: N/A | O148: N/A | P148: N/A | Q148: N/A | R148: N/A | S148: N/A | T148: N/A | U148: N/A | V148: N/A | W148: N/A | X148: N/A | Y148: N/A | Z148: N/A | AA148: N/A | AB148: N/A | AC148: N/A | BA148: Shared among improved sanitation facilities | BB148: Yes | BC148: N/A | BD148: N/A | BE148: N/A | BF148: N/A | BG148: N/A | BH148: N/A | BI148: N/A | BJ148: N/A | BK148: N/A | BL148: N/A | BM148: N/A | BN148: N/A | BO148: N/A | BP148: N/A | BQ148: N/A | BR148: N/A | BS148: N/A | BT148: N/A | BU148: N/A | BV148: N/A | BW148: N/A | BX148: N/A | BY148: N/A | BZ148: N/A | CA148: N/A | CB148: N/A | CC148: N/A
B149: No | C149: N/A | D149: N/A | E149: N/A | F149: N/A | G149: N/A | H149: N/A | I149: N/A | J149: N/A | K149: N/A | L149: N/A | M149: N/A | N149: N/A | O149: N/A | P149: N/A | Q149: N/A | R149: N/A | S149: N/A | T149: N/A | U149: N/A | V149: N/A | W149: N/A | X149: N/A | Y149: N/A | Z149: N/A | AA149: N/A | AB149: N/A | AC149: N/A | BB149: No | BC149: N/A | BD149: N/A | BE149: N/A | BF149: N/A | BG149: N/A | BH149: N/A | BI149: N/A | BJ149: N/A | BK149: N/A | BL149: N/A | BM149: N/A | BN149: N/A | BO149: N/A | BP149: N/A | BQ149: N/A | BR149: N/A | BS149: N/A | BT149: N/A | BU149: N/A | BV149: N/A | BW149: N/A | BX149: N/A | BY149: N/A | BZ149: N/A | CA149: N/A | CB149: N/A | CC149: N/A
B150: DK/missing | C150: N/A | D150: N/A | E150: N/A | F150: N/A | G150: N/A | H150: N/A | I150: N/A | J150: N/A | K150: N/A | L150: N/A | M150: N/A | N150: N/A | O150: N/A | P150: N/A | Q150: N/A | R150: N/A | S150: N/A | T150: N/A | U150: N/A | V150: N/A | W150: N/A | X150: N/A | Y150: N/A | Z150: N/A | AA150: N/A | AB150: N/A | AC150: N/A | BB150: DK/missing | BC150: N/A | BD150: N/A | BE150: N/A | BF150: N/A | BG150: N/A | BH150: N/A | BI150: N/A | BJ150: N/A | BK150: N/A | BL150: N/A | BM150: N/A | BN150: N/A | BO150: N/A | BP150: N/A | BQ150: N/A | BR150: N/A | BS150: N/A | BT150: N/A | BU150: N/A | BV150: N/A | BW150: N/A | BX150: N/A | BY150: N/A | BZ150: N/A | CA150: N/A | CB150: N/A | CC150: N/A
A151: Shared among all sanitation facilities | B151: Yes | C151: 26.37295922 | D151: 23.40148789 | E151: 31.01895237 | F151: 40.30819539 | G151: 33.2731746 | H151: 33.18403014 | I151: 40.05310995 | J151: 43.060378 | K151: 43.87951148 | L151: 24.02266486 | M151: 25.76939441 | N151: 21.96050312 | O151: 18.98741088 | P151: 28.45403386 | Q151: 29.95176224 | R151: 8.113894561 | S151: 35.5455318 | T151: 37.53665689 | U151: 38.02544813 | V151: 13.87792087 | W151: 26.04561205 | X151: 8.000013258 | Y151: 41.95333294 | Z151: 22.90974046 | AA151: 49.05401057 | AB151: 56.19971907 | AC151: 49.73097617 | BA151: Shared among all sanitation facilities | BB151: Yes | BC151: N/A | BD151: N/A | BE151: N/A | BF151: N/A | BG151: N/A | BH151: N/A | BI151: N/A | BJ151: N/A | BK151: N/A | BL151: N/A | BM151: N/A | BN151: N/A | BO151: N/A | BP151: N/A | BQ151: N/A | BR151: N/A | BS151: N/A | BT151: N/A | BU151: N/A | BV151: N/A | BW151: N/A | BX151: N/A | BY151: N/A | BZ151: N/A | CA151: N/A | CB151: N/A | CC151: N/A
B152: No | C152: 73.34351848 | D152: 75.69083019 | E152: 67.32227958 | F152: 57.46505741 | G152: 64.73611966 | H152: 65.53037026 | I152: 58.45897607 | J152: 54.47599628 | K152: 53.78378991 | L152: 73.57250018 | M152: 74.23060559 | N152: 77.39390353 | O152: 80.15154685 | P152: 69.96100516 | Q152: 68.9758316 | R152: 91.63669373 | S152: 63.77422551 | T152: 58.60215054 | U152: 60.6793403 | V152: 85.50776091 | W152: 73.60231525 | X152: 90.55362221 | Y152: 56.58252146 | Z152: 75.79245496 | AA152: 48.16163535 | AB152: 41.57115556 | AC152: 48.80860876 | BB152: No | BC152: N/A | BD152: N/A | BE152: N/A | BF152: N/A | BG152: N/A | BH152: N/A | BI152: N/A | BJ152: N/A | BK152: N/A | BL152: N/A | BM152: N/A | BN152: N/A | BO152: N/A | BP152: N/A | BQ152: N/A | BR152: N/A | BS152: N/A | BT152: N/A | BU152: N/A | BV152: N/A | BW152: N/A | BX152: N/A | BY152: N/A | BZ152: N/A | CA152: N/A | CB152: N/A | CC152: N/A
A153: Type of toilet facility | B153: Flush toilet | C153: 0.06306925334 | D153: 0.01092336047 | E153: 0.3121837094 | F153: 4.652330543 | G153: 35.18494091 | H153: 0.05109416485 | I153: 1.854378721 | J153: 5.421599443 | K153: 18.3267463 | L153: 52.80877661 | M153: 0 | N153: 0.1077574125 | O153: 0.02130163209 | P153: 0.3166647718 | Q153: 3.258095106 | R153: 6.11676562 | S153: 2.201484538 | T153: 26.47272727 | U153: 4.993786211 | V153: 1.237435422 | W153: 6.778235671 | X153: 1.658484531 | Y153: 4.874500753 | Z153: 5.441278855 | AA153: 6.5053509 | AB153: 12.23303784 | AC153: 24.72597502 | BA153: Type of toilet facility | BB153: Flush toilet | BC153: 6.55088 | BD153: 1.1378 | BE153: 32.39847 | BF153: 484.4476 | BG153: 3665.67779 | BH153: 2.59866 | BI153: 94.66713 | BJ153: 275.13102 | BK153: 941.26758 | BL153: 2681.56667 | BM153: 0 | BN153: 6.55088 | BO153: 1.1378 | BP153: 17.03138 | BQ153: 170.26142 | BR153: 129.9813 | BS153: 100.5271 | BT153: 1268.86032 | BU153: 132.69946 | BV153: 115.7651 | BW153: 153.83725 | BX153: 81.85779 | BY153: 277.87466 | BZ153: 306.57811 | CA153: 144.85733 | CB153: 429.39582 | CC153: 1047.9783
B154: Rudimentary pit toilet latrine | C154: 74.69147313 | D154: 79.80613911 | E154: 69.20727253 | F154: 41.42954379 | G154: 22.41801576 | H154: 74.06836569 | I154: 50.00670884 | J154: 35.60310325 | K154: 29.7401079 | L154: 16.97128256 | M154: 72.31301608 | N154: 76.48460556 | O154: 80.36078244 | P154: 78.28772913 | Q154: 56.91730438 | R154: 73.97925789 | S154: 65.60353606 | T154: 40.58181818 | U154: 55.40071766 | V154: 72.6865696 | W154: 47.60805186 | X154: 56.54537933 | Y154: 71.34505627 | Z154: 51.70322245 | AA154: 57.44571837 | AB154: 40.25178469 | AC154: 37.13994392 | BB154: Rudimentary pit toilet latrine | BC154: 7758.05724 | BD154: 8312.77383 | BE154: 7182.34064 | BF154: 4314.06214 | BG154: 2335.57938 | BH154: 3767.1327 | BI154: 2552.87205 | BJ154: 1806.75799 | BK154: 1527.4615 | BL154: 861.78148 | BM154: 3259.73943 | BN154: 4649.717 | BO154: 4292.37055 | BP154: 4210.59803 | BQ154: 2974.3825 | BR154: 1572.0596 | BS154: 2995.67547 | BT154: 1945.12104 | BU154: 1472.1586 | BV154: 6800.00576 | BW154: 1080.5012 | BX154: 2790.90923 | BY154: 4067.07974 | BZ154: 2913.11595 | CA154: 1279.16749 | CB154: 1412.89092 | CC154: 1574.12823
B155: Improved pit toilet latrine | C155: 5.256346874 | D155: 8.637075494 | E155: 27.8948812 | F155: 52.95856029 | G155: 42.3135089 | H155: 20.26041835 | I155: 47.28806588 | J155: 58.14783558 | K155: 51.91052212 | L155: 30.09228246 | M155: 2.599932387 | N155: 5.263321929 | O155: 5.925121607 | P155: 17.78025993 | Q155: 37.58248929 | R155: 19.90397649 | S155: 31.09643409 | T155: 32.14545455 | U155: 33.3630562 | V155: 6.996993745 | W155: 43.76033857 | X155: 19.55008602 | Y155: 22.26398907 | Z155: 40.74800109 | AA155: 33.69605742 | AB155: 42.07875967 | AC155: 37.47132297 | BB155: Improved pit toilet latrine | BC155: 545.96647 | BD155: 899.65579 | BE155: 2894.93476 | BF155: 5514.57967 | BG155: 4408.35442 | BH155: 1030.44915 | BI155: 2414.08372 | BJ155: 2950.84015 | BK155: 2666.1411 | BL155: 1528.0502 | BM155: 117.20023 | BN155: 319.97233 | BO155: 316.48295 | BP155: 956.28687 | BQ155: 1963.98441 | BR155: 422.9596 | BS155: 1419.96652 | BT155: 1540.75896 | BU155: 886.55368 | BV155: 654.58582 | BW155: 993.1744 | BX155: 964.93323 | BY155: 1269.1758 | BZ155: 2295.86564 | CA155: 750.324 | CB155: 1477.02016 | CC155: 1588.1733
B156: No facility | C156: 19.9622353 | D156: 11.45035674 | E156: 2.542330858 | F156: 0.9595653823 | G156: 0.02131381239 | H156: 5.447029124 | I156: 0.8382803998 | J156: 0.8274617243 | K156: 0.0226236902 | L156: 0 | M156: 25.08705153 | N156: 18.09839687 | O156: 13.64806427 | P156: 3.566804255 | Q156: 2.242111226 | R156: 0 | S156: 1.09854532 | T156: 0.8 | U156: 5.800639333 | V156: 19.07900123 | W156: 1.825108268 | X156: 22.24605012 | Y156: 1.496214202 | Z156: 2.085406139 | AA156: 2.352873317 | AB156: 5.366432393 | AC156: 0.5098139179 | BB156: No facility | BC156: 2073.43834 | BD156: 1192.69303 | BE156: 263.84346 | BF156: 99.91963 | BG156: 2.22054 | BH156: 277.03705 | BI156: 42.79471 | BJ156: 41.99137 | BK156: 1.16196 | BL156: 0 | BM156: 1130.87872 | BN156: 1100.25309 | BO156: 728.99426 | BP156: 191.83567 | BQ156: 117.16817 | BR156: 0 | BS156: 50.16323 | BT156: 38.34468 | BU156: 154.1399 | BV156: 1784.88707 | BW156: 41.42223 | BX156: 1097.99788 | BY156: 85.29284 | BZ156: 117.49809 | CA156: 52.3924 | CB156: 188.36888 | CC156: 21.6078
B157: OTHER | C157: 0.02687544585 | D157: 0.09550528889 | E157: 0.04333169978 | F157: 0 | G157: 0.06222062137 | H157: 0.1730926759 | I157: 0.01256616202 | J157: 0 | K157: 0 | L157: 0.1276583755 | M157: 0 | N157: 0.04591823038 | O157: 0.04473005747 | P157: 0.04854191026 | Q157: 0 | R157: 0 | S157: 0 | T157: 0 | U157: 0.4418005962 | V157: 0 | W157: 0.02826562465 | X157: 0 | Y157: 0.0202397062 | Z157: 0.02209146566 | AA157: 0 | AB157: 0.06998539508 | AC157: 0.1529441754 | BB157: OTHER | BC157: 2.7915 | BD157: 9.94803 | BE157: 4.49697 | BF157: 0 | BG157: 6.48234 | BH157: 8.80353 | BI157: 0.64151 | BJ157: 0 | BK157: 0 | BL157: 6.48234 | BM157: 0 | BN157: 2.7915 | BO157: 2.3892 | BP157: 2.61076 | BQ157: 0 | BR157: 0 | BS157: 0 | BT157: 0 | BU157: 11.73993 | BV157: 0 | BW157: 0.64151 | BX157: 0 | BY157: 1.15378 | BZ157: 1.2447 | CA157: 0 | CB157: 2.45658 | CC157: 6.48234
BB158: Total | BC158: 10386.80443 | BD158: 10416.20848 | BE158: 10378.0143 | BF158: 10413.00904 | BG158: 10418.31447 | BH158: 5086.02109 | BI158: 5105.05912 | BJ158: 5074.72053 | BK158: 5136.03214 | BL158: 5077.88069 | BM158: 4507.81838 | BN158: 6079.2848 | BO158: 5341.37476 | BP158: 5378.36271 | BQ158: 5225.7965 | BR158: 2125.0005 | BS158: 4566.33232 | BT158: 4793.085 | BU158: 2657.29157 | BV158: 9355.24375 | BW158: 2269.57659 | BX158: 4935.69813 | BY158: 5700.57682 | BZ158: 5634.30249 | CA158: 2226.74122 | CB158: 3510.13236 | CC158: 4238.36997
A208: =A1026 -> Cameroon
A209: =A1034 -> 2004
A210: Access to hygiene facilities
A211: by wealth quintile and sub-national region
A212: Notes:
A213: WHO/UNICEF JMP customised wealth index excludes water,
A214: sanitation and hygiene assets.
A215: Survey used for analysis: | B215: =A1025 -> DHS04
A220: Access to handwashing | C220: NATIONAL wealth index quintile | H220: URBAN wealth index quintile | M220: RURAL wealth index quintile | R220: SUB-REGIONS: | BA220: Raw numbers of respondents: | BB220: Access to handwashing | BC220: NATIONAL wealth index quintile | BH220: URBAN wealth index quintile | BM220: RURAL wealth index quintile | BR220: SUB-REGIONS:
A221: Weighted percentage (used in graphs) | C221: Poorest | D221: Poor | E221: Middle | F221: Rich | G221: Richest | H221: Poorest | I221: Poor | J221: Middle | K221: Rich | L221: Richest | M221: Poorest | N221: Poor | O221: Middle | P221: Rich | Q221: Richest | R221: Adamaoua | S221: Centre | T221: Douala | U221: Est | V221: Extreme Nord | W221: Littoral | X221: Nord | Y221: Nord Ouest | Z221: Ouest | AA221: Sud | AB221: Sud Ouest | AC221: Yaounde | BA221: Hygiene data, raw numbers (weighted) | BC221: Poorest | BD221: Poor | BE221: Middle | BF221: Rich | BG221: Richest | BH221: Poorest | BI221: Poor | BJ221: Middle | BK221: Rich | BL221: Richest | BM221: Poorest | BN221: Poor | BO221: Middle | BP221: Rich | BQ221: Richest | BR221: Adamaoua | BS221: Centre | BT221: Douala | BU221: Est | BV221: Extreme Nord | BW221: Littoral | BX221: Nord | BY221: Nord Ouest | BZ221: Ouest | CA221: Sud | CB221: Sud Ouest | CC221: Yaounde
A222: Hygiene ladder | B222: Basic | C222: N/A | D222: N/A | E222: N/A | F222: N/A | G222: N/A | H222: N/A | I222: N/A | J222: N/A | K222: N/A | L222: N/A | M222: N/A | N222: N/A | O222: N/A | P222: N/A | Q222: N/A | R222: N/A | S222: N/A | T222: N/A | U222: N/A | V222: N/A | W222: N/A | X222: N/A | Y222: N/A | Z222: N/A | AA222: N/A | AB222: N/A | AC222: N/A | BA222: Hygiene ladder | BB222: Basic | BC222: N/A | BD222: N/A | BE222: N/A | BF222: N/A | BG222: N/A | BH222: N/A | BI222: N/A | BJ222: N/A | BK222: N/A | BL222: N/A | BM222: N/A | BN222: N/A | BO222: N/A | BP222: N/A | BQ222: N/A | BR222: N/A | BS222: N/A | BT222: N/A | BU222: N/A | BV222: N/A | BW222: N/A | BX222: N/A | BY222: N/A | BZ222: N/A | CA222: N/A | CB222: N/A | CC222: N/A
B223: Limited | C223: N/A | D223: N/A | E223: N/A | F223: N/A | G223: N/A | H223: N/A | I223: N/A | J223: N/A | K223: N/A | L223: N/A | M223: N/A | N223: N/A | O223: N/A | P223: N/A | Q223: N/A | R223: N/A | S223: N/A | T223: N/A | U223: N/A | V223: N/A | W223: N/A | X223: N/A | Y223: N/A | Z223: N/A | AA223: N/A | AB223: N/A | AC223: N/A | BB223: Limited | BC223: N/A | BD223: N/A | BE223: N/A | BF223: N/A | BG223: N/A | BH223: N/A | BI223: N/A | BJ223: N/A | BK223: N/A | BL223: N/A | BM223: N/A | BN223: N/A | BO223: N/A | BP223: N/A | BQ223: N/A | BR223: N/A | BS223: N/A | BT223: N/A | BU223: N/A | BV223: N/A | BW223: N/A | BX223: N/A | BY223: N/A | BZ223: N/A | CA223: N/A | CB223: N/A | CC223: N/A
B224: No facility | C224: N/A | D224: N/A | E224: N/A | F224: N/A | G224: N/A | H224: N/A | I224: N/A | J224: N/A | K224: N/A | L224: N/A | M224: N/A | N224: N/A | O224: N/A | P224: N/A | Q224: N/A | R224: N/A | S224: N/A | T224: N/A | U224: N/A | V224: N/A | W224: N/A | X224: N/A | Y224: N/A | Z224: N/A | AA224: N/A | AB224: N/A | AC224: N/A | BB224: No facility | BC224: N/A | BD224: N/A | BE224: N/A | BF224: N/A | BG224: N/A | BH224: N/A | BI224: N/A | BJ224: N/A | BK224: N/A | BL224: N/A | BM224: N/A | BN224: N/A | BO224: N/A | BP224: N/A | BQ224: N/A | BR224: N/A | BS224: N/A | BT224: N/A | BU224: N/A | BV224: N/A | BW224: N/A | BX224: N/A | BY224: N/A | BZ224: N/A | CA224: N/A | CB224: N/A | CC224: N/A
BA225: Observed handwashing place | BB225: Fixed | BC225: N/A | BD225: N/A | BE225: N/A | BF225: N/A | BG225: N/A | BH225: N/A | BI225: N/A | BJ225: N/A | BK225: N/A | BL225: N/A | BM225: N/A | BN225: N/A | BO225: N/A | BP225: N/A | BQ225: N/A | BR225: N/A | BS225: N/A | BT225: N/A | BU225: N/A | BV225: N/A | BW225: N/A | BX225: N/A | BY225: N/A | BZ225: N/A | CA225: N/A | CB225: N/A | CC225: N/A
BB226: Mobile | BC226: N/A | BD226: N/A | BE226: N/A | BF226: N/A | BG226: N/A | BH226: N/A | BI226: N/A | BJ226: N/A | BK226: N/A | BL226: N/A | BM226: N/A | BN226: N/A | BO226: N/A | BP226: N/A | BQ226: N/A | BR226: N/A | BS226: N/A | BT226: N/A | BU226: N/A | BV226: N/A | BW226: N/A | BX226: N/A | BY226: N/A | BZ226: N/A | CA226: N/A | CB226: N/A | CC226: N/A
BA227: Water / Soap | BB227: Water and soap | BC227: N/A | BD227: N/A | BE227: N/A | BF227: N/A | BG227: N/A | BH227: N/A | BI227: N/A | BJ227: N/A | BK227: N/A | BL227: N/A | BM227: N/A | BN227: N/A | BO227: N/A | BP227: N/A | BQ227: N/A | BR227: N/A | BS227: N/A | BT227: N/A | BU227: N/A | BV227: N/A | BW227: N/A | BX227: N/A | BY227: N/A | BZ227: N/A | CA227: N/A | CB227: N/A | CC227: N/A
BB228: Water only | BC228: N/A | BD228: N/A | BE228: N/A | BF228: N/A | BG228: N/A | BH228: N/A | BI228: N/A | BJ228: N/A | BK228: N/A | BL228: N/A | BM228: N/A | BN228: N/A | BO228: N/A | BP228: N/A | BQ228: N/A | BR228: N/A | BS228: N/A | BT228: N/A | BU228: N/A | BV228: N/A | BW228: N/A | BX228: N/A | BY228: N/A | BZ228: N/A | CA228: N/A | CB228: N/A | CC228: N/A
BB229: Soap only | BC229: N/A | BD229: N/A | BE229: N/A | BF229: N/A | BG229: N/A | BH229: N/A | BI229: N/A | BJ229: N/A | BK229: N/A | BL229: N/A | BM229: N/A | BN229: N/A | BO229: N/A | BP229: N/A | BQ229: N/A | BR229: N/A | BS229: N/A | BT229: N/A | BU229: N/A | BV229: N/A | BW229: N/A | BX229: N/A | BY229: N/A | BZ229: N/A | CA229: N/A | CB229: N/A | CC229: N/A
BB230: Neither | BC230: N/A | BD230: N/A | BE230: N/A | BF230: N/A | BG230: N/A | BH230: N/A | BI230: N/A | BJ230: N/A | BK230: N/A | BL230: N/A | BM230: N/A | BN230: N/A | BO230: N/A | BP230: N/A | BQ230: N/A | BR230: N/A | BS230: N/A | BT230: N/A | BU230: N/A | BV230: N/A | BW230: N/A | BX230: N/A | BY230: N/A | BZ230: N/A | CA230: N/A | CB230: N/A | CC230: N/A
BA259: Raw numbers of respondents: | BB259: Menstrual health and hygiene | BC259: NATIONAL wealth index quintile | BH259: URBAN wealth index quintile | BM259: RURAL wealth index quintile | BR259: SUB-REGIONS:
BA260: MHH data, raw numbers (weighted) | BC260: Poorest | BD260: Poor | BE260: Middle | BF260: Rich | BG260: Richest | BH260: Poorest | BI260: Poor | BJ260: Middle | BK260: Rich | BL260: Richest | BM260: Poorest | BN260: Poor | BO260: Middle | BP260: Rich | BQ260: Richest | BR260: Adamaoua | BS260: Centre | BT260: Douala | BU260: Est | BV260: Extreme Nord | BW260: Littoral | BX260: Nord | BY260: Nord Ouest | BZ260: Ouest | CA260: Sud | CB260: Sud Ouest | CC260: Yaounde
BA261: Private place to wash and change | BB261: Yes | BC261: N/A | BD261: N/A | BE261: N/A | BF261: N/A | BG261: N/A | BH261: N/A | BI261: N/A | BJ261: N/A | BK261: N/A | BL261: N/A | BM261: N/A | BN261: N/A | BO261: N/A | BP261: N/A | BQ261: N/A | BR261: N/A | BS261: N/A | BT261: N/A | BU261: N/A | BV261: N/A | BW261: N/A | BX261: N/A | BY261: N/A | BZ261: N/A | CA261: N/A | CB261: N/A | CC261: N/A
BB262: No | BC262: N/A | BD262: N/A | BE262: N/A | BF262: N/A | BG262: N/A | BH262: N/A | BI262: N/A | BJ262: N/A | BK262: N/A | BL262: N/A | BM262: N/A | BN262: N/A | BO262: N/A | BP262: N/A | BQ262: N/A | BR262: N/A | BS262: N/A | BT262: N/A | BU262: N/A | BV262: N/A | BW262: N/A | BX262: N/A | BY262: N/A | BZ262: N/A | CA262: N/A | CB262: N/A | CC262: N/A
BB263: DK/not sure/missing | BC263: N/A | BD263: N/A | BE263: N/A | BF263: N/A | BG263: N/A | BH263: N/A | BI263: N/A | BJ263: N/A | BK263: N/A | BL263: N/A | BM263: N/A | BN263: N/A | BO263: N/A | BP263: N/A | BQ263: N/A | BR263: N/A | BS263: N/A | BT263: N/A | BU263: N/A | BV263: N/A | BW263: N/A | BX263: N/A | BY263: N/A | BZ263: N/A | CA263: N/A | CB263: N/A | CC263: N/A
BA264: Use of menstrual materials | BB264: Materials reusable | BC264: N/A | BD264: N/A | BE264: N/A | BF264: N/A | BG264: N/A | BH264: N/A | BI264: N/A | BJ264: N/A | BK264: N/A | BL264: N/A | BM264: N/A | BN264: N/A | BO264: N/A | BP264: N/A | BQ264: N/A | BR264: N/A | BS264: N/A | BT264: N/A | BU264: N/A | BV264: N/A | BW264: N/A | BX264: N/A | BY264: N/A | BZ264: N/A | CA264: N/A | CB264: N/A | CC264: N/A
BB265: Materials not reusable | BC265: N/A | BD265: N/A | BE265: N/A | BF265: N/A | BG265: N/A | BH265: N/A | BI265: N/A | BJ265: N/A | BK265: N/A | BL265: N/A | BM265: N/A | BN265: N/A | BO265: N/A | BP265: N/A | BQ265: N/A | BR265: N/A | BS265: N/A | BT265: N/A | BU265: N/A | BV265: N/A | BW265: N/A | BX265: N/A | BY265: N/A | BZ265: N/A | CA265: N/A | CB265: N/A | CC265: N/A
BB266: No materials used | BC266: N/A | BD266: N/A | BE266: N/A | BF266: N/A | BG266: N/A | BH266: N/A | BI266: N/A | BJ266: N/A | BK266: N/A | BL266: N/A | BM266: N/A | BN266: N/A | BO266: N/A | BP266: N/A | BQ266: N/A | BR266: N/A | BS266: N/A | BT266: N/A | BU266: N/A | BV266: N/A | BW266: N/A | BX266: N/A | BY266: N/A | BZ266: N/A | CA266: N/A | CB266: N/A | CC266: N/A
BB267: DK/not sure/missing | BC267: N/A | BD267: N/A | BE267: N/A | BF267: N/A | BG267: N/A | BH267: N/A | BI267: N/A | BJ267: N/A | BK267: N/A | BL267: N/A | BM267: N/A | BN267: N/A | BO267: N/A | BP267: N/A | BQ267: N/A | BR267: N/A | BS267: N/A | BT267: N/A | BU267: N/A | BV267: N/A | BW267: N/A | BX267: N/A | BY267: N/A | BZ267: N/A | CA267: N/A | CB267: N/A | CC267: N/A
BA268: Use of menstrual materials with private place to wash and change | BB268: Materials reusable | BC268: N/A | BD268: N/A | BE268: N/A | BF268: N/A | BG268: N/A | BH268: N/A | BI268: N/A | BJ268: N/A | BK268: N/A | BL268: N/A | BM268: N/A | BN268: N/A | BO268: N/A | BP268: N/A | BQ268: N/A | BR268: N/A | BS268: N/A | BT268: N/A | BU268: N/A | BV268: N/A | BW268: N/A | BX268: N/A | BY268: N/A | BZ268: N/A | CA268: N/A | CB268: N/A | CC268: N/A
BB269: Materials not reusable | BC269: N/A | BD269: N/A | BE269: N/A | BF269: N/A | BG269: N/A | BH269: N/A | BI269: N/A | BJ269: N/A | BK269: N/A | BL269: N/A | BM269: N/A | BN269: N/A | BO269: N/A | BP269: N/A | BQ269: N/A | BR269: N/A | BS269: N/A | BT269: N/A | BU269: N/A | BV269: N/A | BW269: N/A | BX269: N/A | BY269: N/A | BZ269: N/A | CA269: N/A | CB269: N/A | CC269: N/A
BB270: No materials used | BC270: N/A | BD270: N/A | BE270: N/A | BF270: N/A | BG270: N/A | BH270: N/A | BI270: N/A | BJ270: N/A | BK270: N/A | BL270: N/A | BM270: N/A | BN270: N/A | BO270: N/A | BP270: N/A | BQ270: N/A | BR270: N/A | BS270: N/A | BT270: N/A | BU270: N/A | BV270: N/A | BW270: N/A | BX270: N/A | BY270: N/A | BZ270: N/A | CA270: N/A | CB270: N/A | CC270: N/A
BA271: Awareness of menstruation before menarche | BB271: Yes | BC271: N/A | BD271: N/A | BE271: N/A | BF271: N/A | BG271: N/A | BH271: N/A | BI271: N/A | BJ271: N/A | BK271: N/A | BL271: N/A | BM271: N/A | BN271: N/A | BO271: N/A | BP271: N/A | BQ271: N/A | BR271: N/A | BS271: N/A | BT271: N/A | BU271: N/A | BV271: N/A | BW271: N/A | BX271: N/A | BY271: N/A | BZ271: N/A | CA271: N/A | CB271: N/A | CC271: N/A
BB272: No | BC272: N/A | BD272: N/A | BE272: N/A | BF272: N/A | BG272: N/A | BH272: N/A | BI272: N/A | BJ272: N/A | BK272: N/A | BL272: N/A | BM272: N/A | BN272: N/A | BO272: N/A | BP272: N/A | BQ272: N/A | BR272: N/A | BS272: N/A | BT272: N/A | BU272: N/A | BV272: N/A | BW272: N/A | BX272: N/A | BY272: N/A | BZ272: N/A | CA272: N/A | CB272: N/A | CC272: N/A
BB273: DK/not sure/missing | BC273: N/A | BD273: N/A | BE273: N/A | BF273: N/A | BG273: N/A | BH273: N/A | BI273: N/A | BJ273: N/A | BK273: N/A | BL273: N/A | BM273: N/A | BN273: N/A | BO273: N/A | BP273: N/A | BQ273: N/A | BR273: N/A | BS273: N/A | BT273: N/A | BU273: N/A | BV273: N/A | BW273: N/A | BX273: N/A | BY273: N/A | BZ273: N/A | CA273: N/A | CB273: N/A | CC273: N/A
BA274: Participation in (all) activities during menstruation | BB274: Yes | BC274: N/A | BD274: N/A | BE274: N/A | BF274: N/A | BG274: N/A | BH274: N/A | BI274: N/A | BJ274: N/A | BK274: N/A | BL274: N/A | BM274: N/A | BN274: N/A | BO274: N/A | BP274: N/A | BQ274: N/A | BR274: N/A | BS274: N/A | BT274: N/A | BU274: N/A | BV274: N/A | BW274: N/A | BX274: N/A | BY274: N/A | BZ274: N/A | CA274: N/A | CB274: N/A | CC274: N/A
BB275: No | BC275: N/A | BD275: N/A | BE275: N/A | BF275: N/A | BG275: N/A | BH275: N/A | BI275: N/A | BJ275: N/A | BK275: N/A | BL275: N/A | BM275: N/A | BN275: N/A | BO275: N/A | BP275: N/A | BQ275: N/A | BR275: N/A | BS275: N/A | BT275: N/A | BU275: N/A | BV275: N/A | BW275: N/A | BX275: N/A | BY275: N/A | BZ275: N/A | CA275: N/A | CB275: N/A | CC275: N/A
BB276: DK/not sure/missing/no such activity | BC276: N/A | BD276: N/A | BE276: N/A | BF276: N/A | BG276: N/A | BH276: N/A | BI276: N/A | BJ276: N/A | BK276: N/A | BL276: N/A | BM276: N/A | BN276: N/A | BO276: N/A | BP276: N/A | BQ276: N/A | BR276: N/A | BS276: N/A | BT276: N/A | BU276: N/A | BV276: N/A | BW276: N/A | BX276: N/A | BY276: N/A | BZ276: N/A | CA276: N/A | CB276: N/A | CC276: N/A
BA277: Participation in specific activities during menstruation | BB277: Did not go to school (amongst those usually attending school) | BC277: N/A | BD277: N/A | BE277: N/A | BF277: N/A | BG277: N/A | BH277: N/A | BI277: N/A | BJ277: N/A | BK277: N/A | BL277: N/A | BM277: N/A | BN277: N/A | BO277: N/A | BP277: N/A | BQ277: N/A | BR277: N/A | BS277: N/A | BT277: N/A | BU277: N/A | BV277: N/A | BW277: N/A | BX277: N/A | BY277: N/A | BZ277: N/A | CA277: N/A | CB277: N/A | CC277: N/A
BB278: Did not go to work (amongst those who usually work) | BC278: N/A | BD278: N/A | BE278: N/A | BF278: N/A | BG278: N/A | BH278: N/A | BI278: N/A | BJ278: N/A | BK278: N/A | BL278: N/A | BM278: N/A | BN278: N/A | BO278: N/A | BP278: N/A | BQ278: N/A | BR278: N/A | BS278: N/A | BT278: N/A | BU278: N/A | BV278: N/A | BW278: N/A | BX278: N/A | BY278: N/A | BZ278: N/A | CA278: N/A | CB278: N/A | CC278: N/A
BB279: Did not participate in social activities | BC279: N/A | BD279: N/A | BE279: N/A | BF279: N/A | BG279: N/A | BH279: N/A | BI279: N/A | BJ279: N/A | BK279: N/A | BL279: N/A | BM279: N/A | BN279: N/A | BO279: N/A | BP279: N/A | BQ279: N/A | BR279: N/A | BS279: N/A | BT279: N/A | BU279: N/A | BV279: N/A | BW279: N/A | BX279: N/A | BY279: N/A | BZ279: N/A | CA279: N/A | CB279: N/A | CC279: N/A
BB280: Did not cook food | BC280: N/A | BD280: N/A | BE280: N/A | BF280: N/A | BG280: N/A | BH280: N/A | BI280: N/A | BJ280: N/A | BK280: N/A | BL280: N/A | BM280: N/A | BN280: N/A | BO280: N/A | BP280: N/A | BQ280: N/A | BR280: N/A | BS280: N/A | BT280: N/A | BU280: N/A | BV280: N/A | BW280: N/A | BX280: N/A | BY280: N/A | BZ280: N/A | CA280: N/A | CB280: N/A | CC280: N/A
BB281: Did not eat with others | BC281: N/A | BD281: N/A | BE281: N/A | BF281: N/A | BG281: N/A | BH281: N/A | BI281: N/A | BJ281: N/A | BK281: N/A | BL281: N/A | BM281: N/A | BN281: N/A | BO281: N/A | BP281: N/A | BQ281: N/A | BR281: N/A | BS281: N/A | BT281: N/A | BU281: N/A | BV281: N/A | BW281: N/A | BX281: N/A | BY281: N/A | BZ281: N/A | CA281: N/A | CB281: N/A | CC281: N/A
BB282: Did not bathe in regular place | BC282: N/A | BD282: N/A | BE282: N/A | BF282: N/A | BG282: N/A | BH282: N/A | BI282: N/A | BJ282: N/A | BK282: N/A | BL282: N/A | BM282: N/A | BN282: N/A | BO282: N/A | BP282: N/A | BQ282: N/A | BR282: N/A | BS282: N/A | BT282: N/A | BU282: N/A | BV282: N/A | BW282: N/A | BX282: N/A | BY282: N/A | BZ282: N/A | CA282: N/A | CB282: N/A | CC282: N/A
BB283: Did not participate in other activities | BC283: N/A | BD283: N/A | BE283: N/A | BF283: N/A | BG283: N/A | BH283: N/A | BI283: N/A | BJ283: N/A | BK283: N/A | BL283: N/A | BM283: N/A | BN283: N/A | BO283: N/A | BP283: N/A | BQ283: N/A | BR283: N/A | BS283: N/A | BT283: N/A | BU283: N/A | BV283: N/A | BW283: N/A | BX283: N/A | BY283: N/A | BZ283: N/A | CA283: N/A | CB283: N/A | CC283: N/A
BB284: DK/not sure/missing/no such activity | BC284: N/A | BD284: N/A | BE284: N/A | BF284: N/A | BG284: N/A | BH284: N/A | BI284: N/A | BJ284: N/A | BK284: N/A | BL284: N/A | BM284: N/A | BN284: N/A | BO284: N/A | BP284: N/A | BQ284: N/A | BR284: N/A | BS284: N/A | BT284: N/A | BU284: N/A | BV284: N/A | BW284: N/A | BX284: N/A | BY284: N/A | BZ284: N/A | CA284: N/A | CB284: N/A | CC284: N/A
BA339: Raw numbers of respondents: | BB339: Basic water, sanitation and hygiene | BC339: NATIONAL wealth index quintile | BH339: URBAN wealth index quintile | BM339: RURAL wealth index quintile | BR339: SUB-REGIONS:
BA340: WatSan data, raw numbers (weighted) | BC340: Poorest | BD340: Poor | BE340: Middle | BF340: Rich | BG340: Richest | BH340: Poorest | BI340: Poor | BJ340: Middle | BK340: Rich | BL340: Richest | BM340: Poorest | BN340: Poor | BO340: Middle | BP340: Rich | BQ340: Richest | BR340: Adamaoua | BS340: Centre | BT340: Douala | BU340: Est | BV340: Extreme Nord | BW340: Littoral | BX340: Nord | BY340: Nord Ouest | BZ340: Ouest | CA340: Sud | CB340: Sud Ouest | CC340: Yaounde
BA341: Use of Basic Water Sanitation and Hygiene | BB341: Yes | BC341: N/A | BD341: N/A | BE341: N/A | BF341: N/A | BG341: N/A | BH341: N/A | BI341: N/A | BJ341: N/A | BK341: N/A | BL341: N/A | BM341: N/A | BN341: N/A | BO341: N/A | BP341: N/A | BQ341: N/A | BR341: N/A | BS341: N/A | BT341: N/A | BU341: N/A | BV341: N/A | BW341: N/A | BX341: N/A | BY341: N/A | BZ341: N/A | CA341: N/A | CB341: N/A | CC341: N/A
BB342: No | BC342: N/A | BD342: N/A | BE342: N/A | BF342: N/A | BG342: N/A | BH342: N/A | BI342: N/A | BJ342: N/A | BK342: N/A | BL342: N/A | BM342: N/A | BN342: N/A | BO342: N/A | BP342: N/A | BQ342: N/A | BR342: N/A | BS342: N/A | BT342: N/A | BU342: N/A | BV342: N/A | BW342: N/A | BX342: N/A | BY342: N/A | BZ342: N/A | CA342: N/A | CB342: N/A | CC342: N/A
BA343: Use of Basic Water and Sanitation | BB343: Yes | BC343: N/A | BD343: N/A | BE343: N/A | BF343: N/A | BG343: N/A | BH343: N/A | BI343: N/A | BJ343: N/A | BK343: N/A | BL343: N/A | BM343: N/A | BN343: N/A | BO343: N/A | BP343: N/A | BQ343: N/A | BR343: N/A | BS343: N/A | BT343: N/A | BU343: N/A | BV343: N/A | BW343: N/A | BX343: N/A | BY343: N/A | BZ343: N/A | CA343: N/A | CB343: N/A | CC343: N/A
BB344: No | BC344: N/A | BD344: N/A | BE344: N/A | BF344: N/A | BG344: N/A | BH344: N/A | BI344: N/A | BJ344: N/A | BK344: N/A | BL344: N/A | BM344: N/A | BN344: N/A | BO344: N/A | BP344: N/A | BQ344: N/A | BR344: N/A | BS344: N/A | BT344: N/A | BU344: N/A | BV344: N/A | BW344: N/A | BX344: N/A | BY344: N/A | BZ344: N/A | CA344: N/A | CB344: N/A | CC344: N/A
BA345: Use of Basic Water and Hygiene | BB345: Yes | BC345: N/A | BD345: N/A | BE345: N/A | BF345: N/A | BG345: N/A | BH345: N/A | BI345: N/A | BJ345: N/A | BK345: N/A | BL345: N/A | BM345: N/A | BN345: N/A | BO345: N/A | BP345: N/A | BQ345: N/A | BR345: N/A | BS345: N/A | BT345: N/A | BU345: N/A | BV345: N/A | BW345: N/A | BX345: N/A | BY345: N/A | BZ345: N/A | CA345: N/A | CB345: N/A | CC345: N/A
BB346: No | BC346: N/A | BD346: N/A | BE346: N/A | BF346: N/A | BG346: N/A | BH346: N/A | BI346: N/A | BJ346: N/A | BK346: N/A | BL346: N/A | BM346: N/A | BN346: N/A | BO346: N/A | BP346: N/A | BQ346: N/A | BR346: N/A | BS346: N/A | BT346: N/A | BU346: N/A | BV346: N/A | BW346: N/A | BX346: N/A | BY346: N/A | BZ346: N/A | CA346: N/A | CB346: N/A | CC346: N/A
BA347: Use of Basic Sanitation and Hygiene | BB347: Yes | BC347: N/A | BD347: N/A | BE347: N/A | BF347: N/A | BG347: N/A | BH347: N/A | BI347: N/A | BJ347: N/A | BK347: N/A | BL347: N/A | BM347: N/A | BN347: N/A | BO347: N/A | BP347: N/A | BQ347: N/A | BR347: N/A | BS347: N/A | BT347: N/A | BU347: N/A | BV347: N/A | BW347: N/A | BX347: N/A | BY347: N/A | BZ347: N/A | CA347: N/A | CB347: N/A | CC347: N/A
BB348: No | BC348: N/A | BD348: N/A | BE348: N/A | BF348: N/A | BG348: N/A | BH348: N/A | BI348: N/A | BJ348: N/A | BK348: N/A | BL348: N/A | BM348: N/A | BN348: N/A | BO348: N/A | BP348: N/A | BQ348: N/A | BR348: N/A | BS348: N/A | BT348: N/A | BU348: N/A | BV348: N/A | BW348: N/A | BX348: N/A | BY348: N/A | BZ348: N/A | CA348: N/A | CB348: N/A | CC348: N/A
BA349: Use of Basic Water | BB349: Yes | BC349: N/A | BD349: N/A | BE349: N/A | BF349: N/A | BG349: N/A | BH349: N/A | BI349: N/A | BJ349: N/A | BK349: N/A | BL349: N/A | BM349: N/A | BN349: N/A | BO349: N/A | BP349: N/A | BQ349: N/A | BR349: N/A | BS349: N/A | BT349: N/A | BU349: N/A | BV349: N/A | BW349: N/A | BX349: N/A | BY349: N/A | BZ349: N/A | CA349: N/A | CB349: N/A | CC349: N/A
BB350: No | BC350: N/A | BD350: N/A | BE350: N/A | BF350: N/A | BG350: N/A | BH350: N/A | BI350: N/A | BJ350: N/A | BK350: N/A | BL350: N/A | BM350: N/A | BN350: N/A | BO350: N/A | BP350: N/A | BQ350: N/A | BR350: N/A | BS350: N/A | BT350: N/A | BU350: N/A | BV350: N/A | BW350: N/A | BX350: N/A | BY350: N/A | BZ350: N/A | CA350: N/A | CB350: N/A | CC350: N/A
BA351: Use of Basic Sanitation | BB351: Yes | BC351: N/A | BD351: N/A | BE351: N/A | BF351: N/A | BG351: N/A | BH351: N/A | BI351: N/A | BJ351: N/A | BK351: N/A | BL351: N/A | BM351: N/A | BN351: N/A | BO351: N/A | BP351: N/A | BQ351: N/A | BR351: N/A | BS351: N/A | BT351: N/A | BU351: N/A | BV351: N/A | BW351: N/A | BX351: N/A | BY351: N/A | BZ351: N/A | CA351: N/A | CB351: N/A | CC351: N/A
BB352: No | BC352: N/A | BD352: N/A | BE352: N/A | BF352: N/A | BG352: N/A | BH352: N/A | BI352: N/A | BJ352: N/A | BK352: N/A | BL352: N/A | BM352: N/A | BN352: N/A | BO352: N/A | BP352: N/A | BQ352: N/A | BR352: N/A | BS352: N/A | BT352: N/A | BU352: N/A | BV352: N/A | BW352: N/A | BX352: N/A | BY352: N/A | BZ352: N/A | CA352: N/A | CB352: N/A | CC352: N/A
